{"text_format":"1","workbook":"xlsx","n_sheets":4,"sheets":["はじめに","入力シート","出力シート（タイムライン）","出力シート（避難確保計画）"],"not_rendered":{"charts":0,"images":2,"macros":1,"external_links":0,"defined_names":5,"comments":0,"pivot_tables":0},"unopened":[],"bounds":{"document_bytes":16777216,"sheet_cells":100000,"rows_first":2000,"rows_last":500,"rows_between":2000,"halvings":0,"cell_chars":16384,"cell_head_chars":4096},"cells_cut":0,"cells_raw":0,"read":"whole","date_system":"1900"}

{"sheet":"はじめに","index":0,"n_rows":5,"n_cols":2,"rows_kept":5,"cut":false,"hidden":false,"merged":[]}
[]
[null,"はじめに"]
[]
[]
[null,"〇本シートは、避難確保計画及び避難行動タイムラインを簡易に作成することを目的としたものです。このため、出力シート上に作成される計画内容は、必ずしも施設の状況を反映したものとはなりません。適切な計画を作成するため、シート上に作成された計画内容を十分確認し、施設に合った内容に修正してください。\n\n〇「例、補足説明」及び「入力のためのヒント」欄を参考に入力を進めてください。\n\n〇シートの性質上、文字がつぶれたりする場合がありますので、その場合は適宜エクセルシートの大きさを変えるなどで表示内容を調整してください。\n\n〇右隣の  「入力シート」　　をクリックして、入力を進めて下さい。"]

{"sheet":"入力シート","index":1,"n_rows":416,"n_cols":26,"rows_kept":416,"cut":false,"hidden":false,"merged":[[106,20,108,20],[123,23,129,23],[384,23,389,23],[189,20,195,20],[197,20,199,20],[217,23,222,23],[216,0,221,0],[222,1,222,19],[235,1,235,19],[247,1,247,19],[256,1,256,19],[217,20,219,20],[212,12,212,13],[217,1,217,6],[218,1,218,6],[219,1,219,6],[220,1,220,6],[221,1,221,6],[230,1,230,6],[231,1,231,6],[232,1,232,6],[233,1,233,6],[230,15,230,19],[258,15,258,19],[16,25,22,25],[28,25,31,25],[125,25,127,25],[135,25,137,25],[218,25,219,25],[274,25,278,25],[119,5,119,9],[121,5,121,9],[231,13,231,14],[119,11,119,19],[153,12,153,18],[155,12,155,18],[127,15,127,16],[127,17,127,19],[230,7,230,12],[231,7,231,12],[232,7,232,12],[233,7,233,12],[232,15,232,19],[230,13,230,14],[187,16,187,17],[189,16,189,17],[165,12,165,13],[147,1,147,10],[375,25,379,25],[134,23,140,23],[153,23,158,23],[185,23,190,23],[274,23,278,23],[87,23,89,23],[109,23,111,23],[171,23,175,23],[179,23,181,23],[203,23,207,23],[266,23,267,23],[93,23,95,23],[99,23,101,23],[2,20,2,21],[71,0,71,21],[2,1,2,10],[4,0,4,18],[24,12,24,13],[24,14,24,15],[24,16,24,17],[2,12,2,18],[57,1,57,10],[69,1,69,10],[22,1,22,10],[24,1,24,10],[41,5,41,10],[6,1,6,10],[10,12,10,18],[12,0,12,18],[8,1,8,10],[16,12,16,13],[16,14,16,15],[18,12,18,13],[18,14,18,15],[22,12,22,13],[18,1,18,10],[20,1,20,10],[49,23,57,23],[64,23,66,23],[73,23,77,23],[79,23,81,23],[82,23,85,23],[73,0,73,10],[75,1,75,10],[278,1,278,10],[309,1,309,10],[87,1,87,9],[149,1,149,10],[77,12,77,18],[143,1,143,10],[121,11,121,19],[224,15,224,19],[225,15,225,19],[216,15,216,19],[217,15,217,19],[218,15,218,19],[219,15,219,19],[220,15,220,19],[199,16,199,17],[223,15,223,19],[214,0,214,11],[39,5,39,10],[353,16,353,17],[360,0,360,16],[362,1,362,10],[290,1,290,10],[292,1,292,10],[357,12,358,18],[311,1,311,10],[313,1,313,10],[315,1,315,10],[317,1,317,10],[191,16,191,17],[257,15,257,19],[195,16,195,17],[206,16,206,17],[276,1,276,10],[276,16,276,17],[292,12,293,18],[301,13,301,15],[303,13,303,15],[288,16,288,17],[315,16,315,17],[363,1,363,10],[382,0,382,21],[324,16,324,17],[326,16,326,17],[295,0,295,18],[297,1,297,10],[299,1,299,10],[379,12,379,13],[371,0,371,19],[368,12,369,18],[375,12,375,13],[377,12,377,13],[373,0,373,18],[375,1,375,10],[377,1,377,10],[379,1,379,10],[368,1,368,10],[365,0,365,16],[357,1,357,10],[353,1,353,10],[355,1,355,10],[355,16,355,17],[328,16,328,17],[301,16,301,17],[226,7,226,12],[226,13,226,14],[226,15,226,19],[322,1,322,10],[307,13,307,15],[286,13,286,15],[288,13,288,15],[290,13,290,15],[272,0,272,11],[258,1,258,6],[262,7,262,12],[262,13,262,14],[286,1,286,10],[255,15,255,19],[248,15,248,19],[229,15,229,19],[238,15,238,19],[245,15,245,19],[241,15,241,19],[322,13,322,15],[210,0,210,11],[193,1,193,14],[195,1,195,14],[197,1,197,14],[199,1,199,14],[201,1,201,14],[212,1,212,10],[257,13,257,14],[257,1,257,6],[254,1,254,6],[225,7,225,12],[225,13,225,14],[227,7,227,12],[254,7,254,12],[229,7,229,12],[229,13,229,14],[234,1,234,6],[203,1,203,14],[255,7,255,12],[255,13,255,14],[208,0,208,19],[221,15,221,19],[223,1,223,6],[223,7,223,12],[223,13,223,14],[224,7,224,12],[224,13,224,14],[224,1,224,6],[257,7,257,12],[225,1,225,6],[226,1,226,6],[229,1,229,6],[227,1,227,6],[228,1,228,6],[240,1,240,6],[244,13,244,14],[243,7,243,12],[243,13,243,14],[238,13,238,14],[245,13,245,14],[252,7,252,12],[252,13,252,14],[234,7,234,12],[234,13,234,14],[245,1,245,6],[237,1,237,6],[238,1,238,6],[239,1,239,6],[10,1,10,10],[28,1,28,20],[147,16,147,17],[149,12,149,13],[147,12,147,13],[189,1,189,14],[153,1,153,10],[155,1,155,10],[157,1,157,10],[159,1,159,10],[161,1,161,10],[163,1,163,10],[165,16,165,17],[167,12,167,13],[77,1,77,10],[107,1,107,3],[107,11,107,19],[16,1,16,10],[16,16,16,17],[177,0,177,12],[20,14,20,18],[109,11,109,19],[111,11,111,19],[163,16,163,17],[141,1,141,10],[113,11,113,19],[8,12,8,18],[75,12,75,18],[47,16,47,17],[51,14,51,15],[49,12,49,13],[193,16,193,17],[173,12,173,13],[159,12,159,13],[127,5,127,14],[123,0,123,11],[137,1,137,10],[139,1,139,10],[125,1,125,18],[89,1,89,9],[55,1,55,10],[47,12,47,13],[33,5,33,10],[107,5,107,9],[95,1,95,9],[95,12,95,18],[97,0,97,10],[99,1,99,9],[99,12,99,18],[101,1,101,9],[143,16,143,17],[145,16,145,17],[161,16,161,17],[145,1,145,10],[201,16,201,17],[203,16,203,17],[139,12,139,13],[171,12,171,18],[165,1,165,10],[175,1,175,10],[141,12,141,13],[169,0,169,12],[167,1,167,10],[191,1,191,14],[175,12,175,18],[185,16,185,17],[171,1,171,10],[173,1,173,10],[179,1,179,10],[179,12,179,18],[185,1,185,14],[181,0,181,19],[137,12,137,18],[183,0,183,13],[216,1,216,6],[187,1,187,14],[127,2,127,4],[49,1,49,10],[59,1,59,10],[59,12,59,13],[59,14,59,15],[81,12,81,18],[83,12,83,18],[89,12,89,18],[87,12,87,18],[93,1,93,9],[93,12,93,18],[105,0,105,11],[115,11,115,19],[117,11,117,19],[109,5,109,9],[111,5,111,9],[113,5,113,9],[115,5,115,9],[117,5,117,9],[63,0,63,15],[216,13,216,14],[217,13,217,14],[216,7,216,12],[218,7,218,12],[219,7,219,12],[220,7,220,12],[221,7,221,12],[218,13,218,14],[219,13,219,14],[220,13,220,14],[221,13,221,14],[217,7,217,12],[16,23,22,23],[28,23,31,23],[33,23,35,23],[18,16,18,17],[22,16,22,17],[103,0,103,18],[109,1,115,3],[22,14,22,15],[49,14,49,15],[51,12,51,13],[65,12,65,13],[65,14,65,15],[65,16,65,17],[55,12,55,13],[101,12,101,18],[29,1,29,2],[29,3,29,5],[29,6,29,11],[35,5,35,10],[37,5,37,10],[29,12,29,15],[29,16,29,20],[47,14,47,15],[85,0,85,10],[45,0,45,14],[47,1,47,10],[55,14,55,15],[53,12,53,13],[53,14,53,15],[57,12,57,13],[57,14,57,15],[61,0,61,18],[83,1,83,10],[79,0,79,10],[81,1,81,10],[51,1,51,10],[65,1,65,10],[67,0,67,10],[53,1,53,10],[91,0,91,10],[117,1,121,3],[135,1,135,10],[135,12,135,18],[197,16,197,17],[157,12,157,13],[258,7,258,12],[258,13,258,14],[129,1,129,18],[227,13,227,14],[227,15,227,19],[228,7,228,12],[228,13,228,14],[228,15,228,19],[241,1,241,6],[241,7,241,12],[241,13,241,14],[236,1,236,6],[255,1,255,6],[131,0,131,19],[133,0,133,18],[151,0,151,18],[254,13,254,14],[254,15,254,19],[262,15,262,19],[280,16,280,17],[288,1,288,10],[301,1,301,10],[337,1,337,10],[330,1,330,10],[339,1,339,10],[339,12,340,18],[330,12,331,18],[311,13,311,15],[313,13,313,15],[315,13,315,15],[328,13,328,15],[328,1,328,10],[322,16,322,17],[324,1,324,10],[326,1,326,10],[274,1,274,10],[280,1,280,10],[282,1,282,10],[284,1,284,10],[278,16,278,17],[309,16,309,17],[311,16,311,17],[313,16,313,17],[307,1,307,10],[303,16,303,17],[305,13,305,15],[290,16,290,17],[274,16,274,17],[284,16,284,17],[335,13,335,15],[333,0,333,18],[335,1,335,10],[351,13,351,15],[344,13,344,15],[344,1,344,10],[346,1,346,10],[351,1,351,10],[320,0,320,18],[324,13,324,15],[326,13,326,15],[342,0,342,18],[346,12,347,18],[234,15,234,19],[231,15,231,19],[232,13,232,14],[233,13,233,14],[233,15,233,19],[240,7,240,12],[240,13,240,14],[240,15,240,19],[251,13,251,14],[251,15,251,19],[236,7,236,12],[236,13,236,14],[236,15,236,19],[248,7,248,12],[251,7,251,12],[245,7,245,12],[237,7,237,12],[237,13,237,14],[237,15,237,19],[238,7,238,12],[239,7,239,12],[239,13,239,14],[239,15,239,19],[242,1,242,6],[242,7,242,12],[242,13,242,14],[242,15,242,19],[243,1,243,6],[353,13,353,15],[274,13,274,15],[243,15,243,19],[244,1,244,6],[244,7,244,12],[351,16,351,17],[344,16,344,17],[337,16,337,17],[278,13,278,15],[280,13,280,15],[282,13,282,15],[284,13,284,15],[317,12,318,18],[337,13,337,15],[309,13,309,15],[286,16,286,17],[305,16,305,17],[307,16,307,17],[335,16,335,17],[306,20,308,20],[244,15,244,19],[252,15,252,19],[253,1,253,6],[253,7,253,12],[253,13,253,14],[253,15,253,19],[246,1,246,6],[246,7,246,12],[246,13,246,14],[246,15,246,19],[249,1,249,6],[249,7,249,12],[249,13,249,14],[249,15,249,19],[250,1,250,6],[250,7,250,12],[250,13,250,14],[250,15,250,19],[282,16,282,17],[303,1,303,10],[305,1,305,10],[262,1,262,6],[276,13,276,15],[362,12,363,18],[355,13,355,15],[252,1,252,6],[251,1,251,6],[248,1,248,6],[349,0,349,16],[248,13,248,14],[384,20,390,20],[266,1,268,18],[264,0,264,11],[259,1,259,6],[259,7,259,12],[259,13,259,14],[259,15,259,19],[260,1,260,6],[260,7,260,12],[260,13,260,14],[260,15,260,19],[261,1,261,6],[261,7,261,12],[261,13,261,14],[261,15,261,19],[281,20,283,20],[270,0,270,20]]}
["入力用シート（避難確保計画・避難行動タイムライン）"]
[]
[null,"入力する項目",null,null,null,null,null,null,null,null,null,null,"入　力",null,null,null,null,null,null,null,"例、補足説明",null,null,"入力のためのヒント",null,"避難確保計画\n解説編参照箇所"]
[]
["反映先：表紙、他"]
[]
["　","計画作成年月日",null,null,null,null,null,null,null,null,null,null,null,"年",null,"月"]
[]
["　","施設名"]
[]
["　","対象となる災害（3つの中から選択してください）",null,null,null,null,null,null,null,null,null,null,null,null,null,null,null,null,null,null,"浸水害／土砂災害／両方"]
[]
["反映先：避難確保計画 (様式１）"]
[]
["【1】　施設の収容人数の状況"]
[]
[null,"平日 昼間",null,null,null,null,null,null,null,null,null,null,"患者",null,null,null,"名　施設職員",null,null,"名",null,null,null,"時間帯毎の施設職員数、患者数を記入します。\n休日の体制が平日とは異なる場合は「休日設定の有無」で「平日と異なる」を選択して下さい。",null,"第１章1.2(3)(4)\n施設患者（要配慮者）の把握、施設職員の把握"]
[]
[null,"平日 夜間",null,null,null,null,null,null,null,null,null,null,"患者",null,null,null,"名　施設職員",null,null,"名"]
[]
[null,"休日設定の有無",null,null,null,null,null,null,null,null,null,null,null,null,"平日と同じ",null,null,null,null,null,"平日と同じ／平日と異なる"]
[]
[null,"休日 昼間",null,null,null,null,null,null,null,null,null,null,"患者",null,null,null,"名　施設職員",null,null,"名"]
[]
[null,"休日 夜間",null,null,null,null,null,null,null,null,null,null,"患者",null,null,null,"名　施設職員",null,null,"名"]
[]
["【2】　事前休業の判断",null,null,null,null,null,null,null,null,null,null,null,null,null,null,null,null,null,null,null,null,null,false]
[]
[null,"　大型台風の襲来が予想される場合で、公共交通機関の計画的な運休が予定される場合、通院（所）部門を臨時休業とする。",null,null,null,null,null,null,null,null,null,null,null,null,null,null,null,null,null,null,null,null,null,"開業時間と患者の通所にかかる時間も考慮して、休業の判断をして下さい。",null,"第１章1.2(5)　\n事前休業の判断について"]
[null,"　または",null,null,null,null,"の時点で、全県下又は「",null,null,null,null,null,null,null,null,null," 」に以下のいずれかが発令されている場合は、"]
[]
[null,"通院（所）部門を臨時休業とする。",null,null,null,null,null,null,null,null,null,null,null,null,null,null,null,null,null,null,"例）午前10時　　○○市"]
[]
[null,null,null,null,null,null,null,null,null,null,null,null,null,null,null,null,null,null,"ｄ",null,"例）暴風警報又は特別警報",null,null,"休業の判断をするための、情報を記載して下さい。"]
[]
[null,null,null,null,null,null,null,null,null,null,null,null,null,null,null,null,null,null,null,null,"　　大雨警報又は特別警報"]
[]
[null,null,null,null,null,null,null,null,null,null,null,null,null,null,null,null,"ｄ",null,null,null,"　　洪水警報"]
[]
[null,null,null,null,null,null,null,null,null,null,null,null,null,null,null,null,null,null,null,null,"　　テレビのニュース"]
[]
[null,null,null,null,null,null,null,null,null,null,null,null,null,null,null,null,null,null,null,null,"　　〇〇市役所からの連絡"]
[]
[]
[]
["【3】　避難対象、患者数、施設職員数"]
[]
["　","種別（歩行状態等）",null,null,null,null,null,null,null,null,null,null,null,null,"患者",null,null,null,"施設職員"]
[]
[null,"車椅子",null,null,null,null,null,null,null,null,null,null,"約 ",null,null,null,"名　","約",null,"名　","例）車いす",null,null,"患者を避難させる状況を想定し、避難対象、患者数、施設職員数を記入します。\n\n種別は施設職員が分かりやすいように記入して下さい。"]
[]
[null,"ストレッチャー",null,null,null,null,null,null,null,null,null,null,"約 ",null,null,null,"名　","約",null,"名　","　　ストレッチャー"]
[]
[null,"自立歩行",null,null,null,null,null,null,null,null,null,null,"約 ",null,null,null,"名　","約",null,"名　","　　歩行器・歩行者"]
[]
[null,null,null,null,null,null,null,null,null,null,null,null,"約 ",null,null,null,"名　","約",null,"名　","　　杖"]
[]
[null,null,null,null,null,null,null,null,null,null,null,null,"約 ",null,null,null,"名　","約",null,"名　","　　自立歩行"]
[]
[null,null,null,null,null,null,null,null,null,null,null,null,"約 ",null,null,null,"名　","約",null,"名　"]
[]
["反映先：タイムライン「２．施設ハザードの確認」"]
[]
["【4】　施設階層と浸水深"]
[null,null,null,null,null,null,null,null,null,null,null,null,null,null,null,null,null,null,null,null,null,null,null,"施設ハザードを確認して、記入して下さい。"]
[null,"施設階層",null,null,null,null,null,null,null,null,null,null,"施設階層",null,null,null,"階　浸水深",null,null,"ｍ","例）1ｍ、0.5～1.0ｍ"]
[]
["【5】　土砂災害警戒区域"]
[]
[null,"土砂災害警戒区域",null,null,null,null,null,null,null,null,null,null,"土砂災害区域内か否か",null,null,null,null,null,null,null,"区域内／区域外"]
[]
["反映先：タイムライン「７.体制確立や避難開始等のタイミングの検討」"]
[]
["【6】　対象河川①",null,null,null,null,null,null,null,null,null,null,null,null,null,null,null,null,null,null,null,null,null,null,"所在する市町村から、施設周辺で浸水を引き起こす恐れのある河川に係る「洪水予報」または「水位到達情報」が伝達されます。"]
[]
[null,"浸水想定区域を持つ河川名",null,null,null,null,null,null,null,null,null,null,null,null,null,null,null,null,null,null,"例）庄内川"]
[]
[null,"参照する水位観測所",null,null,null,null,null,null,null,null,null,null,null,null,null,null,null,null,null,null,"例）枇杷島"]
[]
["【7】　対象河川②（ある場合）",null,null,null,null,null,null,null,null,null,null,null,null,null,null,null,null,null,null,null,null,null,null,"どのような情報がどうやって伝達されるのか市町村に確認下さい。"]
[]
[null,"浸水想定区域を持つ河川名",null,null,null,null,null,null,null,null,null,null,null,null,null,null,null,null,null,null,"例）木曽川"]
[null,null,null,null,null,null,null,null,null,null,null,null,null,null,null,null,null,null,null,null,null,null,null,"市町村から伝達される洪水予報等を踏まえて、必要な防災体制を検討しましょう。"]
[null,"参照する水位観測所",null,null,null,null,null,null,null,null,null,null,null,null,null,null,null,null,null,null,"例）犬山"]
[]
["【8】　対象河川③（ある場合）"]
[]
[null,"浸水想定区域を持つ河川名",null,null,null,null,null,null,null,null,null,null,null,null,null,null,null,null,null,null,"例）新川",null,null,"通常は、最寄りの基準水位観測所を参照先とします。疑問点は市町村に確認下さい。"]
[]
[null,"参照する水位観測所",null,null,null,null,null,null,null,null,null,null,null,null,null,null,null,null,null,null,"例）水場川外水位"]
[]
["【9】　対象河川④（ある場合）"]
[]
[null,"浸水想定区域を持つ河川名",null,null,null,null,null,null,null,null,null,null,null,null,null,null,null,null,null,null,"例）新川",null,null,"通常は、最寄りの基準水位観測所を参照先とします。疑問点は市町村に確認下さい。"]
[]
[null,"参照する水位観測所",null,null,null,null,null,null,null,null,null,null,null,null,null,null,null,null,null,null,"例）水場川外水位"]
[]
["【10】　対象河川⑤（ある場合）"]
[]
[null,"浸水想定区域を持つ河川名",null,null,null,null,null,null,null,null,null,null,null,null,null,null,null,null,null,null,"例）新川",null,null,"通常は、最寄りの基準水位観測所を参照先とします。疑問点は市町村に確認下さい。"]
[]
[null,"参照する水位観測所",null,null,null,null,null,null,null,null,null,null,null,null,null,null,null,null,null,null,"例）水場川外水位"]
[]
["反映先：避難確保計画 (様式３）"]
[]
["【11】　情報の入手"]
[]
["　","収集する情報",null,null,null,"情報の例示",null,null,null,null,null,"収集方法"]
[]
["　","洪水予報等",null,null,null,"気象警報、津波情報",null,null,null,null,null,"気象庁ウェブサイト（http://www.jma.go.jp/jp/warn/）、テレビ（データ放送）",null,null,null,null,null,null,null,null,"例）テレビ、ラジオ",null,null,"洪水予報等は、所在する市町村からFAX等で伝達されます。\n\n伝達方法について市町村に確認のうえ、入手手段を記載して下さい。",null,"第１章 1.4(1)\n情報収集"]
[]
["　",null,null,null,null,"洪水予報、\n水位到達情報",null,null,null,null,null,"川の防災情報（https://www.river.go.jp/index）",null,null,null,null,null,null,null,null,"例） インターネット\n　　　（情報提供機関のウェブサイト）"]
[]
["　",null,null,null,null,"土砂災害警戒情報",null,null,null,null,null,"気象庁ウェブサイト（http://www.jma.go.jp/jp/warn/）",null,null,null,null,null,null,null,null,"例） ラジオ（ＡＭ○○○）"]
[]
[null,null,null,null,null,"高齢者等避難、\n避難指示",null,null,null,null,null,"市町村ウェブサイト（●●）、緊急速報メール",null,null,null,null,null,null,null,null,"例）防災行政無線、エリアメール・緊急速報メール、防災メール"]
[]
[null,"その他",null,null,null,"施設周辺の浸水状況",null,null,null,null,null,"施設職員による目視",null,null,null,null,null,null,null,null,"例）施設職員による目視（但し、安全に配慮して危険な場所に近づかないよう施設内から実施）"]
[]
[null,null,null,null,null,"排水施設の稼働状況",null,null,null,null,null,"市町村への問い合わせ",null,null,null,null,null,null,null,null,"例）市町村からのＦＡＸ\n　　（事前に調整）"]
[]
["　",null,null,null,null,"施設周辺における\n土砂災害の前兆現象",null,null,null,null,null,"―",null,null,null,null,null,null,null,null,"例）施設職員による目視（但し、安全に配慮して危険な場所に近づかないよう施設内から実施）"]
[]
["【12】　情報伝達について",null,null,null,null,null,null,null,null,null,null,null,null,null,null,null,null,null,null,null,null,null,null,"【14】　立退き避難（水平避難）の場合の避難場所２（指定緊急避難場所）が自動で入力されるようになっています。\n適宜編集してください。"]
[]
[null,"避難する場合には「患者緊急連絡先一覧表」に基づき、患者の保護者・家族等に対し、",null,null,null,null,null,null,null,null,null,null,null,null,null,null,null,null,null,null,null,null,null,null,null,"第１章 1.4(2)\n情報伝達"]
[]
[null,"「",{"$f":"IF(M154=\"\",\"\",M154)","v":""},null,null,"（避難場所）へ避難する。患者引き渡しは",null,null,null,null,null,null,null,null,null,{"$f":"IF(M154=\"\",\"\",M154)","v":""},null,"（避難場所）",null,null,"例）〇〇公園"]
[]
[null,"において行う。患者の引き渡し開始は○○時頃とする。」旨を連絡する。"]
[]
["反映先：タイムライン「３．安全な避難先の検討」、避難確保計画 (様式４）"]
[]
["【13】　立退き避難（水平避難）の場合の避難場所１（浸水想定区域外の関連施設）"]
[null,null,null,null,null,null,null,null,null,null,null,null,null,null,null,null,null,null,null,null,null,null,null,"避難場所を設定し、設定した場所や避難ルートが避難時に浸水などで通行困難とならないことを確認して下さい。"]
[null,"避難場所名",null,null,null,null,null,null,null,null,null,null,null,null,null,null,null,null,null,null,"例）〇〇小学校",null,null,null,null,"第１章1.5\n避難誘導(様式４)\n"]
[]
[null,"避難場所の住所",null,null,null,null,null,null,null,null,null,null,null,null,null,null,null,null,null,null,"例）〇〇市△町〇-〇"]
[]
[null,"避難場所の避難先階",null,null,null,null,null,null,null,null,null,null,null,null,"階"]
[]
[null,"避難場所までの移動距離、時間",null,null,null,null,null,null,null,null,null,null,null,null,"ｍ"]
[]
[null,"避難場所までの移動手段①",null,null,null,null,null,null,null,null,null,null,"徒歩の場合",null,null,null,"所要時間",null,null,"分"]
[]
[null,"避難場所までの移動手段②",null,null,null,null,null,null,null,null,null,null,"車両の場合",null,null,null,"所要台数",null,null,"台"]
[]
[null,"浸水想定区域および浸水深",null,null,null,null,null,null,null,null,null,null,"　",null,null,null,"浸水深",null,null,"ｍ","区域内の場合、浸水深ｍを記載"]
[]
[null,"土砂災害区域内か否か",null,null,null,null,null,null,null,null,null,null,"　",null,null,null,null,null,null,null,"区域外がのぞましい"]
[]
["【14】　立退き避難（水平避難）の場合の避難場所２（指定緊急避難場所）"]
[]
[null,"避難場所名",null,null,null,null,null,null,null,null,null,null,null,null,null,null,null,null,null,null,"例）□□小学校",null,null,"避難場所を設定し、設定した場所や避難ルートが避難時に浸水などで通行困難とならないことを確認して下さい。"]
[]
[null,"避難場所の住所",null,null,null,null,null,null,null,null,null,null,null,null,null,null,null,null,null,null,"例）□□市△町〇-〇"]
[]
[null,"避難場所の避難先階",null,null,null,null,null,null,null,null,null,null,null,null,"階"]
[]
[null,"避難場所までの移動距離",null,null,null,null,null,null,null,null,null,null,null,null,"ｍ"]
[]
[null,"避難場所までの移動手段①",null,null,null,null,null,null,null,null,null,null,"徒歩の場合",null,null,null,"所要時間",null,null,"分"]
[]
[null,"避難場所までの移動手段②",null,null,null,null,null,null,null,null,null,null,"車両の場合",null,null,null,"所要台数",null,null,"台"]
[]
[null,"浸水想定区域および浸水深",null,null,null,null,null,null,null,null,null,null,"　",null,null,null,"浸水深",null,null,"ｍ","区域内の場合、浸水深ｍを記載"]
[]
[null,"土砂災害区域内か否か",null,null,null,null,null,null,null,null,null,null,"　",null,null,null,null,null,null,null,"区域外がのぞましい"]
[]
["【15】　施設内にて屋内安全確保を図る場所"]
[]
[null,"施設内の場所、部屋名",null,null,null,null,null,null,null,null,null,null,null,null,null,null,null,null,null,null,"例）施設内大広間、〇〇室",null,null,"避難に伴うリスクを踏まえ、必要がある場合、屋内安全確保を図る場所を設定して下さい。"]
[]
[null,"階層",null,null,null,null,null,null,null,null,null,null,null,null,"階"]
[]
[null,"移動手段",null,null,null,null,null,null,null,null,null,null,null,null,null,null,null,null,null,null,"例）エレベーター、階段"]
[]
["【16】　近隣の安全な場所"]
[]
[null,"近隣の安全な場所",null,null,null,null,null,null,null,null,null,null,null,null,null,null,null,null,null,null,"例）〇〇公園",null,null,"指定緊急避難場所ではないが、標高の高い場所など近隣のより安全な場所・建物等を記入して下さい"]
[]
["反映先：タイムライン「5．避難を行うための準備や所要時間の検討」"]
[]
["【17】　避難準備"]
[]
[null,"①患者の家族への連絡",null,null,null,null,null,null,null,null,null,null,null,null,null,null,15,null,"分",null,null,null,null,"避難を行うための準備や所要時間を設定して下さい。所要時間は余裕を持たせて設定して下さい。"]
[]
[null,"②患者の家族への受渡し",null,null,null,null,null,null,null,null,null,null,null,null,null,null,30,null,"分"]
[]
[null,"③避難路の安全確保",null,null,null,null,null,null,null,null,null,null,null,null,null,null,10,null,"分",null,"例）\n ① 患者家族への連絡\n ② 避難路の安全確保\n ② 持出品の準備"]
[]
[null,"③持出し品の準備",null,null,null,null,null,null,null,null,null,null,null,null,null,null,15,null,"分"]
[]
[null,null,null,null,null,null,null,null,null,null,null,null,null,null,null,null,null,null,"分"]
[]
[null,null,null,null,null,null,null,null,null,null,null,null,null,null,null,null,null,null,"分"]
[]
[null,null,null,null,null,null,null,null,null,null,null,null,null,null,null,null,null,null,"分",null,"　　　同じタイミングで行う場合\n　　　は、同じ番号にして下さい"]
[]
[null,null,null,null,null,null,null,null,null,null,null,null,null,null,null,null,null,null,"分"]
[]
[null,null,null,null,null,null,null,null,null,null,null,null,null,null,null,null,null,null,"分"]
[]
[null,null,null,null,null,null,null,null,null,null,null,null,null,null,null,null,null,null,"分",null,null,null,null,"所要時間を記入して下さい。\n並列した準備があれば、最大所要時間を記入して下さい。"]
[]
[]
[null,null,null,null,null,null,null,null,null,null,null,null,null,null,"合計",null,60,null,"分",null,"合計時間を記入して下さい"]
[]
["反映先：タイムライン「７．対応のタイミングの検討」、避難確保計画 (様式２）"]
[]
["【18】　自衛水防組織の有無"]
[]
[null,"自衛水防組織の有無",null,null,null,null,null,null,null,null,null,null,"　",null,null,null,null,null,null,null,"有／無",null,null,null,null,"第１章 1.1(3)目次"]
[]
["【19】　施設の対応"]
[]
[null,"①体制確立の判断時期",null,null,null,null,null,"②活動内容",null,null,null,null,null,"目安等",null,"③対応班（要員）"]
[null,"台風発生情報",null,null,null,null,null,"防災情報の収集",null,null,null,null,null,"随時",null,"情報収集伝達要員",null,null,null,null,"※記載されている内容等を参考　\n　に、適宜入力して下さい。\n　以下、同じ","　",null,"自衛組織が設置される場合は\n「〇〇班（△△要員）」を記載して下さい。\n自衛組織が設置されない場合は「△△要員」を記載して下さい。",null,"第１章 1.3(2)"]
[null,null,null,null,null,null,null,null,null,null,null,null,null,null,null,null,null,null,null,null,null,null,null,null,null,"防災体制の判断基準の設定"]
[]
[]
[]
[]
[null,"洪水注意報の発表",null,null,null,null,null,"防災情報の収集",null,null,null,null,null,15,null,"情報収集伝達要員",null,null,null,null,"【洪水の場合】"]
[null,"氾濫注意情報の発表",null,null,null,null,null,"浸水防止対策の準備",null,null,null,null,null,2,null,"避難誘導要員",null,null,null,null,"例）洪水注意報"]
[null,"氾濫注意水位超過",null,null,null,null,null,"幹部職員の参集連絡",null,null,null,null,null,1,null,"情報収集伝達要員",null,null,null,null,"　　氾濫注意情報または氾濫注意水位超過"]
[null,null,null,null,null,null,null,"参集職員への事前連絡",null,null,null,null,null,1,null,"情報収集伝達要員",null,null,null,null,"　（○○川（○○地点））"]
[null,null,null,null,null,null,null,"持出し品のチェック",null,null,null,null,null,30,null,"避難誘導要員"]
[null,null,null,null,null,null,null,"避難路の確認",null,null,null,null,null,15,null,"避難誘導要員"]
[null,null,null,null,null,null,null,"患者への注意喚起",null,null,null,null,null,"随時",null,"避難誘導要員"]
[null,null,null,null,null,null,null,null,null,null,null,null,null,null,null,null,null,null,null,null,"【土砂災害の場合】"]
[null,null,null,null,null,null,null,null,null,null,null,null,null,null,null,null,null,null,null,null,"例）大雨注意報"]
[null,{"$f":"IF(M76=\"\",\"\",\"□ \"&M76)&IF(M78=\"\",\"\",\" (\"&M78&\"観測所）\")","v":""}]
[null,{"$f":"IF(M82=\"\",\"\",\"□ \"&M82)&IF(M84=\"\",\"\",\" (\"&M84&\"観測所）\")","v":""}]
[null,{"$f":"IF(M88=\"\",\"\",\"□ \"&M88)&IF(M90=\"\",\"\",\" (\"&M90&\"観測所）\")","v":""}]
[]
[null,"大雨洪水警報の発表",null,null,null,null,null,"職員の参集",null,null,null,null,null,20,null,"情報収集伝達要員"]
[null,"洪水予報氾濫警戒情報の発表",null,null,null,null,null,"土嚢の設置",null,null,null,null,null,20,null,"避難誘導要員"]
[null,"避難判断水位超過",null,null,null,null,null,"止水板の設置",null,null,null,null,null,30,null,"避難誘導要員"]
[null,"高齢者等避難の発令",null,null,null,null,null,"重要備品、設備の退避",null,null,null,null,null,3,null,"避難誘導要員"]
[null,null,null,null,null,null,null,"患者家族への連絡",null,null,null,null,null,3,null,"情報収集伝達要員"]
[null,null,null,null,null,null,null,"患者家族への引渡し",null,null,null,null,null,3,null,"情報収集伝達要員"]
[null,null,null,null,null,null,null,"持出し品の準備",null,null,null,null,null,3,null,"避難誘導要員"]
[null,null,null,null,null,null,null,"利用休止の判断",null,null,null,null,null,3,null,"管理権限者"]
[null,null,null,null,null,null,null,"避難経路の確認",null,null,null,null,null,5,null,"避難誘導要員"]
[null,null,null,null,null,null,null,"避難開始の判断",null,null,null,null,null,5,null,"管理権限者"]
[null,null,null,null,null,null,null,"避難所への移動開始",null,null,null,null,null,10,null,"避難誘導要員"]
[]
[null,"土砂災害警戒情報の発表",null,null,null,null,null,"屋内上層階へ退避開始",null,null,null,null,null,5,null,"避難誘導要員"]
[null,"洪水予報氾濫危険情報の発表",null,null,null,null,null,"全員避難のチェック、施錠",null,null,null,null,null,5,null,"避難誘導要員"]
[null,"氾濫危険水位超過",null,null,null,null,null,"患者家族への避難先連絡",null,null,null,null,null,5,null,"情報収集伝達要員"]
[null,null,null,null,null,null,null,"急病人の緊急搬送要請",null,null,null,null,null,10,null,"情報収集伝達要員"]
[]
[]
[]
[]
[]
[null,null,null,null,null,null,null,"患者避難完了の確認",null,null,null,null,null,5,null,"避難誘導要員"]
[null,null,null,null,null,null,null,"従業員の安否確認",null,null,null,null,null,"5分",null,"情報収集伝達要員"]
[null,null,null,null,null,null,null,"患者の安全確保・体調管理",null,null,null,null,null,5,null,"避難誘導要員"]
[]
[]
[]
[]
["【20】　大型台風"]
[]
[null,"大型台風の襲来が予想される場合で、公共交通機関の計画運休が予定されている場合、避難に関する準備をし、早めに避難を開始する。また、協定を締結した地域の企業等と連携して早めに避難を開始する。",null,null,null,null,null,null,null,null,null,null,null,null,null,null,null,null,null,null,null,null,null,"適宜状況に応じて、記載して下さい。"]
[]
[]
[]
["反映先：避難確保計画 (様式５）"]
[]
["【21】　情報収集・伝達に係る機材等"]
[]
[null,"□テレビ",null,null,null,null,null,null,null,null,null,null,"有",null,null,null,null,null,"台　",null,null,null,null,"情報収集等を行う時に使用する機材として位置づけされている場合は、「有」を選択し、その台数等を記載して下さい。\n\nそれ以外の機材については、「その他」の欄に機材名と台数を記載して下さい。",null,"第１章1.6　\n避難の確保を図るための施設の整備（様式５）"]
[]
[null,"□デスクトップパソコン",null,null,null,null,null,null,null,null,null,null,"有",null,null,null,null,null,"台"]
[]
[null,"□ノートパソコン",null,null,null,null,null,null,null,null,null,null,"有",null,null,null,null,null,"台"]
[]
[null,"□ラジオ",null,null,null,null,null,null,null,null,null,null,"有",null,null,null,null,null,"器"]
[null,null,null,null,null,null,null,null,null,null,null,null,null,null,null,null,null,null,null,null,"「有」の場合、数を記入して下さい"]
[null,"□タブレット端末",null,null,null,null,null,null,null,null,null,null,"有",null,null,null,null,null,"台"]
[]
[null,"□ファックス",null,null,null,null,null,null,null,null,null,null,"有",null,null,null,null,null,"台",null,"　以下、同じ"]
[]
[null,"□携帯電話",null,null,null,null,null,null,null,null,null,null,"有",null,null,null,null,null,"台"]
[]
[null,"□携帯電話用バッテリー",null,null,null,null,null,null,null,null,null,null,"有",null,null,null,null,null,"個"]
[]
[null,"□乾電池",null,null,null,null,null,null,null,null,null,null,"有",null,null,null,null,null,"個"]
[]
[null,"□その他",null,null,null,null,null,null,null,null,null,null,"□トランシーバー4台、□充電器2器などを記載",null,null,null,null,null,null,null,"各機材の前に「□」を入力"]
[null,null,null,null,null,null,null,null,null,null,null,null,null,null,null,null,null,null,null,null,"以下、同じ"]
[]
["【22】　避難誘導に係る機材等"]
[]
[null,"□従業員名簿",null,null,null,null,null,null,null,null,null,null,"有"]
[]
[null,"□患者名簿",null,null,null,null,null,null,null,null,null,null,"有"]
[]
[null,"□案内旗",null,null,null,null,null,null,null,null,null,null,"有",null,null,null,null,null,"枚"]
[]
[null,"□携帯電話",null,null,null,null,null,null,null,null,null,null,"有",null,null,null,null,null,"台"]
[]
[null,"□携帯電話用バッテリー",null,null,null,null,null,null,null,null,null,null,"有",null,null,null,null,null,"個"]
[]
[null,"□拡声器",null,null,null,null,null,null,null,null,null,null,"有",null,null,null,null,null,"台"]
[]
[null,"□懐中電灯",null,null,null,null,null,null,null,null,null,null,"有",null,null,null,null,null,"台"]
[]
[null,"□乾電池",null,null,null,null,null,null,null,null,null,null,"有",null,null,null,null,null,"個"]
[]
[null,"□ライフジャケット",null,null,null,null,null,null,null,null,null,null,"無",null,null,null,null,null,"着"]
[]
[null,"□蛍光塗料",null,null,null,null,null,null,null,null,null,null,"無",null,null,null,null,null,"個"]
[]
[null,"□その他",null,null,null,null,null,null,null,null,null,null,"□誘導灯5個、□運動靴などを記載"]
[]
[]
["【23】　施設内の一時避難に係る機材等"]
[]
[null,"□水",null,null,null,null,null,null,null,null,null,null,"有",null,null,null,null,null,"日分"]
[]
[null,"□食料",null,null,null,null,null,null,null,null,null,null,"有",null,null,null,null,null,"日分"]
[]
[null,"□寝具",null,null,null,null,null,null,null,null,null,null,"有",null,null,null,null,null,"人分"]
[]
[null,"□防寒具",null,null,null,null,null,null,null,null,null,null,"有",null,null,null,null,null,"人分"]
[]
[null,"□その他",null,null,null,null,null,null,null,null,null,null,"□扇風機5台、□カイロ20個などを記載"]
[]
[]
["【24】　衛生器具に係る機材等"]
[]
[null,"□おむつ・おしりふき",null,null,null,null,null,null,null,null,null,null,"有",null,null,null,null,null,"日分"]
[]
[null,"□タオル",null,null,null,null,null,null,null,null,null,null,"有",null,null,null,null,null,"日分"]
[]
[null,"□その他",null,null,null,null,null,null,null,null,null,null,"□ウエットティッシュ、□使い捨て手袋などを記載"]
[]
[]
["【25】　医療品に係る機材等"]
[]
[null,"□常備薬",null,null,null,null,null,null,null,null,null,null,null,null,null,null,null,null,"人分"]
[]
[null,"□その他",null,null,null,null,null,null,null,null,null,null,"□消毒薬、□包帯、□絆創膏などを記載"]
[]
[]
["【26】　その他の機材等"]
[]
[null,"□ウエットティッシュ",null,null,null,null,null,null,null,null,null,null,"有",null,null,null,null,null,"袋・個"]
[]
[null,"□ゴミ袋",null,null,null,null,null,null,null,null,null,null,"有",null,null,null,null,null,"枚"]
[]
[null,"□タオル",null,null,null,null,null,null,null,null,null,null,"有",null,null,null,null,null,"枚"]
[]
[null,"□その他",null,null,null,null,null,null,null,null,null,null,"□簡易マット、□紙タオルなどを記載"]
[]
[]
["【27】　浸水を防ぐための機材等"]
[]
[null,null,null,null,null,null,null,null,null,null,null,null,"□土のう、□バケツなどを記載"]
[]
[]
["【28】　土砂災害に対する避難を確保するための機材等"]
[]
[]
[null,null,null,null,null,null,null,null,null,null,null,null,"□ビニールシート、□スコップなどを記載"]
[]
[]
["反映先：避難確保計画 (様式５）8.防災教育及び訓練の実施"]
[]
["【29】　研修実施（毎年）"]
[]
[null,"新規採用施設職員の研修実施月",null,null,null,null,null,null,null,null,null,null,null,null,"月",null,null,null,null,null,null,null,null,null,null,"第１章1.7　\n防災教育及び訓練の取組（様式７）"]
[]
[null,"全施設職員の研修実施月",null,null,null,null,null,null,null,null,null,null,null,null,"月",null,null,null,null,null,"情報収集・伝達及び避難誘導に関する訓練"]
[]
[null,"その他の教育及び訓練計画の作成月",null,null,null,null,null,null,null,null,null,null,null,null,"月"]
[]
[]
["避難確保計画（様式６）以降"]
[]
[null,null,null,null,null,null,null,null,null,null,null,null,null,null,null,null,null,null,null,null,"\nシートをクリックして、様式６\n以降の入力を行って下さい。",null,null,"避難確保計画（様式６）以降は、直接「避難確保計画」シートに記入して下さい。"]
[null,null,null,null,null,null,"9.自衛水防組織の業務に関する事項"]
[]
[]
[null,null,null,null,null,null,"10.防災教育及び訓練の年間計画"]
[]
[]
[null,null,null,null,null,null,"11.患者緊急連絡先一覧表"]
[]
[]
[null,null,null,null,null,null,"12.緊急連絡網"]
[]
[]
[null,null,null,null,null,null,"13.外部機関等の緊急連絡先一覧表"]
[]
[]
[null,null,null,null,null,null,"14.対応別避難誘導一覧表"]
[]
[]
[null,null,null,null,null,null,"15.防災体制一覧表"]
[]
[]
[null,null,null,null,null,null,"自衛水防組織活動要領"]
[]
[]
[null,null,null,null,null,null,"自衛水防組織の編成と任務"]
[]
[]
[null,null,null,null,null,null,"自衛水防組織装備品リスト"]
[]
[]
[null,null,null,null,null,null,"施設周辺の避難地図"]

{"sheet":"出力シート（タイムライン）","index":2,"n_rows":87,"n_cols":28,"rows_kept":87,"cut":false,"hidden":false,"merged":[[85,20,85,22],[72,12,72,15],[71,16,71,19],[72,20,72,22],[73,12,73,15],[72,16,72,19],[73,20,73,22],[75,12,75,15],[75,16,75,19],[75,20,75,22],[84,12,84,15],[84,16,84,19],[84,20,84,22],[82,12,82,15],[79,12,79,15],[79,16,79,19],[79,20,79,22],[74,12,74,15],[74,16,74,19],[74,20,74,22],[80,12,80,15],[77,12,77,15],[83,12,83,15],[83,16,83,19],[24,0,24,2],[24,3,24,5],[21,0,21,2],[21,3,21,5],[21,6,21,7],[21,9,21,12],[67,16,67,19],[85,12,85,15],[85,16,85,19],[66,16,66,19],[62,16,62,19],[63,12,63,15],[63,16,63,19],[60,12,60,15],[60,16,60,19],[54,12,54,15],[53,12,53,15],[58,16,58,19],[54,16,54,19],[56,12,56,15],[56,16,56,19],[57,16,57,19],[48,16,48,19],[23,3,23,5],[83,20,83,22],[80,16,80,19],[80,20,80,22],[81,12,81,15],[81,16,81,19],[81,20,81,22],[82,20,82,22],[82,16,82,19],[55,16,55,19],[63,20,63,22],[60,20,60,22],[77,16,77,19],[77,20,77,22],[78,20,78,22],[67,20,67,22],[48,20,48,22],[49,20,49,22],[50,20,50,22],[53,20,53,22],[58,20,58,22],[54,20,54,22],[57,20,57,22],[55,20,55,22],[25,3,25,5],[45,16,45,19],[33,17,33,22],[35,16,36,17],[31,17,32,22],[29,17,30,22],[29,16,30,16],[26,17,28,22],[26,16,28,16],[22,16,25,16],[22,17,25,22],[45,20,45,22],[34,17,34,22],[37,18,38,22],[50,16,50,19],[31,13,31,14],[18,0,18,3],[22,0,22,2],[22,3,22,5],[25,0,25,2],[44,20,44,22],[41,20,41,22],[41,0,41,2],[32,13,32,14],[33,13,33,14],[44,12,44,15],[21,16,21,22],[43,16,43,19],[22,6,22,7],[22,10,22,12],[22,13,22,14],[25,6,25,7],[25,10,25,12],[25,13,25,14],[23,0,23,2],[21,13,21,14],[23,6,23,7],[23,10,23,12],[23,13,23,14],[42,16,42,19],[24,10,24,12],[24,13,24,14],[38,9,38,12],[43,20,43,22],[31,16,32,16],[42,20,42,22],[36,13,36,14],[37,13,37,14],[1,0,2,9],[5,9,5,11],[13,0,13,3],[14,0,14,1],[14,2,14,3],[15,0,15,1],[17,0,17,3],[11,6,11,7],[6,0,6,2],[7,0,7,2],[8,0,8,2],[9,0,9,2],[10,0,10,2],[11,0,11,2],[6,3,6,5],[7,3,7,5],[8,3,8,5],[8,6,8,7],[9,6,9,7],[10,6,10,7],[6,6,6,7],[9,3,9,5],[10,3,10,5],[11,3,11,5],[69,12,69,15],[7,6,7,7],[24,6,24,7],[26,10,26,12],[27,10,27,12],[28,10,28,12],[29,10,29,12],[30,10,30,12],[32,10,32,12],[26,13,26,14],[27,13,27,14],[28,13,28,14],[43,12,43,15],[52,12,52,15],[29,13,29,14],[30,13,30,14],[55,1,55,2],[54,1,54,2],[53,1,53,2],[49,12,49,15],[50,12,50,15],[41,3,41,4],[41,5,41,6],[38,13,38,14],[41,7,41,9],[52,0,52,2],[47,0,48,2],[31,10,31,12],[42,12,42,15],[48,12,48,15],[45,12,45,15],[53,16,53,19],[80,0,81,2],[55,12,55,15],[58,12,58,15],[57,12,57,15],[61,12,61,15],[61,16,61,19],[62,12,62,15],[74,1,74,2],[59,0,60,2],[69,16,69,19],[64,16,64,19],[65,12,65,15],[65,16,65,19],[59,16,59,19],[73,0,73,2],[70,0,71,2],[68,12,68,15],[68,16,68,19],[62,0,62,2],[63,1,63,2],[64,1,64,2],[64,12,64,15],[59,12,59,15],[67,12,67,15],[44,16,44,19],[37,16,38,17],[35,18,36,22],[56,1,56,2],[57,1,57,2],[66,1,66,2],[67,1,67,2],[59,20,59,22],[56,20,56,22],[65,1,65,2],[66,12,66,15],[47,12,47,15],[46,12,46,15],[47,20,47,22],[51,12,51,15],[51,16,51,19],[51,20,51,22],[46,16,46,19],[46,20,46,22],[52,16,52,19],[52,20,52,22],[49,16,49,19],[47,16,47,19],[77,1,77,2],[78,1,78,2],[76,1,76,2],[71,12,71,15],[71,20,71,22],[73,16,73,19],[61,20,61,22],[62,20,62,22],[69,20,69,22],[64,20,64,22],[65,20,65,22],[66,20,66,22],[68,20,68,22],[75,1,75,2],[70,12,70,15],[70,16,70,19],[70,20,70,22],[76,16,76,19],[76,20,76,22],[76,12,76,15]]}
[]
["避難行動タイムライン",null,null,null,null,null,null,null,null,null,null,null,null,null,null,null,"施設名：",{"$f":"IF(入力シート!M9=\"\",\"\",入力シート!M9)","v":""}]
[null,null,null,null,null,null,null,null,null,null,null,null,null,null,null,null,"対象となる災害：",null,{"$f":"IF(入力シート!M11=\"\",\"\",入力シート!M11)","v":""}]
[]
["１．施設の利用状況の確認 ",null,null,null,null,null,null,null,null,"4．避難場所までの避難経路の検討\n",null,null,null,null,null,null,null,null,null,null,null,"別紙１"]
[{"$f":"入力シート!B48","v":"種別（歩行状態等）"},null,null,"患者",null,null,"施設職員",null,null,"避難経路図",null,null,"～検討を始めるための準備～"]
[{"$f":"IF(入力シート!B50=\"\",\"\",入力シート!B50)","v":"車椅子"},null,null,{"$f":"IF(入力シート!O50=\"\",\"\",入力シート!O50)","v":""},null,null,{"$f":"IF(入力シート!S50=\"\",\"\",入力シート!S50)","v":""}]
[{"$f":"IF(入力シート!B52=\"\",\"\",入力シート!B52)","v":"ストレッチャー"},null,null,{"$f":"IF(入力シート!O52=\"\",\"\",入力シート!O52)","v":""},null,null,{"$f":"IF(入力シート!S52=\"\",\"\",入力シート!S52)","v":""}]
[{"$f":"IF(入力シート!B54=\"\",\"\",入力シート!B54)","v":"自立歩行"},null,null,{"$f":"IF(入力シート!O54=\"\",\"\",入力シート!O54)","v":""},null,null,{"$f":"IF(入力シート!S54=\"\",\"\",入力シート!S54)","v":""}]
[{"$f":"IF(入力シート!B56=\"\",\"\",入力シート!B56)","v":""},null,null,{"$f":"IF(入力シート!O56=\"\",\"\",入力シート!O56)","v":""},null,null,{"$f":"IF(入力シート!S56=\"\",\"\",入力シート!S56)","v":""}]
[{"$f":"IF(入力シート!B58=\"\",\"\",入力シート!B58)","v":""},null,null,{"$f":"IF(入力シート!O58=\"\",\"\",入力シート!O58)","v":""},null,null,{"$f":"IF(入力シート!S58=\"\",\"\",入力シート!S58)","v":""}]
[{"$f":"IF(入力シート!B60=\"\",\"\",入力シート!B60)","v":""},null,null,{"$f":"IF(入力シート!O60=\"\",\"\",入力シート!O60)","v":""},null,null,{"$f":"IF(入力シート!S60=\"\",\"\",入力シート!S60)","v":""}]
[]
["２．施設ハザードの確認"]
["施設階層",null,"浸水深"]
[{"$f":"IF(入力シート!O66=\"\",\"\",入力シート!O66)","v":""},null,{"$f":"IF(入力シート!S66=\"\",\"\",入力シート!S66)","v":""},"m"]
[]
["土砂災害区域"]
[{"$f":"IF(入力シート!S70=\"\",\"\",入力シート!S70)","v":""}]
[]
["3．安全な避難先の検討",null,null,null,null,null,null,null,null,"5．避難を行うための準備や所要時間の検討\n",null,null,null,null,null,null,"６．避難に必要な備品や浸水対策資機材の確認\n"]
["避難場所",null,null,"浸水想定区域",null,null,"土砂災害警戒区域",null,null,"対応内容",null,null,null,"所要時間",null,null,"備　蓄　品"]
[{"$f":"\"施設名：\"&入力シート!M136","v":"施設名："},null,null,{"$f":"\"□\"&入力シート!M148","v":"□　"},null,null,{"$f":"\"□\"&入力シート!M150","v":"□　"},null,null,"避難準備",{"$f":"IF(入力シート!B186=\"\",\"\",入力シート!B186)","v":"①患者の家族への連絡"},null,null,{"$f":"IF(入力シート!Q186=\"\",\"\",入力シート!Q186)","v":15},null,null,"情報収集・伝達",{"$f":"IF(Y23<>\"\",RIGHT(Y23,LEN(Y23)),\"\")","v":"□テレビ、□デスクトップパソコン、□ノートパソコン、□ラジオ、□タブレット端末、□ファックス、□携帯電話、□携帯電話用バッテリー、□乾電池"},null,null,null,null,null,null,{"$f":"IF(入力シート!M275=\"有\",\"\"&入力シート!B275&IF(入力シート!Q275<>\"\",入力シート!Q275&入力シート!S275,\"\"),\"\")&IF(入力シート!M277=\"有\",\"、\"&入力シート!B277&IF(入力シート!Q277<>\"\",入力シート!Q277&入力シート!S277,\"\"),\"\")&IF(入力シート!M279=\"有\",\"、\"&入力シート!B279&IF(入力シート!Q279<>\"\",入力シート!Q279&入力シート!S279,\"\"),\"\")&IF(入力シート!M281=\"有\",\"、\"&入力シート!B281&IF(入力シート!Q281<>\"\",入力シート!Q281&入力シート!S281,\"\"),\"\")&IF(入力シート!M283=\"有\",\"、\"&入力シート!B283&IF(入力シート!Q283<>\"\",入力シート!Q283&入力シート!S283,\"\"),\"\")&IF(入力シート!M285=\"有\",\"、\"&入力シート!B285&IF(入力シート!Q285<>\"\",入力シート!Q285&入力シート!S285,\"\"),\"\")&IF(入力シート!M287=\"有\",\"、\"&入力シート!B287&IF(入力シート!Q287<>\"\",入力シート!Q287&入力シート!S287,\"\"),\"\")&IF(入力シート!M289=\"有\",\"、\"&入力シート!B289&IF(入力シート!Q289<>\"\",入力シート!Q289&入力シート!S289,\"\"),\"\")&IF(入力シート!M291=\"有\",\"、\"&入力シート!B291&IF(入力シート!Q291<>\"\",入力シート!Q291&入力シート!S291,\"\"),\"\")&IF(入力シート!M293<>\"□トランシーバー4台、□充電器2器などを記載\",\"、\"&入力シート!M293,\"\")","v":"□テレビ、□デスクトップパソコン、□ノートパソコン、□ラジオ、□タブレット端末、□ファックス、□携帯電話、□携帯電話用バッテリー、□乾電池"}]
[{"$f":"\"階層：\"&入力シート!M140&\"階\"","v":"階層：階"},null,null,{"$f":"IF(入力シート!M148=\"区域内\",\"□浸水深　　\"&入力シート!S148&\"ｍ\",\"\")","v":""},null,null,null,null,null,null,{"$f":"IF(入力シート!B188=\"\",\"\",入力シート!B188)","v":"②患者の家族への受渡し"},null,null,{"$f":"IF(入力シート!Q188=\"\",\"\",入力シート!Q188)","v":30}]
[{"$f":"IF(入力シート!M154<1,\"\",\"施設名：\"&入力シート!M154)","v":""},null,null,{"$f":"IF(入力シート!M154<1,\"\",\"□\"&入力シート!M166)","v":""},null,null,{"$f":"IF(入力シート!M154<1,\"\",\"□\"&入力シート!M168)","v":""},null,null,null,{"$f":"IF(入力シート!B190=\"\",\"\",入力シート!B190)","v":"③避難路の安全確保"},null,null,{"$f":"IF(入力シート!Q190=\"\",\"\",入力シート!Q190)","v":10}]
[{"$f":"IF(入力シート!M154<1,\"\",\"階層：\"&入力シート!M158&\"階\")","v":""},null,null,{"$f":"IF(入力シート!M166=\"区域内\",\"□浸水深　　\"&入力シート!S166&\"ｍ\",\"\")","v":""},null,null,null,null,null,null,{"$f":"IF(入力シート!B192=\"\",\"\",入力シート!B192)","v":"③持出し品の準備"},null,null,{"$f":"IF(入力シート!Q192=\"\",\"\",入力シート!Q192)","v":15}]
[null,null,null,null,null,null,null,null,null,null,{"$f":"IF(入力シート!B194=\"\",\"\",入力シート!B194)","v":""},null,null,{"$f":"IF(入力シート!Q194=\"\",\"\",入力シート!Q194)","v":""},null,null,"避難誘導",{"$f":"IF(Y27<>\"\",RIGHT(Y27,LEN(Y27)-1),\"\")","v":"□従業員名簿、□患者名簿、□案内旗、□携帯電話、□携帯電話用バッテリー、□拡声器、□懐中電灯、□乾電池"},null,null,null,null,null,null,{"$f":"IF(入力シート!M298=\"有\",\"、\"&入力シート!B298,\"\")&IF(入力シート!M300=\"有\",\"、\"&入力シート!B300,\"\")&IF(入力シート!M302=\"有\",\"、\"&入力シート!B302&IF(入力シート!Q302<>\"\",入力シート!Q302&入力シート!S302,\"\"),\"\")&IF(入力シート!M304=\"有\",\"、\"&入力シート!B304&IF(入力シート!Q304<>\"\",入力シート!Q304&入力シート!S304,\"\"),\"\")&IF(入力シート!M306=\"有\",\"、\"&入力シート!B306&IF(入力シート!Q306<>\"\",入力シート!Q306&入力シート!S306,\"\"),\"\")&IF(入力シート!M308=\"有\",\"、\"&入力シート!B308&IF(入力シート!Q308<>\"\",入力シート!Q308&入力シート!S308,\"\"),\"\")&IF(入力シート!M310=\"有\",\"、\"&入力シート!B310&IF(入力シート!Q310<>\"\",入力シート!Q310&入力シート!S310,\"\"),\"\")&IF(入力シート!M312=\"有\",\"、\"&入力シート!B312&IF(入力シート!Q312<>\"\",入力シート!Q312&入力シート!S312,\"\"),\"\")&IF(入力シート!M314=\"有\",\"、\"&入力シート!B314&IF(入力シート!Q314<>\"\",入力シート!Q314&入力シート!S314,\"\"),\"\")&IF(入力シート!M316=\"有\",\"、\"&入力シート!B316&IF(入力シート!Q316<>\"\",入力シート!Q316&入力シート!S316,\"\"),\"\")&IF(入力シート!M318<>\"□誘導灯5個、□運動靴などを記載\",\"、\"&入力シート!M318,\"\")","v":"、□従業員名簿、□患者名簿、□案内旗、□携帯電話、□携帯電話用バッテリー、□拡声器、□懐中電灯、□乾電池"}]
[null,null,null,null,null,null,null,null,null,null,{"$f":"IF(入力シート!B196=\"\",\"\",入力シート!B196)","v":""},null,null,{"$f":"IF(入力シート!Q196=\"\",\"\",入力シート!Q196)","v":""}]
[null,null,null,null,null,null,null,null,null,null,{"$f":"IF(入力シート!B198=\"\",\"\",入力シート!B198)","v":""},null,null,{"$f":"IF(入力シート!Q198=\"\",\"\",入力シート!Q198)","v":""}]
[null,null,null,null,null,null,null,null,null,null,{"$f":"IF(入力シート!B200=\"\",\"\",入力シート!B200)","v":""},null,null,{"$f":"IF(入力シート!Q200=\"\",\"\",入力シート!Q200)","v":""},null,null,"施設内の一時避難",{"$f":"IF(Y30<>\"\",RIGHT(Y30,LEN(Y30)-1),\"\")","v":"□水、□食料、□寝具、□防寒具"},null,null,null,null,null,null,{"$f":"IF(入力シート!M323=\"有\",\"、\"&入力シート!B323&IF(入力シート!Q323<>\"\",入力シート!Q323&入力シート!S323,\"\"),\"\")&IF(入力シート!M325=\"有\",\"、\"&入力シート!B325&IF(入力シート!Q325<>\"\",入力シート!Q325&入力シート!S325,\"\"),\"\")&IF(入力シート!M327=\"有\",\"、\"&入力シート!B327&IF(入力シート!Q327<>\"\",入力シート!Q327&入力シート!S327,\"\"),\"\")&IF(入力シート!M329=\"有\",\"、\"&入力シート!B329&IF(入力シート!Q329<>\"\",入力シート!Q329&入力シート!S329,\"\"),\"\")&IF(入力シート!M331<>\"□扇風機5台、□カイロ20個などを記載\",\"、\"&入力シート!M331,\"\")","v":"、□水、□食料、□寝具、□防寒具"}]
[null,null,null,null,null,null,null,null,null,null,{"$f":"IF(入力シート!B202=\"\",\"\",入力シート!B202)","v":""},null,null,{"$f":"IF(入力シート!Q202=\"\",\"\",入力シート!Q202)","v":""}]
[null,null,null,null,null,null,null,null,null,null,{"$f":"IF(入力シート!B204=\"\",\"\",入力シート!B204)","v":""},null,null,{"$f":"IF(入力シート!Q204=\"\",\"\",入力シート!Q204)","v":""},null,null,"衛生器具",{"$f":"IF(Y32<>\"\",RIGHT(Y32,LEN(Y32)-1),\"\")","v":"□おむつ・おしりふき、□タオル"},null,null,null,null,null,null,{"$f":"IF(入力シート!M336=\"有\",\"、\"&入力シート!B336&IF(入力シート!Q336<>\"\",入力シート!Q336&入力シート!S336,\"\"),\"\")&IF(入力シート!M338=\"有\",\"、\"&入力シート!B338&IF(入力シート!Q338<>\"\",入力シート!Q338&入力シート!S338,\"\"),\"\")&IF(入力シート!M340<>\"□ウエットティッシュ、□使い捨て手袋などを記載\",\"、\"&入力シート!M340,\"\")","v":"、□おむつ・おしりふき、□タオル"}]
[null,null,null,null,null,null,null,null,null,null,"避難準備の所要時間（計）",null,null,{"$f":"IF(入力シート!Q207=\"\",\"\",入力シート!Q207)","v":60}]
[null,null,null,null,null,null,null,null,null,"避難所への移動",null,null,null,null,null,null,"医療品",{"$f":"IF(Y34<>\"\",RIGHT(Y34,LEN(Y34)-1),\"\")","v":""},null,null,null,null,null,null,{"$f":"IF(入力シート!M345=\"有\",\"、\"&入力シート!B345&IF(入力シート!Q345<>\"\",入力シート!Q345&入力シート!S345,\"\"),\"\")&IF(入力シート!M347<>\"□消毒薬、□包帯、□絆創膏などを記載\",\"、\"&入力シート!M347,\"\")","v":""}]
[null,null,null,null,null,null,null,null,null,"避難場所：",{"$f":"IF(入力シート!M136=\"\",\"\",入力シート!M136)","v":""},null,null,null,null,null,"その他",{"$f":"IF(Y35<>\"\",RIGHT(Y35,LEN(Y35)-1),\"\")","v":"□ウエットティッシュ、□ゴミ袋、□タオル"},null,null,null,null,null,null,{"$f":"IF(入力シート!M352=\"有\",\"、\"&入力シート!B352&IF(入力シート!Q352<>\"\",入力シート!Q352&入力シート!S352,\"\"),\"\")&IF(入力シート!M354=\"有\",\"、\"&入力シート!B354&IF(入力シート!Q354<>\"\",入力シート!Q354&入力シート!S354,\"\"),\"\")&IF(入力シート!M356=\"有\",\"、\"&入力シート!B356&IF(入力シート!Q356<>\"\",入力シート!Q356&入力シート!S356,\"\"),\"\")&IF(入力シート!M358<>\"□簡易マット、□紙タオルなどを記載\",\"、\"&入力シート!M358,\"\")","v":"、□ウエットティッシュ、□ゴミ袋、□タオル"}]
[null,null,null,null,null,null,null,null,null,"移動距離：",{"$f":"IF(入力シート!M142=\"\",\"\",入力シート!M142)","v":""},"m",null,null,null,null,"浸水を防ぐための対策",null,{"$f":"Y36","v":""},null,null,null,null,null,{"$f":"IF(入力シート!M363=\"□土のう、□バケツなどを記載\",\"\",入力シート!M363)","v":""}]
[null,null,null,null,null,null,null,null,null,"移動手段：",{"$f":"IF(入力シート!S144>0,\"□徒歩\",\"\")","v":""},null,null,{"$f":"IF(入力シート!S144=\"\",\"\",入力シート!S144)","v":""}]
[null,null,null,null,null,null,null,null,null,null,{"$f":"IF(入力シート!S146>0,\"□車両\",\"\")","v":""},{"$f":"IF(入力シート!S146=\"\",\"\",入力シート!S146)","v":""},"台",null,null,null,"土砂災害に対する避難を確保するための対策",null,{"$f":"Y38","v":""},null,null,null,null,null,{"$f":"IF(入力シート!M369=\"□ビニールシート、□スコップなどを記載\",\"\",入力シート!M369)","v":""}]
[null,null,null,null,null,null,null,null,null,"避難準備から避難完了までの所要時間（合計）",null,null,null,{"$f":"IF(IF(N37=\"\",0,N37)+IF(N33=\"\",0,N33)=0,\"-\",(IF(N37=\"\",0,N37)+IF(N33=\"\",0,N33)))","v":60}]
["７．体制確立や避難開始等のタイミングの検討\n"]
["現象",null,null,"防災情報",null,null,null,null,null,null,null,null,"施設名：",{"$f":"\"（\"&入力シート!M9&\"）　\"","v":"（）　"},null,null,null,null,null,"の対応"]
["警戒レベル1",null,null,null,null,null,null,null,null,null,null,"体制確立の判断時期",null,null,null,null,"活動内容",null,null,null,"対応班（要員）"]
[null,null,null,null,null,null,null,null,null,null,null,null,{"$f":"IF(入力シート!B218=\"\",\"\",\"□\"&入力シート!B218)","v":"□台風発生情報"},null,null,null,{"$f":"IF(入力シート!H218=\"\",\"\",\"□\"&入力シート!H218)&(IF(入力シート!N218=\"\",\"\",\"(\"&入力シート!N218&\"分)\"))","v":"□防災情報の収集(随時分)"},null,null,null,{"$f":"IF(入力シート!P218=\"\",\"\",\"□\"&入力シート!P218)","v":"□情報収集伝達要員"}]
[null,null,null,null,null,null,null,null,null,null,null,null,{"$f":"IF(入力シート!B219=\"\",\"\",\"□\"&入力シート!B219)","v":""},null,null,null,{"$f":"IF(入力シート!H219=\"\",\"\",\"□\"&入力シート!H219)&(IF(入力シート!N219=\"\",\"\",\"(\"&入力シート!N219&\"分)\"))","v":""},null,null,null,{"$f":"IF(入力シート!P219=\"\",\"\",\"□\"&入力シート!P219)","v":""}]
[null,null,null,null,null,null,null,null,null,null,null,null,{"$f":"IF(入力シート!B220=\"\",\"\",\"□\"&入力シート!B220)","v":""},null,null,null,{"$f":"IF(入力シート!H220=\"\",\"\",\"□\"&入力シート!H220)&(IF(入力シート!N220=\"\",\"\",\"(\"&入力シート!N220&\"分)\"))","v":""},null,null,null,{"$f":"IF(入力シート!P220=\"\",\"\",\"□\"&入力シート!P220)","v":""}]
[null,null,null,null,null,null,null,null,null,null,null,null,{"$f":"IF(入力シート!B221=\"\",\"\",\"□\"&入力シート!B221)","v":""},null,null,null,{"$f":"IF(入力シート!H221=\"\",\"\",\"□\"&入力シート!H221)&(IF(入力シート!N221=\"\",\"\",\"(\"&入力シート!N221&\"分)\"))","v":""},null,null,null,{"$f":"IF(入力シート!P221=\"\",\"\",\"□\"&入力シート!P221)","v":""}]
[null,null,null,null,null,null,null,null,null,null,null,null,{"$f":"IF(入力シート!B222=\"\",\"\",\"□\"&入力シート!B222)","v":""},null,null,null,{"$f":"IF(入力シート!H222=\"\",\"\",\"□\"&入力シート!H222)&(IF(入力シート!N222=\"\",\"\",\"(\"&入力シート!N222&\"分)\"))","v":""},null,null,null,{"$f":"IF(入力シート!P222=\"\",\"\",\"□\"&入力シート!P222)","v":""}]
["警戒レベル2",null,null,null,null,null,null,null,null,null,null,null,{"$f":"IF(入力シート!B224=\"\",\"\",\"□\"&入力シート!B224)","v":"□洪水注意報の発表"},null,null,null,{"$f":"IF(入力シート!H224=\"\",\"\",\"□\"&入力シート!H224&(IF(入力シート!N224=\"\",\"\",\"(\"&入力シート!N224&\"分)\")))","v":"□防災情報の収集(15分)"},null,null,null,{"$f":"IF(入力シート!P224=\"\",\"\",\"□\"&入力シート!P224)","v":"□情報収集伝達要員"}]
[null,null,null,null,null,null,null,null,null,null,null,null,{"$f":"IF(入力シート!B225=\"\",\"\",\"□\"&入力シート!B225)","v":"□氾濫注意情報の発表"},null,null,null,{"$f":"IF(入力シート!H225=\"\",\"\",\"□\"&入力シート!H225&(IF(入力シート!N225=\"\",\"\",\"(\"&入力シート!N225&\"分)\")))","v":"□浸水防止対策の準備(2分)"},null,null,null,{"$f":"IF(入力シート!P225=\"\",\"\",\"□\"&入力シート!P225)","v":"□避難誘導要員"}]
[null,null,null,null,null,null,null,null,null,null,null,null,{"$f":"IF(入力シート!B226=\"\",\"\",\"□\"&入力シート!B226)","v":"□氾濫注意水位超過"},null,null,null,{"$f":"IF(入力シート!H226=\"\",\"\",\"□\"&入力シート!H226&(IF(入力シート!N226=\"\",\"\",\"(\"&入力シート!N226&\"分)\")))","v":"□幹部職員の参集連絡(1分)"},null,null,null,{"$f":"IF(入力シート!P226=\"\",\"\",\"□\"&入力シート!P226)","v":"□情報収集伝達要員"}]
[null,null,null,null,null,null,null,null,null,null,null,null,{"$f":"IF(入力シート!B227=\"\",\"\",\"□\"&入力シート!B227)","v":""},null,null,null,{"$f":"IF(入力シート!H227=\"\",\"\",\"□\"&入力シート!H227&(IF(入力シート!N227=\"\",\"\",\"(\"&入力シート!N227&\"分)\")))","v":"□参集職員への事前連絡(1分)"},null,null,null,{"$f":"IF(入力シート!P227=\"\",\"\",\"□\"&入力シート!P227)","v":"□情報収集伝達要員"}]
[null,null,null,null,null,null,null,null,null,null,null,null,{"$f":"IF(入力シート!B228=\"\",\"\",\"□\"&入力シート!B228)","v":""},null,null,null,{"$f":"IF(入力シート!H228=\"\",\"\",\"□\"&入力シート!H228&(IF(入力シート!N228=\"\",\"\",\"(\"&入力シート!N228&\"分)\")))","v":"□持出し品のチェック(30分)"},null,null,null,{"$f":"IF(入力シート!P228=\"\",\"\",\"□\"&入力シート!P228)","v":"□避難誘導要員"}]
["氾濫注意水位超過",null,null,null,null,null,null,null,null,null,null,null,{"$f":"IF(入力シート!B229=\"\",\"\",\"□\"&入力シート!B229)","v":""},null,null,null,{"$f":"IF(入力シート!H229=\"\",\"\",\"□\"&入力シート!H229&(IF(入力シート!N229=\"\",\"\",\"(\"&入力シート!N229&\"分)\")))","v":"□避難路の確認(15分)"},null,null,null,{"$f":"IF(入力シート!P229=\"\",\"\",\"□\"&入力シート!P229)","v":"□避難誘導要員"}]
[{"$f":"IF(入力シート!M$76=\"\",\"\",入力シート!M$76)","v":""},{"$f":"IF(入力シート!M$78=\"\",\"\",入力シート!M$78&\"観測所\")","v":""},null,null,null,null,null,null,null,null,null,null,{"$f":"IF(入力シート!B230=\"\",\"\",\"□\"&入力シート!B230)","v":""},null,null,null,{"$f":"IF(入力シート!H230=\"\",\"\",\"□\"&入力シート!H230&(IF(入力シート!N230=\"\",\"\",\"(\"&入力シート!N230&\"分)\")))","v":"□患者への注意喚起(随時分)"},null,null,null,{"$f":"IF(入力シート!P230=\"\",\"\",\"□\"&入力シート!P230)","v":"□避難誘導要員"}]
[{"$f":"IF(入力シート!M$82=\"\",\"\",入力シート!M$82)","v":""},{"$f":"IF(入力シート!M$84=\"\",\"\",入力シート!M$84&\"観測所\")","v":""},null,null,null,null,null,null,null,null,null,null,{"$f":"IF(入力シート!B231=\"\",\"\",\"□\"&入力シート!B231)","v":""},null,null,null,{"$f":"IF(入力シート!H231=\"\",\"\",\"□\"&入力シート!H231&(IF(入力シート!N231=\"\",\"\",\"(\"&入力シート!N231&\"分)\")))","v":""},null,null,null,{"$f":"IF(入力シート!P231=\"\",\"\",\"□\"&入力シート!P231)","v":""}]
[{"$f":"IF(入力シート!M$88=\"\",\"\",入力シート!M$88)","v":""},{"$f":"IF(入力シート!M$90=\"\",\"\",入力シート!M$90&\"観測所\")","v":""},null,null,null,null,null,null,null,null,null,null,{"$f":"IF(入力シート!B232=\"\",\"\",\"□\"&入力シート!B232)","v":""},null,null,null,{"$f":"IF(入力シート!H232=\"\",\"\",\"□\"&入力シート!H232&(IF(入力シート!N232=\"\",\"\",\"(\"&入力シート!N232&\"分)\")))","v":""},null,null,null,{"$f":"IF(入力シート!P232=\"\",\"\",\"□\"&入力シート!P232)","v":""}]
[{"$f":"IF(入力シート!M$94=\"\",\"\",入力シート!M$94)","v":""},{"$f":"IF(入力シート!M$96=\"\",\"\",入力シート!M$96&\"観測所\")","v":""},null,null,null,null,null,null,null,null,null,null,{"$f":"IF(入力シート!B233=\"\",\"\",\"□\"&入力シート!B233)","v":""},null,null,null,{"$f":"IF(入力シート!H233=\"\",\"\",\"□\"&入力シート!H233&(IF(入力シート!N233=\"\",\"\",\"(\"&入力シート!N233&\"分)\")))","v":""},null,null,null,{"$f":"IF(入力シート!P233=\"\",\"\",\"□\"&入力シート!P233)","v":""}]
[{"$f":"IF(入力シート!M$100=\"\",\"\",入力シート!M$100)","v":""},{"$f":"IF(入力シート!M$102=\"\",\"\",入力シート!M$102&\"観測所\")","v":""},null,null,null,null,null,null,null,null,null,null,{"$f":"IF(入力シート!B234=\"\",\"\",\"□\"&入力シート!B234)","v":""},null,null,null,{"$f":"IF(入力シート!H234=\"\",\"\",\"□\"&入力シート!H234&(IF(入力シート!N234=\"\",\"\",\"(\"&入力シート!N234&\"分)\")))","v":""},null,null,null,{"$f":"IF(入力シート!P234=\"\",\"\",\"□\"&入力シート!P234)","v":""},null,null,null,"□職員の参集(20分)",null,null,"IF(入力シート!AK228=\"\",\"\",\"□\"&入力シート!AK228)"]
[null,null,null,null,null,null,null,null,null,null,null,null,{"$f":"IF(入力シート!B235=\"\",\"\",\"□\"&入力シート!B235)","v":""},null,null,null,{"$f":"IF(入力シート!H235=\"\",\"\",\"□\"&入力シート!H235&(IF(入力シート!N235=\"\",\"\",\"(\"&入力シート!N235&\"分)\")))","v":""},null,null,null,{"$f":"IF(入力シート!P235=\"\",\"\",\"□\"&入力シート!P235)","v":""},null,null,null,"□土嚢の設置(20分)"]
["警戒レベル3",null,null,null,null,null,null,null,null,null,null,null,{"$f":"IF(入力シート!B237=\"\",\"\",\"□\"&入力シート!B237)","v":"□大雨洪水警報の発表"},null,null,null,{"$f":"IF(入力シート!H237=\"\",\"\",\"□\"&入力シート!H237&(IF(入力シート!N237=\"\",\"\",\"(\"&入力シート!N237&\"分)\")))","v":"□職員の参集(20分)"},null,null,null,{"$f":"IF(入力シート!P237=\"\",\"\",\"□\"&入力シート!P237)","v":"□情報収集伝達要員"},null,null,null,"□患者家族への引渡し(3分)"]
[null,null,null,null,null,null,null,null,null,null,null,null,{"$f":"IF(入力シート!B238=\"\",\"\",\"□\"&入力シート!B238)","v":"□洪水予報氾濫警戒情報の発表"},null,null,null,{"$f":"IF(入力シート!H238=\"\",\"\",\"□\"&入力シート!H238&(IF(入力シート!N238=\"\",\"\",\"(\"&入力シート!N238&\"分)\")))","v":"□土嚢の設置(20分)"},null,null,null,{"$f":"IF(入力シート!P238=\"\",\"\",\"□\"&入力シート!P238)","v":"□避難誘導要員"},null,null,null,"□持出し品の準備(3分)"]
[null,null,null,null,null,null,null,null,null,null,null,null,{"$f":"IF(入力シート!B239=\"\",\"\",\"□\"&入力シート!B239)","v":"□避難判断水位超過"},null,null,null,{"$f":"IF(入力シート!H239=\"\",\"\",\"□\"&入力シート!H239&(IF(入力シート!N239=\"\",\"\",\"(\"&入力シート!N239&\"分)\")))","v":"□止水板の設置(30分)"},null,null,null,{"$f":"IF(入力シート!P239=\"\",\"\",\"□\"&入力シート!P239)","v":"□避難誘導要員"},null,null,null,"□利用休止の判断(3分)"]
["避難判断水位超過",null,null,null,null,null,null,null,null,null,null,null,{"$f":"IF(入力シート!B240=\"\",\"\",\"□\"&入力シート!B240)","v":"□高齢者等避難の発令"},null,null,null,{"$f":"IF(入力シート!H240=\"\",\"\",\"□\"&入力シート!H240&(IF(入力シート!N240=\"\",\"\",\"(\"&入力シート!N240&\"分)\")))","v":"□重要備品、設備の退避(3分)"},null,null,null,{"$f":"IF(入力シート!P240=\"\",\"\",\"□\"&入力シート!P240)","v":"□避難誘導要員"},null,null,null,"□持出し品を車両への積込(3分)"]
[{"$f":"A54","v":""},"",null,null,null,null,null,null,null,null,null,null,{"$f":"IF(入力シート!B241=\"\",\"\",\"□\"&入力シート!B241)","v":""},null,null,null,{"$f":"IF(入力シート!H241=\"\",\"\",\"□\"&入力シート!H241&(IF(入力シート!N241=\"\",\"\",\"(\"&入力シート!N241&\"分)\")))","v":"□患者家族への連絡(3分)"},null,null,null,{"$f":"IF(入力シート!P241=\"\",\"\",\"□\"&入力シート!P241)","v":"□情報収集伝達要員"},null,null,null,"□避難経路の確認(5分)"]
["","",null,null,null,null,null,null,null,null,null,null,{"$f":"IF(入力シート!B242=\"\",\"\",\"□\"&入力シート!B242)","v":""},null,null,null,{"$f":"IF(入力シート!H242=\"\",\"\",\"□\"&入力シート!H242&(IF(入力シート!N242=\"\",\"\",\"(\"&入力シート!N242&\"分)\")))","v":"□患者家族への引渡し(3分)"},null,null,null,{"$f":"IF(入力シート!P242=\"\",\"\",\"□\"&入力シート!P242)","v":"□情報収集伝達要員"},null,null,null,"□避難開始の判断(20分)"]
["","",null,null,null,null,null,null,null,null,null,null,{"$f":"IF(入力シート!B243=\"\",\"\",\"□\"&入力シート!B243)","v":""},null,null,null,{"$f":"IF(入力シート!H243=\"\",\"\",\"□\"&入力シート!H243&(IF(入力シート!N243=\"\",\"\",\"(\"&入力シート!N243&\"分)\")))","v":"□持出し品の準備(3分)"},null,null,null,{"$f":"IF(入力シート!P243=\"\",\"\",\"□\"&入力シート!P243)","v":"□避難誘導要員"},null,null,null,"□避難所への移動開始(15分)"]
["","",null,null,null,null,null,null,null,null,null,null,{"$f":"IF(入力シート!B244=\"\",\"\",\"□\"&入力シート!B244)","v":""},null,null,null,{"$f":"IF(入力シート!H244=\"\",\"\",\"□\"&入力シート!H244&(IF(入力シート!N244=\"\",\"\",\"(\"&入力シート!N244&\"分)\")))","v":"□利用休止の判断(3分)"},null,null,null,{"$f":"IF(入力シート!P244=\"\",\"\",\"□\"&入力シート!P244)","v":"□管理権限者"},null,null,null,"□グループ施設への移動開始(分)"]
["","",null,null,null,null,null,null,null,null,null,null,{"$f":"IF(入力シート!B245=\"\",\"\",\"□\"&入力シート!B245)","v":""},null,null,null,{"$f":"IF(入力シート!H245=\"\",\"\",\"□\"&入力シート!H245&(IF(入力シート!N245=\"\",\"\",\"(\"&入力シート!N245&\"分)\")))","v":"□避難経路の確認(5分)"},null,null,null,{"$f":"IF(入力シート!P245=\"\",\"\",\"□\"&入力シート!P245)","v":"□避難誘導要員"},null,null,null,"□屋内上層階へ退避開始(分)"]
[null,null,null,null,null,null,null,null,null,null,null,null,{"$f":"IF(入力シート!B246=\"\",\"\",\"□\"&入力シート!B246)","v":""},null,null,null,{"$f":"IF(入力シート!H246=\"\",\"\",\"□\"&入力シート!H246&(IF(入力シート!N246=\"\",\"\",\"(\"&入力シート!N246&\"分)\")))","v":"□避難開始の判断(5分)"},null,null,null,{"$f":"IF(入力シート!P246=\"\",\"\",\"□\"&入力シート!P246)","v":"□管理権限者"},null,null,null,"□全員避難のチェック、施錠(分)"]
[null,null,null,null,null,null,null,null,null,null,null,null,{"$f":"IF(入力シート!B247=\"\",\"\",\"□\"&入力シート!B247)","v":""},null,null,null,{"$f":"IF(入力シート!H247=\"\",\"\",\"□\"&入力シート!H247&(IF(入力シート!N247=\"\",\"\",\"(\"&入力シート!N247&\"分)\")))","v":"□避難所への移動開始(10分)"},null,null,null,{"$f":"IF(入力シート!P247=\"\",\"\",\"□\"&入力シート!P247)","v":"□避難誘導要員"},null,null,null,"□患者家族への避難開始連絡(分)"]
["警戒レベル4",null,null,null,null,null,null,null,null,null,null,null,{"$f":"IF(入力シート!B249=\"\",\"\",\"□\"&入力シート!B249)","v":"□土砂災害警戒情報の発表"},null,null,null,{"$f":"IF(入力シート!H249=\"\",\"\",\"□\"&入力シート!H249&(IF(入力シート!N249=\"\",\"\",\"(\"&入力シート!N249&\"分)\")))","v":"□屋内上層階へ退避開始(5分)"},null,null,null,{"$f":"IF(入力シート!P249=\"\",\"\",\"□\"&入力シート!P249)","v":"□避難誘導要員"}]
[null,null,null,null,null,null,null,null,null,null,null,null,{"$f":"IF(入力シート!B250=\"\",\"\",\"□\"&入力シート!B250)","v":"□洪水予報氾濫危険情報の発表"},null,null,null,{"$f":"IF(入力シート!H250=\"\",\"\",\"□\"&入力シート!H250&(IF(入力シート!N250=\"\",\"\",\"(\"&入力シート!N250&\"分)\")))","v":"□全員避難のチェック、施錠(5分)"},null,null,null,{"$f":"IF(入力シート!P250=\"\",\"\",\"□\"&入力シート!P250)","v":"□避難誘導要員"}]
[null,null,null,null,null,null,null,null,null,null,null,null,{"$f":"IF(入力シート!B251=\"\",\"\",\"□\"&入力シート!B251)","v":"□氾濫危険水位超過"},null,null,null,{"$f":"IF(入力シート!H251=\"\",\"\",\"□\"&入力シート!H251&(IF(入力シート!N251=\"\",\"\",\"(\"&入力シート!N251&\"分)\")))","v":"□患者家族への避難先連絡(5分)"},null,null,null,{"$f":"IF(入力シート!P251=\"\",\"\",\"□\"&入力シート!P251)","v":"□情報収集伝達要員"}]
["氾濫危険水位超過",null,null,null,null,null,null,null,null,null,null,null,{"$f":"IF(入力シート!B252=\"\",\"\",\"□\"&入力シート!B252)","v":""},null,null,null,{"$f":"IF(入力シート!H252=\"\",\"\",\"□\"&入力シート!H252&(IF(入力シート!N252=\"\",\"\",\"(\"&入力シート!N252&\"分)\")))","v":"□急病人の緊急搬送要請(10分)"},null,null,null,{"$f":"IF(入力シート!P252=\"\",\"\",\"□\"&入力シート!P252)","v":"□情報収集伝達要員"}]
[{"$f":"A64","v":""},{"$f":"B64","v":""},null,null,null,null,null,null,null,null,null,null,{"$f":"IF(入力シート!B253=\"\",\"\",\"□\"&入力シート!B253)","v":""},null,null,null,{"$f":"IF(入力シート!H253=\"\",\"\",\"□\"&入力シート!H253&(IF(入力シート!N253=\"\",\"\",\"(\"&入力シート!N253&\"分)\")))","v":""},null,null,null,{"$f":"IF(入力シート!P253=\"\",\"\",\"□\"&入力シート!P253)","v":""}]
[{"$f":"A65","v":""},"",null,null,null,null,null,null,null,null,null,null,{"$f":"IF(入力シート!B254=\"\",\"\",\"□\"&入力シート!B254)","v":""},null,null,null,{"$f":"IF(入力シート!H254=\"\",\"\",\"□\"&入力シート!H254&(IF(入力シート!N254=\"\",\"\",\"(\"&入力シート!N254&\"分)\")))","v":""},null,null,null,{"$f":"IF(入力シート!P254=\"\",\"\",\"□\"&入力シート!P254)","v":""}]
[{"$f":"A66","v":""},"",null,null,null,null,null,null,null,null,null,null,{"$f":"IF(入力シート!B255=\"\",\"\",\"□\"&入力シート!B255)","v":""},null,null,null,{"$f":"IF(入力シート!H255=\"\",\"\",\"□\"&入力シート!H255&(IF(入力シート!N255=\"\",\"\",\"(\"&入力シート!N255&\"分)\")))","v":""},null,null,null,{"$f":"IF(入力シート!P255=\"\",\"\",\"□\"&入力シート!P255)","v":""}]
[{"$f":"A67","v":""},"",null,null,null,null,null,null,null,null,null,null,{"$f":"IF(入力シート!B256=\"\",\"\",\"□\"&入力シート!B256)","v":""},null,null,null,{"$f":"IF(入力シート!H256=\"\",\"\",\"□\"&入力シート!H256&(IF(入力シート!N256=\"\",\"\",\"(\"&入力シート!N256&\"分)\")))","v":""},null,null,null,{"$f":"IF(入力シート!P256=\"\",\"\",\"□\"&入力シート!P256)","v":""}]
[{"$f":"A68","v":""},""]
[]
["警戒レベル5 ",null,null,null,null,null,null,null,null,null,null,null,{"$f":"IF(入力シート!B258=\"\",\"\",\"□\"&入力シート!B258)","v":""},null,null,null,{"$f":"IF(入力シート!H258=\"\",\"\",\"□\"&入力シート!H258&(IF(入力シート!N258=\"\",\"\",\"(\"&入力シート!N258&\"分)\")))","v":"□患者避難完了の確認(5分)"},null,null,null,{"$f":"IF(入力シート!P258=\"\",\"\",\"□\"&入力シート!P258)","v":"□避難誘導要員"}]
[null,null,null,null,null,null,null,null,null,null,null,null,{"$f":"IF(入力シート!B259=\"\",\"\",\"□\"&入力シート!B259)","v":""},null,null,null,{"$f":"IF(入力シート!H259=\"\",\"\",\"□\"&入力シート!H259&(IF(入力シート!N259=\"\",\"\",\"(\"&入力シート!N259&\")\")))","v":"□従業員の安否確認(5分)"},null,null,null,{"$f":"IF(入力シート!P259=\"\",\"\",\"□\"&入力シート!P259)","v":"□情報収集伝達要員"}]
[null,null,null,null,null,null,null,null,null,null,null,null,{"$f":"IF(入力シート!B260=\"\",\"\",\"□\"&入力シート!B260)","v":""},null,null,null,{"$f":"IF(入力シート!H260=\"\",\"\",\"□\"&入力シート!H260&(IF(入力シート!N260=\"\",\"\",\"(\"&入力シート!N260&\"分)\")))","v":"□患者の安全確保・体調管理(5分)"},null,null,null,{"$f":"IF(入力シート!P260=\"\",\"\",\"□\"&入力シート!P260)","v":"□避難誘導要員"}]
[null,null,null,null,null,null,null,null,null,null,null,null,{"$f":"IF(入力シート!B261=\"\",\"\",\"□\"&入力シート!B261)","v":""},null,null,null,{"$f":"IF(入力シート!H261=\"\",\"\",\"□\"&入力シート!H261&(IF(入力シート!N261=\"\",\"\",\"(\"&入力シート!N261&\"分)\")))","v":""},null,null,null,{"$f":"IF(入力シート!P261=\"\",\"\",\"□\"&入力シート!P261)","v":""}]
[null,null,null,"広範囲で数十年に",null,null,null,null,null,null,null,null,{"$f":"IF(入力シート!B262=\"\",\"\",\"□\"&入力シート!B262)","v":""},null,null,null,{"$f":"IF(入力シート!H262=\"\",\"\",\"□\"&入力シート!H262&(IF(入力シート!N262=\"\",\"\",\"(\"&入力シート!N262&\"分)\")))","v":""},null,null,null,{"$f":"IF(入力シート!P262=\"\",\"\",\"□\"&入力シート!P262)","v":""}]
[null,null,null,"一度の大雨",null,null,null,null,null,null,null,null,{"$f":"IF(入力シート!B263=\"\",\"\",\"□\"&入力シート!B263)","v":""},null,null,null,{"$f":"IF(入力シート!H263=\"\",\"\",\"□\"&入力シート!H263&(IF(入力シート!N263=\"\",\"\",\"(\"&入力シート!N263&\"分)\")))","v":""},null,null,null,{"$f":"IF(入力シート!P263=\"\",\"\",\"□\"&入力シート!P263)","v":""}]
["注意）現象と防災情報の関係性は時系列が前後する可能性があります"]

{"sheet":"出力シート（避難確保計画）","index":3,"n_rows":1254,"n_cols":146,"rows_kept":1254,"cut":false,"hidden":false,"merged":[[634,52,634,55],[654,52,654,55],[640,52,640,55],[643,52,643,55],[646,52,646,55],[649,52,649,55],[652,52,652,55],[641,52,641,53],[644,52,644,53],[647,52,647,53],[650,52,650,53],[653,52,653,53],[646,46,646,51],[649,46,649,51],[641,46,641,47],[644,46,644,47],[647,46,647,47],[650,46,650,47],[653,46,653,47],[641,50,641,51],[644,50,644,51],[647,50,647,51],[650,50,650,51],[653,50,653,51],[645,52,645,55],[648,52,648,55],[634,46,634,51],[645,46,645,51],[648,46,648,51],[652,46,652,51],[651,46,651,51],[633,46,633,47],[624,50,624,51],[627,50,627,51],[630,50,630,51],[633,50,633,51],[654,46,654,51],[640,46,640,51],[643,46,643,51],[651,52,651,55],[561,35,562,61],[563,35,563,61],[620,20,621,35],[622,20,622,35],[622,46,622,51],[622,52,622,55],[621,52,621,53],[620,52,620,55],[620,46,620,51],[621,46,621,47],[621,50,621,51],[623,46,623,51],[626,46,626,51],[623,52,623,55],[624,52,624,53],[627,52,627,53],[630,52,630,53],[633,52,633,53],[626,52,626,55],[628,52,628,55],[629,52,629,55],[632,52,632,55],[625,52,625,55],[55,90,55,93],[55,94,55,97],[55,104,55,105],[55,106,55,123],[55,124,55,127],[55,128,55,131],[54,104,54,105],[558,35,560,61],[564,35,566,61],[567,35,569,61],[570,35,572,61],[573,35,575,61],[576,35,578,61],[610,56,611,63],[629,46,629,51],[632,46,632,51],[624,46,624,47],[627,46,627,47],[630,46,630,47],[631,52,631,55],[628,46,628,51],[631,46,631,51],[54,106,54,123],[54,124,54,127],[54,128,54,131],[56,19,56,38],[57,19,57,38],[56,44,56,47],[57,44,57,47],[59,90,59,93],[59,94,59,97],[59,104,59,105],[1,122,2,129],[3,2,5,63],[3,68,5,129],[8,2,8,63],[8,68,8,129],[15,66,15,131],[34,30,34,34],[34,92,34,95],[34,96,34,99],[34,100,34,103],[34,104,34,111],[46,122,47,129],[48,2,48,63],[48,68,48,129],[34,18,34,25],[34,26,34,29],[34,84,34,91],[16,66,16,131],[31,2,31,13],[31,14,31,59],[31,60,31,63],[31,68,31,79],[31,80,31,125],[31,126,31,129],[55,17,55,18],[55,39,55,42],[55,44,55,47],[55,70,55,71],[55,72,55,89],[53,70,53,97],[53,104,53,131],[54,70,54,71],[54,72,54,89],[54,90,54,93],[54,94,54,97],[55,19,55,38],[57,90,57,93],[57,94,57,97],[57,104,57,105],[57,106,57,123],[57,124,57,127],[57,128,57,131],[57,17,57,18],[57,39,57,42],[57,70,57,71],[57,72,57,89],[56,90,56,93],[56,94,56,97],[56,104,56,105],[56,106,56,123],[56,124,56,127],[56,128,56,131],[56,17,56,18],[56,39,56,42],[56,70,56,71],[56,72,56,89],[59,106,59,123],[59,124,59,127],[59,128,59,131],[59,17,59,18],[59,39,59,42],[59,70,59,71],[59,72,59,89],[58,90,58,93],[58,94,58,97],[58,104,58,105],[58,106,58,123],[58,124,58,127],[58,128,58,131],[58,17,58,18],[58,39,58,42],[58,70,58,71],[58,72,58,89],[58,19,58,38],[59,19,59,38],[58,44,58,47],[59,44,59,47],[61,90,61,93],[61,94,61,97],[61,104,61,105],[61,106,61,123],[61,124,61,127],[61,128,61,131],[61,17,61,18],[61,39,61,42],[61,70,61,71],[61,72,61,89],[60,90,60,93],[60,94,60,97],[60,104,60,105],[60,106,60,123],[60,124,60,127],[60,128,60,131],[60,17,60,18],[60,39,60,42],[60,70,60,71],[60,72,60,89],[60,19,60,38],[61,19,61,38],[60,44,60,47],[61,44,61,47],[63,90,63,93],[63,94,63,97],[63,104,63,105],[63,106,63,123],[63,124,63,127],[63,128,63,131],[63,17,63,18],[63,39,63,42],[63,70,63,71],[63,72,63,89],[62,90,62,93],[62,94,62,97],[62,104,62,105],[62,106,62,123],[62,124,62,127],[62,128,62,131],[62,17,62,18],[62,39,62,42],[62,70,62,71],[62,72,62,89],[63,19,63,38],[62,44,62,47],[63,44,63,47],[65,90,65,93],[65,94,65,97],[65,104,65,105],[65,106,65,123],[65,124,65,127],[65,128,65,131],[65,17,65,18],[65,39,65,42],[65,70,65,71],[65,72,65,89],[64,90,64,93],[64,94,64,97],[64,104,64,105],[64,106,64,123],[64,124,64,127],[64,128,64,131],[64,17,64,18],[64,39,64,42],[64,70,64,71],[64,72,64,89],[64,44,64,47],[65,44,65,47],[64,19,64,38],[65,19,65,38],[67,90,67,93],[67,94,67,97],[67,104,67,105],[67,106,67,123],[67,124,67,127],[67,128,67,131],[67,17,67,18],[67,39,67,42],[67,70,67,71],[67,72,67,89],[66,90,66,93],[66,94,66,97],[66,104,66,105],[66,106,66,123],[66,124,66,127],[66,128,66,131],[66,17,66,18],[66,39,66,42],[66,70,66,71],[66,72,66,89],[66,44,66,47],[67,44,67,47],[66,19,66,38],[67,19,67,38],[69,104,69,105],[69,106,69,123],[69,124,69,127],[69,128,69,131],[69,17,69,18],[69,39,69,42],[69,70,69,71],[69,72,69,89],[68,90,68,93],[68,94,68,97],[68,104,68,105],[68,106,68,123],[68,124,68,127],[68,128,68,131],[68,17,68,18],[68,39,68,42],[68,70,68,71],[68,72,68,89],[68,19,68,38],[68,44,68,47],[69,44,69,47],[70,90,70,93],[70,94,70,97],[72,17,72,18],[72,39,72,42],[71,70,71,71],[71,72,71,89],[71,90,71,93],[71,94,71,97],[71,17,71,18],[71,39,71,42],[70,70,70,71],[70,72,70,89],[69,90,69,93],[69,94,69,97],[69,19,69,38],[71,19,71,38],[72,19,72,38],[70,39,70,42],[70,17,70,18],[70,19,70,38],[70,44,70,47],[71,44,71,47],[72,44,72,47],[99,56,100,63],[99,122,100,129],[103,2,108,63],[103,68,108,129],[113,2,115,63],[113,68,115,129],[87,72,87,82],[87,106,87,116],[89,72,89,82],[91,80,92,90],[91,114,92,124],[94,80,95,90],[94,114,95,124],[72,90,72,93],[72,94,72,97],[75,69,75,129],[78,69,80,129],[82,69,82,129],[84,69,84,128],[73,17,73,18],[73,39,73,42],[72,70,72,71],[72,72,72,89],[73,19,73,38],[74,19,74,38],[73,44,73,47],[74,44,74,47],[124,19,124,21],[124,22,124,24],[124,25,124,27],[124,28,124,30],[124,31,124,33],[123,37,123,45],[123,46,123,54],[123,85,123,93],[123,94,123,102],[123,103,123,111],[123,112,123,120],[121,11,121,54],[121,77,121,120],[122,11,123,18],[122,19,122,36],[122,37,122,54],[122,77,123,84],[122,85,122,102],[122,103,122,120],[123,19,123,27],[123,28,123,36],[124,115,124,117],[124,118,124,120],[124,97,124,99],[124,100,124,102],[124,103,124,105],[124,106,124,108],[124,109,124,111],[124,112,124,114],[124,52,124,54],[124,77,124,84],[124,85,124,87],[124,88,124,90],[124,91,124,93],[124,94,124,96],[124,34,124,36],[124,37,124,39],[124,40,124,42],[124,43,124,45],[124,46,124,48],[124,49,124,51],[133,2,133,63],[133,68,133,129],[137,27,137,37],[137,76,137,77],[137,93,137,103],[125,103,125,105],[125,106,125,108],[125,109,125,111],[125,112,125,114],[125,115,125,117],[125,118,125,120],[125,85,125,87],[125,88,125,90],[125,91,125,93],[125,94,125,96],[125,97,125,99],[125,100,125,102],[125,40,125,42],[125,43,125,45],[125,46,125,48],[125,49,125,51],[124,11,124,18],[125,52,125,54],[125,77,125,84],[125,11,125,18],[125,19,125,21],[125,22,125,24],[125,25,125,27],[125,28,125,30],[125,31,125,33],[125,34,125,36],[125,37,125,39],[159,3,159,17],[159,29,159,43],[159,69,159,83],[159,95,159,109],[159,111,159,127],[143,3,143,22],[143,69,143,88],[144,3,144,22],[144,69,144,88],[148,56,149,63],[148,122,149,129],[159,45,159,61],[140,3,140,22],[140,69,140,88],[141,3,141,22],[141,69,141,88],[142,3,142,22],[142,69,142,88],[153,2,154,62],[152,68,155,129],[137,2,137,6],[137,14,137,26],[137,7,137,13],[162,69,162,83],[162,95,162,109],[162,111,162,127],[162,29,162,43],[161,69,161,83],[161,95,161,109],[161,111,161,127],[161,45,161,61],[162,45,162,61],[163,45,163,61],[160,3,160,17],[161,29,161,43],[160,69,160,83],[160,95,160,109],[160,111,160,127],[160,29,160,43],[160,45,160,61],[161,3,161,17],[162,3,162,17],[165,69,165,83],[165,95,165,109],[165,111,165,127],[165,29,165,43],[164,69,164,83],[164,95,164,109],[164,111,164,127],[167,3,167,17],[167,45,167,61],[164,45,164,61],[165,45,165,61],[166,45,166,61],[164,29,164,43],[163,69,163,83],[163,95,163,109],[163,111,163,127],[163,3,163,17],[164,3,164,17],[165,3,165,17],[163,29,163,43],[168,69,168,83],[168,95,168,109],[168,111,168,127],[168,3,168,17],[168,29,168,43],[168,45,168,61],[173,3,173,17],[167,29,167,43],[166,69,166,83],[166,95,166,109],[166,111,166,127],[173,29,173,43],[173,45,173,61],[173,69,173,83],[173,95,173,109],[173,111,173,127],[172,3,172,17],[172,29,172,43],[172,45,172,61],[172,69,172,83],[172,95,172,109],[172,111,172,127],[170,3,170,17],[170,29,170,43],[170,45,170,61],[166,3,166,17],[166,29,166,43],[175,111,175,127],[177,3,177,17],[182,3,182,17],[174,69,174,83],[174,95,174,109],[174,111,174,127],[176,3,176,17],[180,111,180,127],[181,3,181,17],[169,3,169,17],[169,29,169,43],[169,45,169,61],[169,69,169,83],[169,95,169,109],[169,111,169,127],[175,3,175,17],[182,45,182,61],[182,69,182,83],[182,95,182,109],[182,111,182,127],[181,69,181,83],[181,95,181,109],[181,111,181,127],[179,3,179,17],[179,29,179,43],[179,45,179,61],[179,95,179,109],[175,29,175,43],[175,45,175,61],[175,69,175,83],[175,95,175,109],[189,3,189,17],[194,3,194,17],[191,45,191,61],[194,45,194,61],[191,29,191,43],[196,29,196,43],[196,45,196,61],[189,29,189,43],[189,45,189,61],[190,29,190,43],[170,95,170,109],[170,111,170,127],[171,3,171,17],[171,29,171,43],[171,45,171,61],[171,95,171,109],[171,111,171,127],[178,3,178,17],[176,29,176,43],[176,45,176,61],[178,69,178,83],[178,95,178,109],[178,111,178,127],[188,3,188,17],[188,29,188,43],[188,45,188,61],[177,69,177,83],[177,95,177,109],[190,45,190,61],[191,3,191,17],[194,29,194,43],[192,45,192,61],[208,3,209,21],[206,69,207,87],[212,3,215,62],[210,69,213,128],[203,3,203,21],[201,69,201,87],[204,3,205,21],[202,69,203,87],[205,27,207,61],[203,94,205,128],[204,69,204,71],[207,3,207,21],[205,69,205,87],[199,3,199,21],[199,27,201,61],[197,69,197,87],[197,94,199,128],[200,3,201,21],[198,69,199,87],[193,29,193,43],[193,45,193,61],[195,29,195,43],[195,45,195,61],[196,3,196,17],[195,3,195,17],[193,3,193,17],[557,5,557,16],[557,17,557,34],[557,71,557,82],[557,83,557,100],[557,101,557,126],[551,56,552,63],[551,122,552,129],[564,17,566,34],[564,83,566,100],[564,101,566,126],[233,29,233,43],[233,45,233,61],[233,69,233,83],[233,95,233,109],[233,111,233,127],[234,3,234,17],[234,29,234,43],[234,45,234,61],[234,69,234,83],[234,95,234,109],[234,111,234,127],[235,3,235,17],[235,29,235,43],[235,45,235,61],[235,69,235,83],[567,17,569,34],[567,83,569,100],[567,101,569,126],[558,5,569,16],[558,17,560,34],[558,71,569,82],[558,83,560,100],[558,101,560,126],[561,17,563,34],[561,83,563,100],[561,101,563,126],[557,35,557,61],[217,56,218,63],[217,122,218,129],[221,2,222,62],[221,68,225,129],[230,3,230,17],[230,29,230,43],[230,45,230,61],[230,69,230,83],[230,95,230,109],[230,111,230,127],[231,3,231,17],[231,29,231,43],[231,45,231,61],[231,69,231,83],[231,95,231,109],[231,111,231,127],[232,3,232,17],[232,29,232,43],[232,45,232,61],[233,3,233,17],[610,122,611,129],[612,70,614,129],[618,4,619,19],[618,20,619,35],[618,36,619,45],[618,46,618,61],[618,70,619,85],[618,86,619,101],[618,102,619,111],[576,17,578,34],[576,83,578,100],[576,101,578,126],[591,4,591,11],[591,37,591,44],[591,70,591,77],[591,103,591,110],[570,5,578,16],[570,17,572,34],[570,71,578,82],[570,83,572,100],[570,101,572,126],[573,17,575,34],[573,83,575,100],[573,101,575,126],[612,4,614,63],[620,125,622,127],[621,48,621,49],[621,54,621,55],[621,114,621,115],[621,120,621,121],[623,4,625,19],[623,20,625,35],[623,36,625,43],[623,44,625,45],[623,56,625,58],[620,59,622,61],[620,70,622,85],[620,86,622,101],[620,102,622,109],[620,110,622,111],[620,122,622,124],[618,112,618,127],[619,46,619,51],[619,52,619,61],[619,112,619,117],[619,118,619,127],[620,4,622,19],[620,36,622,43],[620,44,622,45],[620,56,622,58],[625,46,625,51],[626,125,628,127],[627,48,627,49],[627,54,627,55],[627,114,627,115],[627,120,627,121],[629,4,631,19],[629,20,631,35],[629,36,631,43],[629,44,631,45],[629,56,631,58],[626,59,628,61],[626,70,628,85],[626,86,628,101],[626,102,628,109],[626,110,628,111],[626,122,628,124],[623,125,625,127],[624,48,624,49],[624,54,624,55],[624,114,624,115],[624,120,624,121],[626,4,628,19],[626,20,628,35],[626,36,628,43],[626,44,628,45],[626,56,628,58],[623,59,625,61],[623,70,625,85],[623,86,625,101],[623,102,625,109],[623,110,625,111],[623,122,625,124],[632,125,634,127],[633,48,633,49],[633,54,633,55],[633,114,633,115],[633,120,633,121],[638,4,639,19],[638,20,639,35],[638,36,639,45],[638,46,638,61],[638,70,639,85],[632,59,634,61],[632,70,634,85],[632,86,634,101],[632,102,634,109],[632,110,634,111],[632,122,634,124],[629,125,631,127],[630,48,630,49],[630,54,630,55],[630,114,630,115],[630,120,630,121],[632,4,634,19],[632,20,634,35],[632,36,634,43],[632,44,634,45],[632,56,634,58],[629,59,631,61],[629,70,631,85],[629,86,631,101],[629,102,631,109],[629,110,631,111],[629,122,631,124],[640,70,642,85],[640,86,642,101],[640,102,642,109],[640,110,642,111],[640,122,642,124],[640,125,642,127],[641,114,641,115],[641,120,641,121],[640,4,642,19],[640,36,642,43],[640,44,642,45],[640,56,642,58],[640,59,642,61],[641,48,641,49],[641,54,641,55],[638,86,639,101],[638,102,639,111],[638,112,638,127],[639,46,639,51],[639,52,639,61],[639,112,639,117],[639,118,639,127],[640,20,641,35],[642,20,642,35],[642,46,642,51],[642,52,642,55],[646,70,648,85],[646,86,648,101],[646,102,648,109],[646,110,648,111],[646,122,648,124],[646,125,648,127],[647,114,647,115],[647,120,647,121],[646,4,648,19],[646,20,648,35],[646,36,648,43],[646,44,648,45],[646,56,648,58],[646,59,648,61],[647,48,647,49],[647,54,647,55],[643,70,645,85],[643,86,645,101],[643,102,645,109],[643,110,645,111],[643,122,645,124],[643,125,645,127],[644,114,644,115],[644,120,644,121],[643,4,645,19],[643,20,645,35],[643,36,645,43],[643,44,645,45],[643,56,645,58],[643,59,645,61],[644,48,644,49],[644,54,644,55],[652,70,654,85],[652,86,654,101],[652,102,654,109],[652,110,654,111],[652,122,654,124],[652,125,654,127],[653,114,653,115],[653,120,653,121],[652,4,654,19],[652,20,654,35],[652,36,654,43],[652,44,654,45],[652,56,654,58],[652,59,654,61],[653,48,653,49],[653,54,653,55],[649,70,651,85],[649,86,651,101],[649,102,651,109],[649,110,651,111],[649,122,651,124],[649,125,651,127],[650,114,650,115],[650,120,650,121],[649,4,651,19],[649,20,651,35],[649,36,651,43],[649,44,651,45],[649,56,651,58],[649,59,651,61],[650,48,650,49],[650,54,650,55],[661,110,661,111],[661,112,661,127],[662,4,662,19],[662,20,662,35],[662,36,662,43],[662,44,662,45],[662,46,662,61],[662,70,662,85],[662,86,662,101],[662,102,662,109],[659,102,660,111],[659,112,660,127],[661,4,661,19],[661,20,661,35],[661,36,661,43],[661,44,661,45],[661,46,661,61],[661,70,661,85],[661,86,661,101],[661,102,661,109],[659,4,660,19],[659,20,660,35],[659,36,660,45],[659,46,660,61],[659,70,660,85],[659,86,660,101],[663,110,663,111],[663,112,663,127],[664,4,664,19],[664,20,664,35],[664,36,664,43],[664,44,664,45],[664,46,664,61],[664,70,664,85],[664,86,664,101],[664,102,664,109],[662,110,662,111],[662,112,662,127],[663,4,663,19],[663,20,663,35],[663,36,663,43],[663,44,663,45],[663,46,663,61],[663,70,663,85],[663,86,663,101],[663,102,663,109],[687,2,688,63],[687,68,688,129],[691,5,691,60],[691,71,691,126],[692,5,693,20],[692,21,693,60],[692,71,693,86],[692,87,693,126],[665,110,665,111],[665,112,665,127],[671,5,671,12],[671,71,671,78],[683,56,684,63],[683,122,684,129],[664,110,664,111],[664,112,664,127],[665,4,665,19],[665,20,665,35],[665,36,665,43],[665,44,665,45],[665,46,665,61],[665,70,665,85],[665,86,665,101],[665,102,665,109],[702,5,703,20],[702,71,703,86],[702,87,702,126],[703,87,703,126],[698,71,701,86],[698,87,698,126],[699,87,699,126],[700,87,700,126],[701,87,701,126],[694,71,695,86],[694,87,694,126],[695,87,695,126],[702,21,703,60],[694,21,697,60],[694,5,697,20],[698,5,701,20],[698,21,701,60],[711,5,711,60],[711,71,711,126],[712,5,712,60],[712,71,712,126],[714,5,714,60],[714,71,714,126],[706,71,706,86],[706,87,706,126],[708,71,708,86],[708,87,708,126],[704,5,705,20],[704,71,705,86],[704,87,704,126],[705,87,705,126],[704,21,705,60],[706,5,707,20],[706,21,707,60],[708,5,709,20],[708,21,709,60],[807,62,809,63],[750,9,750,10],[750,75,750,76],[799,56,800,63],[799,122,800,129],[803,6,804,52],[803,56,804,63],[803,72,804,118],[803,122,804,129],[721,92,721,93],[741,56,742,63],[741,122,742,129],[749,9,749,10],[749,75,749,76],[715,5,715,60],[715,71,715,126],[719,6,719,7],[719,72,719,73],[720,6,720,7],[720,72,720,73],[721,27,721,28],[813,128,815,129],[818,6,819,19],[818,72,819,85],[821,6,825,21],[821,72,825,87],[822,25,824,51],[822,56,824,57],[822,58,824,59],[822,60,824,61],[822,62,824,63],[813,60,815,61],[813,62,815,63],[813,91,815,117],[813,122,815,123],[813,124,815,125],[813,126,815,127],[807,91,809,117],[807,122,809,123],[807,124,809,125],[807,126,809,127],[807,128,809,129],[812,6,816,21]],"merged_total":3616,"flags":["merged_cut"]}
[]
[null,null,null,null,null,null,null,null,null,null,null,null,null,null,null,null,null,null,null,null,null,null,null,null,null,null,null,null,null,null,null,null,null,null,null,null,null,null,null,null,null,null,null,null,null,null,null,null,null,null,null,null,null,null,null,null,null,null,null,null,null,null,null,null,null,null,null,null,null,null,null,null,null,null,null,null,null,null,null,null,null,null,null,null,null,null,null,null,null,null,null,null,null,null,null,null,null,null,null,null,null,null,null,null,null,null,null,null,null,null,null,null,null,null,null,null,null,null,null,null,null,null,"記載例"]
[]
[null,null,"医療施設",null,null,null,null,null,null,null,null,null,null,null,null,null,null,null,null,null,null,null,null,null,null,null,null,null,null,null,null,null,null,null,null,null,null,null,null,null,null,null,null,null,null,null,null,null,null,null,null,null,null,null,null,null,null,null,null,null,null,null,null,null,null,null,null,null,"医療施設"]
[]
[]
[]
[]
[null,null,"避難確保計画",null,null,null,null,null,null,null,null,null,null,null,null,null,null,null,null,null,null,null,null,null,null,null,null,null,null,null,null,null,null,null,null,null,null,null,null,null,null,null,null,null,null,null,null,null,null,null,null,null,null,null,null,null,null,null,null,null,null,null,null,null,null,null,null,null,"避難確保計画"]
[]
[]
[]
[]
[]
[]
["　対象災害：",null,null,null,null,null,null,null,null,null,null,null,null,null,null,null,null,{"$f":"IF(入力シート!M11=\"\",\"\",入力シート!M11)","v":""},null,null,null,null,null,null,null,null,null,null,null,null,null,null,null,null,null,null,null,null,null,null,null,null,null,null,null,null,null,null,null,null,null,null,null,null,null,null,null,null,null,null,null,null,null,null,null,null,"　対象災害：水害（洪水　内水　高潮　津波）"]
[null,null,null,null,null,null,null,null,null,null,null,null,null,null,null,null,null,null,null,null,null,null,null,null,null,null,null,null,null,null,null,null,null,null,null,null,null,null,null,null,null,null,null,null,null,null,null,null,null,null,null,null,null,null,null,null,null,null,null,null,null,null,null,null,null,null,"　　　　　　土砂災害（がけ崩れ・土石流・地すべり）"]
[]
[]
[]
[]
[]
[]
[]
[]
[]
[]
[]
[]
[]
[]
[null,null,"【施設名：",null,null,null,null,null,null,null,null,null,null,null,{"$f":"IF(入力シート!M9=\"\",\"\",入力シート!M9)","v":""},null,null,null,null,null,null,null,null,null,null,null,null,null,null,null,null,null,null,null,null,null,null,null,null,null,null,null,null,null,null,null,null,null,null,null,null,null,null,null,null,null,null,null,null,null,"】",null,null,null,null,null,null,null,"【施設名：",null,null,null,null,null,null,null,null,null,null,null,"○○○○○",null,null,null,null,null,null,null,null,null,null,null,null,null,null,null,null,null,null,null,null,null,null,null,null,null,null,null,null,null,null,null,null,null,null,null,null,null,null,null,null,null,null,null,null,null,"】"]
[]
[]
[null,null,null,null,null,null,null,null,null,null,null,null,null,null,null,null,null,null,{"$f":"IF(入力シート!M7=\"\",\"\",入力シート!M7)","v":""},null,null,null,null,null,null,null,"年",null,null,null,{"$f":"IF(入力シート!O7=\"\",\"\",入力シート!O7)","v":""},null,null,null,null,"月",null,null,null,"作成",null,null,null,null,null,null,null,null,null,null,null,null,null,null,null,null,null,null,null,null,null,null,null,null,null,null,null,null,null,null,null,null,null,null,null,null,null,null,null,null,null,null,null,null,"○",null,null,null,null,null,null,null,"年",null,null,null,"○",null,null,null,"月",null,null,null,"作成"]
[]
[]
[null,null,null,null,null,null,null,null,null,null,null,null,null,null,null,null,null,null,null,null,null,null,null,null,null,null,null,null,null,null,null,null,null,null,null,null,null,null,null,null,null,null,null,null,null,null,null,null,null,null,null,null,null,null,null,null,null,null,null,null,null,null,null,null,null,null,"このエクセルファイルの使い方"]
[null,null,null,null,null,null,null,null,null,null,null,null,null,null,null,null,null,null,null,null,null,null,null,null,null,null,null,null,null,null,null,null,null,null,null,null,null,null,null,null,null,null,null,null,null,null,null,null,null,null,null,null,null,null,null,null,null,null,null,null,null,null,null,null,null,null,"作業シートの必要な項目を記入してください。"]
[null,null,null,null,null,null,null,null,null,null,null,null,null,null,null,null,null,null,null,null,null,null,null,null,null,null,null,null,null,null,null,null,null,null,null,null,null,null,null,null,null,null,null,null,null,null,null,null,null,null,null,null,null,null,null,null,null,null,null,null,null,null,null,null,null,null,"記入する場所は桃色の空欄で示しています。"]
[null,null,null,null,null,null,null,null,null,null,null,null,null,null,null,null,null,null,null,null,null,null,null,null,null,null,null,null,null,null,null,null,null,null,null,null,null,null,null,null,null,null,null,null,null,null,null,null,null,null,null,null,null,null,null,null,null,null,null,null,null,null,null,null,null,null,"様式２は対象となる災害のみ記入してください。"]
[null,null,null,null,null,null,null,null,null,null,null,null,null,null,null,null,null,null,null,null,null,null,null,null,null,null,null,null,null,null,null,null,null,null,null,null,null,null,null,null,null,null,null,null,null,null,null,null,null,null,null,null,null,null,null,null,null,null,null,null,null,null,null,null,null,null,"自衛水防組織を設置する場合と設置しない場合があるので、目次を参考に作成してください。"]
[null,null,null,null,null,null,null,null,null,null,null,null,null,null,null,null,null,null,null,null,null,null,null,null,null,null,null,null,null,null,null,null,null,null,null,null,null,null,null,null,null,null,null,null,null,null,null,null,null,null,null,null,null,null,null,null,null,null,null,null,null,null,null,null,null,null,"記入が終わったら、不要な行を削除してください。"]
[]
[]
[]
[null,null,null,null,null,null,null,null,null,null,null,null,null,null,null,null,null,null,null,null,null,null,null,null,null,null,null,null,null,null,null,null,null,null,null,null,null,null,null,null,null,null,null,null,null,null,null,null,null,null,null,null,null,null,null,null,null,null,null,null,null,null,null,null,null,null,null,null,null,null,null,null,null,null,null,null,null,null,null,null,null,null,null,null,null,null,null,null,null,null,null,null,null,null,null,null,null,null,null,null,null,null,null,null,null,null,null,null,null,null,null,null,null,null,null,null,null,null,null,null,null,null,"記載例"]
[]
[null,null,"様式編　目次",null,null,null,null,null,null,null,null,null,null,null,null,null,null,null,null,null,null,null,null,null,null,null,null,null,null,null,null,null,null,null,null,null,null,null,null,null,null,null,null,null,null,null,null,null,null,null,null,null,null,null,null,null,null,null,null,null,null,null,null,null,null,null,null,null,"様式編　目次"]
[]
[null,null,null,null,null,null,null,null,null,null,null,null,null,null,null,null,null,null,null,null,null,null,null,null,null,null,null,null,null,null,null,null,null,null,null,null,null,null,null,null,null,null,null,null,null,null,null,null,null,null,null,null,null,null,null,null,null,null,null,null,null,null,null,null,null,null,null,null,"青色の書類は市町村長に提出してください。"]
[null,null,null,null,null,null,null,null,null,null,null,null,null,null,null,null,null,null,null,null,null,null,null,null,null,null,null,null,null,null,null,null,null,null,null,null,null,null,null,null,null,null,null,null,null,null,null,null,null,null,null,null,null,null,null,null,null,null,null,null,null,null,null,null,null,null,null,null,"自衛水防組織の有無によって、下記の表をコピーして使用してください。"]
[]
[null,null,null,null,null,null,null,null,null,null,null,null,null,null,null,null,null,null,null,null,null,null,null,null,null,null,null,null,null,null,null,null,null,null,null,null,null,null,null,null,null,null,null,null,null,null,null,null,null,null,null,null,null,null,null,null,null,null,null,null,null,null,null,null,null,null,null,null,null,null,"自衛水防組織を設置する場合",null,null,null,null,null,null,null,null,null,null,null,null,null,null,null,null,null,null,null,null,null,null,null,null,null,null,null,null,null,null,null,null,null,"自衛水防組織を設置しない場合"]
[null,null,null,null,null,null,null,null,null,null,null,null,null,null,null,null,null,null,null,null,null,null,null,null,null,null,null,null,null,null,null,null,null,null,null,null,null,null,null,null,null,null,null,null,null,null,null,null,null,null,null,null,null,null,null,null,null,null,null,null,null,null,null,null,null,null,null,null,null,null,null,null,"項目",null,null,null,null,null,null,null,null,null,null,null,null,null,null,null,null,null,"様式等",null,null,null,"ページ",null,null,null,null,null,null,null,null,null,null,null,"項目",null,null,null,null,null,null,null,null,null,null,null,null,null,null,null,null,null,"様式等",null,null,null,"ページ"]
[null,null,null,null,null,null,null,null,null,null,null,null,null,null,null,null,null,null,null,"項目",null,null,null,null,null,null,null,null,null,null,null,null,null,null,null,null,null,null,null,"様式等",null,null,null,null,"ページ",null,null,null,null,null,null,null,null,null,null,null,null,null,null,null,null,null,null,null,null,null,null,null,null,null,1,null,"計画の目的",null,null,null,null,null,null,null,null,null,null,null,null,null,null,null,null,null,"様式１",null,null,null,1,null,null,null,null,null,null,null,null,null,1,null,"計画の目的",null,null,null,null,null,null,null,null,null,null,null,null,null,null,null,null,null,"様式１",null,null,null,1,null,null,null,null,null,null,null,null,null,null,null,null,null,null,null,"ページ","ページ"]
[null,null,null,null,null,null,null,null,null,null,null,null,null,null,null,null,null,1,null,"計画の目的",null,null,null,null,null,null,null,null,null,null,null,null,null,null,null,null,null,null,null,"様式１",null,null,null,null,1,null,null,null,null,null,null,null,null,null,null,null,null,null,null,null,null,null,null,null,null,null,null,null,null,null,2,null,"計画の報告",null,null,null,null,null,null,null,null,null,null,null,null,null,null,null,null,null,"様式１",null,null,null,1,null,null,null,null,null,null,null,null,null,2,null,"計画の報告",null,null,null,null,null,null,null,null,null,null,null,null,null,null,null,null,null,"様式１",null,null,null,1,null,null,null,null,null,null,null,null,null,null,null,null,null,null,null,1,1]
[null,null,null,null,null,null,null,null,null,null,null,null,null,null,null,null,null,2,null,"計画の報告",null,null,null,null,null,null,null,null,null,null,null,null,null,null,null,null,null,null,null,"様式１",null,null,null,null,1,null,null,null,null,null,null,null,null,null,null,null,null,null,null,null,null,null,null,null,null,null,null,null,null,null,3,null,"計画の適用範囲",null,null,null,null,null,null,null,null,null,null,null,null,null,null,null,null,null,"様式１",null,null,null,1,null,null,null,null,null,null,null,null,null,3,null,"計画の適用範囲",null,null,null,null,null,null,null,null,null,null,null,null,null,null,null,null,null,"様式１",null,null,null,1,null,null,null,null,null,null,null,null,null,null,null,null,null,null,null,1,1]
[null,null,null,null,null,null,null,null,null,null,null,null,null,null,null,null,null,3,null,"計画の適用範囲",null,null,null,null,null,null,null,null,null,null,null,null,null,null,null,null,null,null,null,"様式１",null,null,null,null,1,null,null,null,null,null,null,null,null,null,null,null,null,null,null,null,null,null,null,null,null,null,null,null,null,null,4,null,"防災体制",null,null,null,null,null,null,null,null,null,null,null,null,null,null,null,null,null,"様式２",null,null,null,"2～5",null,null,null,null,null,null,null,null,null,4,null,"防災体制",null,null,null,null,null,null,null,null,null,null,null,null,null,null,null,null,null,"様式２",null,null,null,"2～5",null,null,null,null,null,null,null,null,null,null,null,null,null,null,null,1,1]
[null,null,null,null,null,null,null,null,null,null,null,null,null,null,null,null,null,4,null,"防災体制",null,null,null,null,null,null,null,null,null,null,null,null,null,null,null,null,null,null,null,"様式２",null,null,null,null,"2～5",null,null,null,null,null,null,null,null,null,null,null,null,null,null,null,null,null,null,null,null,null,null,null,null,null,5,null,"情報収集・伝達",null,null,null,null,null,null,null,null,null,null,null,null,null,null,null,null,null,"様式３",null,null,null,6,null,null,null,null,null,null,null,null,null,5,null,"情報収集・伝達",null,null,null,null,null,null,null,null,null,null,null,null,null,null,null,null,null,"様式３",null,null,null,6,null,null,null,null,null,null,null,null,null,null,null,null,null,null,null,"2～5","2～5"]
[null,null,null,null,null,null,null,null,null,null,null,null,null,null,null,null,null,5,null,"情報収集・伝達",null,null,null,null,null,null,null,null,null,null,null,null,null,null,null,null,null,null,null,"様式３",null,null,null,null,6,null,null,null,null,null,null,null,null,null,null,null,null,null,null,null,null,null,null,null,null,null,null,null,null,null,6,null,"避難誘導",null,null,null,null,null,null,null,null,null,null,null,null,null,null,null,null,null,"様式４",null,null,null,7,null,null,null,null,null,null,null,null,null,6,null,"避難誘導",null,null,null,null,null,null,null,null,null,null,null,null,null,null,null,null,null,"様式４",null,null,null,7,null,null,null,null,null,null,null,null,null,null,null,null,null,null,null,6,6]
[null,null,null,null,null,null,null,null,null,null,null,null,null,null,null,null,null,6,null,"避難誘導",null,null,null,null,null,null,null,null,null,null,null,null,null,null,null,null,null,null,null,"様式４",null,null,null,null,7,null,null,null,null,null,null,null,null,null,null,null,null,null,null,null,null,null,null,null,null,null,null,null,null,null,7,null,"避難の確保を図るための施設の整備",null,null,null,null,null,null,null,null,null,null,null,null,null,null,null,null,null,"様式５",null,null,null,8,null,null,null,null,null,null,null,null,null,7,null,"避難の確保を図るための施設の整備",null,null,null,null,null,null,null,null,null,null,null,null,null,null,null,null,null,"様式５",null,null,null,8,null,null,null,null,null,null,null,null,null,null,null,null,null,null,null,7,7]
[null,null,null,null,null,null,null,null,null,null,null,null,null,null,null,null,null,7,null,"避難の確保を図るための施設の整備",null,null,null,null,null,null,null,null,null,null,null,null,null,null,null,null,null,null,null,"様式５",null,null,null,null,8,null,null,null,null,null,null,null,null,null,null,null,null,null,null,null,null,null,null,null,null,null,null,null,null,null,8,null,"防災教育及び訓練の実施",null,null,null,null,null,null,null,null,null,null,null,null,null,null,null,null,null,"様式５",null,null,null,8,null,null,null,null,null,null,null,null,null,8,null,"防災教育及び訓練の実施",null,null,null,null,null,null,null,null,null,null,null,null,null,null,null,null,null,"様式５",null,null,null,8,null,null,null,null,null,null,null,null,null,null,null,null,null,null,null,8,8]
[null,null,null,null,null,null,null,null,null,null,null,null,null,null,null,null,null,8,null,"防災教育及び訓練の実施",null,null,null,null,null,null,null,null,null,null,null,null,null,null,null,null,null,null,null,"様式５",null,null,null,null,8,null,null,null,null,null,null,null,null,null,null,null,null,null,null,null,null,null,null,null,null,null,null,null,null,null,9,null,"自衛水防組織の業務に関する事項",null,null,null,null,null,null,null,null,null,null,null,null,null,null,null,null,null,"様式６",null,null,null,9,null,null,null,null,null,null,null,null,null,10,null,"防災教育及び訓練の年間計画",null,null,null,null,null,null,null,null,null,null,null,null,null,null,null,null,null,"様式７",null,null,null,9,null,null,null,null,null,null,null,null,null,null,null,null,null,null,null,8,8]
[null,null,null,null,null,null,null,null,null,null,null,null,null,null,null,null,null,9,null,"自衛水防組織の業務に関する事項",null,null,null,null,null,null,null,null,null,null,null,null,null,null,null,null,null,null,null,"様式６",null,null,null,null,{"$f":"IF(入力シート!M213=\"有\",'出力シート（避難確保計画）'!EO65,EP65)","v":"－"},null,null,null,null,null,null,null,null,null,null,null,null,null,null,null,null,null,null,null,null,null,null,null,null,null,10,null,"防災教育及び訓練の年間計画",null,null,null,null,null,null,null,null,null,null,null,null,null,null,null,null,null,"様式７",null,null,null,10,null,null,null,null,null,null,null,null,null,11,null,"患者緊急連絡先一覧表",null,null,null,null,null,null,null,null,null,null,null,null,null,null,null,null,null,"様式８",null,null,null,10,null,null,null,null,null,null,null,null,null,null,null,null,null,null,null,9,"－"]
[null,null,null,null,null,null,null,null,null,null,null,null,null,null,null,null,null,10,null,"防災教育及び訓練の年間計画",null,null,null,null,null,null,null,null,null,null,null,null,null,null,null,null,null,null,null,"様式７",null,null,null,null,{"$f":"IF(入力シート!M213=\"有\",'出力シート（避難確保計画）'!EO66,EP66)","v":9},null,null,null,null,null,null,null,null,null,null,null,null,null,null,null,null,null,null,null,null,null,null,null,null,null,11,null,"患者緊急連絡先一覧表",null,null,null,null,null,null,null,null,null,null,null,null,null,null,null,null,null,"様式８",null,null,null,11,null,null,null,null,null,null,null,null,null,12,null,"緊急連絡網",null,null,null,null,null,null,null,null,null,null,null,null,null,null,null,null,null,"様式９",null,null,null,11,null,null,null,null,null,null,null,null,null,null,null,null,null,null,null,10,9]
[null,null,null,null,null,null,null,null,null,null,null,null,null,null,null,null,null,11,null,"患者緊急連絡先一覧表",null,null,null,null,null,null,null,null,null,null,null,null,null,null,null,null,null,null,null,"様式８",null,null,null,null,{"$f":"IF(入力シート!M213=\"有\",'出力シート（避難確保計画）'!EO67,EP67)","v":10},null,null,null,null,null,null,null,null,null,null,null,null,null,null,null,null,null,null,null,null,null,null,null,null,null,12,null,"緊急連絡網",null,null,null,null,null,null,null,null,null,null,null,null,null,null,null,null,null,"様式９",null,null,null,12,null,null,null,null,null,null,null,null,null,13,null,"外部機関等の緊急連絡先一覧表",null,null,null,null,null,null,null,null,null,null,null,null,null,null,null,null,null,"様式10",null,null,null,11,null,null,null,null,null,null,null,null,null,null,null,null,null,null,null,11,10]
[null,null,null,null,null,null,null,null,null,null,null,null,null,null,null,null,null,12,null,"緊急連絡網",null,null,null,null,null,null,null,null,null,null,null,null,null,null,null,null,null,null,null,"様式９",null,null,null,null,{"$f":"IF(入力シート!M213=\"有\",'出力シート（避難確保計画）'!EO68,EP68)","v":11},null,null,null,null,null,null,null,null,null,null,null,null,null,null,null,null,null,null,null,null,null,null,null,null,null,13,null,"外部機関等の緊急連絡先一覧表",null,null,null,null,null,null,null,null,null,null,null,null,null,null,null,null,null,"様式10",null,null,null,12,null,null,null,null,null,null,null,null,null,14,null,"対応別避難誘導一覧表",null,null,null,null,null,null,null,null,null,null,null,null,null,null,null,null,null,"様式11",null,null,null,12,null,null,null,null,null,null,null,null,null,null,null,null,null,null,null,12,11]
[null,null,null,null,null,null,null,null,null,null,null,null,null,null,null,null,null,13,null,"外部機関等の緊急連絡先一覧表",null,null,null,null,null,null,null,null,null,null,null,null,null,null,null,null,null,null,null,"様式10",null,null,null,null,{"$f":"IF(入力シート!M213=\"有\",'出力シート（避難確保計画）'!EO69,EP69)","v":11},null,null,null,null,null,null,null,null,null,null,null,null,null,null,null,null,null,null,null,null,null,null,null,null,null,14,null,"対応別避難誘導一覧表",null,null,null,null,null,null,null,null,null,null,null,null,null,null,null,null,null,"様式11",null,null,null,13,null,null,null,null,null,null,null,null,null,15,null,"防災体制一覧表",null,null,null,null,null,null,null,null,null,null,null,null,null,null,null,null,null,"様式12",null,null,null,13,null,null,null,null,null,null,null,null,null,null,null,null,null,null,null,12,11]
[null,null,null,null,null,null,null,null,null,null,null,null,null,null,null,null,null,14,null,"対応別避難誘導一覧表",null,null,null,null,null,null,null,null,null,null,null,null,null,null,null,null,null,null,null,"様式11",null,null,null,null,{"$f":"IF(入力シート!M213=\"有\",'出力シート（避難確保計画）'!EO70,EP70)","v":12},null,null,null,null,null,null,null,null,null,null,null,null,null,null,null,null,null,null,null,null,null,null,null,null,null,"-",null,"自衛水防組織活動要領",null,null,null,null,null,null,null,null,null,null,null,null,null,null,null,null,null,"別添",null,null,null,14,null,null,null,null,null,null,null,null,null,"-",null,"施設周辺の避難地図",null,null,null,null,null,null,null,null,null,null,null,null,null,null,null,null,null,"別紙１",null,null,null,"－",null,null,null,null,null,null,null,null,null,null,null,null,null,null,null,13,12]
[null,null,null,null,null,null,null,null,null,null,null,null,null,null,null,null,null,15,null,"防災体制一覧表",null,null,null,null,null,null,null,null,null,null,null,null,null,null,null,null,null,null,null,"様式12",null,null,null,null,{"$f":"IF(入力シート!M213=\"有\",'出力シート（避難確保計画）'!EO71,EP71)","v":13},null,null,null,null,null,null,null,null,null,null,null,null,null,null,null,null,null,null,null,null,null,null,null,null,null,"-",null,"自衛水防組織の編成と任務",null,null,null,null,null,null,null,null,null,null,null,null,null,null,null,null,null,"別表１",null,null,null,15,null,null,null,null,null,null,null,null,null,null,null,null,null,null,null,null,null,null,null,null,null,null,null,null,null,null,null,null,null,null,null,null,null,null,null,null,null,null,null,null,null,null,null,null,null,null,null,null,null,"－",13]
[null,null,null,null,null,null,null,null,null,null,null,null,null,null,null,null,null,"-",null,"自衛水防組織活動要領",null,null,null,null,null,null,null,null,null,null,null,null,null,null,null,null,null,null,null,"別添",null,null,null,null,{"$f":"IF(入力シート!M213=\"有\",'出力シート（避難確保計画）'!EO72,EP72)","v":"－"},null,null,null,null,null,null,null,null,null,null,null,null,null,null,null,null,null,null,null,null,null,null,null,null,null,"-",null,"自衛水防組織装備品リスト",null,null,null,null,null,null,null,null,null,null,null,null,null,null,null,null,null,"別表２",null,null,null,15,null,null,null,null,null,null,null,null,null,null,null,null,null,null,null,null,null,null,null,null,null,null,null,null,null,null,null,null,null,null,null,null,null,null,null,null,null,null,null,null,null,null,null,null,null,null,null,null,null,14,"－"]
[null,null,null,null,null,null,null,null,null,null,null,null,null,null,null,null,null,"-",null,"自衛水防組織の編成と任務",null,null,null,null,null,null,null,null,null,null,null,null,null,null,null,null,null,null,null,"別表１",null,null,null,null,{"$f":"IF(入力シート!M213=\"有\",'出力シート（避難確保計画）'!EO73,EP73)","v":"－"},null,null,null,null,null,null,null,null,null,null,null,null,null,null,null,null,null,null,null,null,null,null,null,null,null,"-",null,"施設周辺の避難地図",null,null,null,null,null,null,null,null,null,null,null,null,null,null,null,null,null,"別紙１",null,null,null,"－",null,null,null,null,null,null,null,null,null,null,null,null,null,null,null,null,null,null,null,null,null,null,null,null,null,null,null,null,null,null,null,null,null,null,null,null,null,null,null,null,null,null,null,null,null,null,null,null,null,15,"－"]
[null,null,null,null,null,null,null,null,null,null,null,null,null,null,null,null,null,"-",null,"自衛水防組織装備品リスト",null,null,null,null,null,null,null,null,null,null,null,null,null,null,null,null,null,null,null,"別表２",null,null,null,null,{"$f":"IF(入力シート!M213=\"有\",'出力シート（避難確保計画）'!EO74,EP74)","v":"－"},null,null,null,null,null,null,null,null,null,null,null,null,null,null,null,null,null,null,null,null,null,null,null,null,null,null,null,null,null,null,null,null,null,null,null,null,null,null,null,null,null,null,null,null,null,null,null,null,null,null,null,null,null,null,null,null,null,null,null,null,null,null,null,null,null,null,null,null,null,null,null,null,null,null,null,null,null,null,null,null,null,null,null,null,null,null,null,null,null,null,null,null,null,null,null,null,null,null,null,15,"－"]
[null,null,null,null,null,null,null,null,null,null,null,null,null,null,null,null,null,"-",null,"施設周辺の避難地図",null,null,null,null,null,null,null,null,null,null,null,null,null,null,null,null,null,null,null,"別紙１",null,null,null,null,{"$f":"IF(入力シート!M213=\"有\",'出力シート（避難確保計画）'!EO75,EP75)","v":"－"},null,null,null,null,null,null,null,null,null,null,null,null,null,null,null,null,null,null,null,null,null,null,null,null,null,null,null,null,null,null,null,null,null,null,null,null,null,null,null,null,null,null,null,null,null,null,null,null,null,null,null,null,null,null,null,null,null,null,null,null,null,null,null,null,null,null,null,null,null,null,null,null,null,null,null,null,null,null,null,null,null,null,null,null,null,null,null,null,null,null,null,null,null,null,null,null,null,null,null,"－","－"]
[null,null,null,null,null,null,null,null,null,null,null,null,null,null,null,null,null,null,null,null,null,null,null,null,null,null,null,null,null,null,null,null,null,null,null,null,null,null,null,null,null,null,null,null,null,null,null,null,null,null,null,null,null,null,null,null,null,null,null,null,null,null,null,null,null,null,null,null,null,"　自衛水防組織は対象災害に応じて、以下のように定められています。"]
[]
[null,null,null,null,null,null,null,null,null,null,null,null,null,null,null,null,null,null,null,null,null,null,null,null,null,null,null,null,null,null,null,null,null,null,null,null,null,null,null,null,null,null,null,null,null,null,null,null,null,null,null,null,null,null,null,null,null,null,null,null,null,null,null,null,null,null,null,null,null,"（洪水、内水、高潮が対象となる場合）"]
[null,null,null,null,null,null,null,null,null,null,null,null,null,null,null,null,null,null,null,null,null,null,null,null,null,null,null,null,null,null,null,null,null,null,null,null,null,null,null,null,null,null,null,null,null,null,null,null,null,null,null,null,null,null,null,null,null,null,null,null,null,null,null,null,null,null,null,null,null,"　要配慮者利用施設には、自衛水防組織の設置の努力義務が課せられています（水防法第十五条の三第6項）。自衛水防組織を設置する場合、様式６も作成し、合わせて、別添、別表１、別表２を作成します。"]
[]
[]
[null,null,null,null,null,null,null,null,null,null,null,null,null,null,null,null,null,null,null,null,null,null,null,null,null,null,null,null,null,null,null,null,null,null,null,null,null,null,null,null,null,null,null,null,null,null,null,null,null,null,null,null,null,null,null,null,null,null,null,null,null,null,null,null,null,null,null,null,null,"（津波、土砂災害が対象となる場合）"]
[null,null,null,null,null,null,null,null,null,null,null,null,null,null,null,null,null,null,null,null,null,null,null,null,null,null,null,null,null,null,null,null,null,null,null,null,null,null,null,null,null,null,null,null,null,null,null,null,null,null,null,null,null,null,null,null,null,null,null,null,null,null,null,null,null,null,null,null,null,"　要配慮者利用施設には、自衛水防組織の設置の努力義務規定はありません。"]
[]
[null,null,null,null,null,null,null,null,null,null,null,null,null,null,null,null,null,null,null,null,null,null,null,null,null,null,null,null,null,null,null,null,null,null,null,null,null,null,null,null,null,null,null,null,null,null,null,null,null,null,null,null,null,null,null,null,null,null,null,null,null,null,null,null,null,null,null,null,null,"（参考）自衛水防組織を設置している場合としていない場合の組織図"]
[null,null,null,null,null,null,null,null,null,null,null,null,null,null,null,null,null,null,null,null,null,null,null,null,null,null,null,null,null,null,null,null,null,null,null,null,null,null,null,null,null,null,null,null,null,null,null,null,null,null,null,null,null,null,null,null,null,null,null,null,null,null,null,null,null,null,null,null,null,null,"《自衛水防組織を設置する場合》",null,null,null,null,null,null,null,null,null,null,null,null,null,null,null,null,null,null,null,null,null,null,null,null,null,null,null,null,null,null,null,null,null,"《自衛水防組織を設置しない場合》"]
[]
[null,null,null,null,null,null,null,null,null,null,null,null,null,null,null,null,null,null,null,null,null,null,null,null,null,null,null,null,null,null,null,null,null,null,null,null,null,null,null,null,null,null,null,null,null,null,null,null,null,null,null,null,null,null,null,null,null,null,null,null,null,null,null,null,null,null,null,null,null,null,null,null,"管理権限者",null,null,null,null,null,null,null,null,null,null,null,null,null,null,null,null,null,null,null,null,null,null,null,null,null,null,null,null,null,null,null,null,null,"管理権限者"]
[null,null,null,null,null,null,null,null,null,null,null,null,null,null,null,null,null,null,null,null,null,null,null,null,null,null,null,null,null,null,null,null,null,null,null,null,null,null,null,null,null,null,null,null,null,null,null,null,null,null,null,null,null,null,null,null,null,null,null,null,null,null,null,null,null,null,null,null,null,null,null,null,null,null,null,null,null,"↓"]
[null,null,null,null,null,null,null,null,null,null,null,null,null,null,null,null,null,null,null,null,null,null,null,null,null,null,null,null,null,null,null,null,null,null,null,null,null,null,null,null,null,null,null,null,null,null,null,null,null,null,null,null,null,null,null,null,null,null,null,null,null,null,null,null,null,null,null,null,null,null,null,null,"統括管理者"]
[]
[null,null,null,null,null,null,null,null,null,null,null,null,null,null,null,null,null,null,null,null,null,null,null,null,null,null,null,null,null,null,null,null,null,null,null,null,null,null,null,null,null,null,null,null,null,null,null,null,null,null,null,null,null,null,null,null,null,null,null,null,null,null,null,null,null,null,null,null,null,null,null,null,null,null,null,null,null,null,null,null,"総括・情報班",null,null,null,null,null,null,null,null,null,null,null,null,null,null,null,null,null,null,null,null,null,null,null,null,null,null,null,null,null,null,null,null,null,"情報収集伝達要員"]
[]
[]
[null,null,null,null,null,null,null,null,null,null,null,null,null,null,null,null,null,null,null,null,null,null,null,null,null,null,null,null,null,null,null,null,null,null,null,null,null,null,null,null,null,null,null,null,null,null,null,null,null,null,null,null,null,null,null,null,null,null,null,null,null,null,null,null,null,null,null,null,null,null,null,null,null,null,null,null,null,null,null,null,"避難誘導班",null,null,null,null,null,null,null,null,null,null,null,null,null,null,null,null,null,null,null,null,null,null,null,null,null,null,null,null,null,null,null,null,null,"避難誘導要員"]
[]
[]
[]
[]
[null,null,null,null,null,null,null,null,null,null,null,null,null,null,null,null,null,null,null,null,null,null,null,null,null,null,null,null,null,null,null,null,null,null,null,null,null,null,null,null,null,null,null,null,null,null,null,null,null,null,null,null,null,null,null,null,"様式１",null,null,null,null,null,null,null,null,null,null,null,null,null,null,null,null,null,null,null,null,null,null,null,null,null,null,null,null,null,null,null,null,null,null,null,null,null,null,null,null,null,null,null,null,null,null,null,null,null,null,null,null,null,null,null,null,null,null,null,null,null,null,null,null,null,"記載例"]
[]
[]
[null,null,"１　計画の目的",null,null,null,null,null,null,null,null,null,null,null,null,null,null,null,null,null,null,null,null,null,null,null,null,null,null,null,null,null,null,null,null,null,null,null,null,null,null,null,null,null,null,null,null,null,null,null,null,null,null,null,null,null,null,null,null,null,null,null,null,null,null,null,null,null,"１　計画の目的"]
[null,null,"　この計画は、本施設の患者の洪水時の円滑かつ迅速な避難の確保を図ることを目的とする。\n　また、作成した避難確保計画に基づいて、安全な避難行動を確実に行うことができるよう、防災教育や訓練を行い、施設の職員や患者に対して、洪水に関する知識を深めるとともに、訓練等を通して課題等を抽出し、必要に応じてこの計画を見直ししていくものとする。",null,null,null,null,null,null,null,null,null,null,null,null,null,null,null,null,null,null,null,null,null,null,null,null,null,null,null,null,null,null,null,null,null,null,null,null,null,null,null,null,null,null,null,null,null,null,null,null,null,null,null,null,null,null,null,null,null,null,null,null,null,null,null,null,null,"　この計画は、本施設の患者の洪水時・内水時・高潮時・津波の発生時・土砂災害の発生時の円滑かつ迅速な避難の確保を図ることを目的とする。\n　また、作成した避難確保計画に基づいて、安全な避難行動を確実に行うことができるよう、防災教育や訓練を行い、施設の職員や患者に対して、洪水・内水・高潮・津波・土砂災害に関する知識を深めるとともに、訓練等を通して課題等を抽出し、必要に応じてこの計画を見直ししていくものとする。"]
[]
[]
[]
[]
[]
[null,null,"関連法：水防法",null,null,null,null,null,null,null,null,null,null,null,null,null,null,null,null,null,null,null,null,null,null,null,null,null,null,null,null,null,null,null,null,null,null,null,null,null,null,null,null,null,null,null,null,null,null,null,null,null,null,null,null,null,null,null,null,null,null,null,null,null,null,null,null,null,"関連法：水防法、津波防災地域づくりに関する法律、土砂災害防止法"]
[]
[]
[null,null,"２　計画の報告",null,null,null,null,null,null,null,null,null,null,null,null,null,null,null,null,null,null,null,null,null,null,null,null,null,null,null,null,null,null,null,null,null,null,null,null,null,null,null,null,null,null,null,null,null,null,null,null,null,null,null,null,null,null,null,null,null,null,null,null,null,null,null,null,null,"２　計画の報告"]
[null,null,"　計画を作成又は必要に応じて見直し・修正をしたときは、遅滞なく、当該計画を市町村長へ報告する。",null,null,null,null,null,null,null,null,null,null,null,null,null,null,null,null,null,null,null,null,null,null,null,null,null,null,null,null,null,null,null,null,null,null,null,null,null,null,null,null,null,null,null,null,null,null,null,null,null,null,null,null,null,null,null,null,null,null,null,null,null,null,null,null,null,"　計画を作成又は必要に応じて見直し・修正をしたときは、遅滞なく、当該計画を市町村長へ報告する。"]
[]
[]
[]
[null,null,"３　計画の適用範囲",null,null,null,null,null,null,null,null,null,null,null,null,null,null,null,null,null,null,null,null,null,null,null,null,null,null,null,null,null,null,null,null,null,null,null,null,null,null,null,null,null,null,null,null,null,null,null,null,null,null,null,null,null,null,null,null,null,null,null,null,null,null,null,null,null,"３　計画の適用範囲"]
[null,null,"　この計画は、本施設に勤務又は利用する全ての者に適用するものとする。",null,null,null,null,null,null,null,null,null,null,null,null,null,null,null,null,null,null,null,null,null,null,null,null,null,null,null,null,null,null,null,null,null,null,null,null,null,null,null,null,null,null,null,null,null,null,null,null,null,null,null,null,null,null,null,null,null,null,null,null,null,null,null,null,null,"　この計画は、本施設に勤務又は利用する全ての者に適用するものとする。"]
[]
[]
[null,null,null,null,null,null,null,null,null,null,null,"施設の状況",null,null,null,null,null,null,null,null,null,null,null,null,null,null,null,null,null,null,null,null,null,null,null,null,null,null,null,null,null,null,null,null,null,null,null,null,null,null,null,null,null,null,null,null,null,null,null,null,null,null,null,null,null,null,null,null,null,null,null,null,null,null,null,null,null,"施設の状況"]
[null,null,null,null,null,null,null,null,null,null,null,null,null,null,null,null,null,null,null,"平　日",null,null,null,null,null,null,null,null,null,null,null,null,null,null,null,null,null,"休　日",null,null,null,null,null,null,null,null,null,null,null,null,null,null,null,null,null,null,null,null,null,null,null,null,null,null,null,null,null,null,null,null,null,null,null,null,null,null,null,null,null,null,null,null,null,null,null,"平　日",null,null,null,null,null,null,null,null,null,null,null,null,null,null,null,null,null,"休　日"]
[null,null,null,null,null,null,null,null,null,null,null,null,null,null,null,null,null,null,null,"患者",null,null,null,null,null,null,null,null,"施設職員",null,null,null,null,null,null,null,null,"患者",null,null,null,null,null,null,null,null,"施設職員",null,null,null,null,null,null,null,null,null,null,null,null,null,null,null,null,null,null,null,null,null,null,null,null,null,null,null,null,null,null,null,null,null,null,null,null,null,null,"患者",null,null,null,null,null,null,null,null,"施設職員",null,null,null,null,null,null,null,null,"患者",null,null,null,null,null,null,null,null,"施設職員"]
[null,null,null,null,null,null,null,null,null,null,null,"昼　間",null,null,null,null,null,null,null,"約",null,null,{"$f":"IF(入力シート!O17=\"\",\"\",入力シート!O17)","v":""},null,null,"名",null,null,"約",null,null,{"$f":"IF(入力シート!S17=\"\",\"\",入力シート!S17)","v":""},null,null,"名",null,null,"約",null,null,{"$f":"IF(入力シート!O21=\"　\",\"　\",IF(入力シート!O21=\"平日と同じ\",W125,入力シート!O23))","v":""},null,null,"名",null,null,"約",null,null,{"$f":"IF(入力シート!O21=\"　\",\"　\",IF(入力シート!O21=\"平日と同じ\",AF125,入力シート!S23))","v":""},null,null,"名",null,null,null,null,null,null,null,null,null,null,null,null,null,null,null,null,null,null,null,null,null,null,null,null,"昼　間",null,null,null,null,null,null,null,"約",null,null,27,null,null,"名",null,null,"約",null,null,9,null,null,"名",null,null,"約",null,null,null,null,null,"名",null,null,"約",null,null,null,null,null,"名"]
[null,null,null,null,null,null,null,null,null,null,null,"夜　間",null,null,null,null,null,null,null,"約",null,null,{"$f":"IF(入力シート!O19=\"\",\"\",入力シート!O19)","v":""},null,null,"名",null,null,"約",null,null,{"$f":"IF(入力シート!S19=\"\",\"\",入力シート!S19)","v":""},null,null,"名",null,null,"約",null,null,{"$f":"IF(入力シート!O21=\"　\",\"　\",(IF(入力シート!O21=\"平日と同じ\",W126,入力シート!O25)))","v":""},null,null,"名",null,null,"約",null,null,{"$f":"IF(入力シート!O21=\"　\",\"　\",IF(入力シート!O21=\"平日と同じ\",AF126,入力シート!S25))","v":""},null,null,"名",null,null,null,null,null,null,null,null,null,null,null,null,null,null,null,null,null,null,null,null,null,null,null,null,"夜　間",null,null,null,null,null,null,null,"約",null,null,9,null,null,"名",null,null,"約",null,null,2,null,null,"名",null,null,"約",null,null,null,null,null,"名",null,null,"約",null,null,null,null,null,"名"]
[]
[null,null,null,null,null,null,null,null,null,null,null,"※患者数は最大の患者数を記載（おおよその患者数でもよい）",null,null,null,null,null,null,null,null,null,null,null,null,null,null,null,null,null,null,null,null,null,null,null,null,null,null,null,null,null,null,null,null,null,null,null,null,null,null,null,null,null,null,null,null,null,null,null,null,null,null,null,null,null,null,null,null,null,null,null,null,null,null,null,null,null,"※患者数は最大の患者数を記載（おおよその患者数でもよい）"]
[null,null,null,null,null,null,null,null,null,null,null,"※昼間は通院（所）部門と入院（所）部門の合計人数を記載",null,null,null,null,null,null,null,null,null,null,null,null,null,null,null,null,null,null,null,null,null,null,null,null,null,null,null,null,null,null,null,null,null,null,null,null,null,null,null,null,null,null,null,null,null,null,null,null,null,null,null,null,null,null,null,null,null,null,null,null,null,null,null,null,null,"※昼間は通院（所）部門と入院（所）部門の合計人数を記載"]
[null,null,null,null,null,null,null,null,null,null,null,"※夜間は入院（所）部門の人数を記載",null,null,null,null,null,null,null,null,null,null,null,null,null,null,null,null,null,null,null,null,null,null,null,null,null,null,null,null,null,null,null,null,null,null,null,null,null,null,null,null,null,null,null,null,null,null,null,null,null,null,null,null,null,null,null,null,null,null,null,null,null,null,null,null,null,"※夜間は入院（所）部門の人数を記載"]
[null,null,null,null,null,null,null,null,null,null,null,null,null,null,null,null,null,null,null,null,null,null,null,null,null,null,null,null,null,null,null,null,null,null,null,null,null,null,null,null,null,null,null,null,null,null,null,null,null,null,null,null,null,null,null,null,null,null,null,null,null,null,null,null,null,null,null,null,null,null,null,null,null,null,null,null,null,"※休日は訪問介護を実施、患者はいない"]
[]
[null,null,"●　計画の見直し",null,null,null,null,null,null,null,null,null,null,null,null,null,null,null,null,null,null,null,null,null,null,null,null,null,null,null,null,null,null,null,null,null,null,null,null,null,null,null,null,null,null,null,null,null,null,null,null,null,null,null,null,null,null,null,null,null,null,null,null,null,null,null,null,null,"●　計画の見直し"]
[null,null,"避難訓練の結果や社会情勢の変化に伴い、定期的に見直すものとする。",null,null,null,null,null,null,null,null,null,null,null,null,null,null,null,null,null,null,null,null,null,null,null,null,null,null,null,null,null,null,null,null,null,null,null,null,null,null,null,null,null,null,null,null,null,null,null,null,null,null,null,null,null,null,null,null,null,null,null,null,null,null,null,null,null,"避難訓練の結果や社会情勢の変化に伴い、定期的に見直すものとする。"]
[]
[null,null,"●　事前休業の判断について",null,null,null,null,null,null,null,null,null,null,null,null,null,null,null,null,null,null,null,null,null,null,null,null,null,null,null,null,null,null,null,null,null,null,null,null,null,null,null,null,null,null,null,null,null,null,null,null,null,null,null,null,null,null,null,null,null,null,null,null,null,null,null,null,null,"●　事前休業の判断について"]
[null,null,{"$f":"IF(入力シート!W27=FALSE,\"事前休業の基準は設定していない。\",\"　大型台風の襲来が予想される場合で、公共交通機関の計画的な運休が予定される場合、通院（所）部門を臨時休業とする。\")","v":"事前休業の基準は設定していない。"},null,null,null,null,null,null,null,null,null,null,null,null,null,null,null,null,null,null,null,null,null,null,null,null,null,null,null,null,null,null,null,null,null,null,null,null,null,null,null,null,null,null,null,null,null,null,null,null,null,null,null,null,null,null,null,null,null,null,null,null,null,null,null,null,null,"　大型台風の襲来が予想される場合で、公共交通機関の計画的な運休が予定される場合、通院（所）部門を臨時休業とする。"]
[null,null,{"$f":"IF(入力シート!W27=FALSE,\"\",\"　または\")","v":""},null,null,null,null,{"$f":"IF(入力シート!W27=FALSE,\"\",IF(入力シート!D30=\"\",\"\",入力シート!D30))","v":""},null,null,null,null,null,null,{"$f":"IF(入力シート!W27=FALSE,\"\",\"の時点で、全県下又は「\")","v":""},null,null,null,null,null,null,null,null,null,null,null,null,{"$f":"IF(入力シート!W27=FALSE,\"\",IF(入力シート!M30=\"\",\"\",入力シート!M30))","v":""},null,null,null,null,null,null,null,null,null,null,{"$f":"IF(入力シート!W27=FALSE,\"\",\"」に以下のいずれかが発令されている場合は、\")","v":""},null,null,null,null,null,null,null,null,null,null,null,null,null,null,null,null,null,null,null,null,null,null,null,null,null,null,null,null,null,"　または午前",null,null,null,null,null,null,null,null,null,"時の時点で、全県下又は「",null,null,null,null,null,null,null,null,null,null,null,null,null,null,null,null,null,null,null,null,null,null,null,null,null,"」に以下のいずれかが発令されている場合は、"]
[null,null,{"$f":"IF(入力シート!W27=FALSE,\"\",\"通院（所）部門を臨時休業とする。\")","v":""},null,null,null,null,null,null,null,null,null,null,null,null,null,null,null,null,null,null,null,null,null,null,null,null,null,null,null,null,null,null,null,null,null,null,null,null,null,null,null,null,null,null,null,null,null,null,null,null,null,null,null,null,null,null,null,null,null,null,null,null,null,null,null,null,null,"通院（所）部門を臨時休業とする。"]
[]
[null,null,null,{"$f":"IF(入力シート!W27=FALSE,\"\",IF(入力シート!F34=\"\",\"\",入力シート!F34))","v":""},null,null,null,null,null,null,null,null,null,null,null,null,null,null,null,null,null,null,null,null,null,null,null,null,null,null,null,null,null,null,null,null,null,null,null,null,null,null,null,null,null,null,null,null,null,null,null,null,null,null,null,null,null,null,null,null,null,null,null,null,null,null,null,null,null,"暴風警報又は特別警報"]
[null,null,null,{"$f":"IF(入力シート!W27=FALSE,\"\",IF(入力シート!F36=\"\",\"\",入力シート!F36))","v":""},null,null,null,null,null,null,null,null,null,null,null,null,null,null,null,null,null,null,null,null,null,null,null,null,null,null,null,null,null,null,null,null,null,null,null,null,null,null,null,null,null,null,null,null,null,null,null,null,null,null,null,null,null,null,null,null,null,null,null,null,null,null,null,null,null,"大雨警報又は特別警報"]
[null,null,null,{"$f":"IF(入力シート!W27=FALSE,\"\",IF(入力シート!F38=\"\",\"\",入力シート!F38))","v":""},null,null,null,null,null,null,null,null,null,null,null,null,null,null,null,null,null,null,null,null,null,null,null,null,null,null,null,null,null,null,null,null,null,null,null,null,null,null,null,null,null,null,null,null,null,null,null,null,null,null,null,null,null,null,null,null,null,null,null,null,null,null,null,null,null,"洪水警報"]
[null,null,null,{"$f":"IF(入力シート!W27=FALSE,\"\",IF(入力シート!F40=\"\",\"\",入力シート!F40))","v":""}]
[null,null,null,{"$f":"IF(入力シート!W27=FALSE,\"\",IF(入力シート!F42=\"\",\"\",入力シート!F42))","v":""}]
[null,null,null,null,null,null,null,null,null,null,null,null,null,null,null,null,null,null,null,null,null,null,null,null,null,null,null,null,null,null,null,null,null,null,null,null,null,null,null,null,null,null,null,null,null,null,null,null,null,null,null,null,null,null,null,null,null,null,null,null,null,null,null,null,null,null,null,null,null,"※開業時間と患者の通所にかかる時間も考慮して、休業の判断をする。"]
[]
[]
[null,null,"洪水",null,null,null,null,null,null,null,null,null,null,null,null,null,null,null,null,null,null,null,null,null,null,null,null,null,null,null,null,null,null,null,null,null,null,null,null,null,null,null,null,null,null,null,null,null,null,null,null,null,null,null,null,null,"様式２",null,null,null,null,null,null,null,null,null,null,null,"洪水",null,null,null,null,null,null,null,null,null,null,null,null,null,null,null,null,null,null,null,null,null,null,null,null,null,null,null,null,null,null,null,null,null,null,null,null,null,null,null,null,null,null,null,null,null,null,null,null,null,null,null,null,null,"記載例"]
[]
[null,null,"４　防災体制",null,null,null,null,null,null,null,null,null,null,null,null,null,null,null,null,null,null,null,null,null,null,null,null,null,null,null,null,null,null,null,null,null,null,null,null,null,null,null,null,null,null,null,null,null,null,null,null,null,null,null,null,null,null,null,null,null,null,null,null,null,null,null,null,null,"４　防災体制"]
[]
[null,null,{"$f":"IF(入力シート!M213=\"　\",\"　\",IF(入力シート!M213=\"有\",\"《自衛水防組織を設置する場合》\",\"《自衛水防組織を設置しない場合》\"))","v":"　"},null,null,null,null,null,null,null,null,null,null,null,null,null,null,null,null,null,null,null,null,null,null,null,null,null,null,null,null,null,null,null,null,null,null,null,null,null,null,null,null,null,null,null,null,null,null,null,null,null,null,null,null,null,null,null,null,null,null,null,null,null,null,null,null,null,"《自衛水防組織を設置する場合》\n　防災体制確立の判断時期に基づき、注意、警戒、非常の体制をとり、管理権限者が定めた統括管理者のもと、総括・情報班、避難誘導班が避難誘導等の活動を行う。\n《自衛水防組織を設置しない場合》\n　防災体制確立の判断時期に基づき、注意、警戒、非常の体制をとり、管理権限者のもと情報収集伝達要員、避難誘導要員が避難誘導等の活動を行う。"]
[null,null,{"$f":"IF(入力シート!M213=\"　\",\"　\",IF(入力シート!M213=\"有\",\"防災体制確立の判断時期に基づき、注意、警戒、非常の体制をとり、管理権限者が定めた統括管理者のもと、総括・情報班、避難誘導班が避難誘導等の活動を行う。\",\"防災体制確立の判断時期に基づき、注意、警戒、非常の体制をとり、管理権限者のもと情報収集伝達要員、避難誘導要員が避難誘導等の活動を行う。\"))","v":"　"}]
[]
[]
[null,null,"【防災体制確立の判断時期及び役割分担】",null,null,null,null,null,null,null,null,null,null,null,null,null,null,null,null,null,null,null,null,null,null,null,null,null,null,null,null,null,null,null,null,null,null,null,null,null,null,null,null,null,null,null,null,null,null,null,null,null,null,null,null,null,null,null,null,null,null,null,null,null,null,null,null,null,"【防災体制確立の判断時期及び役割分担】"]
[]
[]
[null,null,null,"以下のいずれかに該当する場合",null,null,null,null,null,null,null,null,null,null,null,null,null,null,null,null,null,null,null,null,null,null,null,null,null,null,null,null,null,null,null,null,null,null,null,null,null,null,null,null,null,null,null,null,null,null,null,null,null,null,null,null,null,null,null,null,null,null,null,null,null,null,null,null,null,"以下のいずれかに該当する場合",null,null,null,null,null,null,null,null,null,null,null,null,null,null,null,null,null,null,null,null,null,null,null,null,null,"洪水予報等の情報収集",null,null,null,null,null,null,null,null,null,null,null,null,null,null,null,"総括・情報班（情報収集伝達要員）"]
[null,null,null,{"$f":"IF(入力シート!B224=\"\",\"\",\"□\"&入力シート!B224)","v":"□洪水注意報の発表"},null,null,null,null,null,null,null,null,null,null,null,null,null,null,null,null,null,null,null,null,null,null,null,null,null,{"$f":"IF(入力シート!H224=\"\",\"\",\"□\"&入力シート!H224)","v":"□防災情報の収集"},null,null,null,null,null,null,null,null,null,null,null,null,null,null,null,{"$f":"IF(入力シート!P224=\"\",\"\",\"□\"&入力シート!P224)","v":"□情報収集伝達要員"},null,null,null,null,null,null,null,null,null,null,null,null,null,null,null,null,null,null,null,null,null,null,null,"　洪水注意報発表"]
[null,null,null,{"$f":"IF(入力シート!B225=\"\",\"\",\"□\"&入力シート!B225)","v":"□氾濫注意情報の発表"},null,null,null,null,null,null,null,null,null,null,null,null,null,null,null,null,null,null,null,null,null,null,null,null,null,{"$f":"IF(入力シート!H225=\"\",\"\",\"□\"&入力シート!H225)","v":"□浸水防止対策の準備"},null,null,null,null,null,null,null,null,null,null,null,null,null,null,null,{"$f":"IF(入力シート!P225=\"\",\"\",\"□\"&入力シート!P225)","v":"□避難誘導要員"},null,null,null,null,null,null,null,null,null,null,null,null,null,null,null,null,null,null,null,null,null,null,null,"　○○川（○○地点）　"]
[null,null,null,{"$f":"IF(入力シート!B226=\"\",\"\",\"□\"&入力シート!B226)","v":"□氾濫注意水位超過"},null,null,null,null,null,null,null,null,null,null,null,null,null,null,null,null,null,null,null,null,null,null,null,null,null,{"$f":"IF(入力シート!H226=\"\",\"\",\"□\"&入力シート!H226)","v":"□幹部職員の参集連絡"},null,null,null,null,null,null,null,null,null,null,null,null,null,null,null,{"$f":"IF(入力シート!P226=\"\",\"\",\"□\"&入力シート!P226)","v":"□情報収集伝達要員"},null,null,null,null,null,null,null,null,null,null,null,null,null,null,null,null,null,null,null,null,null,null,null,"　　氾濫注意情報発表"]
[null,null,null,{"$f":"IF(入力シート!B227=\"\",\"\",\"□\"&入力シート!B227)","v":""},null,null,null,null,null,null,null,null,null,null,null,null,null,null,null,null,null,null,null,null,null,null,null,null,null,{"$f":"IF(入力シート!H227=\"\",\"\",\"□\"&入力シート!H227)","v":"□参集職員への事前連絡"},null,null,null,null,null,null,null,null,null,null,null,null,null,null,null,{"$f":"IF(入力シート!P227=\"\",\"\",\"□\"&入力シート!P227)","v":"□情報収集伝達要員"}]
[null,null,null,{"$f":"IF(入力シート!B228=\"\",\"\",\"□\"&入力シート!B228)","v":""},null,null,null,null,null,null,null,null,null,null,null,null,null,null,null,null,null,null,null,null,null,null,null,null,null,{"$f":"IF(入力シート!H228=\"\",\"\",\"□\"&入力シート!H228)","v":"□持出し品のチェック"},null,null,null,null,null,null,null,null,null,null,null,null,null,null,null,{"$f":"IF(入力シート!P228=\"\",\"\",\"□\"&入力シート!P228)","v":"□避難誘導要員"}]
[null,null,null,{"$f":"IF(入力シート!B229=\"\",\"\",\"□\"&入力シート!B229)","v":""},null,null,null,null,null,null,null,null,null,null,null,null,null,null,null,null,null,null,null,null,null,null,null,null,null,{"$f":"IF(入力シート!H229=\"\",\"\",\"□\"&入力シート!H229)","v":"□避難路の確認"},null,null,null,null,null,null,null,null,null,null,null,null,null,null,null,{"$f":"IF(入力シート!P229=\"\",\"\",\"□\"&入力シート!P229)","v":"□避難誘導要員"}]
[null,null,null,{"$f":"IF(入力シート!B230=\"\",\"\",\"□\"&入力シート!B230)","v":""},null,null,null,null,null,null,null,null,null,null,null,null,null,null,null,null,null,null,null,null,null,null,null,null,null,{"$f":"IF(入力シート!H230=\"\",\"\",\"□\"&入力シート!H230)","v":"□患者への注意喚起"},null,null,null,null,null,null,null,null,null,null,null,null,null,null,null,{"$f":"IF(入力シート!P230=\"\",\"\",\"□\"&入力シート!P230)","v":"□避難誘導要員"}]
[null,null,null,{"$f":"IF(入力シート!B231=\"\",\"\",\"□\"&入力シート!B231)","v":""},null,null,null,null,null,null,null,null,null,null,null,null,null,null,null,null,null,null,null,null,null,null,null,null,null,{"$f":"IF(入力シート!H231=\"\",\"\",\"□\"&入力シート!H231)","v":""},null,null,null,null,null,null,null,null,null,null,null,null,null,null,null,{"$f":"IF(入力シート!P231=\"\",\"\",\"□\"&入力シート!P231)","v":""}]
[null,null,null,{"$f":"IF('出力シート（タイムライン）'!A54=\"\",\"\",\"□ \"&'出力シート（タイムライン）'!A54)&IF('出力シート（タイムライン）'!B54=\"\",\"\",\"(\"&'出力シート（タイムライン）'!B54&\")\")","v":""},null,null,null,null,null,null,null,null,null,null,null,null,null,null,null,null,null,null,null,null,null,null,null,null,null,{"$f":"IF(入力シート!H232=\"\",\"\",\"□\"&入力シート!H232)","v":""},null,null,null,null,null,null,null,null,null,null,null,null,null,null,null,{"$f":"IF(入力シート!P232=\"\",\"\",\"□\"&入力シート!P232)","v":""},null,null,null,null,null,null,null,null,null,null,null,null,null,null,null,null,null,null,null,null,null,null,null,"以下のいずれかに該当する場合",null,null,null,null,null,null,null,null,null,null,null,null,null,null,null,null,null,null,null,null,null,null,null,null,null,"洪水予報等の情報収集",null,null,null,null,null,null,null,null,null,null,null,null,null,null,null,"総括・情報班（情報収集伝達要員）"]
[null,null,null,{"$f":"IF('出力シート（タイムライン）'!A55=\"\",\"\",\"□ \"&'出力シート（タイムライン）'!A55)&IF('出力シート（タイムライン）'!B55=\"\",\"\",\"(\"&'出力シート（タイムライン）'!B55&\")\")","v":""},null,null,null,null,null,null,null,null,null,null,null,null,null,null,null,null,null,null,null,null,null,null,null,null,null,{"$f":"IF(入力シート!H233=\"\",\"\",\"□\"&入力シート!H233)","v":""},null,null,null,null,null,null,null,null,null,null,null,null,null,null,null,{"$f":"IF(入力シート!P233=\"\",\"\",\"□\"&入力シート!P233)","v":""},null,null,null,null,null,null,null,null,null,null,null,null,null,null,null,null,null,null,null,null,null,null,null,"　高齢者等避難の発令",null,null,null,null,null,null,null,null,null,null,null,null,null,null,null,null,null,null,null,null,null,null,null,null,null,"使用する資器材の準備",null,null,null,null,null,null,null,null,null,null,null,null,null,null,null,"避難誘導班（避難誘導要員）"]
[null,null,null,{"$f":"IF('出力シート（タイムライン）'!A56=\"\",\"\",\"□ \"&'出力シート（タイムライン）'!A56)&IF('出力シート（タイムライン）'!B56=\"\",\"\",\"(\"&'出力シート（タイムライン）'!B56&\")\")","v":""},null,null,null,null,null,null,null,null,null,null,null,null,null,null,null,null,null,null,null,null,null,null,null,null,null,{"$f":"IF(入力シート!H234=\"\",\"\",\"□\"&入力シート!H234)","v":""},null,null,null,null,null,null,null,null,null,null,null,null,null,null,null,{"$f":"IF(入力シート!P234=\"\",\"\",\"□\"&入力シート!P234)","v":""},null,null,null,null,null,null,null,null,null,null,null,null,null,null,null,null,null,null,null,null,null,null,null,"　洪水警報発表",null,null,null,null,null,null,null,null,null,null,null,null,null,null,null,null,null,null,null,null,null,null,null,null,null,"保護者・家族等への事前連絡",null,null,null,null,null,null,null,null,null,null,null,null,null,null,null,"総括・情報班（情報収集伝達要員）"]
[null,null,null,{"$f":"IF('出力シート（タイムライン）'!A57=\"\",\"\",\"□ \"&'出力シート（タイムライン）'!A57)&IF('出力シート（タイムライン）'!B57=\"\",\"\",\"(\"&'出力シート（タイムライン）'!B57&\")\")","v":""},null,null,null,null,null,null,null,null,null,null,null,null,null,null,null,null,null,null,null,null,null,null,null,null,null,{"$f":"IF(入力シート!H235=\"\",\"\",\"□\"&入力シート!H235)","v":""},null,null,null,null,null,null,null,null,null,null,null,null,null,null,null,{"$f":"IF(入力シート!P235=\"\",\"\",\"□\"&入力シート!P235)","v":""},null,null,null,null,null,null,null,null,null,null,null,null,null,null,null,null,null,null,null,null,null,null,null,"　○○川（○○地点）氾濫警戒",null,null,null,null,null,null,null,null,null,null,null,null,null,null,null,null,null,null,null,null,null,null,null,null,null,"周辺住民への事前協力依頼",null,null,null,null,null,null,null,null,null,null,null,null,null,null,null,"総括・情報班（情報収集伝達要員）"]
[null,null,null,{"$f":"IF('出力シート（タイムライン）'!A58=\"\",\"\",\"□ \"&'出力シート（タイムライン）'!A58)&IF('出力シート（タイムライン）'!B58=\"\",\"\",\"(\"&'出力シート（タイムライン）'!B58&\")\")","v":""},null,null,null,null,null,null,null,null,null,null,null,null,null,null,null,null,null,null,null,null,null,null,null,null,null,null,null,null,null,null,null,null,null,null,null,null,null,null,null,null,null,null,null,null,null,null,null,null,null,null,null,null,null,null,null,null,null,null,null,null,null,null,null,null,null,"　　情報発表　",null,null,null,null,null,null,null,null,null,null,null,null,null,null,null,null,null,null,null,null,null,null,null,null,null,"要配慮者の避難誘導",null,null,null,null,null,null,null,null,null,null,null,null,null,null,null,"避難誘導班（避難誘導要員）"]
[]
[]
[null,null,null,"以下のいずれかに該当する場合"]
[null,null,null,{"$f":"IF(入力シート!B237=\"\",\"\",\"□\"&入力シート!B237)","v":"□大雨洪水警報の発表"},null,null,null,null,null,null,null,null,null,null,null,null,null,null,null,null,null,null,null,null,null,null,null,null,null,{"$f":"IF(入力シート!H237=\"\",\"\",\"□\"&入力シート!H237)","v":"□職員の参集"},null,null,null,null,null,null,null,null,null,null,null,null,null,null,null,{"$f":"IF(入力シート!P237=\"\",\"\",\"□\"&入力シート!P237)","v":"□情報収集伝達要員"}]
[null,null,null,{"$f":"IF(入力シート!B238=\"\",\"\",\"□\"&入力シート!B238)","v":"□洪水予報氾濫警戒情報の発表"},null,null,null,null,null,null,null,null,null,null,null,null,null,null,null,null,null,null,null,null,null,null,null,null,null,{"$f":"IF(入力シート!H238=\"\",\"\",\"□\"&入力シート!H238)","v":"□土嚢の設置"},null,null,null,null,null,null,null,null,null,null,null,null,null,null,null,{"$f":"IF(入力シート!P238=\"\",\"\",\"□\"&入力シート!P238)","v":"□避難誘導要員"},null,null,null,null,null,null,null,null,null,null,null,null,null,null,null,null,null,null,null,null,null,null,null,"以下のいずれかに該当する場合\n",null,null,null,null,null,null,null,null,null,null,null,null,null,null,null,null,null,null,null,null,null,null,null,null,null,"施設内全体の避難誘導",null,null,null,null,null,null,null,null,null,null,null,null,null,null,null,"避難誘導班（避難誘導要員）"]
[null,null,null,{"$f":"IF(入力シート!B239=\"\",\"\",\"□\"&入力シート!B239)","v":"□避難判断水位超過"},null,null,null,null,null,null,null,null,null,null,null,null,null,null,null,null,null,null,null,null,null,null,null,null,null,{"$f":"IF(入力シート!H239=\"\",\"\",\"□\"&入力シート!H239)","v":"□止水板の設置"},null,null,null,null,null,null,null,null,null,null,null,null,null,null,null,{"$f":"IF(入力シート!P239=\"\",\"\",\"□\"&入力シート!P239)","v":"□避難誘導要員"},null,null,null,null,null,null,null,null,null,null,null,null,null,null,null,null,null,null,null,null,null,null,null,"　避難指示の発令"]
[null,null,null,{"$f":"IF(入力シート!B240=\"\",\"\",\"□\"&入力シート!B240)","v":"□高齢者等避難の発令"},null,null,null,null,null,null,null,null,null,null,null,null,null,null,null,null,null,null,null,null,null,null,null,null,null,{"$f":"IF(入力シート!H240=\"\",\"\",\"□\"&入力シート!H240)","v":"□重要備品、設備の退避"},null,null,null,null,null,null,null,null,null,null,null,null,null,null,null,{"$f":"IF(入力シート!P240=\"\",\"\",\"□\"&入力シート!P240)","v":"□避難誘導要員"},null,null,null,null,null,null,null,null,null,null,null,null,null,null,null,null,null,null,null,null,null,null,null,"　○○川（○○地点）氾濫危険"]
[null,null,null,{"$f":"IF(入力シート!B241=\"\",\"\",\"□\"&入力シート!B241)","v":""},null,null,null,null,null,null,null,null,null,null,null,null,null,null,null,null,null,null,null,null,null,null,null,null,null,{"$f":"IF(入力シート!H241=\"\",\"\",\"□\"&入力シート!H241)","v":"□患者家族への連絡"},null,null,null,null,null,null,null,null,null,null,null,null,null,null,null,{"$f":"IF(入力シート!P241=\"\",\"\",\"□\"&入力シート!P241)","v":"□情報収集伝達要員"},null,null,null,null,null,null,null,null,null,null,null,null,null,null,null,null,null,null,null,null,null,null,null,"　　情報発表"]
[null,null,null,{"$f":"IF(入力シート!B242=\"\",\"\",\"□\"&入力シート!B242)","v":""},null,null,null,null,null,null,null,null,null,null,null,null,null,null,null,null,null,null,null,null,null,null,null,null,null,{"$f":"IF(入力シート!H242=\"\",\"\",\"□\"&入力シート!H242)","v":"□患者家族への引渡し"},null,null,null,null,null,null,null,null,null,null,null,null,null,null,null,{"$f":"IF(入力シート!P242=\"\",\"\",\"□\"&入力シート!P242)","v":"□情報収集伝達要員"}]
[null,null,null,{"$f":"IF(入力シート!B243=\"\",\"\",\"□\"&入力シート!B243)","v":""},null,null,null,null,null,null,null,null,null,null,null,null,null,null,null,null,null,null,null,null,null,null,null,null,null,{"$f":"IF(入力シート!H243=\"\",\"\",\"□\"&入力シート!H243)","v":"□持出し品の準備"},null,null,null,null,null,null,null,null,null,null,null,null,null,null,null,{"$f":"IF(入力シート!P243=\"\",\"\",\"□\"&入力シート!P243)","v":"□避難誘導要員"}]
[null,null,null,{"$f":"IF(入力シート!B244=\"\",\"\",\"□\"&入力シート!B244)","v":""},null,null,null,null,null,null,null,null,null,null,null,null,null,null,null,null,null,null,null,null,null,null,null,null,null,{"$f":"IF(入力シート!H244=\"\",\"\",\"□\"&入力シート!H244)","v":"□利用休止の判断"},null,null,null,null,null,null,null,null,null,null,null,null,null,null,null,{"$f":"IF(入力シート!P244=\"\",\"\",\"□\"&入力シート!P244)","v":"□管理権限者"}]
[null,null,null,{"$f":"IF(入力シート!B245=\"\",\"\",\"□\"&入力シート!B245)","v":""},null,null,null,null,null,null,null,null,null,null,null,null,null,null,null,null,null,null,null,null,null,null,null,null,null,{"$f":"IF(入力シート!H245=\"\",\"\",\"□\"&入力シート!H245)","v":"□避難経路の確認"},null,null,null,null,null,null,null,null,null,null,null,null,null,null,null,{"$f":"IF(入力シート!P245=\"\",\"\",\"□\"&入力シート!P245)","v":"□避難誘導要員"}]
[null,null,null,{"$f":"IF(入力シート!B246=\"\",\"\",\"□\"&入力シート!B246)","v":""},null,null,null,null,null,null,null,null,null,null,null,null,null,null,null,null,null,null,null,null,null,null,null,null,null,{"$f":"IF(入力シート!H246=\"\",\"\",\"□\"&入力シート!H246)","v":"□避難開始の判断"},null,null,null,null,null,null,null,null,null,null,null,null,null,null,null,{"$f":"IF(入力シート!P246=\"\",\"\",\"□\"&入力シート!P246)","v":"□管理権限者"}]
[null,null,null,{"$f":"IF(入力シート!B247=\"\",\"\",\"□\"&入力シート!B247)","v":""},null,null,null,null,null,null,null,null,null,null,null,null,null,null,null,null,null,null,null,null,null,null,null,null,null,{"$f":"IF(入力シート!H247=\"\",\"\",\"□\"&入力シート!H247)","v":"□避難所への移動開始"},null,null,null,null,null,null,null,null,null,null,null,null,null,null,null,{"$f":"IF(入力シート!P247=\"\",\"\",\"□\"&入力シート!P247)","v":"□避難誘導要員"}]
[]
[null,null,null,"以下のいずれかに該当する場合"]
[null,null,null,{"$f":"IF(入力シート!B249=\"\",\"\",\"□\"&入力シート!B249)","v":"□土砂災害警戒情報の発表"},null,null,null,null,null,null,null,null,null,null,null,null,null,null,null,null,null,null,null,null,null,null,null,null,null,{"$f":"IF(入力シート!H249=\"\",\"\",\"□\"&入力シート!H249)","v":"□屋内上層階へ退避開始"},null,null,null,null,null,null,null,null,null,null,null,null,null,null,null,{"$f":"IF(入力シート!P249=\"\",\"\",\"□\"&入力シート!P249)","v":"□避難誘導要員"}]
[null,null,null,{"$f":"IF(入力シート!B250=\"\",\"\",\"□\"&入力シート!B250)","v":"□洪水予報氾濫危険情報の発表"},null,null,null,null,null,null,null,null,null,null,null,null,null,null,null,null,null,null,null,null,null,null,null,null,null,{"$f":"IF(入力シート!H250=\"\",\"\",\"□\"&入力シート!H250)","v":"□全員避難のチェック、施錠"},null,null,null,null,null,null,null,null,null,null,null,null,null,null,null,{"$f":"IF(入力シート!P250=\"\",\"\",\"□\"&入力シート!P250)","v":"□避難誘導要員"}]
[null,null,null,{"$f":"IF(入力シート!B251=\"\",\"\",\"□\"&入力シート!B251)","v":"□氾濫危険水位超過"},null,null,null,null,null,null,null,null,null,null,null,null,null,null,null,null,null,null,null,null,null,null,null,null,null,{"$f":"IF(入力シート!H251=\"\",\"\",\"□\"&入力シート!H251)","v":"□患者家族への避難先連絡"},null,null,null,null,null,null,null,null,null,null,null,null,null,null,null,{"$f":"IF(入力シート!P251=\"\",\"\",\"□\"&入力シート!P251)","v":"□情報収集伝達要員"}]
[null,null,null,{"$f":"IF(入力シート!B252=\"\",\"\",\"□\"&入力シート!B252)","v":""},null,null,null,null,null,null,null,null,null,null,null,null,null,null,null,null,null,null,null,null,null,null,null,null,null,{"$f":"IF(入力シート!H252=\"\",\"\",\"□\"&入力シート!H252)","v":"□急病人の緊急搬送要請"},null,null,null,null,null,null,null,null,null,null,null,null,null,null,null,{"$f":"IF(入力シート!P252=\"\",\"\",\"□\"&入力シート!P252)","v":"□情報収集伝達要員"}]
[null,null,null,{"$f":"IF(入力シート!B253=\"\",\"\",\"□\"&入力シート!B253)","v":""},null,null,null,null,null,null,null,null,null,null,null,null,null,null,null,null,null,null,null,null,null,null,null,null,null,{"$f":"IF(入力シート!H253=\"\",\"\",\"□\"&入力シート!H253)","v":""},null,null,null,null,null,null,null,null,null,null,null,null,null,null,null,{"$f":"IF(入力シート!P253=\"\",\"\",\"□\"&入力シート!P253)","v":""}]
[null,null,null,{"$f":"IF(入力シート!B254=\"\",\"\",\"□\"&入力シート!B254)","v":""},null,null,null,null,null,null,null,null,null,null,null,null,null,null,null,null,null,null,null,null,null,null,null,null,null,{"$f":"IF(入力シート!H254=\"\",\"\",\"□\"&入力シート!H254)","v":""},null,null,null,null,null,null,null,null,null,null,null,null,null,null,null,{"$f":"IF(入力シート!P254=\"\",\"\",\"□\"&入力シート!P254)","v":""}]
[null,null,null,{"$f":"IF(入力シート!B255=\"\",\"\",\"□\"&入力シート!B255)","v":""},null,null,null,null,null,null,null,null,null,null,null,null,null,null,null,null,null,null,null,null,null,null,null,null,null,{"$f":"IF(入力シート!H255=\"\",\"\",\"□\"&入力シート!H255)","v":""},null,null,null,null,null,null,null,null,null,null,null,null,null,null,null,{"$f":"IF(入力シート!P255=\"\",\"\",\"□\"&入力シート!P255)","v":""}]
[null,null,null,{"$f":"IF(入力シート!B256=\"\",\"\",\"□\"&入力シート!B256)","v":""},null,null,null,null,null,null,null,null,null,null,null,null,null,null,null,null,null,null,null,null,null,null,null,null,null,{"$f":"IF(入力シート!H256=\"\",\"\",\"□\"&入力シート!H256)","v":""},null,null,null,null,null,null,null,null,null,null,null,null,null,null,null,{"$f":"IF(入力シート!P256=\"\",\"\",\"□\"&入力シート!P256)","v":""}]
[null,null,null,null,null,null,null,null,null,null,null,null,null,null,null,null,null,null,null,null,null,null,null,null,null,null,null,null,null,null,null,null,null,null,null,null,null,null,null,null,null,null,null,null,null,null,null,null,null,null,null,null,null,null,null,null,null,null,null,null,null,null,null,null,null,null,null,null,null,"レベル２　注意体制",null,null,null,null,null,null,null,null,null,null,null,null,null,null,null,null,null,null,null,null,null,null,null,null,"※判断時期は、気象情報、洪水警報及び避難情報等をもとに設定する。避難情報等は必ずしも発令されない場合があるので、雨の降り方等により自主的な判断に基づき体制を確立することも必要である。"]
[null,null,null,null,null,null,null,null,null,null,null,null,null,null,null,null,null,null,null,null,null,null,null,null,null,null,null,null,null,null,null,null,null,null,null,null,null,null,null,null,null,null,null,null,null,null,null,null,null,null,null,null,null,null,null,null,null,null,null,null,null,null,null,null,null,null,null,null,null,"・災害モードへ気持ちを切り替える。\n・気象情報等の収集を行う。"]
[null,null,null,"レベル２　注意体制",null,null,null,null,null,null,null,null,null,null,null,null,null,null,null,null,null,null,null,null,null,null,null,"※判断時期は、気象情報、洪水警報及び避難情報等をもとに設定する。避難情報等は必ずしも発令されない場合があるので、雨の降り方等により自主的な判断に基づき体制を確立することも必要である。"]
[null,null,null,"・災害モードへ気持ちを切り替える。\n・気象情報等の収集を行う。",null,null,null,null,null,null,null,null,null,null,null,null,null,null,null,null,null,null,null,null,null,null,null,null,null,null,null,null,null,null,null,null,null,null,null,null,null,null,null,null,null,null,null,null,null,null,null,null,null,null,null,null,null,null,null,null,null,null,null,null,null,null,null,null,null,null,null,null,null,null,null,null,null,null,"↓"]
[null,null,null,null,null,null,null,null,null,null,null,null,null,null,null,null,null,null,null,null,null,null,null,null,null,null,null,null,null,null,null,null,null,null,null,null,null,null,null,null,null,null,null,null,null,null,null,null,null,null,null,null,null,null,null,null,null,null,null,null,null,null,null,null,null,null,null,null,null,"レベル３　警戒体制"]
[null,null,null,null,null,null,null,null,null,null,null,null,"↓",null,null,null,null,null,null,null,null,null,null,null,null,null,null,null,null,null,null,null,null,null,null,null,null,null,null,null,null,null,null,null,null,null,null,null,null,null,null,null,null,null,null,null,null,null,null,null,null,null,null,null,null,null,null,null,null,"・避難場所へ避難する準備を行う。\n・要配慮者の避難誘導を開始する。"]
[null,null,null,"レベル３　警戒体制",null,null,null,null,null,null,null,null,null,null,null,null,null,null,null,null,null,null,null,null,null,null,null,null,null,null,null,null,null,null,null,null,null,null,null,null,null,null,null,null,null,null,null,null,null,null,null,null,null,null,null,null,null,null,null,null,null,null,null,null,null,null,null,null,null,null,null,null,null,null,null,null,null,null,null,null,null,null,null,null,null,null,null,null,null,null,null,null,null,null,"※浸水想定区域と土砂災害警戒区域が重複する地域では、避難情報等の発表・発令が早い情報で避難体制を確立し、避難のタイミングを判断する必要がある。"]
[null,null,null,"・避難場所へ避難する準備を行う。\n・要配慮者の避難誘導を開始する。",null,null,null,null,null,null,null,null,null,null,null,null,null,null,null,null,null,null,null,null,null,null,null,null,null,null,null,null,null,null,null,null,null,null,null,null,null,null,null,null,null,null,null,null,null,null,null,null,null,null,null,null,null,null,null,null,null,null,null,null,null,null,null,null,null,null,null,null,null,null,null,null,null,null,"↓"]
[null,null,null,null,null,null,null,null,null,null,null,null,null,null,null,null,null,null,null,null,null,null,null,null,null,null,null,"※浸水想定区域と土砂災害警戒区域が重複する地域では、避難情報等の発表・発令が早い情報で避難体制を確立し、避難のタイミングを判断する必要がある。",null,null,null,null,null,null,null,null,null,null,null,null,null,null,null,null,null,null,null,null,null,null,null,null,null,null,null,null,null,null,null,null,null,null,null,null,null,null,null,null,null,"レベル４　非常体制"]
[null,null,null,null,null,null,null,null,null,null,null,null,"↓",null,null,null,null,null,null,null,null,null,null,null,null,null,null,null,null,null,null,null,null,null,null,null,null,null,null,null,null,null,null,null,null,null,null,null,null,null,null,null,null,null,null,null,null,null,null,null,null,null,null,null,null,null,null,null,null,"・施設内全体の避難誘導を開始する。"]
[null,null,null,"レベル４　非常体制"]
[null,null,null,"・施設内全体の避難誘導を開始する。"]
[null,null,null,null,null,null,null,null,null,null,null,null,null,null,null,null,null,null,null,null,null,null,null,null,null,null,null,null,null,null,null,null,null,null,null,null,null,null,null,null,null,null,null,null,null,null,null,null,null,null,null,null,null,null,null,null,null,null,null,null,null,null,null,null,null,null,null,null,null,"大型台風"]
[null,null,null,null,null,null,null,null,null,null,null,null,null,null,null,null,null,null,null,null,null,null,null,null,null,null,null,null,null,null,null,null,null,null,null,null,null,null,null,null,null,null,null,null,null,null,null,null,null,null,null,null,null,null,null,null,null,null,null,null,null,null,null,null,null,null,null,null,null,"大型台風の襲来が予想される場合で、公共交通機関の計画運休が予定されている場合、避難に関する準備をし、早めに避難を開始する。また、協定を締結した地域の企業等と連携して早めに避難を開始する。"]
[null,null,null,"大型台風"]
[null,null,null,{"$f":"入力シート!B267","v":"大型台風の襲来が予想される場合で、公共交通機関の計画運休が予定されている場合、避難に関する準備をし、早めに避難を開始する。また、協定を締結した地域の企業等と連携して早めに避難を開始する。"}]
[]
[]
[null,null,null,null,null,null,null,null,null,null,null,null,null,null,null,null,null,null,null,null,null,null,null,null,null,null,null,null,null,null,null,null,null,null,null,null,null,null,null,null,null,null,null,null,null,null,null,null,null,null,null,null,null,null,null,null,null,null,null,null,null,null,null,null,null,null,null,null,null,"○○企業との協定　福祉車両提供及び避難支援（詳細は協定書参照）"]
[]
[null,null,"内水",null,null,null,null,null,null,null,null,null,null,null,null,null,null,null,null,null,null,null,null,null,null,null,null,null,null,null,null,null,null,null,null,null,null,null,null,null,null,null,null,null,null,null,null,null,null,null,null,null,null,null,null,null,"様式２",null,null,null,null,null,null,null,null,null,null,null,"内水",null,null,null,null,null,null,null,null,null,null,null,null,null,null,null,null,null,null,null,null,null,null,null,null,null,null,null,null,null,null,null,null,null,null,null,null,null,null,null,null,null,null,null,null,null,null,null,null,null,null,null,null,null,"記載例"]
[]
[null,null,"４　防災体制",null,null,null,null,null,null,null,null,null,null,null,null,null,null,null,null,null,null,null,null,null,null,null,null,null,null,null,null,null,null,null,null,null,null,null,null,null,null,null,null,null,null,null,null,null,null,null,null,null,null,null,null,null,null,null,null,null,null,null,null,null,null,null,null,null,"４　防災体制"]
[]
[null,null,"　防災体制確立の判断時期に基づき、注意、警戒、非常の体制をとり、管理権限者が定めた統括管理者のもと、総括・情報班、避難誘導班が避難誘導等の活動を行う。",null,null,null,null,null,null,null,null,null,null,null,null,null,null,null,null,null,null,null,null,null,null,null,null,null,null,null,null,null,null,null,null,null,null,null,null,null,null,null,null,null,null,null,null,null,null,null,null,null,null,null,null,null,null,null,null,null,null,null,null,null,null,null,null,null,"《自衛水防組織を設置する場合》\n　防災体制確立の判断時期に基づき、注意、警戒、非常の体制をとり、管理権限者が定めた統括管理者のもと、総括・情報班、避難誘導班が避難誘導等の活動を行う。\n《自衛水防組織を設置しない場合》\n　防災体制確立の判断時期に基づき、注意、警戒、非常の体制をとり、管理権限者のもと情報収集伝達要員、避難誘導要員が避難誘導等の活動を行う。"]
[]
[]
[]
[]
[]
[null,null,"【防災体制確立の判断時期及び役割分担】",null,null,null,null,null,null,null,null,null,null,null,null,null,null,null,null,null,null,null,null,null,null,null,null,null,null,null,null,null,null,null,null,null,null,null,null,null,null,null,null,null,null,null,null,null,null,null,null,null,null,null,null,null,null,null,null,null,null,null,null,null,null,null,null,null,"【防災体制確立の判断時期及び役割分担】"]
[]
[]
[null,null,null,null,null,null,null,null,null,null,null,null,null,null,null,null,null,null,null,null,null,null,null,null,null,null,null,null,null,null,null,null,null,null,null,null,null,null,null,null,null,null,null,null,null,null,null,null,null,null,null,null,null,null,null,null,null,null,null,null,null,null,null,null,null,null,null,null,null,"以下のいずれかに該当する場合\n",null,null,null,null,null,null,null,null,null,null,null,null,null,null,null,null,null,null,null,null,null,null,null,null,null,"気象情報等の情報収集",null,null,null,null,null,null,null,null,null,null,null,null,null,null,null,"総括・情報班（情報収集伝達要員）"]
[null,null,null,null,null,null,null,null,null,null,null,null,null,null,null,null,null,null,null,null,null,null,null,null,null,null,null,null,null,null,null,null,null,null,null,null,null,null,null,null,null,null,null,null,null,null,null,null,null,null,null,null,null,null,null,null,null,null,null,null,null,null,null,null,null,null,null,null,null,"　大雨又は台風に関する気象"]
[null,null,null,null,null,null,null,null,null,null,null,null,null,null,null,null,null,null,null,null,null,null,null,null,null,null,null,null,null,null,null,null,null,null,null,null,null,null,null,null,null,null,null,null,null,null,null,null,null,null,null,null,null,null,null,null,null,null,null,null,null,null,null,null,null,null,null,null,null,"　　情報発表"]
[null,null,null,null,null,null,null,null,null,null,null,null,null,null,null,null,null,null,null,null,null,null,null,null,null,null,null,null,null,null,null,null,null,null,null,null,null,null,null,null,null,null,null,null,null,null,null,null,null,null,null,null,null,null,null,null,null,null,null,null,null,null,null,null,null,null,null,null,null,"　大雨注意報発表"]
[null,null,null,null,null,null,null,null,null,null,null,null,null,null,null,null,null,null,null,null,null,null,null,null,null,null,null,null,null,null,null,null,null,null,null,null,null,null,null,null,null,null,null,null,null,null,null,null,null,null,null,null,null,null,null,null,null,null,null,null,null,null,null,null,null,null,null,null,null,"　○分間雨量が●mmを超過"]
[null,null,null,null,null,null,null,null,null,null,null,null,null,null,null,null,null,null,null,null,null,null,null,null,null,null,null,null,null,null,null,null,null,null,null,null,null,null,null,null,null,null,null,null,null,null,null,null,null,null,null,null,null,null,null,null,null,null,null,null,null,null,null,null,null,null,null,null,null,"　○○ポンプ場が排水開始"]
[]
[]
[]
[null,null,null,null,null,null,null,null,null,null,null,null,null,null,null,null,null,null,null,null,null,null,null,null,null,null,null,null,null,null,null,null,null,null,null,null,null,null,null,null,null,null,null,null,null,null,null,null,null,null,null,null,null,null,null,null,null,null,null,null,null,null,null,null,null,null,null,null,null,"以下のいずれかに該当する場合\n",null,null,null,null,null,null,null,null,null,null,null,null,null,null,null,null,null,null,null,null,null,null,null,null,null,"気象情報等の情報収集",null,null,null,null,null,null,null,null,null,null,null,null,null,null,null,"総括・情報班（情報収集伝達要員）"]
[null,null,null,null,null,null,null,null,null,null,null,null,null,null,null,null,null,null,null,null,null,null,null,null,null,null,null,null,null,null,null,null,null,null,null,null,null,null,null,null,null,null,null,null,null,null,null,null,null,null,null,null,null,null,null,null,null,null,null,null,null,null,null,null,null,null,null,null,null,"　大雨警報発表",null,null,null,null,null,null,null,null,null,null,null,null,null,null,null,null,null,null,null,null,null,null,null,null,null,"使用する資器材の準備",null,null,null,null,null,null,null,null,null,null,null,null,null,null,null,"避難誘導班（避難誘導要員）"]
[null,null,null,null,null,null,null,null,null,null,null,null,null,null,null,null,null,null,null,null,null,null,null,null,null,null,null,null,null,null,null,null,null,null,null,null,null,null,null,null,null,null,null,null,null,null,null,null,null,null,null,null,null,null,null,null,null,null,null,null,null,null,null,null,null,null,null,null,null,"　○分間雨量が▲mmを超過",null,null,null,null,null,null,null,null,null,null,null,null,null,null,null,null,null,null,null,null,null,null,null,null,null,"保護者・家族等への事前連絡",null,null,null,null,null,null,null,null,null,null,null,null,null,null,null,"総括・情報班（情報収集伝達要員）"]
[null,null,null,null,null,null,null,null,null,null,null,null,null,null,null,null,null,null,null,null,null,null,null,null,null,null,null,null,null,null,null,null,null,null,null,null,null,null,null,null,null,null,null,null,null,null,null,null,null,null,null,null,null,null,null,null,null,null,null,null,null,null,null,null,null,null,null,null,null,null,null,null,null,null,null,null,null,null,null,null,null,null,null,null,null,null,null,null,null,null,null,null,null,null,null,"周辺住民への事前協力依頼",null,null,null,null,null,null,null,null,null,null,null,null,null,null,null,"総括・情報班（情報収集伝達要員）"]
[]
[]
[]
[]
[]
[null,null,null,null,null,null,null,null,null,null,null,null,null,null,null,null,null,null,null,null,null,null,null,null,null,null,null,null,null,null,null,null,null,null,null,null,null,null,null,null,null,null,null,null,null,null,null,null,null,null,null,null,null,null,null,null,null,null,null,null,null,null,null,null,null,null,null,null,null,"以下のいずれかに該当する場合\n",null,null,null,null,null,null,null,null,null,null,null,null,null,null,null,null,null,null,null,null,null,null,null,null,null,"避難誘導",null,null,null,null,null,null,null,null,null,null,null,null,null,null,null,"避難誘導班（避難誘導要員）"]
[null,null,null,null,null,null,null,null,null,null,null,null,null,null,null,null,null,null,null,null,null,null,null,null,null,null,null,null,null,null,null,null,null,null,null,null,null,null,null,null,null,null,null,null,null,null,null,null,null,null,null,null,null,null,null,null,null,null,null,null,null,null,null,null,null,null,null,null,null,"　○分間雨量が■mmを超過"]
[null,null,null,null,null,null,null,null,null,null,null,null,null,null,null,null,null,null,null,null,null,null,null,null,null,null,null,null,null,null,null,null,null,null,null,null,null,null,null,null,null,null,null,null,null,null,null,null,null,null,null,null,null,null,null,null,null,null,null,null,null,null,null,null,null,null,null,null,null,"　○○ポンプ場が排水不能"]
[null,null,null,null,null,null,null,null,null,null,null,null,null,null,null,null,null,null,null,null,null,null,null,null,null,null,null,null,null,null,null,null,null,null,null,null,null,null,null,null,null,null,null,null,null,null,null,null,null,null,null,null,null,null,null,null,null,null,null,null,null,null,null,null,null,null,null,null,null,"　○○市○○地区内水氾濫危険"]
[null,null,null,null,null,null,null,null,null,null,null,null,null,null,null,null,null,null,null,null,null,null,null,null,null,null,null,null,null,null,null,null,null,null,null,null,null,null,null,null,null,null,null,null,null,null,null,null,null,null,null,null,null,null,null,null,null,null,null,null,null,null,null,null,null,null,null,null,null,"　　情報発表"]
[null,null,null,null,null,null,null,null,null,null,null,null,null,null,null,null,null,null,null,null,null,null,null,null,null,null,null,null,null,null,null,null,null,null,null,null,null,null,null,null,null,null,null,null,null,null,null,null,null,null,null,null,null,null,null,null,null,null,null,null,null,null,null,null,null,null,null,null,null,"　浸水の前兆を確認"]
[]
[]
[]
[]
[null,null,null,"レベル２　注意体制",null,null,null,null,null,null,null,null,null,null,null,null,null,null,null,null,null,null,null,null,null,null,null,null,"※判断時期は、気象情報、水位到達情報及び避難情報等をもとに設定する。避難情報等は必ずしも発令されない場合があるので、雨の降り方等により自主的な判断に基づき体制を確立することも必要である。",null,null,null,null,null,null,null,null,null,null,null,null,null,null,null,null,null,null,null,null,null,null,null,null,null,null,null,null,null,null,null,null,null,null,null,null,null,null,null,null,"レベル２　注意体制",null,null,null,null,null,null,null,null,null,null,null,null,null,null,null,null,null,null,null,null,null,null,null,null,"※判断時期は、気象情報、水位到達情報及び避難情報等をもとに設定する。避難情報等は必ずしも発令されない場合があるので、雨の降り方等により自主的な判断に基づき体制を確立することも必要である。"]
[null,null,null,"・災害モードへ気持ちを切り替える。\n・気象情報等の収集を行う。",null,null,null,null,null,null,null,null,null,null,null,null,null,null,null,null,null,null,null,null,null,null,null,null,null,null,null,null,null,null,null,null,null,null,null,null,null,null,null,null,null,null,null,null,null,null,null,null,null,null,null,null,null,null,null,null,null,null,null,null,null,null,null,null,null,"・災害モードへ気持ちを切り替える。\n・気象情報等の収集を行う。"]
[]
[null,null,null,null,null,null,null,null,null,null,null,null,"↓",null,null,null,null,null,null,null,null,null,null,null,null,null,null,null,null,null,null,null,null,null,null,null,null,null,null,null,null,null,null,null,null,null,null,null,null,null,null,null,null,null,null,null,null,null,null,null,null,null,null,null,null,null,null,null,null,null,null,null,null,null,null,null,null,null,"↓"]
[null,null,null,"レベル３　警戒体制",null,null,null,null,null,null,null,null,null,null,null,null,null,null,null,null,null,null,null,null,null,null,null,null,null,null,null,null,null,null,null,null,null,null,null,null,null,null,null,null,null,null,null,null,null,null,null,null,null,null,null,null,null,null,null,null,null,null,null,null,null,null,null,null,null,"レベル３　警戒体制"]
[null,null,null,"・避難場所へ避難する準備を行う。",null,null,null,null,null,null,null,null,null,null,null,null,null,null,null,null,null,null,null,null,null,null,null,null,null,null,null,null,null,null,null,null,null,null,null,null,null,null,null,null,null,null,null,null,null,null,null,null,null,null,null,null,null,null,null,null,null,null,null,null,null,null,null,null,null,"・避難場所へ避難する準備を行う。"]
[null,null,null,null,null,null,null,null,null,null,null,null,null,null,null,null,null,null,null,null,null,null,null,null,null,null,null,null,"※浸水想定区域と土砂災害警戒区域が重複する地域では、避難情報等の発表・発令が早い情報で避難体制を確立し、避難のタイミングを判断する必要がある。",null,null,null,null,null,null,null,null,null,null,null,null,null,null,null,null,null,null,null,null,null,null,null,null,null,null,null,null,null,null,null,null,null,null,null,null,null,null,null,null,null,null,null,null,null,null,null,null,null,null,null,null,null,null,null,null,null,null,null,null,null,null,null,null,null,"※浸水想定区域と土砂災害警戒区域が重複する地域では、避難情報等の発表・発令が早い情報で避難体制を確立し、避難のタイミングを判断する必要がある。"]
[null,null,null,null,null,null,null,null,null,null,null,null,"↓",null,null,null,null,null,null,null,null,null,null,null,null,null,null,null,null,null,null,null,null,null,null,null,null,null,null,null,null,null,null,null,null,null,null,null,null,null,null,null,null,null,null,null,null,null,null,null,null,null,null,null,null,null,null,null,null,null,null,null,null,null,null,null,null,null,"↓"]
[null,null,null,"レベル４　非常体制",null,null,null,null,null,null,null,null,null,null,null,null,null,null,null,null,null,null,null,null,null,null,null,null,null,null,null,null,null,null,null,null,null,null,null,null,null,null,null,null,null,null,null,null,null,null,null,null,null,null,null,null,null,null,null,null,null,null,null,null,null,null,null,null,null,"レベル４　非常体制"]
[null,null,null,"・避難誘導を開始する。",null,null,null,null,null,null,null,null,null,null,null,null,null,null,null,null,null,null,null,null,null,null,null,null,null,null,null,null,null,null,null,null,null,null,null,null,null,null,null,null,null,null,null,null,null,null,null,null,null,null,null,null,null,null,null,null,null,null,null,null,null,null,null,null,null,"・避難誘導を開始する。"]
[]
[]
[null,null,null,"大型台風",null,null,null,null,null,null,null,null,null,null,null,null,null,null,null,null,null,null,null,null,null,null,null,null,null,null,null,null,null,null,null,null,null,null,null,null,null,null,null,null,null,null,null,null,null,null,null,null,null,null,null,null,null,null,null,null,null,null,null,null,null,null,null,null,null,"大型台風"]
[null,null,null,null,null,null,null,null,null,null,null,null,null,null,null,null,null,null,null,null,null,null,null,null,null,null,null,null,null,null,null,null,null,null,null,null,null,null,null,null,null,null,null,null,null,null,null,null,null,null,null,null,null,null,null,null,null,null,null,null,null,null,null,null,null,null,null,null,null,"大型台風の襲来が予想される場合で、公共交通機関の計画運休が予定されている場合、避難に関する準備をし、早めに避難を開始する。また、協定を締結した地域の企業等と連携して早めに避難を開始する。"]
[]
[]
[]
[]
[null,null,null,null,null,null,null,null,null,null,null,null,null,null,null,null,null,null,null,null,null,null,null,null,null,null,null,null,null,null,null,null,null,null,null,null,null,null,null,null,null,null,null,null,null,null,null,null,null,null,null,null,null,null,null,null,null,null,null,null,null,null,null,null,null,null,null,null,null,"○○企業との協定　福祉車両提供及び避難支援（詳細は協定書参照）"]
[]
[]
[]
[]
[]
[]
[null,null,"高潮",null,null,null,null,null,null,null,null,null,null,null,null,null,null,null,null,null,null,null,null,null,null,null,null,null,null,null,null,null,null,null,null,null,null,null,null,null,null,null,null,null,null,null,null,null,null,null,null,null,null,null,null,null,"様式２",null,null,null,null,null,null,null,null,null,null,null,"高潮",null,null,null,null,null,null,null,null,null,null,null,null,null,null,null,null,null,null,null,null,null,null,null,null,null,null,null,null,null,null,null,null,null,null,null,null,null,null,null,null,null,null,null,null,null,null,null,null,null,null,null,null,null,"記載例"]
[]
[null,null,"４　防災体制",null,null,null,null,null,null,null,null,null,null,null,null,null,null,null,null,null,null,null,null,null,null,null,null,null,null,null,null,null,null,null,null,null,null,null,null,null,null,null,null,null,null,null,null,null,null,null,null,null,null,null,null,null,null,null,null,null,null,null,null,null,null,null,null,null,"４　防災体制"]
[]
[null,null,"　防災体制確立の判断時期に基づき、注意、警戒、非常の体制をとり、管理権限者が定めた統括管理者のもと、総括・情報班、避難誘導班が避難誘導等の活動を行う。",null,null,null,null,null,null,null,null,null,null,null,null,null,null,null,null,null,null,null,null,null,null,null,null,null,null,null,null,null,null,null,null,null,null,null,null,null,null,null,null,null,null,null,null,null,null,null,null,null,null,null,null,null,null,null,null,null,null,null,null,null,null,null,null,null,"《自衛水防組織を設置する場合》\n　防災体制確立の判断時期に基づき、注意、警戒、非常の体制をとり、管理権限者が定めた統括管理者のもと、総括・情報班、避難誘導班が避難誘導等の活動を行う。\n《自衛水防組織を設置しない場合》\n　防災体制確立の判断時期に基づき、注意、警戒、非常の体制をとり、管理権限者のもと情報収集伝達要員、避難誘導要員が避難誘導等の活動を行う。"]
[]
[]
[]
[]
[]
[null,null,"【防災体制確立の判断時期及び役割分担】",null,null,null,null,null,null,null,null,null,null,null,null,null,null,null,null,null,null,null,null,null,null,null,null,null,null,null,null,null,null,null,null,null,null,null,null,null,null,null,null,null,null,null,null,null,null,null,null,null,null,null,null,null,null,null,null,null,null,null,null,null,null,null,null,null,"【防災体制確立の判断時期及び役割分担】"]
[]
[]
[null,null,null,null,null,null,null,null,null,null,null,null,null,null,null,null,null,null,null,null,null,null,null,null,null,null,null,null,null,null,null,null,null,null,null,null,null,null,null,null,null,null,null,null,null,null,null,null,null,null,null,null,null,null,null,null,null,null,null,null,null,null,null,null,null,null,null,null,null,"以下のいずれかに該当する場合\n",null,null,null,null,null,null,null,null,null,null,null,null,null,null,null,null,null,null,null,null,null,null,null,null,null,"気象・潮位情報等の情報収集",null,null,null,null,null,null,null,null,null,null,null,null,null,null,null,"総括・情報班（情報収集伝達要員）"]
[null,null,null,null,null,null,null,null,null,null,null,null,null,null,null,null,null,null,null,null,null,null,null,null,null,null,null,null,null,null,null,null,null,null,null,null,null,null,null,null,null,null,null,null,null,null,null,null,null,null,null,null,null,null,null,null,null,null,null,null,null,null,null,null,null,null,null,null,null,"　高潮注意報発表"]
[]
[]
[]
[]
[]
[]
[]
[null,null,null,null,null,null,null,null,null,null,null,null,null,null,null,null,null,null,null,null,null,null,null,null,null,null,null,null,null,null,null,null,null,null,null,null,null,null,null,null,null,null,null,null,null,null,null,null,null,null,null,null,null,null,null,null,null,null,null,null,null,null,null,null,null,null,null,null,null,"以下のいずれかに該当する場合\n",null,null,null,null,null,null,null,null,null,null,null,null,null,null,null,null,null,null,null,null,null,null,null,null,null,"気象・潮位情報等の情報収集",null,null,null,null,null,null,null,null,null,null,null,null,null,null,null,"総括・情報班（情報収集伝達要員）"]
[null,null,null,null,null,null,null,null,null,null,null,null,null,null,null,null,null,null,null,null,null,null,null,null,null,null,null,null,null,null,null,null,null,null,null,null,null,null,null,null,null,null,null,null,null,null,null,null,null,null,null,null,null,null,null,null,null,null,null,null,null,null,null,null,null,null,null,null,null,"　高齢者等避難の発令",null,null,null,null,null,null,null,null,null,null,null,null,null,null,null,null,null,null,null,null,null,null,null,null,null,"使用する資器材の準備",null,null,null,null,null,null,null,null,null,null,null,null,null,null,null,"避難誘導班（避難誘導要員）"]
[null,null,null,null,null,null,null,null,null,null,null,null,null,null,null,null,null,null,null,null,null,null,null,null,null,null,null,null,null,null,null,null,null,null,null,null,null,null,null,null,null,null,null,null,null,null,null,null,null,null,null,null,null,null,null,null,null,null,null,null,null,null,null,null,null,null,null,null,null,"　高潮警報発表（当該施設におけ",null,null,null,null,null,null,null,null,null,null,null,null,null,null,null,null,null,null,null,null,null,null,null,null,null,"保護者・家族等への事前連絡",null,null,null,null,null,null,null,null,null,null,null,null,null,null,null,"総括・情報班（情報収集伝達要員）"]
[null,null,null,null,null,null,null,null,null,null,null,null,null,null,null,null,null,null,null,null,null,null,null,null,null,null,null,null,null,null,null,null,null,null,null,null,null,null,null,null,null,null,null,null,null,null,null,null,null,null,null,null,null,null,null,null,null,null,null,null,null,null,null,null,null,null,null,null,null,"　　る想定される浸水深が小さく、",null,null,null,null,null,null,null,null,null,null,null,null,null,null,null,null,null,null,null,null,null,null,null,null,null,"周辺住民への事前協力依頼",null,null,null,null,null,null,null,null,null,null,null,null,null,null,null,"総括・情報班（情報収集伝達要員）"]
[null,null,null,null,null,null,null,null,null,null,null,null,null,null,null,null,null,null,null,null,null,null,null,null,null,null,null,null,null,null,null,null,null,null,null,null,null,null,null,null,null,null,null,null,null,null,null,null,null,null,null,null,null,null,null,null,null,null,null,null,null,null,null,null,null,null,null,null,null,"　　浸水継続時間が短い場合）",null,null,null,null,null,null,null,null,null,null,null,null,null,null,null,null,null,null,null,null,null,null,null,null,null,"要配慮者の避難誘導",null,null,null,null,null,null,null,null,null,null,null,null,null,null,null,"避難誘導班（避難誘導要員）"]
[]
[]
[]
[]
[null,null,null,null,null,null,null,null,null,null,null,null,null,null,null,null,null,null,null,null,null,null,null,null,null,null,null,null,null,null,null,null,null,null,null,null,null,null,null,null,null,null,null,null,null,null,null,null,null,null,null,null,null,null,null,null,null,null,null,null,null,null,null,null,null,null,null,null,null,"以下のいずれかに該当する場合\n",null,null,null,null,null,null,null,null,null,null,null,null,null,null,null,null,null,null,null,null,null,null,null,null,null,"施設内全体の避難誘導",null,null,null,null,null,null,null,null,null,null,null,null,null,null,null,"避難誘導班（避難誘導要員）"]
[null,null,null,null,null,null,null,null,null,null,null,null,null,null,null,null,null,null,null,null,null,null,null,null,null,null,null,null,null,null,null,null,null,null,null,null,null,null,null,null,null,null,null,null,null,null,null,null,null,null,null,null,null,null,null,null,null,null,null,null,null,null,null,null,null,null,null,null,null,"　避難指示の発令"]
[null,null,null,null,null,null,null,null,null,null,null,null,null,null,null,null,null,null,null,null,null,null,null,null,null,null,null,null,null,null,null,null,null,null,null,null,null,null,null,null,null,null,null,null,null,null,null,null,null,null,null,null,null,null,null,null,null,null,null,null,null,null,null,null,null,null,null,null,null,"　暴風警報及び高潮警報発表"]
[null,null,null,null,null,null,null,null,null,null,null,null,null,null,null,null,null,null,null,null,null,null,null,null,null,null,null,null,null,null,null,null,null,null,null,null,null,null,null,null,null,null,null,null,null,null,null,null,null,null,null,null,null,null,null,null,null,null,null,null,null,null,null,null,null,null,null,null,null,"　（当該施設における想定される"]
[null,null,null,null,null,null,null,null,null,null,null,null,null,null,null,null,null,null,null,null,null,null,null,null,null,null,null,null,null,null,null,null,null,null,null,null,null,null,null,null,null,null,null,null,null,null,null,null,null,null,null,null,null,null,null,null,null,null,null,null,null,null,null,null,null,null,null,null,null,"　　浸水深が大きく、浸水継続時"]
[null,null,null,null,null,null,null,null,null,null,null,null,null,null,null,null,null,null,null,null,null,null,null,null,null,null,null,null,null,null,null,null,null,null,null,null,null,null,null,null,null,null,null,null,null,null,null,null,null,null,null,null,null,null,null,null,null,null,null,null,null,null,null,null,null,null,null,null,null,"　　間が長い場合）"]
[null,null,null,null,null,null,null,null,null,null,null,null,null,null,null,null,null,null,null,null,null,null,null,null,null,null,null,null,null,null,null,null,null,null,null,null,null,null,null,null,null,null,null,null,null,null,null,null,null,null,null,null,null,null,null,null,null,null,null,null,null,null,null,null,null,null,null,null,null,"　高潮特別警報発表"]
[null,null,null,null,null,null,null,null,null,null,null,null,null,null,null,null,null,null,null,null,null,null,null,null,null,null,null,null,null,null,null,null,null,null,null,null,null,null,null,null,null,null,null,null,null,null,null,null,null,null,null,null,null,null,null,null,null,null,null,null,null,null,null,null,null,null,null,null,null,"　○○海岸高潮氾濫危険情報発表"]
[]
[]
[]
[null,null,null,"レベル２　注意体制",null,null,null,null,null,null,null,null,null,null,null,null,null,null,null,null,null,null,null,null,null,null,null,null,"※判断時期は、気象情報、水位到達情報及び避難情報等をもとに設定する。避難情報等は必ずしも発令されない場合があるので、台風の進路等により自主的な判断に基づき体制を確立することも必要である。",null,null,null,null,null,null,null,null,null,null,null,null,null,null,null,null,null,null,null,null,null,null,null,null,null,null,null,null,null,null,null,null,null,null,null,null,null,null,null,null,"レベル２　注意体制",null,null,null,null,null,null,null,null,null,null,null,null,null,null,null,null,null,null,null,null,null,null,null,null,"※判断時期は、気象情報、水位到達情報及び避難情報等をもとに設定する。避難情報等は必ずしも発令されない場合があるので、台風の進路等により自主的な判断に基づき体制を確立することも必要である。"]
[null,null,null,"・災害モードへ気持ちを切り替える。\n・気象情報等の収集を行う。",null,null,null,null,null,null,null,null,null,null,null,null,null,null,null,null,null,null,null,null,null,null,null,null,null,null,null,null,null,null,null,null,null,null,null,null,null,null,null,null,null,null,null,null,null,null,null,null,null,null,null,null,null,null,null,null,null,null,null,null,null,null,null,null,null,"・災害モードへ気持ちを切り替える。\n・気象情報等の収集を行う。"]
[]
[null,null,null,null,null,null,null,null,null,null,null,null,"↓",null,null,null,null,null,null,null,null,null,null,null,null,null,null,null,null,null,null,null,null,null,null,null,null,null,null,null,null,null,null,null,null,null,null,null,null,null,null,null,null,null,null,null,null,null,null,null,null,null,null,null,null,null,null,null,null,null,null,null,null,null,null,null,null,null,"↓"]
[null,null,null,"レベル３　警戒体制",null,null,null,null,null,null,null,null,null,null,null,null,null,null,null,null,null,null,null,null,null,null,null,null,null,null,null,null,null,null,null,null,null,null,null,null,null,null,null,null,null,null,null,null,null,null,null,null,null,null,null,null,null,null,null,null,null,null,null,null,null,null,null,null,null,"レベル３　警戒体制"]
[null,null,null,"・避難場所へ避難する準備を行う。\n・要配慮者の避難誘導を開始する。",null,null,null,null,null,null,null,null,null,null,null,null,null,null,null,null,null,null,null,null,null,null,null,null,null,null,null,null,null,null,null,null,null,null,null,null,null,null,null,null,null,null,null,null,null,null,null,null,null,null,null,null,null,null,null,null,null,null,null,null,null,null,null,null,null,"・避難場所へ避難する準備を行う。\n・要配慮者の避難誘導を開始する。"]
[null,null,null,null,null,null,null,null,null,null,null,null,null,null,null,null,null,null,null,null,null,null,null,null,null,null,null,null,"※浸水想定区域と土砂災害警戒区域が重複する地域では、避難情報等の発表・発令が早い情報で避難体制を確立し、避難のタイミングを判断する必要がある。",null,null,null,null,null,null,null,null,null,null,null,null,null,null,null,null,null,null,null,null,null,null,null,null,null,null,null,null,null,null,null,null,null,null,null,null,null,null,null,null,null,null,null,null,null,null,null,null,null,null,null,null,null,null,null,null,null,null,null,null,null,null,null,null,null,"※浸水想定区域と土砂災害警戒区域が重複する地域では、避難情報等の発表・発令が早い情報で避難体制を確立し、避難のタイミングを判断する必要がある。"]
[null,null,null,null,null,null,null,null,null,null,null,null,"↓",null,null,null,null,null,null,null,null,null,null,null,null,null,null,null,null,null,null,null,null,null,null,null,null,null,null,null,null,null,null,null,null,null,null,null,null,null,null,null,null,null,null,null,null,null,null,null,null,null,null,null,null,null,null,null,null,null,null,null,null,null,null,null,null,null,"↓"]
[null,null,null,"レベル４　非常体制",null,null,null,null,null,null,null,null,null,null,null,null,null,null,null,null,null,null,null,null,null,null,null,null,null,null,null,null,null,null,null,null,null,null,null,null,null,null,null,null,null,null,null,null,null,null,null,null,null,null,null,null,null,null,null,null,null,null,null,null,null,null,null,null,null,"レベル４　非常体制"]
[null,null,null,"・施設内全体の避難誘導を開始する。",null,null,null,null,null,null,null,null,null,null,null,null,null,null,null,null,null,null,null,null,null,null,null,null,null,null,null,null,null,null,null,null,null,null,null,null,null,null,null,null,null,null,null,null,null,null,null,null,null,null,null,null,null,null,null,null,null,null,null,null,null,null,null,null,null,"・施設内全体の避難誘導を開始する。"]
[]
[]
[null,null,null,"大型台風",null,null,null,null,null,null,null,null,null,null,null,null,null,null,null,null,null,null,null,null,null,null,null,null,null,null,null,null,null,null,null,null,null,null,null,null,null,null,null,null,null,null,null,null,null,null,null,null,null,null,null,null,null,null,null,null,null,null,null,null,null,null,null,null,null,"大型台風"]
[null,null,null,null,null,null,null,null,null,null,null,null,null,null,null,null,null,null,null,null,null,null,null,null,null,null,null,null,null,null,null,null,null,null,null,null,null,null,null,null,null,null,null,null,null,null,null,null,null,null,null,null,null,null,null,null,null,null,null,null,null,null,null,null,null,null,null,null,null,"大型台風の襲来が予想される場合で、公共交通機関の計画運休が予定されている場合、避難に関する準備をし、早めに避難を開始する。また、協定を締結した地域の企業等と連携して早めに避難を開始する。"]
[]
[]
[]
[]
[null,null,null,null,null,null,null,null,null,null,null,null,null,null,null,null,null,null,null,null,null,null,null,null,null,null,null,null,null,null,null,null,null,null,null,null,null,null,null,null,null,null,null,null,null,null,null,null,null,null,null,null,null,null,null,null,null,null,null,null,null,null,null,null,null,null,null,null,null,"○○企業との協定　福祉車両提供及び避難支援（詳細は協定書参照）"]
[]
[]
[]
[]
[]
[]
[null,null,"津波到達時間が短い場合",null,null,null,null,null,null,null,null,null,null,null,null,null,null,null,null,null,null,null,null,null,null,null,null,null,null,null,null,null,null,null,null,null,null,null,null,null,null,null,null,null,null,null,null,null,null,null,null,null,null,null,null,null,"様式２",null,null,null,null,null,null,null,null,null,null,null,"津波到達時間が短い場合",null,null,null,null,null,null,null,null,null,null,null,null,null,null,null,null,null,null,null,null,null,null,null,null,null,null,null,null,null,null,null,null,null,null,null,null,null,null,null,null,null,null,null,null,null,null,null,null,null,null,null,null,null,"記載例"]
[]
[null,null,"４　防災体制",null,null,null,null,null,null,null,null,null,null,null,null,null,null,null,null,null,null,null,null,null,null,null,null,null,null,null,null,null,null,null,null,null,null,null,null,null,null,null,null,null,null,null,null,null,null,null,null,null,null,null,null,null,null,null,null,null,null,null,null,null,null,null,null,null,"４　防災体制"]
[]
[null,null,"　防災体制確立の判断時期に基づき、注意、警戒、非常の体制をとり、管理権限者が定めた統括管理者のもと、総括・情報班、避難誘導班が避難誘導等の活動を行う。",null,null,null,null,null,null,null,null,null,null,null,null,null,null,null,null,null,null,null,null,null,null,null,null,null,null,null,null,null,null,null,null,null,null,null,null,null,null,null,null,null,null,null,null,null,null,null,null,null,null,null,null,null,null,null,null,null,null,null,null,null,null,null,null,null,"《自衛水防組織を設置する場合》\n　防災体制確立の判断時期に基づき、注意、警戒、非常の体制をとり、管理権限者が定めた統括管理者のもと、総括・情報班、避難誘導班が避難誘導等の活動を行う。\n《自衛水防組織を設置しない場合》\n　防災体制確立の判断時期に基づき、注意、警戒、非常の体制をとり、管理権限者のもと情報収集伝達要員、避難誘導要員が避難誘導等の活動を行う。"]
[]
[]
[]
[]
[]
[null,null,"【防災体制確立の判断時期及び役割分担】",null,null,null,null,null,null,null,null,null,null,null,null,null,null,null,null,null,null,null,null,null,null,null,null,null,null,null,null,null,null,null,null,null,null,null,null,null,null,null,null,null,null,null,null,null,null,null,null,null,null,null,null,null,null,null,null,null,null,null,null,null,null,null,null,null,"【防災体制確立の判断時期及び役割分担】"]
[]
[]
[null,null,null,null,null,null,null,null,null,null,null,null,null,null,null,null,null,null,null,null,null,null,null,null,null,null,null,null,null,null,null,null,null,null,null,null,null,null,null,null,null,null,null,null,null,null,null,null,null,null,null,null,null,null,null,null,null,null,null,null,null,null,null,null,null,null,null,null,null,"　緊急地震速報",null,null,null,null,null,null,null,null,null,null,null,null,null,null,null,null,null,null,null,null,null,null,null,null,null,"津波情報等の情報収集",null,null,null,null,null,null,null,null,null,null,null,null,null,null,null,"総括・情報班（情報収集伝達要員）"]
[]
[]
[]
[]
[]
[]
[]
[]
[null,null,null,null,null,null,null,null,null,null,null,null,null,null,null,null,null,null,null,null,null,null,null,null,null,null,null,null,null,null,null,null,null,null,null,null,null,null,null,null,null,null,null,null,null,null,null,null,null,null,null,null,null,null,null,null,null,null,null,null,null,null,null,null,null,null,null,null,null,"　津波注意報発表",null,null,null,null,null,null,null,null,null,null,null,null,null,null,null,null,null,null,null,null,null,null,null,null,null,"津波情報等の情報収集",null,null,null,null,null,null,null,null,null,null,null,null,null,null,null,"総括・情報班（情報収集伝達要員）"]
[null,null,null,null,null,null,null,null,null,null,null,null,null,null,null,null,null,null,null,null,null,null,null,null,null,null,null,null,null,null,null,null,null,null,null,null,null,null,null,null,null,null,null,null,null,null,null,null,null,null,null,null,null,null,null,null,null,null,null,null,null,null,null,null,null,null,null,null,null,null,null,null,null,null,null,null,null,null,null,null,null,null,null,null,null,null,null,null,null,null,null,null,null,null,null,"使用する資器材の準備",null,null,null,null,null,null,null,null,null,null,null,null,null,null,null,"避難誘導班（避難誘導要員）"]
[null,null,null,null,null,null,null,null,null,null,null,null,null,null,null,null,null,null,null,null,null,null,null,null,null,null,null,null,null,null,null,null,null,null,null,null,null,null,null,null,null,null,null,null,null,null,null,null,null,null,null,null,null,null,null,null,null,null,null,null,null,null,null,null,null,null,null,null,null,null,null,null,null,null,null,null,null,null,null,null,null,null,null,null,null,null,null,null,null,null,null,null,null,null,null,"保護者・家族等への事前連絡",null,null,null,null,null,null,null,null,null,null,null,null,null,null,null,"総括・情報班（情報収集伝達要員）"]
[null,null,null,null,null,null,null,null,null,null,null,null,null,null,null,null,null,null,null,null,null,null,null,null,null,null,null,null,null,null,null,null,null,null,null,null,null,null,null,null,null,null,null,null,null,null,null,null,null,null,null,null,null,null,null,null,null,null,null,null,null,null,null,null,null,null,null,null,null,null,null,null,null,null,null,null,null,null,null,null,null,null,null,null,null,null,null,null,null,null,null,null,null,null,null,"周辺住民への事前協力依頼",null,null,null,null,null,null,null,null,null,null,null,null,null,null,null,"総括・情報班（情報収集伝達要員）"]
[]
[]
[]
[]
[]
[null,null,null,null,null,null,null,null,null,null,null,null,null,null,null,null,null,null,null,null,null,null,null,null,null,null,null,null,null,null,null,null,null,null,null,null,null,null,null,null,null,null,null,null,null,null,null,null,null,null,null,null,null,null,null,null,null,null,null,null,null,null,null,null,null,null,null,null,null,"　避難指示の発令",null,null,null,null,null,null,null,null,null,null,null,null,null,null,null,null,null,null,null,null,null,null,null,null,null,"避難誘導",null,null,null,null,null,null,null,null,null,null,null,null,null,null,null,"避難誘導班（避難誘導要員）"]
[null,null,null,null,null,null,null,null,null,null,null,null,null,null,null,null,null,null,null,null,null,null,null,null,null,null,null,null,null,null,null,null,null,null,null,null,null,null,null,null,null,null,null,null,null,null,null,null,null,null,null,null,null,null,null,null,null,null,null,null,null,null,null,null,null,null,null,null,null,"　津波警報、津波特別警報（大"]
[null,null,null,null,null,null,null,null,null,null,null,null,null,null,null,null,null,null,null,null,null,null,null,null,null,null,null,null,null,null,null,null,null,null,null,null,null,null,null,null,null,null,null,null,null,null,null,null,null,null,null,null,null,null,null,null,null,null,null,null,null,null,null,null,null,null,null,null,null,"　　津波警報）発表"]
[null,null,null,null,null,null,null,null,null,null,null,null,null,null,null,null,null,null,null,null,null,null,null,null,null,null,null,null,null,null,null,null,null,null,null,null,null,null,null,null,null,null,null,null,null,null,null,null,null,null,null,null,null,null,null,null,null,null,null,null,null,null,null,null,null,null,null,null,null,"　危険の前兆を確認　等"]
[]
[]
[]
[]
[]
[]
[null,null,null,"注意体制",null,null,null,null,null,null,null,null,null,null,null,null,null,null,null,null,null,null,null,null,null,null,null,null,"※判断時期は、気象情報及び避難情報等をもとに設定する。津波の場合では、避難情報等は必ずしも発令されない場合があるので、地震の大きさ等により自主的な判断に基づき体制を確立することも必要である。",null,null,null,null,null,null,null,null,null,null,null,null,null,null,null,null,null,null,null,null,null,null,null,null,null,null,null,null,null,null,null,null,null,null,null,null,null,null,null,null,"注意体制",null,null,null,null,null,null,null,null,null,null,null,null,null,null,null,null,null,null,null,null,null,null,null,null,"※判断時期は、気象情報及び避難情報等をもとに設定する。津波の場合では、避難情報等は必ずしも発令されない場合があるので、地震の大きさ等により自主的な判断に基づき体制を確立することも必要である。"]
[null,null,null,"・災害モードへ気持ちを切り替える。\n・気象情報等の収集を行う。",null,null,null,null,null,null,null,null,null,null,null,null,null,null,null,null,null,null,null,null,null,null,null,null,null,null,null,null,null,null,null,null,null,null,null,null,null,null,null,null,null,null,null,null,null,null,null,null,null,null,null,null,null,null,null,null,null,null,null,null,null,null,null,null,null,"・災害モードへ気持ちを切り替える。\n・気象情報等の収集を行う。"]
[]
[null,null,null,null,null,null,null,null,null,null,null,null,"↓",null,null,null,null,null,null,null,null,null,null,null,null,null,null,null,null,null,null,null,null,null,null,null,null,null,null,null,null,null,null,null,null,null,null,null,null,null,null,null,null,null,null,null,null,null,null,null,null,null,null,null,null,null,null,null,null,null,null,null,null,null,null,null,null,null,"↓"]
[null,null,null,"警戒体制",null,null,null,null,null,null,null,null,null,null,null,null,null,null,null,null,null,null,null,null,null,null,null,null,null,null,null,null,null,null,null,null,null,null,null,null,null,null,null,null,null,null,null,null,null,null,null,null,null,null,null,null,null,null,null,null,null,null,null,null,null,null,null,null,null,"警戒体制"]
[null,null,null,"・避難場所へ避難する準備を行う。",null,null,null,null,null,null,null,null,null,null,null,null,null,null,null,null,null,null,null,null,null,null,null,null,null,null,null,null,null,null,null,null,null,null,null,null,null,null,null,null,null,null,null,null,null,null,null,null,null,null,null,null,null,null,null,null,null,null,null,null,null,null,null,null,null,"・避難場所へ避難する準備を行う。"]
[]
[null,null,null,null,null,null,null,null,null,null,null,null,"↓",null,null,null,null,null,null,null,null,null,null,null,null,null,null,null,null,null,null,null,null,null,null,null,null,null,null,null,null,null,null,null,null,null,null,null,null,null,null,null,null,null,null,null,null,null,null,null,null,null,null,null,null,null,null,null,null,null,null,null,null,null,null,null,null,null,"↓"]
[null,null,null,"非常体制",null,null,null,null,null,null,null,null,null,null,null,null,null,null,null,null,null,null,null,null,null,null,null,null,null,null,null,null,null,null,null,null,null,null,null,null,null,null,null,null,null,null,null,null,null,null,null,null,null,null,null,null,null,null,null,null,null,null,null,null,null,null,null,null,null,"非常体制"]
[null,null,null,"・避難誘導を開始する。",null,null,null,null,null,null,null,null,null,null,null,null,null,null,null,null,null,null,null,null,null,null,null,null,null,null,null,null,null,null,null,null,null,null,null,null,null,null,null,null,null,null,null,null,null,null,null,null,null,null,null,null,null,null,null,null,null,null,null,null,null,null,null,null,null,"・避難誘導を開始する。"]
[]
[]
[]
[]
[]
[]
[]
[]
[]
[]
[]
[]
[]
[]
[]
[null,null,"津波到達時間が長い場合",null,null,null,null,null,null,null,null,null,null,null,null,null,null,null,null,null,null,null,null,null,null,null,null,null,null,null,null,null,null,null,null,null,null,null,null,null,null,null,null,null,null,null,null,null,null,null,null,null,null,null,null,null,"様式２",null,null,null,null,null,null,null,null,null,null,null,"津波到達時間が長い場合",null,null,null,null,null,null,null,null,null,null,null,null,null,null,null,null,null,null,null,null,null,null,null,null,null,null,null,null,null,null,null,null,null,null,null,null,null,null,null,null,null,null,null,null,null,null,null,null,null,null,null,null,null,"記載例"]
[]
[null,null,"４　防災体制",null,null,null,null,null,null,null,null,null,null,null,null,null,null,null,null,null,null,null,null,null,null,null,null,null,null,null,null,null,null,null,null,null,null,null,null,null,null,null,null,null,null,null,null,null,null,null,null,null,null,null,null,null,null,null,null,null,null,null,null,null,null,null,null,null,"４　防災体制"]
[]
[null,null,"　防災体制確立の判断時期に基づき、注意、警戒、非常の体制をとり、管理権限者が定めた統括管理者のもと、総括・情報班、避難誘導班が避難誘導等の活動を行う。",null,null,null,null,null,null,null,null,null,null,null,null,null,null,null,null,null,null,null,null,null,null,null,null,null,null,null,null,null,null,null,null,null,null,null,null,null,null,null,null,null,null,null,null,null,null,null,null,null,null,null,null,null,null,null,null,null,null,null,null,null,null,null,null,null,"《自衛水防組織を設置する場合》\n　防災体制確立の判断時期に基づき、注意、警戒、非常の体制をとり、管理権限者が定めた統括管理者のもと、総括・情報班、避難誘導班が避難誘導等の活動を行う。\n《自衛水防組織を設置しない場合》\n　防災体制確立の判断時期に基づき、注意、警戒、非常の体制をとり、管理権限者のもと情報収集伝達要員、避難誘導要員が避難誘導等の活動を行う。"]
[]
[]
[]
[]
[]
[null,null,"【防災体制確立の判断時期及び役割分担】",null,null,null,null,null,null,null,null,null,null,null,null,null,null,null,null,null,null,null,null,null,null,null,null,null,null,null,null,null,null,null,null,null,null,null,null,null,null,null,null,null,null,null,null,null,null,null,null,null,null,null,null,null,null,null,null,null,null,null,null,null,null,null,null,null,"【防災体制確立の判断時期及び役割分担】"]
[]
[]
[null,null,null,null,null,null,null,null,null,null,null,null,null,null,null,null,null,null,null,null,null,null,null,null,null,null,null,null,null,null,null,null,null,null,null,null,null,null,null,null,null,null,null,null,null,null,null,null,null,null,null,null,null,null,null,null,null,null,null,null,null,null,null,null,null,null,null,null,null,"　緊急地震速報",null,null,null,null,null,null,null,null,null,null,null,null,null,null,null,null,null,null,null,null,null,null,null,null,null,"津波情報等の情報収集",null,null,null,null,null,null,null,null,null,null,null,null,null,null,null,"総括・情報班（情報収集伝達要員）"]
[null,null,null,null,null,null,null,null,null,null,null,null,null,null,null,null,null,null,null,null,null,null,null,null,null,null,null,null,null,null,null,null,null,null,null,null,null,null,null,null,null,null,null,null,null,null,null,null,null,null,null,null,null,null,null,null,null,null,null,null,null,null,null,null,null,null,null,null,null,"　津波注意報発表"]
[null,null,null,null,null,null,null,null,null,null,null,null,null,null,null,null,null,null,null,null,null,null,null,null,null,null,null,null,null,null,null,null,null,null,null,null,null,null,null,null,null,null,null,null,null,null,null,null,null,null,null,null,null,null,null,null,null,null,null,null,null,null,null,null,null,null,null,null,null,"　遠地地震に関する情報"]
[]
[]
[]
[]
[]
[]
[null,null,null,null,null,null,null,null,null,null,null,null,null,null,null,null,null,null,null,null,null,null,null,null,null,null,null,null,null,null,null,null,null,null,null,null,null,null,null,null,null,null,null,null,null,null,null,null,null,null,null,null,null,null,null,null,null,null,null,null,null,null,null,null,null,null,null,null,null,"　高齢者等避難の発令",null,null,null,null,null,null,null,null,null,null,null,null,null,null,null,null,null,null,null,null,null,null,null,null,null,"津波情報等の情報収集",null,null,null,null,null,null,null,null,null,null,null,null,null,null,null,"総括・情報班（情報収集伝達要員）"]
[null,null,null,null,null,null,null,null,null,null,null,null,null,null,null,null,null,null,null,null,null,null,null,null,null,null,null,null,null,null,null,null,null,null,null,null,null,null,null,null,null,null,null,null,null,null,null,null,null,null,null,null,null,null,null,null,null,null,null,null,null,null,null,null,null,null,null,null,null,"　津波警報発表",null,null,null,null,null,null,null,null,null,null,null,null,null,null,null,null,null,null,null,null,null,null,null,null,null,"使用する資器材の準備",null,null,null,null,null,null,null,null,null,null,null,null,null,null,null,"避難誘導班（避難誘導要員）"]
[null,null,null,null,null,null,null,null,null,null,null,null,null,null,null,null,null,null,null,null,null,null,null,null,null,null,null,null,null,null,null,null,null,null,null,null,null,null,null,null,null,null,null,null,null,null,null,null,null,null,null,null,null,null,null,null,null,null,null,null,null,null,null,null,null,null,null,null,null,null,null,null,null,null,null,null,null,null,null,null,null,null,null,null,null,null,null,null,null,null,null,null,null,null,null,"保護者・家族等への事前連絡",null,null,null,null,null,null,null,null,null,null,null,null,null,null,null,"総括・情報班（情報収集伝達要員）"]
[null,null,null,null,null,null,null,null,null,null,null,null,null,null,null,null,null,null,null,null,null,null,null,null,null,null,null,null,null,null,null,null,null,null,null,null,null,null,null,null,null,null,null,null,null,null,null,null,null,null,null,null,null,null,null,null,null,null,null,null,null,null,null,null,null,null,null,null,null,null,null,null,null,null,null,null,null,null,null,null,null,null,null,null,null,null,null,null,null,null,null,null,null,null,null,"周辺住民への事前協力依頼",null,null,null,null,null,null,null,null,null,null,null,null,null,null,null,"総括・情報班（情報収集伝達要員）"]
[null,null,null,null,null,null,null,null,null,null,null,null,null,null,null,null,null,null,null,null,null,null,null,null,null,null,null,null,null,null,null,null,null,null,null,null,null,null,null,null,null,null,null,null,null,null,null,null,null,null,null,null,null,null,null,null,null,null,null,null,null,null,null,null,null,null,null,null,null,null,null,null,null,null,null,null,null,null,null,null,null,null,null,null,null,null,null,null,null,null,null,null,null,null,null,"要配慮者の避難誘導",null,null,null,null,null,null,null,null,null,null,null,null,null,null,null,"避難誘導班（避難誘導要員）"]
[]
[]
[]
[]
[null,null,null,null,null,null,null,null,null,null,null,null,null,null,null,null,null,null,null,null,null,null,null,null,null,null,null,null,null,null,null,null,null,null,null,null,null,null,null,null,null,null,null,null,null,null,null,null,null,null,null,null,null,null,null,null,null,null,null,null,null,null,null,null,null,null,null,null,null,"　避難指示の発令",null,null,null,null,null,null,null,null,null,null,null,null,null,null,null,null,null,null,null,null,null,null,null,null,null,"施設内全体の避難誘導",null,null,null,null,null,null,null,null,null,null,null,null,null,null,null,"避難誘導班（避難誘導要員）"]
[null,null,null,null,null,null,null,null,null,null,null,null,null,null,null,null,null,null,null,null,null,null,null,null,null,null,null,null,null,null,null,null,null,null,null,null,null,null,null,null,null,null,null,null,null,null,null,null,null,null,null,null,null,null,null,null,null,null,null,null,null,null,null,null,null,null,null,null,null,"　津波警報発表（標高の低い"]
[null,null,null,null,null,null,null,null,null,null,null,null,null,null,null,null,null,null,null,null,null,null,null,null,null,null,null,null,null,null,null,null,null,null,null,null,null,null,null,null,null,null,null,null,null,null,null,null,null,null,null,null,null,null,null,null,null,null,null,null,null,null,null,null,null,null,null,null,null,"　　地域の場合）"]
[null,null,null,null,null,null,null,null,null,null,null,null,null,null,null,null,null,null,null,null,null,null,null,null,null,null,null,null,null,null,null,null,null,null,null,null,null,null,null,null,null,null,null,null,null,null,null,null,null,null,null,null,null,null,null,null,null,null,null,null,null,null,null,null,null,null,null,null,null,"　津波特別警報(大津波"]
[null,null,null,null,null,null,null,null,null,null,null,null,null,null,null,null,null,null,null,null,null,null,null,null,null,null,null,null,null,null,null,null,null,null,null,null,null,null,null,null,null,null,null,null,null,null,null,null,null,null,null,null,null,null,null,null,null,null,null,null,null,null,null,null,null,null,null,null,null,"　　警報)発表"]
[null,null,null,null,null,null,null,null,null,null,null,null,null,null,null,null,null,null,null,null,null,null,null,null,null,null,null,null,null,null,null,null,null,null,null,null,null,null,null,null,null,null,null,null,null,null,null,null,null,null,null,null,null,null,null,null,null,null,null,null,null,null,null,null,null,null,null,null,null,"　危険の前兆を確認　等"]
[]
[]
[]
[]
[null,null,null,"注意体制",null,null,null,null,null,null,null,null,null,null,null,null,null,null,null,null,null,null,null,null,null,null,null,null,"※判断時期は、気象情報及び避難情報等をもとに設定する。津波の場合では、避難情報等は必ずしも発令されない場合があるので、地震の大きさ等により自主的な判断に基づき体制を確立することも必要である。",null,null,null,null,null,null,null,null,null,null,null,null,null,null,null,null,null,null,null,null,null,null,null,null,null,null,null,null,null,null,null,null,null,null,null,null,null,null,null,null,"注意体制",null,null,null,null,null,null,null,null,null,null,null,null,null,null,null,null,null,null,null,null,null,null,null,null,"※判断時期は、気象情報及び避難情報等をもとに設定する。津波の場合では、避難情報等は必ずしも発令されない場合があるので、地震の大きさ等により自主的な判断に基づき体制を確立することも必要である。"]
[null,null,null,"・災害モードへ気持ちを切り替える。\n・気象情報等の収集を行う。",null,null,null,null,null,null,null,null,null,null,null,null,null,null,null,null,null,null,null,null,null,null,null,null,null,null,null,null,null,null,null,null,null,null,null,null,null,null,null,null,null,null,null,null,null,null,null,null,null,null,null,null,null,null,null,null,null,null,null,null,null,null,null,null,null,"・災害モードへ気持ちを切り替える。\n・気象情報等の収集を行う。"]
[]
[null,null,null,null,null,null,null,null,null,null,null,null,"↓",null,null,null,null,null,null,null,null,null,null,null,null,null,null,null,null,null,null,null,null,null,null,null,null,null,null,null,null,null,null,null,null,null,null,null,null,null,null,null,null,null,null,null,null,null,null,null,null,null,null,null,null,null,null,null,null,null,null,null,null,null,null,null,null,null,"↓"]
[null,null,null,"警戒体制",null,null,null,null,null,null,null,null,null,null,null,null,null,null,null,null,null,null,null,null,null,null,null,null,null,null,null,null,null,null,null,null,null,null,null,null,null,null,null,null,null,null,null,null,null,null,null,null,null,null,null,null,null,null,null,null,null,null,null,null,null,null,null,null,null,"警戒体制"]
[null,null,null,"・避難場所へ避難する準備を行う。\n・要配慮者の避難誘導を開始する。",null,null,null,null,null,null,null,null,null,null,null,null,null,null,null,null,null,null,null,null,null,null,null,null,null,null,null,null,null,null,null,null,null,null,null,null,null,null,null,null,null,null,null,null,null,null,null,null,null,null,null,null,null,null,null,null,null,null,null,null,null,null,null,null,null,"・避難場所へ避難する準備を行う。\n・要配慮者の避難誘導を開始する。"]
[]
[null,null,null,null,null,null,null,null,null,null,null,null,"↓",null,null,null,null,null,null,null,null,null,null,null,null,null,null,null,null,null,null,null,null,null,null,null,null,null,null,null,null,null,null,null,null,null,null,null,null,null,null,null,null,null,null,null,null,null,null,null,null,null,null,null,null,null,null,null,null,null,null,null,null,null,null,null,null,null,"↓"]
[null,null,null,"非常体制",null,null,null,null,null,null,null,null,null,null,null,null,null,null,null,null,null,null,null,null,null,null,null,null,null,null,null,null,null,null,null,null,null,null,null,null,null,null,null,null,null,null,null,null,null,null,null,null,null,null,null,null,null,null,null,null,null,null,null,null,null,null,null,null,null,"非常体制"]
[null,null,null,"・施設内全体の避難誘導を開始する。",null,null,null,null,null,null,null,null,null,null,null,null,null,null,null,null,null,null,null,null,null,null,null,null,null,null,null,null,null,null,null,null,null,null,null,null,null,null,null,null,null,null,null,null,null,null,null,null,null,null,null,null,null,null,null,null,null,null,null,null,null,null,null,null,null,"・施設内全体の避難誘導を開始する。"]
[]
[]
[]
[]
[]
[]
[]
[]
[]
[]
[]
[]
[]
[]
[]
[null,null,"土砂災害",null,null,null,null,null,null,null,null,null,null,null,null,null,null,null,null,null,null,null,null,null,null,null,null,null,null,null,null,null,null,null,null,null,null,null,null,null,null,null,null,null,null,null,null,null,null,null,null,null,null,null,null,null,"様式２",null,null,null,null,null,null,null,null,null,null,null,"土砂災害",null,null,null,null,null,null,null,null,null,null,null,null,null,null,null,null,null,null,null,null,null,null,null,null,null,null,null,null,null,null,null,null,null,null,null,null,null,null,null,null,null,null,null,null,null,null,null,null,null,null,null,null,null,"記載例"]
[]
[null,null,"４　防災体制",null,null,null,null,null,null,null,null,null,null,null,null,null,null,null,null,null,null,null,null,null,null,null,null,null,null,null,null,null,null,null,null,null,null,null,null,null,null,null,null,null,null,null,null,null,null,null,null,null,null,null,null,null,null,null,null,null,null,null,null,null,null,null,null,null,"４　防災体制"]
[]
[]
[null,null,"【防災体制確立の判断時期及び役割分担】",null,null,null,null,null,null,null,null,null,null,null,null,null,null,null,null,null,null,null,null,null,null,null,null,null,null,null,null,null,null,null,null,null,null,null,null,null,null,null,null,null,null,null,null,null,null,null,null,null,null,null,null,null,null,null,null,null,null,null,null,null,null,null,null,null,"【防災体制確立の判断時期及び役割分担】"]
[]
[]
[null,null,null,null,null,null,null,null,null,null,null,null,null,null,null,null,null,null,null,null,null,null,null,null,null,null,null,null,null,null,null,null,null,null,null,null,null,null,null,null,null,null,null,null,null,null,null,null,null,null,null,null,null,null,null,null,null,null,null,null,null,null,null,null,null,null,null,null,null,"以下のいずれかに該当する場合\n",null,null,null,null,null,null,null,null,null,null,null,null,null,null,null,null,null,null,null,null,null,null,null,null,null,"気象情報等の情報収集",null,null,null,null,null,null,null,null,null,null,null,null,null,null,null,"総括・情報班（情報収集伝達要員）"]
[null,null,null,null,null,null,null,null,null,null,null,null,null,null,null,null,null,null,null,null,null,null,null,null,null,null,null,null,null,null,null,null,null,null,null,null,null,null,null,null,null,null,null,null,null,null,null,null,null,null,null,null,null,null,null,null,null,null,null,null,null,null,null,null,null,null,null,null,null,"　台風接近"]
[null,null,null,null,null,null,null,null,null,null,null,null,null,null,null,null,null,null,null,null,null,null,null,null,null,null,null,null,null,null,null,null,null,null,null,null,null,null,null,null,null,null,null,null,null,null,null,null,null,null,null,null,null,null,null,null,null,null,null,null,null,null,null,null,null,null,null,null,null,"　大雨情報"]
[]
[]
[]
[]
[]
[]
[null,null,null,null,null,null,null,null,null,null,null,null,null,null,null,null,null,null,null,null,null,null,null,null,null,null,null,null,null,null,null,null,null,null,null,null,null,null,null,null,null,null,null,null,null,null,null,null,null,null,null,null,null,null,null,null,null,null,null,null,null,null,null,null,null,null,null,null,null,"以下のいずれかに該当する場合\n",null,null,null,null,null,null,null,null,null,null,null,null,null,null,null,null,null,null,null,null,null,null,null,null,null,"気象情報等の情報収集",null,null,null,null,null,null,null,null,null,null,null,null,null,null,null,"総括・情報班（情報収集伝達要員）"]
[null,null,null,null,null,null,null,null,null,null,null,null,null,null,null,null,null,null,null,null,null,null,null,null,null,null,null,null,null,null,null,null,null,null,null,null,null,null,null,null,null,null,null,null,null,null,null,null,null,null,null,null,null,null,null,null,null,null,null,null,null,null,null,null,null,null,null,null,null,"　高齢者等避難の発令",null,null,null,null,null,null,null,null,null,null,null,null,null,null,null,null,null,null,null,null,null,null,null,null,null,"使用する資器材の準備",null,null,null,null,null,null,null,null,null,null,null,null,null,null,null,"避難誘導班（避難誘導要員）"]
[null,null,null,null,null,null,null,null,null,null,null,null,null,null,null,null,null,null,null,null,null,null,null,null,null,null,null,null,null,null,null,null,null,null,null,null,null,null,null,null,null,null,null,null,null,null,null,null,null,null,null,null,null,null,null,null,null,null,null,null,null,null,null,null,null,null,null,null,null,"　大雨注意報（土砂災害）発表",null,null,null,null,null,null,null,null,null,null,null,null,null,null,null,null,null,null,null,null,null,null,null,null,null,"保護者・家族等への事前連絡",null,null,null,null,null,null,null,null,null,null,null,null,null,null,null,"総括・情報班（情報収集伝達要員）"]
[null,null,null,null,null,null,null,null,null,null,null,null,null,null,null,null,null,null,null,null,null,null,null,null,null,null,null,null,null,null,null,null,null,null,null,null,null,null,null,null,null,null,null,null,null,null,null,null,null,null,null,null,null,null,null,null,null,null,null,null,null,null,null,null,null,null,null,null,null,null,null,null,null,null,null,null,null,null,null,null,null,null,null,null,null,null,null,null,null,null,null,null,null,null,null,"周辺住民への事前協力依頼",null,null,null,null,null,null,null,null,null,null,null,null,null,null,null,"総括・情報班（情報収集伝達要員）"]
[null,null,null,null,null,null,null,null,null,null,null,null,null,null,null,null,null,null,null,null,null,null,null,null,null,null,null,null,null,null,null,null,null,null,null,null,null,null,null,null,null,null,null,null,null,null,null,null,null,null,null,null,null,null,null,null,null,null,null,null,null,null,null,null,null,null,null,null,null,null,null,null,null,null,null,null,null,null,null,null,null,null,null,null,null,null,null,null,null,null,null,null,null,null,null,"要配慮者の避難誘導",null,null,null,null,null,null,null,null,null,null,null,null,null,null,null,"避難誘導班（避難誘導要員）"]
[]
[]
[]
[]
[null,null,null,null,null,null,null,null,null,null,null,null,null,null,null,null,null,null,null,null,null,null,null,null,null,null,null,null,null,null,null,null,null,null,null,null,null,null,null,null,null,null,null,null,null,null,null,null,null,null,null,null,null,null,null,null,null,null,null,null,null,null,null,null,null,null,null,null,null,"以下のいずれかに該当する場合\n",null,null,null,null,null,null,null,null,null,null,null,null,null,null,null,null,null,null,null,null,null,null,null,null,null,"施設内全体の避難誘導",null,null,null,null,null,null,null,null,null,null,null,null,null,null,null,"避難誘導班（避難誘導要員）"]
[null,null,null,null,null,null,null,null,null,null,null,null,null,null,null,null,null,null,null,null,null,null,null,null,null,null,null,null,null,null,null,null,null,null,null,null,null,null,null,null,null,null,null,null,null,null,null,null,null,null,null,null,null,null,null,null,null,null,null,null,null,null,null,null,null,null,null,null,null,"　避難指示の発令"]
[null,null,null,null,null,null,null,null,null,null,null,null,null,null,null,null,null,null,null,null,null,null,null,null,null,null,null,null,null,null,null,null,null,null,null,null,null,null,null,null,null,null,null,null,null,null,null,null,null,null,null,null,null,null,null,null,null,null,null,null,null,null,null,null,null,null,null,null,null,"　大雨警報（土砂災害）"]
[null,null,null,null,null,null,null,null,null,null,null,null,null,null,null,null,null,null,null,null,null,null,null,null,null,null,null,null,null,null,null,null,null,null,null,null,null,null,null,null,null,null,null,null,null,null,null,null,null,null,null,null,null,null,null,null,null,null,null,null,null,null,null,null,null,null,null,null,null,"　土砂災害警戒情報"]
[null,null,null,null,null,null,null,null,null,null,null,null,null,null,null,null,null,null,null,null,null,null,null,null,null,null,null,null,null,null,null,null,null,null,null,null,null,null,null,null,null,null,null,null,null,null,null,null,null,null,null,null,null,null,null,null,null,null,null,null,null,null,null,null,null,null,null,null,null,"　土砂災害の前兆現象"]
[]
[]
[]
[]
[]
[null,null,null,"レベル２　注意体制",null,null,null,null,null,null,null,null,null,null,null,null,null,null,null,null,null,null,null,null,null,null,null,null,"※判断時期は、気象情報、土砂災害警戒情報及び避難情報等をもとに設定する。雨の降り方や土砂災害の前兆現象等により自主的な判断に基づき体制を確立することも必要である。",null,null,null,null,null,null,null,null,null,null,null,null,null,null,null,null,null,null,null,null,null,null,null,null,null,null,null,null,null,null,null,null,null,null,null,null,null,null,null,null,"レベル２　注意体制",null,null,null,null,null,null,null,null,null,null,null,null,null,null,null,null,null,null,null,null,null,null,null,null,"※判断時期は、気象情報、土砂災害警戒情報及び避難情報等をもとに設定する。雨の降り方や土砂災害の前兆現象等により自主的な判断に基づき体制を確立することも必要である。"]
[null,null,null,"・災害モードへ気持ちを切り替える。\n・気象情報等の収集を行う。",null,null,null,null,null,null,null,null,null,null,null,null,null,null,null,null,null,null,null,null,null,null,null,null,null,null,null,null,null,null,null,null,null,null,null,null,null,null,null,null,null,null,null,null,null,null,null,null,null,null,null,null,null,null,null,null,null,null,null,null,null,null,null,null,null,"・災害モードへ気持ちを切り替える。\n・気象情報等の収集を行う。"]
[]
[null,null,null,null,null,null,null,null,null,null,null,null,"↓",null,null,null,null,null,null,null,null,null,null,null,null,null,null,null,null,null,null,null,null,null,null,null,null,null,null,null,null,null,null,null,null,null,null,null,null,null,null,null,null,null,null,null,null,null,null,null,null,null,null,null,null,null,null,null,null,null,null,null,null,null,null,null,null,null,"↓"]
[null,null,null,"レベル３　警戒体制",null,null,null,null,null,null,null,null,null,null,null,null,null,null,null,null,null,null,null,null,null,null,null,null,null,null,null,null,null,null,null,null,null,null,null,null,null,null,null,null,null,null,null,null,null,null,null,null,null,null,null,null,null,null,null,null,null,null,null,null,null,null,null,null,null,"レベル３　警戒体制"]
[null,null,null,"・避難場所へ避難する準備を行う。\n・要配慮者の避難誘導を開始する。",null,null,null,null,null,null,null,null,null,null,null,null,null,null,null,null,null,null,null,null,null,null,null,null,null,null,null,null,null,null,null,null,null,null,null,null,null,null,null,null,null,null,null,null,null,null,null,null,null,null,null,null,null,null,null,null,null,null,null,null,null,null,null,null,null,"・避難場所へ避難する準備を行う。\n・要配慮者の避難誘導を開始する。"]
[null,null,null,null,null,null,null,null,null,null,null,null,null,null,null,null,null,null,null,null,null,null,null,null,null,null,null,null,"※浸水想定区域と土砂災害警戒区域が重複する地域では、避難情報等の発表・発令が早い情報で避難体制を確立し、避難のタイミングを判断する必要がある。",null,null,null,null,null,null,null,null,null,null,null,null,null,null,null,null,null,null,null,null,null,null,null,null,null,null,null,null,null,null,null,null,null,null,null,null,null,null,null,null,null,null,null,null,null,null,null,null,null,null,null,null,null,null,null,null,null,null,null,null,null,null,null,null,null,"※浸水想定区域と土砂災害警戒区域が重複する地域では、避難情報等の発表・発令が早い情報で避難体制を確立し、避難のタイミングを判断する必要がある。"]
[null,null,null,null,null,null,null,null,null,null,null,null,"↓",null,null,null,null,null,null,null,null,null,null,null,null,null,null,null,null,null,null,null,null,null,null,null,null,null,null,null,null,null,null,null,null,null,null,null,null,null,null,null,null,null,null,null,null,null,null,null,null,null,null,null,null,null,null,null,null,null,null,null,null,null,null,null,null,null,"↓"]
[null,null,null,"レベル４　非常体制",null,null,null,null,null,null,null,null,null,null,null,null,null,null,null,null,null,null,null,null,null,null,null,null,null,null,null,null,null,null,null,null,null,null,null,null,null,null,null,null,null,null,null,null,null,null,null,null,null,null,null,null,null,null,null,null,null,null,null,null,null,null,null,null,null,"レベル４　非常体制"]
[null,null,null,"・施設内全体の避難誘導を開始する。",null,null,null,null,null,null,null,null,null,null,null,null,null,null,null,null,null,null,null,null,null,null,null,null,null,null,null,null,null,null,null,null,null,null,null,null,null,null,null,null,null,null,null,null,null,null,null,null,null,null,null,null,null,null,null,null,null,null,null,null,null,null,null,null,null,"・施設内全体の避難誘導を開始する。"]
[]
[]
[null,null,null,"大型台風",null,null,null,null,null,null,null,null,null,null,null,null,null,null,null,null,null,null,null,null,null,null,null,null,null,null,null,null,null,null,null,null,null,null,null,null,null,null,null,null,null,null,null,null,null,null,null,null,null,null,null,null,null,null,null,null,null,null,null,null,null,null,null,null,null,"大型台風"]
[null,null,null,null,null,null,null,null,null,null,null,null,null,null,null,null,null,null,null,null,null,null,null,null,null,null,null,null,null,null,null,null,null,null,null,null,null,null,null,null,null,null,null,null,null,null,null,null,null,null,null,null,null,null,null,null,null,null,null,null,null,null,null,null,null,null,null,null,null,"大型台風の襲来が予想される場合で、公共交通機関の計画運休が予定されている場合、避難に関する準備をし、早めに避難を開始する。また、協定を締結した地域の企業等と連携して早めに避難を開始する。"]
[]
[]
[]
[]
[null,null,null,null,null,null,null,null,null,null,null,null,null,null,null,null,null,null,null,null,null,null,null,null,null,null,null,null,null,null,null,null,null,null,null,null,null,null,null,null,null,null,null,null,null,null,null,null,null,null,null,null,null,null,null,null,null,null,null,null,null,null,null,null,null,null,null,null,null,"○○企業との協定　福祉車両提供及び避難支援（詳細は協定書参照）"]
[]
[]
[]
[]
[]
[]
[]
[]
[]
[]
[]
[]
[]
[]
[null,null,null,null,null,null,null,null,null,null,null,null,null,null,null,null,null,null,null,null,null,null,null,null,null,null,null,null,null,null,null,null,null,null,null,null,null,null,null,null,null,null,null,null,null,null,null,null,null,null,null,null,null,null,null,null,"様式３",null,null,null,null,null,null,null,null,null,null,null,null,null,null,null,null,null,null,null,null,null,null,null,null,null,null,null,null,null,null,null,null,null,null,null,null,null,null,null,null,null,null,null,null,null,null,null,null,null,null,null,null,null,null,null,null,null,null,null,null,null,null,null,null,null,"記載例"]
[]
[null,null,"５　情報収集・伝達",null,null,null,null,null,null,null,null,null,null,null,null,null,null,null,null,null,null,null,null,null,null,null,null,null,null,null,null,null,null,null,null,null,null,null,null,null,null,null,null,null,null,null,null,null,null,null,null,null,null,null,null,null,null,null,null,null,null,null,null,null,null,null,null,null,"５　情報収集・伝達"]
[null,null,"(1) 情報収集",null,null,null,null,null,null,null,null,null,null,null,null,null,null,null,null,null,null,null,null,null,null,null,null,null,null,null,null,null,null,null,null,null,null,null,null,null,null,null,null,null,null,null,null,null,null,null,null,null,null,null,null,null,null,null,null,null,null,null,null,null,null,null,null,null,"(1) 情報収集"]
[null,null,null,null,"収集する主な情報及び収集方法は、以下のとおりとする。",null,null,null,null,null,null,null,null,null,null,null,null,null,null,null,null,null,null,null,null,null,null,null,null,null,null,null,null,null,null,null,null,null,null,null,null,null,null,null,null,null,null,null,null,null,null,null,null,null,null,null,null,null,null,null,null,null,null,null,null,null,null,null,null,null,"収集する主な情報及び収集方法は、以下のとおりとする。"]
[]
[null,null,null,null,null,"収集する情報",null,null,null,null,null,null,null,null,null,null,null,"情報の例示",null,null,null,null,null,null,null,null,null,null,null,null,null,null,null,null,null,"収集方法",null,null,null,null,null,null,null,null,null,null,null,null,null,null,null,null,null,null,null,null,null,null,null,null,null,null,null,null,null,null,null,null,null,null,null,"収集する情報",null,null,null,null,null,null,null,null,null,null,null,"情報の例示",null,null,null,null,null,null,null,null,null,null,null,null,null,null,null,null,null,"収集方法（例）"]
[null,null,null,null,null,"洪水予報等",null,null,null,null,null,null,null,null,null,null,null,"気象警報、津波情報",null,null,null,null,null,null,null,null,null,null,null,null,null,null,null,null,null,{"$f":"IF(入力シート!L110=\"\",\"\",入力シート!L110)","v":"気象庁ウェブサイト（http://www.jma.go.jp/jp/warn/）、テレビ（データ放送）"},null,null,null,null,null,null,null,null,null,null,null,null,null,null,null,null,null,null,null,null,null,null,null,null,null,null,null,null,null,null,null,null,null,null,null,"洪水予報等",null,null,null,null,null,null,null,null,null,null,null,"気象警報、津波情報",null,null,null,null,null,null,null,null,null,null,null,null,null,null,null,null,null,"テレビ"]
[]
[]
[null,null,null,null,null,null,null,null,null,null,null,null,null,null,null,null,null,"洪水予報、水位到達情報",null,null,null,null,null,null,null,null,null,null,null,null,null,null,null,null,null,{"$f":"IF(入力シート!L112=\"\",\"\",入力シート!L112)","v":"川の防災情報（https://www.river.go.jp/index）"},null,null,null,null,null,null,null,null,null,null,null,null,null,null,null,null,null,null,null,null,null,null,null,null,null,null,null,null,null,null,null,null,null,null,null,null,null,null,null,null,null,null,null,null,null,null,null,"洪水予報、水位到達情報",null,null,null,null,null,null,null,null,null,null,null,null,null,null,null,null,null,"インターネット（情報提供機関のウェブサイト）"]
[]
[null,null,null,null,null,null,null,null,null,null,null,null,null,null,null,null,null,null,null,null,null,null,null,null,null,null,null,null,null,null,null,null,null,null,null,"気象庁ウェブサイトの洪水予報のサイト（http://www.jma.go.jp/jp/flood/）"]
[null,null,null,null,null,null,null,null,null,null,null,null,null,null,null,null,null,"土砂災害警戒情報",null,null,null,null,null,null,null,null,null,null,null,null,null,null,null,null,null,{"$f":"IF(入力シート!L114=\"\",\"\",入力シート!L114)","v":"気象庁ウェブサイト（http://www.jma.go.jp/jp/warn/）"},null,null,null,null,null,null,null,null,null,null,null,null,null,null,null,null,null,null,null,null,null,null,null,null,null,null,null,null,null,null,null,null,null,null,null,null,null,null,null,null,null,null,null,null,null,null,null,"土砂災害警戒情報",null,null,null,null,null,null,null,null,null,null,null,null,null,null,null,null,null,"ラジオ（ＡＭ○○○）"]
[]
[]
[null,null,null,null,null,null,null,null,null,null,null,null,null,null,null,null,null,"高齢者等避難、避難指示",null,null,null,null,null,null,null,null,null,null,null,null,null,null,null,null,null,{"$f":"IF(入力シート!L116=\"\",\"\",入力シート!L116)","v":"市町村ウェブサイト（●●）、緊急速報メール"},null,null,null,null,null,null,null,null,null,null,null,null,null,null,null,null,null,null,null,null,null,null,null,null,null,null,null,null,null,null,null,null,null,null,null,null,null,null,null,null,null,null,null,null,null,null,null,"高齢者等避難、避難指示",null,null,null,null,null,null,null,null,null,null,null,null,null,null,null,null,null,"防災行政無線、エリアメール・緊急速報メール、防災メール"]
[]
[]
[null,null,null,null,null,"その他",null,null,null,null,null,null,null,null,null,null,null,"施設周辺の浸水状況",null,null,null,null,null,null,null,null,null,null,null,null,null,null,null,null,null,{"$f":"IF(入力シート!L118=\"\",\"\",入力シート!L118)","v":"施設職員による目視"},null,null,null,null,null,null,null,null,null,null,null,null,null,null,null,null,null,null,null,null,null,null,null,null,null,null,null,null,null,null,null,null,null,null,null,"その他",null,null,null,null,null,null,null,null,null,null,null,"施設周辺の浸水状況",null,null,null,null,null,null,null,null,null,null,null,null,null,null,null,null,null,"施設職員による目視\n（但し、安全に配慮して危険な場所に近づかないよう施設内から実施）\n \n"]
[]
[]
[null,null,null,null,null,null,null,null,null,null,null,null,null,null,null,null,null,"排水施設の稼働状況",null,null,null,null,null,null,null,null,null,null,null,null,null,null,null,null,null,{"$f":"IF(入力シート!L120=\"\",\"\",入力シート!L120)","v":"市町村への問い合わせ"},null,null,null,null,null,null,null,null,null,null,null,null,null,null,null,null,null,null,null,null,null,null,null,null,null,null,null,null,null,null,null,null,null,null,null,null,null,null,null,null,null,null,null,null,null,null,null,"排水施設の稼働状況",null,null,null,null,null,null,null,null,null,null,null,null,null,null,null,null,null,"市町村からのＦＡＸ（事前に調整）"]
[]
[]
[null,null,null,null,null,null,null,null,null,null,null,null,null,null,null,null,null,"施設周辺における土砂災害の前兆現象",null,null,null,null,null,null,null,null,null,null,null,null,null,null,null,null,null,{"$f":"IF(入力シート!L122=\"\",\"\",入力シート!L122)","v":"―"},null,null,null,null,null,null,null,null,null,null,null,null,null,null,null,null,null,null,null,null,null,null,null,null,null,null,null,null,null,null,null,null,null,null,null,null,null,null,null,null,null,null,null,null,null,null,null,"施設周辺における土砂災害の前兆現象",null,null,null,null,null,null,null,null,null,null,null,null,null,null,null,null,null,"施設職員による目視\n（但し、安全に配慮して危険な場所に近づかないよう施設内から実施）"]
[]
[]
[]
[]
[null,null,"　停電時は、ラジオ、タブレット、携帯電話を活用して情報を収集するものとし、これに備えて、",null,null,null,null,null,null,null,null,null,null,null,null,null,null,null,null,null,null,null,null,null,null,null,null,null,null,null,null,null,null,null,null,null,null,null,null,null,null,null,null,null,null,null,null,null,null,null,null,null,null,null,null,null,null,null,null,null,null,null,null,null,null,null,null,null,"　停電時は、ラジオ、タブレット、携帯電話を活用して情報を収集するものとし、これに備えて、"]
[null,null,"乾電池、バッテリー等を備蓄する。",null,null,null,null,null,null,null,null,null,null,null,null,null,null,null,null,null,null,null,null,null,null,null,null,null,null,null,null,null,null,null,null,null,null,null,null,null,null,null,null,null,null,null,null,null,null,null,null,null,null,null,null,null,null,null,null,null,null,null,null,null,null,null,null,null,"乾電池、バッテリー等を備蓄する。"]
[null,null,"　提供される情報に加えて、雨の降り方、施設周辺の水路や道路の状況、斜面に危険な前兆が",null,null,null,null,null,null,null,null,null,null,null,null,null,null,null,null,null,null,null,null,null,null,null,null,null,null,null,null,null,null,null,null,null,null,null,null,null,null,null,null,null,null,null,null,null,null,null,null,null,null,null,null,null,null,null,null,null,null,null,null,null,null,null,null,null,"　提供される情報に加えて、雨の降り方、施設周辺の水路や道路の状況、斜面に危険な前兆が"]
[null,null,"無いか等、施設内から確認を行う。",null,null,null,null,null,null,null,null,null,null,null,null,null,null,null,null,null,null,null,null,null,null,null,null,null,null,null,null,null,null,null,null,null,null,null,null,null,null,null,null,null,null,null,null,null,null,null,null,null,null,null,null,null,null,null,null,null,null,null,null,null,null,null,null,null,"無いか等、施設内から確認を行う。"]
[null,null,null,"「対応別避難誘導一覧表」⇒様式１１",null,null,null,null,null,null,null,null,null,null,null,null,null,null,null,null,null,null,null,null,null,null,null,null,null,null,null,null,null,null,null,null,null,null,null,null,null,null,null,null,null,null,null,null,null,null,null,null,null,null,null,null,null,null,null,null,null,null,null,null,null,null,null,null,null,"「対応別避難誘導一覧表」⇒様式１１"]
[]
[null,null,"(2) 情報伝達",null,null,null,null,null,null,null,null,null,null,null,null,null,null,null,null,null,null,null,null,null,null,null,null,null,null,null,null,null,null,null,null,null,null,null,null,null,null,null,null,null,null,null,null,null,null,null,null,null,null,null,null,null,null,null,null,null,null,null,null,null,null,null,null,null,"(2) 情報伝達"]
[null,null,"　「緊急連絡網」に基づき、気象情報、洪水予報、津波情報及び土砂災害警戒情報等の",null,null,null,null,null,null,null,null,null,null,null,null,null,null,null,null,null,null,null,null,null,null,null,null,null,null,null,null,null,null,null,null,null,null,null,null,null,null,null,null,null,null,null,null,null,null,null,null,null,null,null,null,null,null,null,null,null,null,null,null,null,null,null,null,null,"　「緊急連絡網」に基づき、気象情報、洪水予報、津波情報及び土砂災害警戒情報等の"]
[null,null,"情報を施設内関係者間で共有する。",null,null,null,null,null,null,null,null,null,null,null,null,null,null,null,null,null,null,null,null,null,null,null,null,null,null,null,null,null,null,null,null,null,null,null,null,null,null,null,null,null,null,null,null,null,null,null,null,null,null,null,null,null,null,null,null,null,null,null,null,null,null,null,null,null,"情報を施設内関係者間で共有する。"]
[null,null,"　避難する場合には「患者緊急連絡先一覧表」に基づき、患者の保護者・家族等に対し、",null,null,null,null,null,null,null,null,null,null,null,null,null,null,null,null,null,null,null,null,null,null,null,null,null,null,null,null,null,null,null,null,null,null,null,null,null,null,null,null,null,null,null,null,null,null,null,null,null,null,null,null,null,null,null,null,null,null,null,null,null,null,null,null,null,"　避難する場合には「患者緊急連絡先一覧表」に基づき、患者の保護者・家族等に対し、"]
[null,null,"「",null,{"$f":"IF(入力シート!C128=\"\",\"\",入力シート!C128)","v":""},null,null,null,null,null,null,null,"（避難場所）へ避難する。患者引き渡しは",null,null,null,null,null,null,null,null,null,null,null,null,null,null,null,null,null,null,null,null,null,null,null,null,{"$f":"IF(入力シート!P128=\"\",\"\",入力シート!P128)","v":""},null,null,null,null,null,null,null,"（避難場所）において",null,null,null,null,null,null,null,null,null,null,null,null,null,null,null,null,null,null,null,null,null,null,"「",null,"Ａ会",null,null,null,null,null,null,null,"（避難場所）へ避難する。患者引き渡しは",null,null,null,null,null,null,null,null,null,null,null,null,null,null,null,null,null,null,null,null,null,null,null,null,"Ａ会",null,null,null,null,null,null,null,"（避難場所）において"]
[null,null,"行う。患者の引き渡し開始は○○時頃とする。」旨を連絡する。",null,null,null,null,null,null,null,null,null,null,null,null,null,null,null,null,null,null,null,null,null,null,null,null,null,null,null,null,null,null,null,null,null,null,null,null,null,null,null,null,null,null,null,null,null,null,null,null,null,null,null,null,null,null,null,null,null,null,null,null,null,null,null,null,null,"行う。患者の引き渡し開始は○○時頃とする。」旨を連絡する。"]
[null,null,null,null,null,null,null,null,null,null,null,null,null,null,null,null,null,null,null,null,null,null,null,null,null,null,null,null,null,null,null,null,null,null,null,null,null,null,null,null,null,null,null,null,null,null,null,null,null,null,null,null,null,null,null,null,null,null,null,null,null,null,null,null,null,null,null,null,"※実際に避難する場所の名称を記載して下さい。"]
[null,null,null,"「患者緊急連絡先一覧表」⇒様式８",null,null,null,null,null,null,null,null,null,null,null,null,null,null,null,null,null,null,null,null,null,null,null,null,null,null,null,null,null,null,null,null,null,null,null,null,null,null,null,null,null,null,null,null,null,null,null,null,null,null,null,null,null,null,null,null,null,null,null,null,null,null,null,null,null,"「患者緊急連絡先一覧表」⇒様式８"]
[null,null,null,"「緊急連絡網」⇒様式９",null,null,null,null,null,null,null,null,null,null,null,null,null,null,null,null,null,null,null,null,null,null,null,null,null,null,null,null,null,null,null,null,null,null,null,null,null,null,null,null,null,null,null,null,null,null,null,null,null,null,null,null,null,null,null,null,null,null,null,null,null,null,null,null,null,"「緊急連絡網」⇒様式９"]
[]
[]
[]
[]
[]
[]
[]
[]
[]
[]
[]
[]
[]
[]
[null,null,"６　避難誘導",null,null,null,null,null,null,null,null,null,null,null,null,null,null,null,null,null,null,null,null,null,null,null,null,null,null,null,null,null,null,null,null,null,null,null,null,null,null,null,null,null,null,null,null,null,null,null,null,null,null,null,null,null,"様式４",null,null,null,null,null,null,null,null,null,null,null,"６　避難誘導",null,null,null,null,null,null,null,null,null,null,null,null,null,null,null,null,null,null,null,null,null,null,null,null,null,null,null,null,null,null,null,null,null,null,null,null,null,null,null,null,null,null,null,null,null,null,null,null,null,null,null,null,null,"記載例"]
[null,null,"（１）避難場所、移動距離及び手段",null,null,null,null,null,null,null,null,null,null,null,null,null,null,null,null,null,null,null,null,null,null,null,null,null,null,null,null,null,null,null,null,null,null,null,null,null,null,null,null,null,null,null,null,null,null,null,null,null,null,null,null,null,null,null,null,null,null,null,null,null,null,null,null,null,"（１）避難場所、移動距離及び手段"]
[null,null,null,null,"浸水深が大きく、施設全体が浸水するおそれがある場合、浸水継続時間が長く、長期的に孤立するおそれがある場合、家屋倒壊等氾濫想定区域に位置する場合は立退き避難（水平避難）する。関連施設等への避難も選択肢の一つである。患者に合わせて移動手段に配慮する。避難場所への立退き避難（水平避難）が危険な場合は、近隣の安全な場所や建物のより安全な部屋等へ移動する。",null,null,null,null,null,null,null,null,null,null,null,null,null,null,null,null,null,null,null,null,null,null,null,null,null,null,null,null,null,null,null,null,null,null,null,null,null,null,null,null,null,null,null,null,null,null,null,null,null,null,null,null,null,null,null,null,null,null,null,null,null,null,null,null,null,"浸水深が大きく、施設全体が浸水するおそれがある場合、浸水継続時間が長く、長期的に孤立するおそれがある場合、家屋倒壊等氾濫想定区域に位置する場合は立退き避難（水平避難）する。関連施設等への避難も選択肢の一つである。患者に合わせて移動手段に配慮する。避難場所への立退き避難（水平避難）が危険な場合は、近隣の安全な場所や建物のより安全な部屋等へ移動する。"]
[]
[]
[]
[null,null,null,null,"１）立退き避難（水平避難）を行う場合",null,null,null,null,null,null,null,null,null,null,null,null,null,null,null,null,null,null,null,null,null,null,null,null,null,null,null,null,null,null,null,null,null,null,null,null,null,null,null,null,null,null,null,null,null,null,null,null,null,null,null,null,null,null,null,null,null,null,null,null,null,null,null,null,null,"１）立退き避難（水平避難）を行う場合"]
[null,null,null,null,"立退き避難（水平避難）の場合の避難場所１（浸水想定区域外の関連施設）",null,null,null,null,null,null,null,null,null,null,null,null,null,null,null,null,null,null,null,null,null,null,null,null,null,null,null,null,null,null,null,null,null,null,null,null,null,null,null,null,null,null,null,null,null,null,null,null,null,null,null,null,null,null,null,null,null,null,null,null,null,null,null,null,null,"立退き避難（水平避難）の場合の避難場所１（浸水想定区域外の関連施設等）"]
[null,null,null,null,null,null,null,null,null,null,null,null,null,null,null,null,null,null,null,null,"避難場所名称",null,null,null,null,null,null,null,null,null,null,null,null,null,null,null,"移動距離",null,null,null,null,null,null,null,null,null,"移動手段",null,null,null,null,null,null,null,null,null,null,null,null,null,null,null,null,null,null,null,null,null,null,null,null,null,null,null,null,null,null,null,null,null,null,null,null,null,null,null,"避難場所名称",null,null,null,null,null,null,null,null,null,null,null,null,null,null,null,"移動距離",null,null,null,null,null,null,null,null,null,"移動手段"]
[null,null,null,null,null,null,null,null,null,null,null,null,null,null,null,null,null,null,null,null,null,null,null,null,null,null,null,null,null,null,null,null,null,null,null,null,null,null,null,null,null,null,null,null,null,null,"徒歩",null,null,null,null,null,"車両",null,null,null,null,null,null,null,null,null,null,null,null,null,null,null,null,null,null,null,null,null,null,null,null,null,null,null,null,null,null,null,null,null,null,null,null,null,null,null,null,null,null,null,null,null,null,null,null,null,null,null,null,null,null,null,null,null,null,null,"徒歩",null,null,null,null,null,"車両"]
[null,null,null,null,"施設名（洪水）",null,null,null,null,null,null,null,null,null,null,null,null,null,null,null,{"$f":"IF(入力シート!M136=\"\",\"\",入力シート!M136)","v":""},null,null,null,null,null,null,null,null,null,null,null,null,null,null,null,{"$f":"IF(入力シート!M142=\"\",\"\",入力シート!M142)","v":""},null,null,null,null,null,null,null,"m",null,null,null,null,null,null,null,null,null,null,null,{"$f":"IF(入力シート!S146=\"\",\"\",入力シート!S146)","v":""},null,null,"台",null,null,null,null,null,null,null,null,null,null,"施設名（洪水）",null,null,null,null,null,null,null,null,null,null,null,null,null,null,null,"Ａ会（系列グループホーム）",null,null,null,null,null,null,null,null,null,null,null,null,null,null,null,2000,null,null,null,null,null,null,null,"m",null,null,null,null,null,null,null,null,null,null,null,4,null,null,"台"]
[null,null,null,null,null,null,null,null,null,null,null,null,null,null,null,null,null,null,null,null,null,null,null,null,null,null,null,null,null,null,null,null,null,null,null,null,null,null,null,null,null,null,null,null,null,null,null,null,{"$f":"IF(入力シート!S144=\"\",\"\",\"✓\")","v":""},null,null,null,null,null,{"$f":"IF(入力シート!S146=\"\",\"\",\"✓\")","v":""},null,null,null,null,null,null,null,null,null,null,null,null,null,null,null,null,null,null,null,null,null,null,null,null,null,null,null,null,null,null,null,null,null,null,null,null,null,null,null,null,null,null,null,null,null,null,null,null,null,null,null,null,null,null,null,null,null,null,null,null,null,null,null,null,null,"✔"]
[null,null,null,null,null,null,null,null,null,null,null,null,null,null,null,null,null,null,null,null,{"$f":"IF(入力シート!M138=\"\",\"\",入力シート!M138)","v":""}]
[null,null,null,null,"施設名（内水）",null,null,null,null,null,null,null,null,null,null,null,null,null,null,null,null,null,null,null,null,null,null,null,null,null,null,null,null,null,null,null,null,null,null,null,null,null,null,null,"m",null,null,null,null,null,null,null,null,null,null,null,null,null,null,"台",null,null,null,null,null,null,null,null,null,null,"施設名（内水）",null,null,null,null,null,null,null,null,null,null,null,null,null,null,null,"Ａ会（系列グループホーム）",null,null,null,null,null,null,null,null,null,null,null,null,null,null,null,2000,null,null,null,null,null,null,null,"m",null,null,null,null,null,null,null,null,null,null,null,4,null,null,"台"]
[null,null,null,null,null,null,null,null,null,null,null,null,null,null,null,null,null,null,null,null,null,null,null,null,null,null,null,null,null,null,null,null,null,null,null,null,null,null,null,null,null,null,null,null,null,null,null,null,null,null,null,null,null,null,null,null,null,null,null,null,null,null,null,null,null,null,null,null,null,null,null,null,null,null,null,null,null,null,null,null,null,null,null,null,null,null,null,null,null,null,null,null,null,null,null,null,null,null,null,null,null,null,null,null,null,null,null,null,null,null,null,null,null,null,null,null,null,null,null,null,"✔"]
[]
[null,null,null,null,"施設名（高潮）",null,null,null,null,null,null,null,null,null,null,null,null,null,null,null,null,null,null,null,null,null,null,null,null,null,null,null,null,null,null,null,null,null,null,null,null,null,null,null,"m",null,null,null,null,null,null,null,null,null,null,null,null,null,null,"台",null,null,null,null,null,null,null,null,null,null,"施設名（高潮）",null,null,null,null,null,null,null,null,null,null,null,null,null,null,null,"Ａ会（系列グループホーム）",null,null,null,null,null,null,null,null,null,null,null,null,null,null,null,2000,null,null,null,null,null,null,null,"m",null,null,null,null,null,null,null,null,null,null,null,4,null,null,"台"]
[null,null,null,null,null,null,null,null,null,null,null,null,null,null,null,null,null,null,null,null,null,null,null,null,null,null,null,null,null,null,null,null,null,null,null,null,null,null,null,null,null,null,null,null,null,null,null,null,null,null,null,null,null,null,null,null,null,null,null,null,null,null,null,null,null,null,null,null,null,null,null,null,null,null,null,null,null,null,null,null,null,null,null,null,null,null,null,null,null,null,null,null,null,null,null,null,null,null,null,null,null,null,null,null,null,null,null,null,null,null,null,null,null,null,null,null,null,null,null,null,"✔"]
[]
[null,null,null,null,"施設名（津波）",null,null,null,null,null,null,null,null,null,null,null,null,null,null,null,null,null,null,null,null,null,null,null,null,null,null,null,null,null,null,null,null,null,null,null,null,null,null,null,"m",null,null,null,null,null,null,null,null,null,null,null,null,null,null,"台",null,null,null,null,null,null,null,null,null,null,"施設名（津波）",null,null,null,null,null,null,null,null,null,null,null,null,null,null,null,"Ｂ神社",null,null,null,null,null,null,null,null,null,null,null,null,null,null,null,300,null,null,null,null,null,null,null,"m",null,null,null,null,null,null,null,null,null,null,null,4,null,null,"台"]
[null,null,null,null,null,null,null,null,null,null,null,null,null,null,null,null,null,null,null,null,null,null,null,null,null,null,null,null,null,null,null,null,null,null,null,null,null,null,null,null,null,null,null,null,null,null,null,null,null,null,null,null,null,null,null,null,null,null,null,null,null,null,null,null,null,null,null,null,null,null,null,null,null,null,null,null,null,null,null,null,null,null,null,null,null,null,null,null,null,null,null,null,null,null,null,null,null,null,null,null,null,null,null,null,null,null,null,null,null,null,null,null,null,null,"✔",null,null,null,null,null,"✔"]
[]
[null,null,null,null,"施設名（土砂災害：がけ崩れ・土石流・地すべり）",null,null,null,null,null,null,null,null,null,null,null,null,null,null,null,null,null,null,null,null,null,null,null,null,null,null,null,null,null,null,null,null,null,null,null,null,null,null,null,"m",null,null,null,null,null,null,null,null,null,null,null,null,null,null,"台",null,null,null,null,null,null,null,null,null,null,"施設名（土砂災害：がけ崩れ・土石流・地すべり）",null,null,null,null,null,null,null,null,null,null,null,null,null,null,null,"Ｃ高校（体育館）",null,null,null,null,null,null,null,null,null,null,null,null,null,null,null,500,null,null,null,null,null,null,null,"m",null,null,null,null,null,null,null,null,null,null,null,4,null,null,"台"]
[null,null,null,null,null,null,null,null,null,null,null,null,null,null,null,null,null,null,null,null,null,null,null,null,null,null,null,null,null,null,null,null,null,null,null,null,null,null,null,null,null,null,null,null,null,null,null,null,null,null,null,null,null,null,null,null,null,null,null,null,null,null,null,null,null,null,null,null,null,null,null,null,null,null,null,null,null,null,null,null,null,null,null,null,null,null,null,null,null,null,null,null,null,null,null,null,null,null,null,null,null,null,null,null,null,null,null,null,null,null,null,null,null,null,"✔",null,null,null,null,null,"✔"]
[]
[]
[]
[null,null,null,null,"立退き避難（水平避難）の場合の避難場所２（指定緊急避難場所）",null,null,null,null,null,null,null,null,null,null,null,null,null,null,null,null,null,null,null,null,null,null,null,null,null,null,null,null,null,null,null,null,null,null,null,null,null,null,null,null,null,null,null,null,null,null,null,null,null,null,null,null,null,null,null,null,null,null,null,null,null,null,null,null,null,"立退き避難（水平避難）の場合の避難場所２（指定緊急避難場所）"]
[null,null,null,null,null,null,null,null,null,null,null,null,null,null,null,null,null,null,null,null,"避難場所名称",null,null,null,null,null,null,null,null,null,null,null,null,null,null,null,"移動距離",null,null,null,null,null,null,null,null,null,"移動手段",null,null,null,null,null,null,null,null,null,null,null,null,null,null,null,null,null,null,null,null,null,null,null,null,null,null,null,null,null,null,null,null,null,null,null,null,null,null,null,"避難場所名称",null,null,null,null,null,null,null,null,null,null,null,null,null,null,null,"移動距離",null,null,null,null,null,null,null,null,null,"移動手段"]
[null,null,null,null,null,null,null,null,null,null,null,null,null,null,null,null,null,null,null,null,null,null,null,null,null,null,null,null,null,null,null,null,null,null,null,null,null,null,null,null,null,null,null,null,null,null,"徒歩",null,null,null,null,null,"車両",null,null,null,null,null,null,null,null,null,null,null,null,null,null,null,null,null,null,null,null,null,null,null,null,null,null,null,null,null,null,null,null,null,null,null,null,null,null,null,null,null,null,null,null,null,null,null,null,null,null,null,null,null,null,null,null,null,null,null,"徒歩",null,null,null,null,null,"車両"]
[null,null,null,null,"施設名（洪水）",null,null,null,null,null,null,null,null,null,null,null,null,null,null,null,{"$f":"IF(入力シート!M154=\"\",\"\",入力シート!M154)","v":""},null,null,null,null,null,null,null,null,null,null,null,null,null,null,null,{"$f":"IF(入力シート!M160=\"\",\"\",入力シート!M160)","v":""},null,null,null,null,null,null,null,"m",null,null,null,null,null,null,null,null,null,null,null,{"$f":"IF(入力シート!S164=\"\",\"\",入力シート!S164)","v":""},null,null,"台",null,null,null,null,null,null,null,null,null,null,"施設名（洪水）",null,null,null,null,null,null,null,null,null,null,null,null,null,null,null,"Ｃ高校（体育館）",null,null,null,null,null,null,null,null,null,null,null,null,null,null,null,500,null,null,null,null,null,null,null,"m",null,null,null,null,null,null,null,null,null,null,null,4,null,null,"台"]
[null,null,null,null,null,null,null,null,null,null,null,null,null,null,null,null,null,null,null,null,null,null,null,null,null,null,null,null,null,null,null,null,null,null,null,null,null,null,null,null,null,null,null,null,null,null,null,null,{"$f":"IF(入力シート!S162=\"\",\"\",\"✓\")","v":""},null,null,null,null,null,{"$f":"IF(入力シート!S164=\"\",\"\",\"✓\")","v":""},null,null,null,null,null,null,null,null,null,null,null,null,null,null,null,null,null,null,null,null,null,null,null,null,null,null,null,null,null,null,null,null,null,null,null,null,null,null,null,null,null,null,null,null,null,null,null,null,null,null,null,null,null,null,null,null,null,null,null,"✔",null,null,null,null,null,"✔"]
[null,null,null,null,null,null,null,null,null,null,null,null,null,null,null,null,null,null,null,null,{"$f":"IF(入力シート!M156=\"\",\"\",入力シート!M156)","v":""}]
[null,null,null,null,"施設名（内水）",null,null,null,null,null,null,null,null,null,null,null,null,null,null,null,null,null,null,null,null,null,null,null,null,null,null,null,null,null,null,null,null,null,null,null,null,null,null,null,"m",null,null,null,null,null,null,null,null,null,null,null,null,null,null,"台",null,null,null,null,null,null,null,null,null,null,"施設名（内水）",null,null,null,null,null,null,null,null,null,null,null,null,null,null,null,"Ｃ高校（体育館）",null,null,null,null,null,null,null,null,null,null,null,null,null,null,null,500,null,null,null,null,null,null,null,"m",null,null,null,null,null,null,null,null,null,null,null,4,null,null,"台"]
[null,null,null,null,null,null,null,null,null,null,null,null,null,null,null,null,null,null,null,null,null,null,null,null,null,null,null,null,null,null,null,null,null,null,null,null,null,null,null,null,null,null,null,null,null,null,null,null,null,null,null,null,null,null,null,null,null,null,null,null,null,null,null,null,null,null,null,null,null,null,null,null,null,null,null,null,null,null,null,null,null,null,null,null,null,null,null,null,null,null,null,null,null,null,null,null,null,null,null,null,null,null,null,null,null,null,null,null,null,null,null,null,null,null,"✔",null,null,null,null,null,"✔"]
[]
[null,null,null,null,"施設名（高潮）",null,null,null,null,null,null,null,null,null,null,null,null,null,null,null,null,null,null,null,null,null,null,null,null,null,null,null,null,null,null,null,null,null,null,null,null,null,null,null,"m",null,null,null,null,null,null,null,null,null,null,null,null,null,null,"台",null,null,null,null,null,null,null,null,null,null,"施設名（高潮）",null,null,null,null,null,null,null,null,null,null,null,null,null,null,null,"Ｃ高校（体育館）",null,null,null,null,null,null,null,null,null,null,null,null,null,null,null,500,null,null,null,null,null,null,null,"m",null,null,null,null,null,null,null,null,null,null,null,4,null,null,"台"]
[null,null,null,null,null,null,null,null,null,null,null,null,null,null,null,null,null,null,null,null,null,null,null,null,null,null,null,null,null,null,null,null,null,null,null,null,null,null,null,null,null,null,null,null,null,null,null,null,null,null,null,null,null,null,null,null,null,null,null,null,null,null,null,null,null,null,null,null,null,null,null,null,null,null,null,null,null,null,null,null,null,null,null,null,null,null,null,null,null,null,null,null,null,null,null,null,null,null,null,null,null,null,null,null,null,null,null,null,null,null,null,null,null,null,"✔",null,null,null,null,null,"✔"]
[]
[null,null,null,null,"施設名（津波）",null,null,null,null,null,null,null,null,null,null,null,null,null,null,null,null,null,null,null,null,null,null,null,null,null,null,null,null,null,null,null,null,null,null,null,null,null,null,null,"m",null,null,null,null,null,null,null,null,null,null,null,null,null,null,"台",null,null,null,null,null,null,null,null,null,null,"施設名（津波）",null,null,null,null,null,null,null,null,null,null,null,null,null,null,null,"Ｄ小学校（校舎2階以上）",null,null,null,null,null,null,null,null,null,null,null,null,null,null,null,350,null,null,null,null,null,null,null,"m",null,null,null,null,null,null,null,null,null,null,null,4,null,null,"台"]
[null,null,null,null,null,null,null,null,null,null,null,null,null,null,null,null,null,null,null,null,null,null,null,null,null,null,null,null,null,null,null,null,null,null,null,null,null,null,null,null,null,null,null,null,null,null,null,null,null,null,null,null,null,null,null,null,null,null,null,null,null,null,null,null,null,null,null,null,null,null,null,null,null,null,null,null,null,null,null,null,null,null,null,null,null,null,null,null,null,null,null,null,null,null,null,null,null,null,null,null,null,null,null,null,null,null,null,null,null,null,null,null,null,null,"✔",null,null,null,null,null,"✔"]
[]
[null,null,null,null,"施設名（土砂災害：がけ崩れ・土石流・地すべり）",null,null,null,null,null,null,null,null,null,null,null,null,null,null,null,null,null,null,null,null,null,null,null,null,null,null,null,null,null,null,null,null,null,null,null,null,null,null,null,"m",null,null,null,null,null,null,null,null,null,null,null,null,null,null,"台",null,null,null,null,null,null,null,null,null,null,"施設名（土砂災害：がけ崩れ・土石流・地すべり）",null,null,null,null,null,null,null,null,null,null,null,null,null,null,null,"Ｃ高校（体育館）",null,null,null,null,null,null,null,null,null,null,null,null,null,null,null,500,null,null,null,null,null,null,null,"m",null,null,null,null,null,null,null,null,null,null,null,4,null,null,"台"]
[null,null,null,null,null,null,null,null,null,null,null,null,null,null,null,null,null,null,null,null,null,null,null,null,null,null,null,null,null,null,null,null,null,null,null,null,null,null,null,null,null,null,null,null,null,null,null,null,null,null,null,null,null,null,null,null,null,null,null,null,null,null,null,null,null,null,null,null,null,null,null,null,null,null,null,null,null,null,null,null,null,null,null,null,null,null,null,null,null,null,null,null,null,null,null,null,null,null,null,null,null,null,null,null,null,null,null,null,null,null,null,null,null,null,"✔",null,null,null,null,null,"✔"]
[]
[]
[]
[null,null,null,null,"２）屋内安全確保を行う場合",null,null,null,null,null,null,null,null,null,null,null,null,null,null,null,null,null,null,null,null,null,null,null,null,null,null,null,null,null,null,null,null,null,null,null,null,null,null,null,null,null,null,null,null,null,null,null,null,null,null,null,null,null,null,null,null,null,null,null,null,null,null,null,null,null,"２）屋内安全確保を行う場合"]
[null,null,null,null,"屋内安全確保（垂直避難）の場合",null,null,null,null,null,null,null,null,null,null,null,null,null,null,null,null,null,null,null,null,null,null,null,null,null,null,null,null,null,null,null,null,null,null,null,null,null,null,null,null,null,null,null,null,null,null,null,null,null,null,null,null,null,null,null,null,null,null,null,null,null,null,null,null,null,"屋内安全確保（垂直避難）の場合"]
[null,null,null,null,null,null,null,null,null,null,null,null,null,null,null,null,null,null,null,null,"建物名称",null,null,null,null,null,null,null,null,null,null,null,null,null,null,null,"避難階",null,null,null,null,null,null,null,null,null,"移動手段",null,null,null,null,null,null,null,null,null,null,null,null,null,null,null,null,null,null,null,null,null,null,null,null,null,null,null,null,null,null,null,null,null,null,null,null,null,null,null,"建物名称",null,null,null,null,null,null,null,null,null,null,null,null,null,null,null,"避難階",null,null,null,null,null,null,null,null,null,"移動手段"]
[]
[null,null,null,null,"屋内安全確保（洪水）",null,null,null,null,null,null,null,null,null,null,null,null,null,null,null,{"$f":"IF(入力シート!M172=\"\",\"-\",入力シート!M172)","v":"-"},null,null,null,null,null,null,null,null,null,null,null,null,null,null,null,{"$f":"IF(入力シート!M174=\"\",\"-\",入力シート!M174)","v":"-"},null,null,null,null,null,null,null,"階",null,{"$f":"IF(入力シート!M176=\"\",\"-\",入力シート!M176)","v":"-"},null,null,null,null,null,null,null,null,null,null,null,null,null,null,null,null,null,null,null,null,null,null,null,"屋内安全確保（洪水）",null,null,null,null,null,null,null,null,null,null,null,null,null,null,null,"本施設",null,null,null,null,null,null,null,null,null,null,null,null,null,null,null,2,null,null,null,null,null,null,null,"階",null,"エレベーター、ストレッチャー"]
[null,null,null,null,"屋内安全確保（内水）",null,null,null,null,null,null,null,null,null,null,null,null,null,null,null,null,null,null,null,null,null,null,null,null,null,null,null,null,null,null,null,null,null,null,null,null,null,null,null,"階",null,null,null,null,null,null,null,null,null,null,null,null,null,null,null,null,null,null,null,null,null,null,null,null,null,"屋内安全確保（内水）",null,null,null,null,null,null,null,null,null,null,null,null,null,null,null,"本施設",null,null,null,null,null,null,null,null,null,null,null,null,null,null,null,2,null,null,null,null,null,null,null,"階",null,"エレベーター、ストレッチャー"]
[null,null,null,null,"屋内安全確保（高潮）",null,null,null,null,null,null,null,null,null,null,null,null,null,null,null,null,null,null,null,null,null,null,null,null,null,null,null,null,null,null,null,null,null,null,null,null,null,null,null,"階",null,null,null,null,null,null,null,null,null,null,null,null,null,null,null,null,null,null,null,null,null,null,null,null,null,"屋内安全確保（高潮）",null,null,null,null,null,null,null,null,null,null,null,null,null,null,null,"本施設",null,null,null,null,null,null,null,null,null,null,null,null,null,null,null,2,null,null,null,null,null,null,null,"階",null,"エレベーター、ストレッチャー"]
[null,null,null,null,"屋内安全確保（津波）",null,null,null,null,null,null,null,null,null,null,null,null,null,null,null,null,null,null,null,null,null,null,null,null,null,null,null,null,null,null,null,null,null,null,null,null,null,null,null,"階",null,null,null,null,null,null,null,null,null,null,null,null,null,null,null,null,null,null,null,null,null,null,null,null,null,"屋内安全確保（津波）",null,null,null,null,null,null,null,null,null,null,null,null,null,null,null,"指定無",null,null,null,null,null,null,null,null,null,null,null,null,null,null,null,null,null,null,null,null,null,null,null,"階"]
[null,null,null,null,"施設名（土砂災害：がけ崩れ・土石流・地すべり）",null,null,null,null,null,null,null,null,null,null,null,null,null,null,null,null,null,null,null,null,null,null,null,null,null,null,null,null,null,null,null,null,null,null,null,null,null,null,null,"階",null,null,null,null,null,null,null,null,null,null,null,null,null,null,null,null,null,null,null,null,null,null,null,null,null,"施設名（土砂災害：がけ崩れ・土石流・地すべり）",null,null,null,null,null,null,null,null,null,null,null,null,null,null,null,"本施設（斜面の反対側）",null,null,null,null,null,null,null,null,null,null,null,null,null,null,null,2,null,null,null,null,null,null,null,"階",null,"エレベーター、ストレッチャー"]
[null,null,null,null,null,null,null,null,null,null,null,null,null,null,null,null,null,null,null,null,null,null,null,null,null,null,null,null,null,null,null,null,null,null,null,null,null,null,null,null,null,null,null,null,null,null,null,null,null,null,null,null,null,null,null,null,null,null,null,null,null,null,null,null,null,null,null,null,null,null,"※建物名称は、複数の建物がある場合や日頃用いている名称がある場合に記載する。"]
[]
[]
[null,null,null,null,"３）近隣の安全な場所",null,null,null,null,null,null,null,null,null,null,null,null,null,null,null,null,null,null,null,null,null,null,null,null,null,null,null,null,null,null,null,null,null,null,null,null,null,null,null,null,null,null,null,null,null,null,null,null,null,null,null,null,null,null,null,null,null,null,null,null,null,null,null,null,null,"３）近隣の安全な場所※"]
[null,null,null,null,"立退き避難（水平避難）、屋内安全確保（垂直避難）が困難な場合、近隣の安全な場所",null,null,null,null,null,null,null,null,null,null,null,null,null,null,null,null,null,null,null,null,null,null,null,null,null,null,null,null,null,null,null,null,null,null,null,null,null,null,null,null,null,null,null,null,null,null,null,null,null,null,null,null,null,null,null,null,null,null,null,null,null,null,null,null,null,"立退き避難（水平避難）、屋内安全確保（垂直避難）が困難な場合、近隣の安全な場所"]
[null,null,null,null,"「",{"$f":"IF(入力シート!M180=\"\",\"\",入力シート!M180)","v":""},null,null,null,null,null,null,null,"」","に避難するものとする。",null,null,null,null,null,null,null,null,null,null,null,null,null,null,null,null,null,null,null,null,null,null,null,null,null,null,null,null,null,null,null,null,null,null,null,null,null,null,null,null,null,null,null,null,null,null,null,null,null,null,null,null,null,null,null,"「","○○公園",null,null,null,null,null,null,null,"」","に避難するものとする。"]
[null,null,null,null,null,null,null,null,null,null,null,null,null,null,null,null,null,null,null,null,null,null,null,null,null,null,null,null,null,null,null,null,null,null,null,null,null,null,null,null,null,null,null,null,null,null,null,null,null,null,null,null,null,null,null,null,null,null,null,null,null,null,null,null,null,null,null,null,null,null,"※指定緊急避難場所ではないが、標高の高い場所など近隣のより安全な場所・建物等"]
[]
[null,null,"（２）避難経路",null,null,null,null,null,null,null,null,null,null,null,null,null,null,null,null,null,null,null,null,null,null,null,null,null,null,null,null,null,null,null,null,null,null,null,null,null,null,null,null,null,null,null,null,null,null,null,null,null,null,null,null,null,null,null,null,null,null,null,null,null,null,null,null,null,"（２）避難経路"]
[null,null,null,null,"避難場所までの避難経路は、【施設周辺の避難地図】のとおりとする。",null,null,null,null,null,null,null,null,null,null,null,null,null,null,null,null,null,null,null,null,null,null,null,null,null,null,null,null,null,null,null,null,null,null,null,null,null,null,null,null,null,null,null,null,null,null,null,null,null,null,null,null,null,null,null,null,null,null,null,null,null,null,null,null,null,"避難場所までの避難経路は、【施設周辺の避難地図】のとおりとする。"]
[]
[null,null,"避難場所については、避難訓練等により避難できることを確かめ、必要に応じ見直しするものとする。",null,null,null,null,null,null,null,null,null,null,null,null,null,null,null,null,null,null,null,null,null,null,null,null,null,null,null,null,null,null,null,null,null,null,null,null,null,null,null,null,null,null,null,null,null,null,null,null,null,null,null,null,null,null,null,null,null,null,null,null,null,null,null,null,null,"避難場所については、避難訓練等により避難できることを確かめ、必要に応じ見直しするものとする。"]
[]
[null,null,"【施設周辺の避難地図】 ⇒別紙１",null,null,null,null,null,null,null,null,null,null,null,null,null,null,null,null,null,null,null,null,null,null,null,null,null,null,null,null,null,null,null,null,null,null,null,null,null,null,null,null,null,null,null,null,null,null,null,null,null,null,null,null,null,null,null,null,null,null,null,null,null,null,null,null,null,"【施設周辺の避難地図】 ⇒別紙１"]
[null,null,"対応別避難誘導一覧表 　⇒様式１１",null,null,null,null,null,null,null,null,null,null,null,null,null,null,null,null,null,null,null,null,null,null,null,null,null,null,null,null,null,null,null,null,null,null,null,null,null,null,null,null,null,null,null,null,null,null,null,null,null,null,null,null,null,null,null,null,null,null,null,null,null,null,null,null,null,"対応別避難誘導一覧表 　⇒様式１１"]
[]
[]
[null,null,null,null,null,null,null,null,null,null,null,null,null,null,null,null,null,null,null,null,null,null,null,null,null,null,null,null,null,null,null,null,null,null,null,null,null,null,null,null,null,null,null,null,null,null,null,null,null,null,null,null,null,null,null,null,"様式５",null,null,null,null,null,null,null,null,null,null,null,null,null,null,null,null,null,null,null,null,null,null,null,null,null,null,null,null,null,null,null,null,null,null,null,null,null,null,null,null,null,null,null,null,null,null,null,null,null,null,null,null,null,null,null,null,null,null,null,null,null,null,null,null,null,"記載例"]
[]
[]
[null,null,"７　避難の確保を図るための施設の整備",null,null,null,null,null,null,null,null,null,null,null,null,null,null,null,null,null,null,null,null,null,null,null,null,null,null,null,null,null,null,null,null,null,null,null,null,null,null,null,null,null,null,null,null,null,null,null,null,null,null,null,null,null,null,null,null,null,null,null,null,null,null,null,null,null,"７　避難の確保を図るための施設の整備"]
[null,null,"　情報収集・伝達及び避難誘導の際に使用する資器材等については、下表「避難確保資器材一覧」に示すとおりである。これらの資器材等については、日頃からその維持管理に努めるものとする。",null,null,null,null,null,null,null,null,null,null,null,null,null,null,null,null,null,null,null,null,null,null,null,null,null,null,null,null,null,null,null,null,null,null,null,null,null,null,null,null,null,null,null,null,null,null,null,null,null,null,null,null,null,null,null,null,null,null,null,null,null,null,null,null,null,"　情報収集・伝達及び避難誘導の際に使用する資器材等については、下表「避難確保資器材一覧」に示すとおりである。これらの資器材等については、日頃からその維持管理に努めるものとする。"]
[]
[null,null,null,null,null,null,null,null,null,null,null,null,null,null,null,null,null,null,null,null,null,null,null,null,null,null,null,null,null,null,null,null,null,null,null,null,null,null,null,null,null,null,null,null,null,null,null,null,null,null,null,null,null,null,null,null,null,null,null,null,null,null,null,null,null,null,null,null,"　患者にあわせた器具や食事の提供が必要となる場合がある。避難場所での生活に必要な備品などに配慮する。"]
[]
[null,null,null,null,null,"避難確保資器材一覧",null,null,null,null,null,null,null,null,null,null,null,null,null,null,null,null,null,null,null,null,null,null,null,null,null,null,null,null,null,null,null,null,null,null,null,null,null,null,null,null,null,null,null,null,null,null,null,null,null,null,null,null,null,null,null,null,null,null,null,null,null,null,null,null,null,"避難確保資器材一覧（例）"]
[null,null,null,null,null,null,null,null,null,null,null,null,null,null,null,null,null,null,null,null,null,"備蓄品",null,null,null,null,null,null,null,null,null,null,null,null,null,null,null,null,null,null,null,null,null,null,null,null,null,null,null,null,null,null,null,null,null,null,null,null,null,null,null,null,null,null,null,null,null,null,null,null,null,null,null,null,null,null,null,null,null,null,null,null,null,null,null,null,null,"備蓄品"]
[]
[null,null,null,null,null,"情報収集・伝達",null,null,null,null,null,null,null,null,null,null,null,null,null,null,null,{"$f":"'出力シート（タイムライン）'!R23","v":"□テレビ、□デスクトップパソコン、□ノートパソコン、□ラジオ、□タブレット端末、□ファックス、□携帯電話、□携帯電話用バッテリー、□乾電池"},null,null,null,null,null,null,null,null,null,null,null,null,null,null,null,null,null,null,null,null,null,null,null,null,null,null,null,null,null,null,null,null,null,null,null,null,null,null,null,null,null,null,null,null,null,null,null,null,null,"情報収集・伝達",null,null,null,null,null,null,null,null,null,null,null,null,null,null,null,"　テレビ　、　ラジオ　、　タブレット　、　ファックス　、　携帯電話　、　"]
[null,null,null,null,null,null,null,null,null,null,null,null,null,null,null,null,null,null,null,null,null,null,null,null,null,null,null,null,null,null,null,null,null,null,null,null,null,null,null,null,null,null,null,null,null,null,null,null,null,null,null,null,null,null,null,null,null,null,null,null,null,null,null,null,null,null,null,null,null,null,null,null,null,null,null,null,null,null,null,null,null,null,null,null,null,null,null,"　懐中電灯　、　電池　、　携帯電話用バッテリー"]
[]
[]
[null,null,null,null,null,"避難誘導",null,null,null,null,null,null,null,null,null,null,null,null,null,null,null,{"$f":"'出力シート（タイムライン）'!R27","v":"□従業員名簿、□患者名簿、□案内旗、□携帯電話、□携帯電話用バッテリー、□拡声器、□懐中電灯、□乾電池"},null,null,null,null,null,null,null,null,null,null,null,null,null,null,null,null,null,null,null,null,null,null,null,null,null,null,null,null,null,null,null,null,null,null,null,null,null,null,null,null,null,null,null,null,null,null,null,null,null,"避難誘導",null,null,null,null,null,null,null,null,null,null,null,null,null,null,null,"　名簿（施設職員、患者）　、　案内旗　、　タブレット　、　"]
[null,null,null,null,null,null,null,null,null,null,null,null,null,null,null,null,null,null,null,null,null,null,null,null,null,null,null,null,null,null,null,null,null,null,null,null,null,null,null,null,null,null,null,null,null,null,null,null,null,null,null,null,null,null,null,null,null,null,null,null,null,null,null,null,null,null,null,null,null,null,null,null,null,null,null,null,null,null,null,null,null,null,null,null,null,null,null,"　携帯電話　、　懐中電灯　、　携帯用拡声器　、　電池式照明器具　、　"]
[null,null,null,null,null,null,null,null,null,null,null,null,null,null,null,null,null,null,null,null,null,null,null,null,null,null,null,null,null,null,null,null,null,null,null,null,null,null,null,null,null,null,null,null,null,null,null,null,null,null,null,null,null,null,null,null,null,null,null,null,null,null,null,null,null,null,null,null,null,null,null,null,null,null,null,null,null,null,null,null,null,null,null,null,null,null,null,"　電池　、　携帯電話用バッテリー　、　ライフジャケット　、　"]
[null,null,null,null,null,null,null,null,null,null,null,null,null,null,null,null,null,null,null,null,null,null,null,null,null,null,null,null,null,null,null,null,null,null,null,null,null,null,null,null,null,null,null,null,null,null,null,null,null,null,null,null,null,null,null,null,null,null,null,null,null,null,null,null,null,null,null,null,null,null,null,null,null,null,null,null,null,null,null,null,null,null,null,null,null,null,null,"　蛍光塗料"]
[null,null,null,null,null,"施設内の一時避難",null,null,null,null,null,null,null,null,null,null,null,null,null,null,null,{"$f":"'出力シート（タイムライン）'!R30","v":"□水、□食料、□寝具、□防寒具"},null,null,null,null,null,null,null,null,null,null,null,null,null,null,null,null,null,null,null,null,null,null,null,null,null,null,null,null,null,null,null,null,null,null,null,null,null,null,null,null,null,null,null,null,null,null,null,null,null,"施設内の一時避難",null,null,null,null,null,null,null,null,null,null,null,null,null,null,null,"　水（１人あたり9リットル）　、　食料（１人あたり9食分）　、　"]
[null,null,null,null,null,null,null,null,null,null,null,null,null,null,null,null,null,null,null,null,null,null,null,null,null,null,null,null,null,null,null,null,null,null,null,null,null,null,null,null,null,null,null,null,null,null,null,null,null,null,null,null,null,null,null,null,null,null,null,null,null,null,null,null,null,null,null,null,null,null,null,null,null,null,null,null,null,null,null,null,null,null,null,null,null,null,null,"　寝具　、　防寒具"]
[null,null,null,null,null,"衛生器具",null,null,null,null,null,null,null,null,null,null,null,null,null,null,null,{"$f":"'出力シート（タイムライン）'!R32","v":"□おむつ・おしりふき、□タオル"},null,null,null,null,null,null,null,null,null,null,null,null,null,null,null,null,null,null,null,null,null,null,null,null,null,null,null,null,null,null,null,null,null,null,null,null,null,null,null,null,null,null,null,null,null,null,null,null,null,"衛生器具",null,null,null,null,null,null,null,null,null,null,null,null,null,null,null,"　おむつ・おしりふき　、　タオル　、　ウエットティッシュ　、　"]
[null,null,null,null,null,null,null,null,null,null,null,null,null,null,null,null,null,null,null,null,null,null,null,null,null,null,null,null,null,null,null,null,null,null,null,null,null,null,null,null,null,null,null,null,null,null,null,null,null,null,null,null,null,null,null,null,null,null,null,null,null,null,null,null,null,null,null,null,null,null,null,null,null,null,null,null,null,null,null,null,null,null,null,null,null,null,null,"　マスク　、　ゴミ袋"]
[null,null,null,null,null,"医薬品",null,null,null,null,null,null,null,null,null,null,null,null,null,null,null,{"$f":"'出力シート（タイムライン）'!R34","v":""},null,null,null,null,null,null,null,null,null,null,null,null,null,null,null,null,null,null,null,null,null,null,null,null,null,null,null,null,null,null,null,null,null,null,null,null,null,null,null,null,null,null,null,null,null,null,null,null,null,"医薬品",null,null,null,null,null,null,null,null,null,null,null,null,null,null,null,"　常備薬　、　消毒薬　、　包帯　、　絆創膏　"]
[]
[null,null,null,null,null,"その他",null,null,null,null,null,null,null,null,null,null,null,null,null,null,null,{"$f":"'出力シート（タイムライン）'!R35","v":"□ウエットティッシュ、□ゴミ袋、□タオル"},null,null,null,null,null,null,null,null,null,null,null,null,null,null,null,null,null,null,null,null,null,null,null,null,null,null,null,null,null,null,null,null,null,null,null,null,null,null,null,null,null,null,null,null,null,null,null,null,null,"その他",null,null,null,null,null,null,null,null,null,null,null,null,null,null,null,"　○○○○"]
[]
[]
[null,null,null,null,null,"浸水を防ぐための対策",null,null,null,null,null,null,null,null,null,null,null,null,null,null,null,null,null,null,null,null,null,null,null,null,null,null,null,null,null,null,null,null,null,null,null,null,null,null,null,null,null,null,null,null,null,null,null,null,null,null,null,null,null,null,null,null,null,null,null,null,null,null,null,null,null,"浸水を防ぐための対策"]
[null,null,null,null,null,{"$f":"'出力シート（タイムライン）'!S36","v":""},null,null,null,null,null,null,null,null,null,null,null,null,null,null,null,null,null,null,null,null,null,null,null,null,null,null,null,null,null,null,null,null,null,null,null,null,null,null,null,null,null,null,null,null,null,null,null,null,null,null,null,null,null,null,null,null,null,null,null,null,null,null,null,null,null,"　土のう　、　止水板　、　○○○○"]
[]
[null,null,null,null,null,"土砂災害に対する避難を確保するための対策※",null,null,null,null,null,null,null,null,null,null,null,null,null,null,null,null,null,null,null,null,null,null,null,null,null,null,null,null,null,null,null,null,null,null,null,null,null,null,null,null,null,null,null,null,null,null,null,null,null,null,null,null,null,null,null,null,null,null,null,null,null,null,null,null,null,"土砂災害に対する避難を確保するための対策※"]
[null,null,null,null,null,{"$f":"'出力シート（タイムライン）'!S38","v":""},null,null,null,null,null,null,null,null,null,null,null,null,null,null,null,null,null,null,null,null,null,null,null,null,null,null,null,null,null,null,null,null,null,null,null,null,null,null,null,null,null,null,null,null,null,null,null,null,null,null,null,null,null,null,null,null,null,null,null,null,null,null,null,null,null,"　自家発電機　、　壁の補強　、　非常用サイレン（屋外設置）　、　○○○○"]
[null,null,null,null,null,"※事前の対策",null,null,null,null,null,null,null,null,null,null,null,null,null,null,null,null,null,null,null,null,null,null,null,null,null,null,null,null,null,null,null,null,null,null,null,null,null,null,null,null,null,null,null,null,null,null,null,null,null,null,null,null,null,null,null,null,null,null,null,null,null,null,null,null,null,"※事前の対策"]
[]
[null,null,"８　防災教育及び訓練の実施",null,null,null,null,null,null,null,null,null,null,null,null,null,null,null,null,null,null,null,null,null,null,null,null,null,null,null,null,null,null,null,null,null,null,null,null,null,null,null,null,null,null,null,null,null,null,null,null,null,null,null,null,null,null,null,null,null,null,null,null,null,null,null,null,null,"８　防災教育及び訓練の実施"]
[null,null,"　毎年",null,null,null,{"$f":"IF(入力シート!M376=\"\",\"\",入力シート!M376)","v":""},null,"月に新規採用の施設職員を対象に研修を実施する。",null,null,null,null,null,null,null,null,null,null,null,null,null,null,null,null,null,null,null,null,null,null,null,null,null,null,null,null,null,null,null,null,null,null,null,null,null,null,null,null,null,null,null,null,null,null,null,null,null,null,null,null,null,null,null,null,null,null,null,"　毎年",null,null,null,4,null,"月に新規採用の施設職員を対象に研修を実施する。"]
[null,null,"　毎年",null,null,null,{"$f":"IF(入力シート!M378=\"\",\"\",入力シート!M378)","v":""},null,"月に全施設職員を対象として、情報収集・伝達及び避難誘導に関する訓練を実施する。",null,null,null,null,null,null,null,null,null,null,null,null,null,null,null,null,null,null,null,null,null,null,null,null,null,null,null,null,null,null,null,null,null,null,null,null,null,null,null,null,null,null,null,null,null,null,null,null,null,null,null,null,null,null,null,null,null,null,null,"　毎年",null,null,null,9,null,"月に全施設職員を対象として、情報収集・伝達及び避難誘導に関する訓練を実施する。"]
[null,null,"　その他、年間の教育及び訓練計画を毎年",null,null,null,null,null,null,null,null,null,null,null,null,null,null,null,null,null,null,null,null,null,null,null,null,{"$f":"IF(入力シート!M380=\"\",\"\",入力シート!M380)","v":""},null,"月に作成する。",null,null,null,null,null,null,null,null,null,null,null,null,null,null,null,null,null,null,null,null,null,null,null,null,null,null,null,null,null,null,null,null,null,null,null,null,null,null,"　その他、年間の教育及び訓練計画を毎年",null,null,null,null,null,null,null,null,null,null,null,null,null,null,null,null,null,null,null,null,null,null,null,3,null,"月に作成する。"]
[]
[]
[null,null,null,null,"防災教育及び訓練の年間計画⇒様式７",null,null,null,null,null,null,null,null,null,null,null,null,null,null,null,null,null,null,null,null,null,null,null,null,null,null,null,null,null,null,null,null,null,null,null,null,null,null,null,null,null,null,null,null,null,null,null,null,null,null,null,null,null,null,null,null,null,null,null,null,null,null,null,null,null,"防災教育及び訓練の年間計画⇒様式７"]
[]
[]
[]
[]
[]
[]
[]
[]
[]
[]
[]
[]
[]
[]
[]
[]
[null,null,null,null,null,null,null,null,null,null,null,null,null,null,null,null,null,null,null,null,null,null,null,null,null,null,null,null,null,null,null,null,null,null,null,null,null,null,null,null,null,null,null,null,null,null,null,null,null,null,null,null,null,null,null,null,"様式６",null,null,null,null,null,null,null,null,null,null,null,null,null,null,null,null,null,null,null,null,null,null,null,null,null,null,null,null,null,null,null,null,null,null,null,null,null,null,null,null,null,null,null,null,null,null,null,null,null,null,null,null,null,null,null,null,null,null,null,null,null,null,null,null,null,"記載例"]
[]
[]
[null,null,"９　自衛水防組織の業務に関する事項",null,null,null,null,null,null,null,null,null,null,null,null,null,null,null,null,null,null,null,null,null,null,null,null,null,null,null,null,null,null,null,null,null,null,null,null,null,null,null,null,null,null,null,null,null,null,null,null,null,null,null,null,null,null,null,null,null,null,null,null,null,null,null,null,null,"９　自衛水防組織の業務に関する事項"]
[]
[null,null,"（１）「自衛水防組織活動要領」に基づき自衛水防組織を設置する。",null,null,null,null,null,null,null,null,null,null,null,null,null,null,null,null,null,null,null,null,null,null,null,null,null,null,null,null,null,null,null,null,null,null,null,null,null,null,null,null,null,null,null,null,null,null,null,null,null,null,null,null,null,null,null,null,null,null,null,null,null,null,null,null,null,"（１）「自衛水防組織活動要領」に基づき自衛水防組織を設置する。"]
[]
[null,null,"（２）自衛水防組織においては、以下のとおり訓練を実施するものとする。",null,null,null,null,null,null,null,null,null,null,null,null,null,null,null,null,null,null,null,null,null,null,null,null,null,null,null,null,null,null,null,null,null,null,null,null,null,null,null,null,null,null,null,null,null,null,null,null,null,null,null,null,null,null,null,null,null,null,null,null,null,null,null,null,null,"（２）自衛水防組織においては、以下のとおり訓練を実施するものとする。"]
[null,null,null,null,null,"①毎年",null,null,null,null,null,"月に新たに自衛水防組織の構成員となった施設職員を対象として研修を実施する。",null,null,null,null,null,null,null,null,null,null,null,null,null,null,null,null,null,null,null,null,null,null,null,null,null,null,null,null,null,null,null,null,null,null,null,null,null,null,null,null,null,null,null,null,null,null,null,null,null,null,null,null,null,null,null,null,null,null,null,"①毎年",null,null,null,4,null,"月に新たに自衛水防組織の構成員となった施設職員を対象として研修を実施する。"]
[null,null,null,null,null,"②毎年",null,null,null,null,null,"月に行う全施設職員を対象とした訓練に先立って、自衛水防組織の全構成員を対象と",null,null,null,null,null,null,null,null,null,null,null,null,null,null,null,null,null,null,null,null,null,null,null,null,null,null,null,null,null,null,null,null,null,null,null,null,null,null,null,null,null,null,null,null,null,null,null,null,null,null,null,null,null,null,null,null,null,null,null,"②毎年",null,null,null,8,null,"月に行う全施設職員を対象とした訓練に先立って、自衛水防組織の全構成員を対象と"]
[null,null,null,null,null,"して情報収集・伝達及び避難誘導に関する訓練を実施する。",null,null,null,null,null,null,null,null,null,null,null,null,null,null,null,null,null,null,null,null,null,null,null,null,null,null,null,null,null,null,null,null,null,null,null,null,null,null,null,null,null,null,null,null,null,null,null,null,null,null,null,null,null,null,null,null,null,null,null,null,null,null,null,null,null,"して情報収集・伝達及び避難誘導に関する訓練を実施する。"]
[]
[null,null,"（３）自衛水防組織の報告",null,null,null,null,null,null,null,null,null,null,null,null,null,null,null,null,null,null,null,null,null,null,null,null,null,null,null,null,null,null,null,null,null,null,null,null,null,null,null,null,null,null,null,null,null,null,null,null,null,null,null,null,null,null,null,null,null,null,null,null,null,null,null,null,null,"（３）自衛水防組織の報告"]
[null,null,null,"　自衛水防組織を組織または変更をしたときは、遅滞なく、当該事項を市町村長へ報告する。",null,null,null,null,null,null,null,null,null,null,null,null,null,null,null,null,null,null,null,null,null,null,null,null,null,null,null,null,null,null,null,null,null,null,null,null,null,null,null,null,null,null,null,null,null,null,null,null,null,null,null,null,null,null,null,null,null,null,null,null,null,null,null,null,null,"　自衛水防組織を組織または変更をしたときは、遅滞なく、当該事項を市町村長へ報告する。"]
[]
[null,null,null,"「自衛水防組織活動要領」⇒別添",null,null,null,null,null,null,null,null,null,null,null,null,null,null,null,null,null,null,null,null,null,null,null,null,null,null,null,null,null,null,null,null,null,null,null,null,null,null,null,null,null,null,null,null,null,null,null,null,null,null,null,null,null,null,null,null,null,null,null,null,null,null,null,null,null,"「自衛水防組織活動要領」⇒別添"]
[]
[]
[]
[]
[]
[]
[]
[]
[]
[]
[]
[]
[]
[]
[]
[]
[]
[]
[]
[]
[]
[]
[]
[]
[]
[]
[]
[]
[]
[]
[]
[]
[]
[]
[]
[]
[]
[]
[]
[]
[]
[null,null,null,null,null,null,null,null,null,null,null,null,null,null,null,null,null,null,null,null,null,null,null,null,null,null,null,null,null,null,null,null,null,null,null,null,null,null,null,null,null,null,null,null,null,null,null,null,null,null,null,null,null,null,null,null,null,null,null,null,null,null,null,null,null,null,null,null,"既存の消防計画等がある場合は、それに追加してもよい。"]
[null,null,null,null,null,null,null,null,null,null,null,null,null,null,null,null,null,null,null,null,null,null,null,null,null,null,null,null,null,null,null,null,null,null,null,null,null,null,null,null,null,null,null,null,null,null,null,null,null,null,null,null,null,null,null,null,"様式７",null,null,null,null,null,null,null,null,null,null,null,null,null,null,null,null,null,null,null,null,null,null,null,null,null,null,null,null,null,null,null,null,null,null,null,null,null,null,null,null,null,null,null,null,null,null,null,null,null,null,null,null,null,null,null,null,null,null,null,null,null,null,null,null,null,"記載例"]
[]
[null,null,"１０　防災教育及び訓練の年間計画",null,null,null,null,null,null,null,null,null,null,null,null,null,null,null,null,null,null,null,null,null,null,null,null,null,null,null,null,null,null,null,null,null,null,null,null,null,null,null,null,null,null,null,null,null,null,null,null,null,null,null,null,null,null,null,null,null,null,null,null,null,null,null,null,null,"１０　防災教育及び訓練の年間計画"]
[]
[null,null,null,null,null,null,"避難確保計画の作成＝防災体制の確立",null,null,null,null,null,null,null,null,null,null,null,null,null,null,null,null,null,null,null,null,null,null,null,null,null,null,null,null,null,null,null,null,null,null,null,null,null,null,null,null,null,null,null,null,null,null,null,null,null,"実施予定月日",null,null,null,null,null,null,null,null,null,null,null,null,null,null,null,"避難確保計画の作成＝防災体制の確立",null,null,null,null,null,null,null,null,null,null,null,null,null,null,null,null,null,null,null,null,null,null,null,null,null,null,null,null,null,null,null,null,null,null,null,null,null,null,null,null,null,null,null,null,null,null,null,null,null,"実施予定月日"]
[]
[]
[null,null,null,null,null,null,"施設職員への防災教育",null,null,null,null,null,null,null,null,null,null,null,null,null,null,null,null,null,null,null,null,null,null,null,null,null,null,null,null,null,null,null,null,null,null,null,null,null,null,null,null,null,null,null,null,null,null,null,null,null,null,null,null,null,null,null,null,null,null,null,null,null,null,null,null,null,"施設職員への防災教育"]
[null,null,null,null,null,null,null,null,null,null,null,null,null,null,null,null,null,null,null,null,null,null,null,null,null,"○避難確保計画の情報共有\n○過去の被災経験や災害に対する知恵の伝承\n　等",null,null,null,null,null,null,null,null,null,null,null,null,null,null,null,null,null,null,null,null,null,null,null,null,null,null,null,null,null,null,null,null,"月",null,null,null,"日",null,null,null,null,null,null,null,null,null,null,null,null,null,null,null,null,null,null,null,null,null,null,null,null,null,null,null,null,"○避難確保計画の情報共有\n○過去の被災経験や災害に対する知恵の伝承\n　等",null,null,null,null,null,null,null,null,null,null,null,null,null,null,null,null,null,null,null,null,null,null,null,null,null,null,null,null,null,null,4,null,"月",null,1,null,"日"]
[]
[]
[]
[]
[null,null,null,null,null,null,"患者への防災教育",null,null,null,null,null,null,null,null,null,null,null,null,null,null,null,null,null,null,null,null,null,null,null,null,null,null,null,null,null,null,null,null,null,null,null,null,null,null,null,null,null,null,null,null,null,null,null,null,null,null,null,null,null,null,null,null,null,null,null,null,null,null,null,null,null,"患者への防災教育"]
[null,null,null,null,null,null,null,null,null,null,null,null,null,null,null,null,null,null,null,null,null,null,null,null,null,"○水害・土砂災害の危険性や避難場所の確認\n○緊急時の対応等に関する保護者・家族等への説明\n　等",null,null,null,null,null,null,null,null,null,null,null,null,null,null,null,null,null,null,null,null,null,null,null,null,null,null,null,null,null,null,null,null,"月",null,null,null,"日",null,null,null,null,null,null,null,null,null,null,null,null,null,null,null,null,null,null,null,null,null,null,null,null,null,null,null,null,"○水害・土砂災害の危険性や避難場所の確認\n○緊急時の対応等に関する保護者・家族等への説明\n　等",null,null,null,null,null,null,null,null,null,null,null,null,null,null,null,null,null,null,null,null,null,null,null,null,null,null,null,null,null,null,4,null,"月",null,1,null,"日"]
[]
[]
[]
[]
[null,null,null,null,null,null,"通院（所）部門",null,null,null,null,null,null,null,null,null,null,null,null,null,null,null,null,null,null,null,null,null,null,null,null,null,null,null,null,null,null,null,null,null,null,null,null,null,null,null,null,null,null,null,null,null,null,null,null,null,null,null,null,null,null,null,null,null,null,null,null,null,null,null,null,null,"通院（所）部門"]
[]
[]
[null,null,null,null,null,null,"情報伝達訓練",null,null,null,null,null,null,null,null,null,null,null,null,null,null,null,null,null,null,null,null,null,null,null,null,null,null,null,null,null,null,null,null,null,null,null,null,null,null,null,null,null,null,null,null,null,null,null,null,null,null,null,null,null,null,null,null,null,null,null,null,null,null,null,null,null,"情報伝達訓練"]
[null,null,null,null,null,null,null,null,null,null,null,null,null,null,null,null,null,null,null,null,null,null,null,null,null,"○施設職員の緊急連絡網の試行\n○保護者・家族等への情報伝達手段（メール・電話等）の確認、情報伝達の試行　等",null,null,null,null,null,null,null,null,null,null,null,null,null,null,null,null,null,null,null,null,null,null,null,null,null,null,null,null,null,null,null,null,"月",null,null,null,"日",null,null,null,null,null,null,null,null,null,null,null,null,null,null,null,null,null,null,null,null,null,null,null,null,null,null,null,null,"○施設職員の緊急連絡網の試行\n○保護者・家族等への情報伝達手段（メール・電話等）の確認、情報伝達の試行　等",null,null,null,null,null,null,null,null,null,null,null,null,null,null,null,null,null,null,null,null,null,null,null,null,null,null,null,null,null,null,8,null,"月",null,1,null,"日"]
[]
[]
[]
[]
[null,null,null,null,null,null,"保護者・家族等への引き渡し訓練",null,null,null,null,null,null,null,null,null,null,null,null,null,null,null,null,null,null,null,null,null,null,null,null,null,null,null,null,null,null,null,null,null,null,null,null,null,null,null,null,null,null,null,null,null,null,null,null,null,null,null,null,null,null,null,null,null,null,null,null,null,null,null,null,null,"保護者・家族等への引き渡し訓練"]
[null,null,null,null,null,null,null,null,null,null,null,null,null,null,null,null,null,null,null,null,null,null,null,null,null,"○施設職員の緊急連絡網の試行\n○連絡後、全患者を保護者・家族等に引き渡すまでにかかる時間の計測　等",null,null,null,null,null,null,null,null,null,null,null,null,null,null,null,null,null,null,null,null,null,null,null,null,null,null,null,null,null,null,null,null,"月",null,null,null,"日",null,null,null,null,null,null,null,null,null,null,null,null,null,null,null,null,null,null,null,null,null,null,null,null,null,null,null,null,"○施設職員の緊急連絡網の試行\n○連絡後、全患者を保護者・家族等に引き渡すまでにかかる時間の計測　等",null,null,null,null,null,null,null,null,null,null,null,null,null,null,null,null,null,null,null,null,null,null,null,null,null,null,null,null,null,null,8,null,"月",null,1,null,"日"]
[]
[]
[]
[]
[]
[null,null,null,null,null,null,"入院（所）部門",null,null,null,null,null,null,null,null,null,null,null,null,null,null,null,null,null,null,null,null,null,null,null,null,null,null,null,null,null,null,null,null,null,null,null,null,null,null,null,null,null,null,null,null,null,null,null,null,null,null,null,null,null,null,null,null,null,null,null,null,null,null,null,null,null,"入院（所）部門"]
[]
[]
[null,null,null,null,null,null,"情報伝達訓練",null,null,null,null,null,null,null,null,null,null,null,null,null,null,null,null,null,null,null,null,null,null,null,null,null,null,null,null,null,null,null,null,null,null,null,null,null,null,null,null,null,null,null,null,null,null,null,null,null,null,null,null,null,null,null,null,null,null,null,null,null,null,null,null,null,"情報伝達訓練"]
[null,null,null,null,null,null,null,null,null,null,null,null,null,null,null,null,null,null,null,null,null,null,null,null,null,"○施設職員の緊急連絡網の試行\n○保護者・家族等への情報伝達手段（メール・電話等）の確認、情報伝達の試行　等",null,null,null,null,null,null,null,null,null,null,null,null,null,null,null,null,null,null,null,null,null,null,null,null,null,null,null,null,null,null,null,null,"月",null,null,null,"日",null,null,null,null,null,null,null,null,null,null,null,null,null,null,null,null,null,null,null,null,null,null,null,null,null,null,null,null,"○施設職員の緊急連絡網の試行\n○保護者・家族等への情報伝達手段（メール・電話等）の確認、情報伝達の試行　等",null,null,null,null,null,null,null,null,null,null,null,null,null,null,null,null,null,null,null,null,null,null,null,null,null,null,null,null,null,null,8,null,"月",null,1,null,"日"]
[]
[]
[]
[]
[null,null,null,null,null,null,"施設職員の非常参集訓練",null,null,null,null,null,null,null,null,null,null,null,null,null,null,null,null,null,null,null,null,null,null,null,null,null,null,null,null,null,null,null,null,null,null,null,null,null,null,null,null,null,null,null,null,null,null,null,null,null,null,null,null,null,null,null,null,null,null,null,null,null,null,null,null,null,"施設職員の非常参集訓練"]
[null,null,null,null,null,null,null,null,null,null,null,null,null,null,null,null,null,null,null,null,null,null,null,null,null,"○施設職員の緊急連絡網の試行\n○連絡後、施設職員の参集にかかる時間の計測　等",null,null,null,null,null,null,null,null,null,null,null,null,null,null,null,null,null,null,null,null,null,null,null,null,null,null,null,null,null,null,null,null,"月",null,null,null,"日",null,null,null,null,null,null,null,null,null,null,null,null,null,null,null,null,null,null,null,null,null,null,null,null,null,null,null,null,"○施設職員の緊急連絡網の試行\n○連絡後、施設職員の参集にかかる時間の計測　等",null,null,null,null,null,null,null,null,null,null,null,null,null,null,null,null,null,null,null,null,null,null,null,null,null,null,null,null,null,null,8,null,"月",null,1,null,"日"]
[]
[]
[]
[]
[]
[null,null,null,null,null,null,"避難訓練",null,null,null,null,null,null,null,null,null,null,null,null,null,null,null,null,null,null,null,null,null,null,null,null,null,null,null,null,null,null,null,null,null,null,null,null,null,null,null,null,null,null,null,null,null,null,null,null,null,null,null,null,null,null,null,null,null,null,null,null,null,null,null,null,null,"避難訓練"]
[null,null,null,null,null,null,null,null,null,null,null,null,null,null,null,null,null,null,null,null,null,null,null,null,null,"○防災体制と役割分担の確認、試行\n○施設から避難場所までの移動にかかる時間の計測　等",null,null,null,null,null,null,null,null,null,null,null,null,null,null,null,null,null,null,null,null,null,null,null,null,null,null,null,null,null,null,null,null,"月",null,null,null,"日",null,null,null,null,null,null,null,null,null,null,null,null,null,null,null,null,null,null,null,null,null,null,null,null,null,null,null,null,"○防災体制と役割分担の確認、試行\n○施設から避難場所までの移動にかかる時間の計測　等",null,null,null,null,null,null,null,null,null,null,null,null,null,null,null,null,null,null,null,null,null,null,null,null,null,null,null,null,null,null,9,null,"月",null,1,null,"日"]
[]
[]
[]
[]
[null,null,null,null,null,null,"避難確保計画の更新",null,null,null,null,null,null,null,null,null,null,null,null,null,null,null,null,null,null,null,null,null,null,null,null,null,null,null,null,null,null,null,null,null,null,null,null,null,null,null,null,null,null,null,null,null,null,null,null,null,null,null,null,null,null,null,null,null,null,null,null,null,null,null,null,null,"避難確保計画の更新"]
[null,null,null,null,null,null,null,null,null,null,null,null,null,null,null,null,null,null,null,null,null,null,null,null,null,"避難訓練の実施に基づき、必要に応じて避難確保計画を見直します。",null,null,null,null,null,null,null,null,null,null,null,null,null,null,null,null,null,null,null,null,null,null,null,null,null,null,null,null,null,null,null,null,"月",null,null,null,"日",null,null,null,null,null,null,null,null,null,null,null,null,null,null,null,null,null,null,null,null,null,null,null,null,null,null,null,null,"避難訓練の実施に基づき、必要に応じて避難確保計画を見直します。",null,null,null,null,null,null,null,null,null,null,null,null,null,null,null,null,null,null,null,null,null,null,null,null,null,null,null,null,null,null,3,null,"月",null,1,null,"日"]
[]
[]
[]
[]
[]
[]
[]
[]
[]
[]
[]
[]
[]
[]
[]
[]
[]
[]
[]
[]
[]
[]
[null,null,null,null,null,null,null,null,null,null,null,null,null,null,null,null,null,null,null,null,null,null,null,null,null,null,null,null,null,null,null,null,null,null,null,null,null,null,null,null,null,null,null,null,null,null,null,null,null,null,null,null,null,null,null,null,"様式８",null,null,null,null,null,null,null,null,null,null,null,null,null,null,null,null,null,null,null,null,null,null,null,null,null,null,null,null,null,null,null,null,null,null,null,null,null,null,null,null,null,null,null,null,null,null,null,null,null,null,null,null,null,null,null,null,null,null,null,null,null,null,null,null,null,"記載例"]
[null,null,"既存の名簿等がある場合は、それを用いてもよい。",null,null,null,null,null,null,null,null,null,null,null,null,null,null,null,null,null,null,null,null,null,null,null,null,null,null,null,null,null,null,null,null,null,null,null,null,null,null,null,null,null,null,null,null,null,null,null,null,null,null,null,null,null,null,null,null,null,null,null,null,null,null,null,null,null,"既存の名簿等がある場合は、それを用いてもよい。"]
[]
[]
[null,null,"１１　患者緊急連絡先一覧表",null,null,null,null,null,null,null,null,null,null,null,null,null,null,null,null,null,null,null,null,null,null,null,null,null,null,null,null,null,null,null,null,null,null,null,null,null,null,null,null,null,null,null,null,null,null,null,null,null,null,null,null,null,null,null,null,null,null,null,null,null,null,null,null,null,"１１　患者緊急連絡先一覧表"]
[]
[null,null,null,null,null,"患者",null,null,null,null,null,null,null,null,null,null,null,null,null,null,null,null,null,null,"緊急連絡先",null,null,null,null,null,null,null,null,null,null,null,null,null,null,null,null,null,null,null,null,null,null,null,null,null,null,"その他",null,null,null,null,null,null,null,null,null,null,null,null,null,null,null,null,null,null,null,null,"患者",null,null,null,null,null,null,null,null,null,null,null,null,null,null,null,null,null,null,"緊急連絡先",null,null,null,null,null,null,null,null,null,null,null,null,null,null,null,null,null,null,null,null,null,null,null,null,null,null,"その他"]
[null,null,null,null,null,"氏名",null,null,null,null,null,"年齢",null,null,"住所",null,null,null,null,null,null,null,null,null,"氏名",null,null,null,null,null,"続柄",null,null,"電話番号",null,null,null,null,null,null,null,"住所",null,null,null,null,null,null,null,null,null,"（緊急連絡先等）",null,null,null,null,null,null,null,null,null,null,null,null,null,null,null,null,null,null,null,null,"氏名",null,null,null,null,null,"年齢",null,null,"住所",null,null,null,null,null,null,null,null,null,"氏名",null,null,null,null,null,"続柄",null,null,"電話番号",null,null,null,null,null,null,null,"住所",null,null,null,null,null,null,null,null,null,"（緊急連絡先等）"]
[null,null,1,null,null,null,null,null,null,null,null,null,null,null,null,null,null,null,null,null,null,null,null,null,null,null,null,null,null,null,null,null,null,null,null,null,null,null,null,null,null,null,null,null,null,null,null,null,null,null,null,null,null,null,null,null,null,null,null,null,null,null,null,null,null,null,null,null,null,1,null,null,"〇〇〇〇",null,null,null,null,null,84,null,null,"〇市1丁目××",null,null,null,null,null,null,null,null,null,"△△△△",null,null,null,null,null,"娘",null,null," 012-3456-7890",null,null,null,null,null,null,null,"〇市1丁目××",null,null,null,null,null,null,null,null,null," 090-1234-5678"]
[null,null,2,null,null,null,null,null,null,null,null,null,null,null,null,null,null,null,null,null,null,null,null,null,null,null,null,null,null,null,null,null,null,null,null,null,null,null,null,null,null,null,null,null,null,null,null,null,null,null,null,null,null,null,null,null,null,null,null,null,null,null,null,null,null,null,null,null,null,2]
[null,null,3,null,null,null,null,null,null,null,null,null,null,null,null,null,null,null,null,null,null,null,null,null,null,null,null,null,null,null,null,null,null,null,null,null,null,null,null,null,null,null,null,null,null,null,null,null,null,null,null,null,null,null,null,null,null,null,null,null,null,null,null,null,null,null,null,null,null,3]
[null,null,4,null,null,null,null,null,null,null,null,null,null,null,null,null,null,null,null,null,null,null,null,null,null,null,null,null,null,null,null,null,null,null,null,null,null,null,null,null,null,null,null,null,null,null,null,null,null,null,null,null,null,null,null,null,null,null,null,null,null,null,null,null,null,null,null,null,null,4]
[null,null,5,null,null,null,null,null,null,null,null,null,null,null,null,null,null,null,null,null,null,null,null,null,null,null,null,null,null,null,null,null,null,null,null,null,null,null,null,null,null,null,null,null,null,null,null,null,null,null,null,null,null,null,null,null,null,null,null,null,null,null,null,null,null,null,null,null,null,5]
[null,null,6,null,null,null,null,null,null,null,null,null,null,null,null,null,null,null,null,null,null,null,null,null,null,null,null,null,null,null,null,null,null,null,null,null,null,null,null,null,null,null,null,null,null,null,null,null,null,null,null,null,null,null,null,null,null,null,null,null,null,null,null,null,null,null,null,null,null,6]
[null,null,7,null,null,null,null,null,null,null,null,null,null,null,null,null,null,null,null,null,null,null,null,null,null,null,null,null,null,null,null,null,null,null,null,null,null,null,null,null,null,null,null,null,null,null,null,null,null,null,null,null,null,null,null,null,null,null,null,null,null,null,null,null,null,null,null,null,null,7]
[null,null,8,null,null,null,null,null,null,null,null,null,null,null,null,null,null,null,null,null,null,null,null,null,null,null,null,null,null,null,null,null,null,null,null,null,null,null,null,null,null,null,null,null,null,null,null,null,null,null,null,null,null,null,null,null,null,null,null,null,null,null,null,null,null,null,null,null,null,8]
[null,null,9,null,null,null,null,null,null,null,null,null,null,null,null,null,null,null,null,null,null,null,null,null,null,null,null,null,null,null,null,null,null,null,null,null,null,null,null,null,null,null,null,null,null,null,null,null,null,null,null,null,null,null,null,null,null,null,null,null,null,null,null,null,null,null,null,null,null,9]
[null,null,10,null,null,null,null,null,null,null,null,null,null,null,null,null,null,null,null,null,null,null,null,null,null,null,null,null,null,null,null,null,null,null,null,null,null,null,null,null,null,null,null,null,null,null,null,null,null,null,null,null,null,null,null,null,null,null,null,null,null,null,null,null,null,null,null,null,null,10]
[null,null,11,null,null,null,null,null,null,null,null,null,null,null,null,null,null,null,null,null,null,null,null,null,null,null,null,null,null,null,null,null,null,null,null,null,null,null,null,null,null,null,null,null,null,null,null,null,null,null,null,null,null,null,null,null,null,null,null,null,null,null,null,null,null,null,null,null,null,11]
[null,null,12,null,null,null,null,null,null,null,null,null,null,null,null,null,null,null,null,null,null,null,null,null,null,null,null,null,null,null,null,null,null,null,null,null,null,null,null,null,null,null,null,null,null,null,null,null,null,null,null,null,null,null,null,null,null,null,null,null,null,null,null,null,null,null,null,null,null,12]
[null,null,13,null,null,null,null,null,null,null,null,null,null,null,null,null,null,null,null,null,null,null,null,null,null,null,null,null,null,null,null,null,null,null,null,null,null,null,null,null,null,null,null,null,null,null,null,null,null,null,null,null,null,null,null,null,null,null,null,null,null,null,null,null,null,null,null,null,null,13]
[null,null,14,null,null,null,null,null,null,null,null,null,null,null,null,null,null,null,null,null,null,null,null,null,null,null,null,null,null,null,null,null,null,null,null,null,null,null,null,null,null,null,null,null,null,null,null,null,null,null,null,null,null,null,null,null,null,null,null,null,null,null,null,null,null,null,null,null,null,14]
[null,null,15,null,null,null,null,null,null,null,null,null,null,null,null,null,null,null,null,null,null,null,null,null,null,null,null,null,null,null,null,null,null,null,null,null,null,null,null,null,null,null,null,null,null,null,null,null,null,null,null,null,null,null,null,null,null,null,null,null,null,null,null,null,null,null,null,null,null,15]
[null,null,16,null,null,null,null,null,null,null,null,null,null,null,null,null,null,null,null,null,null,null,null,null,null,null,null,null,null,null,null,null,null,null,null,null,null,null,null,null,null,null,null,null,null,null,null,null,null,null,null,null,null,null,null,null,null,null,null,null,null,null,null,null,null,null,null,null,null,16]
[null,null,17,null,null,null,null,null,null,null,null,null,null,null,null,null,null,null,null,null,null,null,null,null,null,null,null,null,null,null,null,null,null,null,null,null,null,null,null,null,null,null,null,null,null,null,null,null,null,null,null,null,null,null,null,null,null,null,null,null,null,null,null,null,null,null,null,null,null,17]
[null,null,18,null,null,null,null,null,null,null,null,null,null,null,null,null,null,null,null,null,null,null,null,null,null,null,null,null,null,null,null,null,null,null,null,null,null,null,null,null,null,null,null,null,null,null,null,null,null,null,null,null,null,null,null,null,null,null,null,null,null,null,null,null,null,null,null,null,null,18]
[null,null,19,null,null,null,null,null,null,null,null,null,null,null,null,null,null,null,null,null,null,null,null,null,null,null,null,null,null,null,null,null,null,null,null,null,null,null,null,null,null,null,null,null,null,null,null,null,null,null,null,null,null,null,null,null,null,null,null,null,null,null,null,null,null,null,null,null,null,19]
[null,null,20,null,null,null,null,null,null,null,null,null,null,null,null,null,null,null,null,null,null,null,null,null,null,null,null,null,null,null,null,null,null,null,null,null,null,null,null,null,null,null,null,null,null,null,null,null,null,null,null,null,null,null,null,null,null,null,null,null,null,null,null,null,null,null,null,null,null,20]
[null,null,21,null,null,null,null,null,null,null,null,null,null,null,null,null,null,null,null,null,null,null,null,null,null,null,null,null,null,null,null,null,null,null,null,null,null,null,null,null,null,null,null,null,null,null,null,null,null,null,null,null,null,null,null,null,null,null,null,null,null,null,null,null,null,null,null,null,null,21]
[null,null,22,null,null,null,null,null,null,null,null,null,null,null,null,null,null,null,null,null,null,null,null,null,null,null,null,null,null,null,null,null,null,null,null,null,null,null,null,null,null,null,null,null,null,null,null,null,null,null,null,null,null,null,null,null,null,null,null,null,null,null,null,null,null,null,null,null,null,22]
[null,null,23,null,null,null,null,null,null,null,null,null,null,null,null,null,null,null,null,null,null,null,null,null,null,null,null,null,null,null,null,null,null,null,null,null,null,null,null,null,null,null,null,null,null,null,null,null,null,null,null,null,null,null,null,null,null,null,null,null,null,null,null,null,null,null,null,null,null,23]
[null,null,24,null,null,null,null,null,null,null,null,null,null,null,null,null,null,null,null,null,null,null,null,null,null,null,null,null,null,null,null,null,null,null,null,null,null,null,null,null,null,null,null,null,null,null,null,null,null,null,null,null,null,null,null,null,null,null,null,null,null,null,null,null,null,null,null,null,null,24]
[null,null,25,null,null,null,null,null,null,null,null,null,null,null,null,null,null,null,null,null,null,null,null,null,null,null,null,null,null,null,null,null,null,null,null,null,null,null,null,null,null,null,null,null,null,null,null,null,null,null,null,null,null,null,null,null,null,null,null,null,null,null,null,null,null,null,null,null,null,25]
[null,null,26,null,null,null,null,null,null,null,null,null,null,null,null,null,null,null,null,null,null,null,null,null,null,null,null,null,null,null,null,null,null,null,null,null,null,null,null,null,null,null,null,null,null,null,null,null,null,null,null,null,null,null,null,null,null,null,null,null,null,null,null,null,null,null,null,null,null,26]
[null,null,27,null,null,null,null,null,null,null,null,null,null,null,null,null,null,null,null,null,null,null,null,null,null,null,null,null,null,null,null,null,null,null,null,null,null,null,null,null,null,null,null,null,null,null,null,null,null,null,null,null,null,null,null,null,null,null,null,null,null,null,null,null,null,null,null,null,null,27]
[null,null,28,null,null,null,null,null,null,null,null,null,null,null,null,null,null,null,null,null,null,null,null,null,null,null,null,null,null,null,null,null,null,null,null,null,null,null,null,null,null,null,null,null,null,null,null,null,null,null,null,null,null,null,null,null,null,null,null,null,null,null,null,null,null,null,null,null,null,28]
[null,null,29,null,null,null,null,null,null,null,null,null,null,null,null,null,null,null,null,null,null,null,null,null,null,null,null,null,null,null,null,null,null,null,null,null,null,null,null,null,null,null,null,null,null,null,null,null,null,null,null,null,null,null,null,null,null,null,null,null,null,null,null,null,null,null,null,null,null,29,null,null,"〇〇〇〇",null,null,null,null,null,90,null,null,"〇市3丁目××",null,null,null,null,null,null,null,null,null,"△△△△",null,null,null,null,null,"息子",null,null," 012-3456-7890",null,null,null,null,null,null,null,"〇市2丁目××",null,null,null,null,null,null,null,null,null," 090-1234-5678"]
[null,null,30]
[null,null,31]
[null,null,32]
[null,null,33]
[null,null,34]
[null,null,35]
[null,null,36]
[null,null,37]
[null,null,38]
[null,null,39]
[null,null,40]
[null,null,41]
[null,null,42]
[null,null,43]
[null,null,44]
[null,null,45]
[null,null,46]
[null,null,47]
[null,null,48]
[null,null,49]
[null,null,50]
[]
[]
[]
[]
[]
[null,null,"既存の名簿等がある場合は、それを用いてもよい。",null,null,null,null,null,null,null,null,null,null,null,null,null,null,null,null,null,null,null,null,null,null,null,null,null,null,null,null,null,null,null,null,null,null,null,null,null,null,null,null,null,null,null,null,null,null,null,null,null,null,null,null,null,"様式９",null,null,null,null,null,null,null,null,null,null,null,"既存の名簿等がある場合は、それを用いてもよい。",null,null,null,null,null,null,null,null,null,null,null,null,null,null,null,null,null,null,null,null,null,null,null,null,null,null,null,null,null,null,null,null,null,null,null,null,null,null,null,null,null,null,null,null,null,null,null,null,null,null,null,null,null,"記載例"]
[]
[null,null,"１２　緊急連絡網",null,null,null,null,null,null,null,null,null,null,null,null,null,null,null,null,null,null,null,null,null,null,null,null,null,null,null,null,null,null,null,null,null,null,null,null,null,null,null,null,null,null,null,null,null,null,null,null,null,null,null,null,null,null,null,null,null,null,null,null,null,null,null,null,null,"１２　緊急連絡網"]
[null,null,null,null,null,null,null,null,null,null,null,null,null,null,null,null,null,null,null,null,null,null,null,null,null,null,null,null,null,null,null,null,null,null,null,null,null,null,null,null,null,null,null,null,null,null,null,null,null,null,null,null,null,null,null,null,null,null,null,null,null,null,null,null,null,null,null,null,null,null,null,null,null,null,null,null,null,null,null,null,null,null,null,null,null,null,null,null,null,null,"施設長"]
[]
[null,null,null,null,null,null,null,null,null,null,null,null,null,null,null,null,null,null,null,null,null,null,null,null,null,null,null,null,null,null,null,null,null,null,null,null,null,null,null,null,null,null,null,null,null,null,null,null,null,null,null,null,null,null,null,null,null,null,null,null,null,null,null,null,null,null,null,null,null,null,null,null,null,null,null,null,null,null,null,null,null,null,null,null,null,null,null,null,null,null,"012-3456-7890"]
[]
[null,null,null,null,null,null,null,null,null,null,null,null,null,null,null,null,null,null,null,null,null,null,null,null,null,null,null,null,null,null,null,null,null,null,null,null,null,null,null,null,null,null,null,null,null,null,null,null,null,null,null,null,null,null,null,null,null,null,null,null,null,null,null,null,null,null,null,null,null,null,null,null,null,null,null,null,null,null,null,null,null,null,null,null,null,null,null,null,null,null,"事務長"]
[]
[null,null,null,null,null,null,null,null,null,null,null,null,null,null,null,null,null,null,null,null,null,null,null,null,null,null,null,null,null,null,null,null,null,null,null,null,null,null,null,null,null,null,null,null,null,null,null,null,null,null,null,null,null,null,null,null,null,null,null,null,null,null,null,null,null,null,null,null,null,null,null,null,null,null,null,null,null,null,null,null,null,null,null,null,null,null,null,null,null,null,"012-3456-7890"]
[]
[]
[null,null,null,null,null,null,null,null,null,null,null,null,null,null,null,null,null,null,null,null,null,null,null,null,null,null,null,null,null,null,null,null,null,null,null,null,null,null,null,null,null,null,null,null,null,null,null,null,null,null,null,null,null,null,null,null,null,null,null,null,null,null,null,null,null,null,null,null,null,null,null,null,null,"○○○○",null,null,null,null,null,null,null,null,null,null,null,null,"○○○○",null,null,null,null,null,null,null,null,null,null,null,null,"○○○○",null,null,null,null,null,null,null,null,null,null,null,null,"○○○○"]
[]
[null,null,null,null,null,null,null,null,null,null,null,null,null,null,null,null,null,null,null,null,null,null,null,null,null,null,null,null,null,null,null,null,null,null,null,null,null,null,null,null,null,null,null,null,null,null,null,null,null,null,null,null,null,null,null,null,null,null,null,null,null,null,null,null,null,null,null,null,null,null,null,null,null,"012-3456-7890",null,null,null,null,null,null,null,null,null,null,null,null,"012-3456-7890",null,null,null,null,null,null,null,null,null,null,null,null,"012-3456-7890",null,null,null,null,null,null,null,null,null,null,null,null,"012-3456-7890"]
[]
[null,null,null,null,null,null,null,null,null,null,null,null,null,null,null,null,null,null,null,null,null,null,null,null,null,null,null,null,null,null,null,null,null,null,null,null,null,null,null,null,null,null,null,null,null,null,null,null,null,null,null,null,null,null,null,null,null,null,null,null,null,null,null,null,null,null,null,null,null,null,null,null,null,"○○○○",null,null,null,null,null,null,null,null,null,null,null,null,"○○○○",null,null,null,null,null,null,null,null,null,null,null,null,"○○○○",null,null,null,null,null,null,null,null,null,null,null,null,"○○○○"]
[]
[null,null,null,null,null,null,null,null,null,null,null,null,null,null,null,null,null,null,null,null,null,null,null,null,null,null,null,null,null,null,null,null,null,null,null,null,null,null,null,null,null,null,null,null,null,null,null,null,null,null,null,null,null,null,null,null,null,null,null,null,null,null,null,null,null,null,null,null,null,null,null,null,null,"012-3456-7890",null,null,null,null,null,null,null,null,null,null,null,null,"012-3456-7890",null,null,null,null,null,null,null,null,null,null,null,null,"012-3456-7890",null,null,null,null,null,null,null,null,null,null,null,null,"012-3456-7890"]
[]
[null,null,null,null,null,null,null,null,null,null,null,null,null,null,null,null,null,null,null,null,null,null,null,null,null,null,null,null,null,null,null,null,null,null,null,null,null,null,null,null,null,null,null,null,null,null,null,null,null,null,null,null,null,null,null,null,null,null,null,null,null,null,null,null,null,null,null,null,null,null,null,null,null,"○○○○",null,null,null,null,null,null,null,null,null,null,null,null,"○○○○",null,null,null,null,null,null,null,null,null,null,null,null,"○○○○",null,null,null,null,null,null,null,null,null,null,null,null,"○○○○"]
[]
[null,null,null,null,null,null,null,null,null,null,null,null,null,null,null,null,null,null,null,null,null,null,null,null,null,null,null,null,null,null,null,null,null,null,null,null,null,null,null,null,null,null,null,null,null,null,null,null,null,null,null,null,null,null,null,null,null,null,null,null,null,null,null,null,null,null,null,null,null,null,null,null,null,"012-3456-7890",null,null,null,null,null,null,null,null,null,null,null,null,"012-3456-7890",null,null,null,null,null,null,null,null,null,null,null,null,"012-3456-7890",null,null,null,null,null,null,null,null,null,null,null,null,"012-3456-7890"]
[]
[null,null,null,null,null,null,null,null,null,null,null,null,null,null,null,null,null,null,null,null,null,null,null,null,null,null,null,null,null,null,null,null,null,null,null,null,null,null,null,null,null,null,null,null,null,null,null,null,null,null,null,null,null,null,null,null,null,null,null,null,null,null,null,null,null,null,null,null,null,null,null,null,null,"○○○○"]
[]
[null,null,null,null,null,null,null,null,null,null,null,null,null,null,null,null,null,null,null,null,null,null,null,null,null,null,null,null,null,null,null,null,null,null,null,null,null,null,null,null,null,null,null,null,null,null,null,null,null,null,null,null,null,null,null,null,null,null,null,null,null,null,null,null,null,null,null,null,null,null,null,null,null,"012-3456-7890"]
[]
[]
[]
[]
[null,null,"既存の名簿等がある場合は、それを用いてもよい。",null,null,null,null,null,null,null,null,null,null,null,null,null,null,null,null,null,null,null,null,null,null,null,null,null,null,null,null,null,null,null,null,null,null,null,null,null,null,null,null,null,null,null,null,null,null,null,null,null,null,null,null,null,"様式10",null,null,null,null,null,null,null,null,null,null,null,"既存の名簿等がある場合は、それを用いてもよい。",null,null,null,null,null,null,null,null,null,null,null,null,null,null,null,null,null,null,null,null,null,null,null,null,null,null,null,null,null,null,null,null,null,null,null,null,null,null,null,null,null,null,null,null,null,null,null,null,null,null,null,null,"記載例"]
[]
[null,null,"１３　外部機関等の緊急連絡先一覧表",null,null,null,null,null,null,null,null,null,null,null,null,null,null,null,null,null,null,null,null,null,null,null,null,null,null,null,null,null,null,null,null,null,null,null,null,null,null,null,null,null,null,null,null,null,null,null,null,null,null,null,null,null,null,null,null,null,null,null,null,null,null,null,null,null,"１３　外部機関等の緊急連絡先一覧表"]
[]
[null,null,null,"外部機関等",null,null,null,null,null,null,null,null,null,"連絡先",null,null,null,null,null,null,null,null,null,null,null,null,null,null,"備　　考",null,null,null,null,null,null,null,null,null,null,null,null,null,null,null,null,null,null,null,null,null,null,null,null,null,null,null,null,null,null,null,null,null,null,null,null,null,null,null,null,null,null,null,null,null,null,null,null,null,null,"連絡先",null,null,null,null,null,null,null,null,null,null,null,null,null,null,"備考"]
[]
[null,null,null,null,null,null,null,null,null,null,null,null,null,null,null,null,null,null,null,null,null,null,null,null,null,null,null,null,null,null,null,null,null,null,null,null,null,null,null,null,null,null,null,null,null,null,null,null,null,null,null,null,null,null,null,null,null,null,null,null,null,null,null,null,null,null,null,null,null,"市町村（防災担当）",null,null,null,null,null,null,null,null,null,"012-3456-7890"]
[]
[null,null,null,null,null,null,null,null,null,null,null,null,null,null,null,null,null,null,null,null,null,null,null,null,null,null,null,null,null,null,null,null,null,null,null,null,null,null,null,null,null,null,null,null,null,null,null,null,null,null,null,null,null,null,null,null,null,null,null,null,null,null,null,null,null,null,null,null,null,"市町村（福祉担当）",null,null,null,null,null,null,null,null,null,"012-3456-7890"]
[]
[null,null,null,null,null,null,null,null,null,null,null,null,null,null,null,null,null,null,null,null,null,null,null,null,null,null,null,null,null,null,null,null,null,null,null,null,null,null,null,null,null,null,null,null,null,null,null,null,null,null,null,null,null,null,null,null,null,null,null,null,null,null,null,null,null,null,null,null,null,"消防署",null,null,null,null,null,null,null,null,null,"012-3456-7890"]
[]
[null,null,null,null,null,null,null,null,null,null,null,null,null,null,null,null,null,null,null,null,null,null,null,null,null,null,null,null,null,null,null,null,null,null,null,null,null,null,null,null,null,null,null,null,null,null,null,null,null,null,null,null,null,null,null,null,null,null,null,null,null,null,null,null,null,null,null,null,null,"警察署",null,null,null,null,null,null,null,null,null,"012-3456-7890"]
[]
[null,null,null,null,null,null,null,null,null,null,null,null,null,null,null,null,null,null,null,null,null,null,null,null,null,null,null,null,null,null,null,null,null,null,null,null,null,null,null,null,null,null,null,null,null,null,null,null,null,null,null,null,null,null,null,null,null,null,null,null,null,null,null,null,null,null,null,null,null,"避難誘導等の支援者",null,null,null,null,null,null,null,null,null,"012-3456-7890"]
[]
[null,null,null,null,null,null,null,null,null,null,null,null,null,null,null,null,null,null,null,null,null,null,null,null,null,null,null,null,null,null,null,null,null,null,null,null,null,null,null,null,null,null,null,null,null,null,null,null,null,null,null,null,null,null,null,null,null,null,null,null,null,null,null,null,null,null,null,null,null,"医療機関",null,null,null,null,null,null,null,null,null,"012-3456-7890"]
[]
[]
[]
[]
[]
[]
[]
[]
[]
[null,null,"既存の名簿等がある場合は、それを用いてもよい。",null,null,null,null,null,null,null,null,null,null,null,null,null,null,null,null,null,null,null,null,null,null,null,null,null,null,null,null,null,null,null,null,null,null,null,null,null,null,null,null,null,null,null,null,null,null,null,null,null,null,null,null,null,null,null,null,null,null,null,null,null,null,null,null,null,"既存の名簿等がある場合は、それを用いてもよい。"]
[null,null,null,null,null,null,null,null,null,null,null,null,null,null,null,null,null,null,null,null,null,null,null,null,null,null,null,null,null,null,null,null,null,null,null,null,null,null,null,null,null,null,null,null,null,null,null,null,null,null,null,null,null,null,null,null,"様式11",null,null,null,null,null,null,null,null,null,null,null,null,null,null,null,null,null,null,null,null,null,null,null,null,null,null,null,null,null,null,null,null,null,null,null,null,null,null,null,null,null,null,null,null,null,null,null,null,null,null,null,null,null,null,null,null,null,null,null,null,null,null,null,null,null,"記載例"]
[]
[null,null,"１４　対応別避難誘導一覧表",null,null,null,null,null,null,null,null,null,null,null,null,null,null,null,null,null,null,null,null,null,null,null,null,null,null,null,null,null,null,null,null,null,null,null,null,null,null,null,null,null,null,null,null,null,null,null,null,null,null,null,null,null,null,null,null,null,null,null,null,null,null,null,null,null,"１４　対応別避難誘導一覧表"]
[]
[null,null,null,"氏名",null,null,null,null,null,null,null,"連絡先",null,null,null,null,null,null,null,"対応内容",null,null,null,null,null,null,null,"移動手段",null,null,null,null,null,null,null,null,null,null,null,null,null,null,null,null,null,null,null,"担当者",null,null,null,null,null,null,null,"備考",null,null,null,null,null,null,null,null,null,null,null,null,null,"氏名",null,null,null,null,null,null,null,"連絡先",null,null,null,null,null,null,null,"対応内容",null,null,null,null,null,null,null,"移動手段",null,null,null,null,null,null,null,null,null,null,null,null,null,null,null,null,null,null,null,"担当者",null,null,null,null,null,null,null,"備考"]
[null,null,null,null,null,null,null,null,null,null,null,null,null,null,null,null,null,null,null,null,null,null,null,null,null,null,null,"立退き避難",null,null,null,null,null,null,null,null,null,"屋内安全確保",null,null,null,null,null,null,null,null,null,null,null,null,null,null,null,null,null,null,null,null,null,null,null,null,null,null,null,null,null,null,null,null,null,null,null,null,null,null,null,null,null,null,null,null,null,null,null,null,null,null,null,null,null,null,null,"立退き避難",null,null,null,null,null,null,null,null,null,"屋内安全確保"]
[null,null,null,null,null,null,null,null,null,null,null,null,null,null,null,null,null,null,null,null,null,null,null,null,null,null,null,null,null,null,null,null,null,null,null,null,null,null,null,null,null,null,null,null,null,null,null,null,null,null,null,null,null,null,null,null,null,null,null,null,null,null,null,null,null,null,null,null,null,"〇〇〇〇",null,null,null,null,null,null,null,"012-3456-7890",null,null,null,null,null,null,null,1,null,null,null,null,null,null,null,"徒歩",null,null,null,null,null,null,null,null,null,"階段",null,null,null,null,null,null,null,null,null,"○○○○",null,null,null,null,null,null,null,"要介護度1"]
[]
[]
[]
[]
[]
[]
[]
[]
[]
[]
[]
[]
[]
[]
[]
[]
[]
[]
[]
[]
[]
[]
[]
[]
[]
[]
[]
[null,null,null,null,null,null,null,null,null,null,null,null,null,null,null,null,null,null,null,null,null,null,null,null,null,null,null,null,null,null,null,null,null,null,null,null,null,null,null,null,null,null,null,null,null,null,null,null,null,null,null,null,null,null,null,null,null,null,null,null,null,null,null,null,null,null,null,null,null,"〇〇〇〇",null,null,null,null,null,null,null,"012-3456-7890",null,null,null,null,null,null,null,4,null,null,null,null,null,null,null,"自動車",null,null,null,null,null,null,null,null,null,"エレベーター、ストレッチャー",null,null,null,null,null,null,null,null,null,"○○○○",null,null,null,null,null,null,null,"要介護度5"]
[]
[]
[]
[]
[]
[]
[]
[]
[]
[]
[]
[null,null,null,null,null,null,null,null,null,null,null,null,null,null,null,null,null,null,null,null,null,null,null,null,null,null,null,null,null,null,null,null,null,null,null,null,null,null,null,null,null,null,null,null,null,null,null,null,null,null,null,null,null,null,null,null,"様式12",null,null,null,null,null,null,null,null,null,null,null,"既に防災体制を確立している場合は、それを活用してもよい。",null,null,null,null,null,null,null,null,null,null,null,null,null,null,null,null,null,null,null,null,null,null,null,null,null,null,null,null,null,null,null,null,null,null,null,null,null,null,null,null,null,null,null,null,null,null,null,null,null,null,null,null,null,"記載例"]
[]
[null,null,"１５　防災体制一覧表",null,null,null,null,null,null,null,null,null,null,null,null,null,null,null,null,null,null,null,null,null,null,null,null,null,null,null,null,null,null,null,null,null,null,null,null,null,null,null,null,null,null,null,null,null,null,null,null,null,null,null,null,null,null,null,null,null,null,null,null,null,null,null,null,null,"１５　防災体制一覧表"]
[]
[]
[null,null," 管理権限者",null,null,null,null,null,null,null,null,null,"(",null,null,null,null,null,null,null,null,null,null,")",null,"(","代行者",null,null,null,null,null,null,null,null,null,null,null,null,null,null,null,")",null,null,null,null,null,null,null,null,null,null,null,null,null,null,null,null,null,null,null,null,null,null,null,null,null," 管理権限者",null,null,null,null,null,null,null,null,null,"(","施設長",null,null,null,null,null,null,null,null,null,")",null,"(","代行者",null,null,null,null,null,"事務長",null,null,null,null,null,null,null,null,null,")"]
[]
[null,null,null,null,null,null,null,null,"情報収集\n伝達要員",null,null,null,null,null,null,null,"担当者",null,null,null,null,null,null,null,null,null,null,null,null,null,null,null,null,null,null,null,"役割",null,null,null,null,null,null,null,null,null,null,null,null,null,null,null,null,null,null,null,null,null,null,null,null,null,null,null,null,null,null,null,null,null,null,null,null,null,"情報収集\n伝達要員",null,null,null,null,null,null,null,"担当者",null,null,null,null,null,null,null,null,null,null,null,null,null,null,null,null,null,null,null,"役割"]
[]
[]
[null,null,null,null,null,null,null,null,null,null,null,null,null,null,null,null,"班長",null,null,null,"（",null,null,null,null,null,null,null,null,null,null,null,"）",null,null,null,null,"□",null,"洪水予報等の情報の収集",null,null,null,null,null,null,null,null,null,null,null,null,null,null,null,null,null,null,null,null,null,null,null,null,null,null,null,null,null,null,null,null,null,null,null,null,null,null,null,null,null,null,"班長",null,null,null,"（",null,"管理職員",null,null,null,null,null,null,null,null,null,"）",null,null,null,null,"□",null,"洪水予報等の情報の収集"]
[null,null,null,null,null,null,null,null,null,null,null,null,null,null,null,null,"班員",null,null,null,"（",null,null,null,"）","名",null,null,null,null,null,null,null,null,null,null,null,"□",null,"情報内容の記録",null,null,null,null,null,null,null,null,null,null,null,null,null,null,null,null,null,null,null,null,null,null,null,null,null,null,null,null,null,null,null,null,null,null,null,null,null,null,null,null,null,null,"班員",null,null,null,"（",null,"○",null,"）","名",null,null,null,null,null,null,null,null,null,null,null,"□",null,"情報内容の記録"]
[null,null,null,null,null,null,null,null,null,null,null,null,null,null,null,null,"・",null,null,null,null,null,null,null,null,null,null,null,null,null,null,null,null,null,null,null,null,"□",null,"館内放送等による情報伝達",null,null,null,null,null,null,null,null,null,null,null,null,null,null,null,null,null,null,null,null,null,null,null,null,null,null,null,null,null,null,null,null,null,null,null,null,null,null,null,null,null,null,"・",null,null,null,"○○○○",null,null,null,null,null,null,null,null,null,null,null,null,null,null,null,null,"□",null,"館内放送等による情報伝達"]
[null,null,null,null,null,null,null,null,null,null,null,null,null,null,null,null,"・",null,null,null,null,null,null,null,null,null,null,null,null,null,null,null,null,null,null,null,null,"□",null,"関係者及び関係機関との連絡",null,null,null,null,null,null,null,null,null,null,null,null,null,null,null,null,null,null,null,null,null,null,null,null,null,null,null,null,null,null,null,null,null,null,null,null,null,null,null,null,null,null,"・",null,null,null,"○○○○",null,null,null,null,null,null,null,null,null,null,null,null,null,null,null,null,"□",null,"関係者及び関係機関との連絡"]
[]
[]
[null,null,null,null,null,null,null,null,"避難誘導要員",null,null,null,null,null,null,null,"担当者",null,null,null,null,null,null,null,null,null,null,null,null,null,null,null,null,null,null,null,"役割",null,null,null,null,null,null,null,null,null,null,null,null,null,null,null,null,null,null,null,null,null,null,null,null,null,null,null,null,null,null,null,null,null,null,null,null,null,"避難誘導要員",null,null,null,null,null,null,null,"担当者",null,null,null,null,null,null,null,null,null,null,null,null,null,null,null,null,null,null,null,"役割"]
[]
[]
[null,null,null,null,null,null,null,null,null,null,null,null,null,null,null,null,"班長",null,null,null,"（",null,null,null,null,null,null,null,null,null,null,null,"）",null,null,null,null,"□",null,"避難誘導の実施",null,null,null,null,null,null,null,null,null,null,null,null,null,null,null,null,null,null,null,null,null,null,null,null,null,null,null,null,null,null,null,null,null,null,null,null,null,null,null,null,null,null,"班長",null,null,null,"（",null,"管理職員",null,null,null,null,null,null,null,null,null,"）",null,null,null,null,"□",null,"避難誘導の実施"]
[null,null,null,null,null,null,null,null,null,null,null,null,null,null,null,null,"班員",null,null,null,"（",null,null,null,"）","名",null,null,null,null,null,null,null,null,null,null,null,"□",null,"未避難者、要救助者の確認",null,null,null,null,null,null,null,null,null,null,null,null,null,null,null,null,null,null,null,null,null,null,null,null,null,null,null,null,null,null,null,null,null,null,null,null,null,null,null,null,null,null,"班員",null,null,null,"（",null,"○",null,"）","名",null,null,null,null,null,null,null,null,null,null,null,"□",null,"未避難者、要救助者の確認"]
[null,null,null,null,null,null,null,null,null,null,null,null,null,null,null,null,"・",null,null,null,null,null,null,null,null,null,null,null,null,null,null,null,null,null,null,null,null,null,null,null,null,null,null,null,null,null,null,null,null,null,null,null,null,null,null,null,null,null,null,null,null,null,null,null,null,null,null,null,null,null,null,null,null,null,null,null,null,null,null,null,null,null,"・",null,null,null,"○○○○"]
[null,null,null,null,null,null,null,null,null,null,null,null,null,null,null,null,"・",null,null,null,null,null,null,null,null,null,null,null,null,null,null,null,null,null,null,null,null,null,null,null,null,null,null,null,null,null,null,null,null,null,null,null,null,null,null,null,null,null,null,null,null,null,null,null,null,null,null,null,null,null,null,null,null,null,null,null,null,null,null,null,null,null,"・",null,null,null,"○○○○"]
[]
[]
[]
[]
[]
[]
[]
[]
[]
[]
[]
[]
[]
[]
[]
[]
[]
[]
[]
[]
[]
[]
[]
[]
[]
[]
[]
[]
[]
[]
[]
[]
[]
[]
[]
[null,null,null,null,null,null,null,null,null,null,null,null,null,null,null,null,null,null,null,null,null,null,null,null,null,null,null,null,null,null,null,null,null,null,null,null,null,null,null,null,null,null,null,null,null,null,null,null,null,null,null,null,null,null,null,null,"別添",null,null,null,null,null,null,null,null,null,null,null,null,null,null,null,null,null,null,null,null,null,null,null,null,null,null,null,null,null,null,null,null,null,null,null,null,null,null,null,null,null,null,null,null,null,null,null,null,null,null,null,null,null,null,null,null,null,null,null,null,null,null,null,null,null,"記載例"]
[]
[null,null,null,null,"自衛水防組織活動要領",null,null,null,null,null,null,null,null,null,null,null,null,null,null,null,null,null,null,null,null,null,null,null,null,null,null,null,null,null,null,null,null,null,null,null,null,null,null,null,null,null,null,null,null,null,null,null,null,null,null,null,null,null,null,null,null,null,null,null,null,null,null,null,null,null,"自衛水防組織活動要領"]
[]
[null,null,null,null,"（自衛水防組織の編成）","（自衛水防組織の編成）",0,0,0,0,0,0,0,0,0,0,0,0,0,0,0,0,0,0,0,0,0,0,0,0,0,0,0,0,0,0,0,0,0,0,0,0,0,0,0,0,0,0,0,0,0,0,0,0,0,0,0,0,0,0,0,0,null,null,null,null,null,null,null,null,"（自衛水防組織の編成）"]
[null,null,null,null,"第１条　管理権限者は、洪水時等において避難確保計画に基づく円滑かつ迅速な避難を確保するため、自衛水防組織を編成するものとする。","第１条　管理権限者は、洪水時等において避難確保計画に基づく円滑かつ迅速な避難を確保するため、自衛水防組織を編成するものとする。",0,0,0,0,0,0,0,0,0,0,0,0,0,0,0,0,0,0,0,0,0,0,0,0,0,0,0,0,0,0,0,0,0,0,0,0,0,0,0,0,0,0,0,0,0,0,0,0,0,0,0,0,0,0,0,0,null,null,null,null,null,null,null,null,"第１条　管理権限者は、洪水時等において避難確保計画に基づく円滑かつ迅速な避難を確保するため、自衛水防組織を編成するものとする。"]
[null,null,null,null,"２　自衛水防組織には、統括管理者を置く。","２　自衛水防組織には、統括管理者を置く。",0,0,0,0,0,0,0,0,0,0,0,0,0,0,0,0,0,0,0,0,0,0,0,0,0,0,0,0,0,0,0,0,0,0,0,0,0,0,0,0,0,0,0,0,0,0,0,0,0,0,0,0,0,0,0,0,null,null,null,null,null,null,null,null,"２　自衛水防組織には、統括管理者を置く。"]
[null,null,null,null,"（１）統括管理者は、管理権限者の命を受け、自衛水防組織の機能が有効に発揮できるよう組織を統括する。","（１）統括管理者は、管理権限者の命を受け、自衛水防組織の機能が有効に発揮できるよう組織を統括する。",0,0,0,0,0,0,0,0,0,0,0,0,0,0,0,0,0,0,0,0,0,0,0,0,0,0,0,0,0,0,0,0,0,0,0,0,0,0,0,0,0,0,0,0,0,0,0,0,0,0,0,0,0,0,0,0,null,null,null,null,null,null,null,null,"（１）統括管理者は、管理権限者の命を受け、自衛水防組織の機能が有効に発揮できるよう組織を統括する。"]
[null,null,null,null,"（２）統括管理者は、洪水時等における避難行動について、その指揮、命令、監督等一切の権限を有する。","（２）統括管理者は、洪水時等における避難行動について、その指揮、命令、監督等一切の権限を有する。",0,0,0,0,0,0,0,0,0,0,0,0,0,0,0,0,0,0,0,0,0,0,0,0,0,0,0,0,0,0,0,0,0,0,0,0,0,0,0,0,0,0,0,0,0,0,0,0,0,0,0,0,0,0,0,0,null,null,null,null,null,null,null,null,"（２）統括管理者は、洪水時等における避難行動について、その指揮、命令、監督等一切の権限を有する。"]
[null,null,null,null,"３　管理権限者は、統括管理者の代行者を定め、当該代行者に対し、統括管理者の任務を代行するために必要な指揮、命令、監督等の権限を付与する。","３　管理権限者は、統括管理者の代行者を定め、当該代行者に対し、統括管理者の任務を代行するために必要な指揮、命令、監督等の権限を付与する。",0,0,0,0,0,0,0,0,0,0,0,0,0,0,0,0,0,0,0,0,0,0,0,0,0,0,0,0,0,0,0,0,0,0,0,0,0,0,0,0,0,0,0,0,0,0,0,0,0,0,0,0,0,0,0,0,null,null,null,null,null,null,null,null,"３　管理権限者は、統括管理者の代行者を定め、当該代行者に対し、統括管理者の任務を代行するために必要な指揮、命令、監督等の権限を付与する。"]
[null,null,null,null,"４　自衛水防組織に、班を置く。","４　自衛水防組織に、班を置く。",0,0,0,0,0,0,0,0,0,0,0,0,0,0,0,0,0,0,0,0,0,0,0,0,0,0,0,0,0,0,0,0,0,0,0,0,0,0,0,0,0,0,0,0,0,0,0,0,0,0,0,0,0,0,0,0,null,null,null,null,null,null,null,null,"４　自衛水防組織に、班を置く。"]
[null,null,null,null,"(１)　班は、総括・情報班及び避難誘導班とし、各班に班長を置く。","(１)　班は、総括・情報班及び避難誘導班とし、各班に班長を置く。",0,0,0,0,0,0,0,0,0,0,0,0,0,0,0,0,0,0,0,0,0,0,0,0,0,0,0,0,0,0,0,0,0,0,0,0,0,0,0,0,0,0,0,0,0,0,0,0,0,0,0,0,0,0,0,0,null,null,null,null,null,null,null,null,"(１)　班は、総括・情報班及び避難誘導班とし、各班に班長を置く。"]
[null,null,null,null,"(２)　各班の任務は、別表１に掲げる任務とする。","(２)　各班の任務は、別表１に掲げる任務とする。",0,0,0,0,0,0,0,0,0,0,0,0,0,0,0,0,0,0,0,0,0,0,0,0,0,0,0,0,0,0,0,0,0,0,0,0,0,0,0,0,0,0,0,0,0,0,0,0,0,0,0,0,0,0,0,0,null,null,null,null,null,null,null,null,"(２)　各班の任務は、別表１に掲げる任務とする。"]
[null,null,null,null,"(３)  防災センター（最低限、通信設備を有するものとする）を自衛水防組織の活動拠点とし、防災センター勤務員及び各班の班長を自衛水防組織の中核として配置する。","(３)  防災センター（最低限、通信設備を有するものとする）を自衛水防組織の活動拠点とし、防災センター勤務員及び各班の班長を自衛水防組織の中核として配置する。",0,0,0,0,0,0,0,0,0,0,0,0,0,0,0,0,0,0,0,0,0,0,0,0,0,0,0,0,0,0,0,0,0,0,0,0,0,0,0,0,0,0,0,0,0,0,0,0,0,0,0,0,0,0,0,0,null,null,null,null,null,null,null,null,"(３)  防災センター（最低限、通信設備を有するものとする）を自衛水防組織の活動拠点とし、防災センター勤務員及び各班の班長を自衛水防組織の中核として配置する。"]
[]
[null,null,null,null,"（自衛水防組織の運用）","（自衛水防組織の運用）",0,0,0,0,0,0,0,0,0,0,0,0,0,0,0,0,0,0,0,0,0,0,0,0,0,0,0,0,0,0,0,0,0,0,0,0,0,0,0,0,0,0,0,0,0,0,0,0,0,0,0,0,0,0,0,0,null,null,null,null,null,null,null,null,"（自衛水防組織の運用）"]
[null,null,null,null,"第２条　管理権限者は、施設職員の勤務体制（シフト）も考慮した組織編成に努め、必要な人員の確保及び施設職員等に割り当てた任務の周知徹底を図るものとする。","第２条　管理権限者は、施設職員の勤務体制（シフト）も考慮した組織編成に努め、必要な人員の確保及び施設職員等に割り当てた任務の周知徹底を図るものとする。",0,0,0,0,0,0,0,0,0,0,0,0,0,0,0,0,0,0,0,0,0,0,0,0,0,0,0,0,0,0,0,0,0,0,0,0,0,0,0,0,0,0,0,0,0,0,0,0,0,0,0,0,0,0,0,0,null,null,null,null,null,null,null,null,"第２条　管理権限者は、施設職員の勤務体制（シフト）も考慮した組織編成に努め、必要な人員の確保及び施設職員等に割り当てた任務の周知徹底を図るものとする。"]
[null,null,null,null,"２　特に、休日・夜間も施設内に患者が滞在する施設にあって、休日・夜間に在館する施設職員等のみによっては十分な体制を確保することが難しい場合は、管理権限者は、近隣在住の施設職員等の非常参集も考慮して組織編成に努めるものとする。","２　特に、休日・夜間も施設内に利用者が滞在する施設にあって、休日・夜間に在館する施設職員等のみによっては十分な体制を確保することが難しい場合は、管理権限者は、近隣在住の施設職員等の非常参集も考慮して組織編成に努めるものとする。",0,0,0,0,0,0,0,0,0,0,0,0,0,0,0,0,0,0,0,0,0,0,0,0,0,0,0,0,0,0,0,0,0,0,0,0,0,0,0,0,0,0,0,0,0,0,0,0,0,0,0,0,0,0,0,0,null,null,null,null,null,null,null,null,"２　特に、休日・夜間も施設内に患者が滞在する施設にあって、休日・夜間に在館する施設職員等のみによっては十分な体制を確保することが難しい場合は、管理権限者は、近隣在住の施設職員等の非常参集も考慮して組織編成に努めるものとする。"]
[null,null,null,null,"３　管理権限者は、災害等の応急活動のため緊急連絡網や施設職員等の非常参集計画を定めるものとする。","３　管理権限者は、災害等の応急活動のため緊急連絡網や施設職員等の非常参集計画を定めるものとする。",0,0,0,0,0,0,0,0,0,0,0,0,0,0,0,0,0,0,0,0,0,0,0,0,0,0,0,0,0,0,0,0,0,0,0,0,0,0,0,0,0,0,0,0,0,0,0,0,0,0,0,0,0,0,0,0,null,null,null,null,null,null,null,null,"３　管理権限者は、災害等の応急活動のため緊急連絡網や施設職員等の非常参集計画を定めるものとする。"]
[]
[null,null,null,null,"（自衛水防組織の装備）","（自衛水防組織の装備）",0,0,0,0,0,0,0,0,0,0,0,0,0,0,0,0,0,0,0,0,0,0,0,0,0,0,0,0,0,0,0,0,0,0,0,0,0,0,0,0,0,0,0,0,0,0,0,0,0,0,0,0,0,0,0,0,null,null,null,null,null,null,null,null,"（自衛水防組織の装備）"]
[null,null,null,null,"第３条　管理権限者は、自衛水防組織に必要な装備品を整備するとともに、適正な維持管理に努めなければならない。","第３条　管理権限者は、自衛水防組織に必要な装備品を整備するとともに、適正な維持管理に努めなければならない。",0,0,0,0,0,0,0,0,0,0,0,0,0,0,0,0,0,0,0,0,0,0,0,0,0,0,0,0,0,0,0,0,0,0,0,0,0,0,0,0,0,0,0,0,0,0,0,0,0,0,0,0,0,0,0,0,null,null,null,null,null,null,null,null,"第３条　管理権限者は、自衛水防組織に必要な装備品を整備するとともに、適正な維持管理に努めなければならない。"]
[null,null,null,null,"(１)　自衛水防組織の装備品は、別表２「自衛水防組織装備品リスト」のとおりとする。","(１)　自衛水防組織の装備品は、別表２「自衛水防組織装備品リスト」のとおりとする。",0,0,0,0,0,0,0,0,0,0,0,0,0,0,0,0,0,0,0,0,0,0,0,0,0,0,0,0,0,0,0,0,0,0,0,0,0,0,0,0,0,0,0,0,0,0,0,0,0,0,0,0,0,0,0,0,null,null,null,null,null,null,null,null,"(１)　自衛水防組織の装備品は、別表２「自衛水防組織装備品リスト」のとおりとする。"]
[null,null,null,null,"(２)　自衛水防組織の装備品については、統括管理者が防災センターに保管し、必要な点検を行うとともに点検結果を記録保管し、常時使用できる状態で維持管理する。","(２)　自衛水防組織の装備品については、統括管理者が防災センターに保管し、必要な点検を行うとともに点検結果を記録保管し、常時使用できる状態で維持管理する。",0,0,0,0,0,0,0,0,0,0,0,0,0,0,0,0,0,0,0,0,0,0,0,0,0,0,0,0,0,0,0,0,0,0,0,0,0,0,0,0,0,0,0,0,0,0,0,0,0,0,0,0,0,0,0,0,null,null,null,null,null,null,null,null,"(２)　自衛水防組織の装備品については、統括管理者が防災センターに保管し、必要な点検を行うとともに点検結果を記録保管し、常時使用できる状態で維持管理する。"]
[]
[null,null,null,null,"（自衛水防組織の活動）","（自衛水防組織の活動）",0,0,0,0,0,0,0,0,0,0,0,0,0,0,0,0,0,0,0,0,0,0,0,0,0,0,0,0,0,0,0,0,0,0,0,0,0,0,0,0,0,0,0,0,0,0,0,0,0,0,0,0,0,0,0,0,null,null,null,null,null,null,null,null,"（自衛水防組織の活動）"]
[null,null,null,null,"第４条　自衛水防組織の各班は、避難確保計画に基づき情報収集及び避難誘導等の活動を行うものとする。","第４条　自衛水防組織の各班は、避難確保計画に基づき情報収集及び避難誘導等の活動を行うものとする。",0,0,0,0,0,0,0,0,0,0,0,0,0,0,0,0,0,0,0,0,0,0,0,0,0,0,0,0,0,0,0,0,0,0,0,0,0,0,0,0,0,0,0,0,0,0,0,0,0,0,0,0,0,0,0,0,null,null,null,null,null,null,null,null,"第４条　自衛水防組織の各班は、避難確保計画に基づき情報収集及び避難誘導等の活動を行うものとする。"]
[]
[]
[]
[]
[]
[]
[]
[]
[]
[]
[]
[]
[]
[]
[]
[]
[]
[]
[]
[null,null,null,null,null,null,null,null,null,null,null,null,null,null,null,null,null,null,null,null,null,null,null,null,null,null,null,null,null,null,null,null,null,null,null,null,null,null,null,null,null,null,null,null,null,null,null,null,null,null,null,null,null,null,null,null,"別表１",null,null,null,null,null,null,null,null,null,null,null,null,null,null,null,null,null,null,null,null,null,null,null,null,null,null,null,null,null,null,null,null,null,null,null,null,null,null,null,null,null,null,null,null,null,null,null,null,null,null,null,null,null,null,null,null,null,null,null,null,null,null,null,null,null,"記載例"]
[]
[null,null,"自衛水防組織の編成と任務",null,null,null,null,null,null,null,null,null,null,null,null,null,null,null,null,null,null,null,null,null,null,null,null,null,null,null,null,null,null,null,null,null,null,null,null,null,null,null,null,null,null,null,null,null,null,null,null,null,null,null,null,null,null,null,null,null,null,null,null,null,null,null,null,null,"自衛水防組織の編成と任務"]
[]
[]
[null,null," 統括管理者",null,null,null,null,null,null,null,null,null,"(",null,null,null,null,null,null,null,null,null,null,")",null,"(","代行者",null,null,null,null,null,null,null,null,null,null,null,null,null,null,null,")",null,null,null,null,null,null,null,null,null,null,null,null,null,null,null,null,null,null,null,null,null,null,null,null,null," 統括管理者",null,null,null,null,null,null,null,null,null,"(","施設長",null,null,null,null,null,null,null,null,null,")",null,"(","代行者",null,null,null,null,null,"事務長",null,null,null,null,null,null,null,null,null,")"]
[]
[null,null,null,null,null,null,null,null," 総括・情報班",null,null,null,null,null,null,null,"担当者",null,null,null,null,null,null,null,null,null,null,null,null,null,null,null,null,null,null,null,"役割",null,null,null,null,null,null,null,null,null,null,null,null,null,null,null,null,null,null,null,null,null,null,null,null,null,null,null,null,null,null,null,null,null,null,null,null,null," 総括・情報班",null,null,null,null,null,null,null,"担当者",null,null,null,null,null,null,null,null,null,null,null,null,null,null,null,null,null,null,null,"役割"]
[]
[]
[null,null,null,null,null,null,null,null,null,null,null,null,null,null,null,null,"班長",null,null,null,"（",null,null,null,null,null,null,null,null,null,null,null,"）",null,null,null,null,"□",null,"状況の把握",null,null,null,null,null,null,null,null,null,null,null,null,null,null,null,null,null,null,null,null,null,null,null,null,null,null,null,null,null,null,null,null,null,null,null,null,null,null,null,null,null,null,"班長",null,null,null,"（",null,"管理職員",null,null,null,null,null,null,null,null,null,"）",null,null,null,null,"□",null,"状況の把握"]
[null,null,null,null,null,null,null,null,null,null,null,null,null,null,null,null,"班員",null,null,null,"（",null,null,null,"）","名",null,null,null,null,null,null,null,null,null,null,null,"□",null,"洪水予報等の情報の収集",null,null,null,null,null,null,null,null,null,null,null,null,null,null,null,null,null,null,null,null,null,null,null,null,null,null,null,null,null,null,null,null,null,null,null,null,null,null,null,null,null,null,"班員",null,null,null,"（",null,"○",null,"）","名",null,null,null,null,null,null,null,null,null,null,null,"□",null,"洪水予報等の情報の収集"]
[null,null,null,null,null,null,null,null,null,null,null,null,null,null,null,null,"・",null,null,null,null,null,null,null,null,null,null,null,null,null,null,null,null,null,null,null,null,"□",null,"情報内容の記録",null,null,null,null,null,null,null,null,null,null,null,null,null,null,null,null,null,null,null,null,null,null,null,null,null,null,null,null,null,null,null,null,null,null,null,null,null,null,null,null,null,null,"・",null,null,null,"○○○○",null,null,null,null,null,null,null,null,null,null,null,null,null,null,null,null,"□",null,"情報内容の記録"]
[null,null,null,null,null,null,null,null,null,null,null,null,null,null,null,null,"・",null,null,null,null,null,null,null,null,null,null,null,null,null,null,null,null,null,null,null,null,"□",null,"館内放送等による情報伝達",null,null,null,null,null,null,null,null,null,null,null,null,null,null,null,null,null,null,null,null,null,null,null,null,null,null,null,null,null,null,null,null,null,null,null,null,null,null,null,null,null,null,"・",null,null,null,"○○○○",null,null,null,null,null,null,null,null,null,null,null,null,null,null,null,null,"□",null,"館内放送等による情報伝達"]
[null,null,null,null,null,null,null,null,null,null,null,null,null,null,null,null,null,null,null,null,null,null,null,null,null,null,null,null,null,null,null,null,null,null,null,null,null,"□",null,"関係者及び関係機関との連絡",null,null,null,null,null,null,null,null,null,null,null,null,null,null,null,null,null,null,null,null,null,null,null,null,null,null,null,null,null,null,null,null,null,null,null,null,null,null,null,null,null,null,null,null,null,null,null,null,null,null,null,null,null,null,null,null,null,null,null,null,null,null,null,"□",null,"関係者及び関係機関との連絡"]
[]
[]
[null,null,null,null,null,null,null,null," 避難誘導班",null,null,null,null,null,null,null,"担当者",null,null,null,null,null,null,null,null,null,null,null,null,null,null,null,null,null,null,null,"役割",null,null,null,null,null,null,null,null,null,null,null,null,null,null,null,null,null,null,null,null,null,null,null,null,null,null,null,null,null,null,null,null,null,null,null,null,null," 避難誘導班",null,null,null,null,null,null,null,"担当者",null,null,null,null,null,null,null,null,null,null,null,null,null,null,null,null,null,null,null,"役割"]
[]
[]
[null,null,null,null,null,null,null,null,null,null,null,null,null,null,null,null,"班長",null,null,null,"（",null,null,null,null,null,null,null,null,null,null,null,"）",null,null,null,null,"□",null,"避難誘導の実施",null,null,null,null,null,null,null,null,null,null,null,null,null,null,null,null,null,null,null,null,null,null,null,null,null,null,null,null,null,null,null,null,null,null,null,null,null,null,null,null,null,null,"班長",null,null,null,"（",null,"管理職員",null,null,null,null,null,null,null,null,null,"）",null,null,null,null,"□",null,"避難誘導の実施"]
[null,null,null,null,null,null,null,null,null,null,null,null,null,null,null,null,"班員",null,null,null,"（",null,null,null,"）","名",null,null,null,null,null,null,null,null,null,null,null,"□",null,"未避難者、要救助者の確認",null,null,null,null,null,null,null,null,null,null,null,null,null,null,null,null,null,null,null,null,null,null,null,null,null,null,null,null,null,null,null,null,null,null,null,null,null,null,null,null,null,null,"班員",null,null,null,"（",null,"○",null,"）","名",null,null,null,null,null,null,null,null,null,null,null,"□",null,"未避難者、要救助者の確認"]
[null,null,null,null,null,null,null,null,null,null,null,null,null,null,null,null,"・",null,null,null,null,null,null,null,null,null,null,null,null,null,null,null,null,null,null,null,null,null,null,null,null,null,null,null,null,null,null,null,null,null,null,null,null,null,null,null,null,null,null,null,null,null,null,null,null,null,null,null,null,null,null,null,null,null,null,null,null,null,null,null,null,null,"・",null,null,null,"○○○○"]
[null,null,null,null,null,null,null,null,null,null,null,null,null,null,null,null,"・",null,null,null,null,null,null,null,null,null,null,null,null,null,null,null,null,null,null,null,null,null,null,null,null,null,null,null,null,null,null,null,null,null,null,null,null,null,null,null,null,null,null,null,null,null,null,null,null,null,null,null,null,null,null,null,null,null,null,null,null,null,null,null,null,null,"・",null,null,null,"○○○○"]
[]
[]
[]
[]
[]
[]
[null,null,null,null,null,null,null,null,null,null,null,null,null,null,null,null,null,null,null,null,null,null,null,null,null,null,null,null,null,null,null,null,null,null,null,null,null,null,null,null,null,null,null,null,null,null,null,null,null,null,null,null,null,null,null,null,"別表２",null,null,null,null,null,null,null,null,null,null,null,null,null,null,null,null,null,null,null,null,null,null,null,null,null,null,null,null,null,null,null,null,null,null,null,null,null,null,null,null,null,null,null,null,null,null,null,null,null,null,null,null,null,null,null,null,null,null,null,null,null,null,null,null,null,"記載例"]
[]
[null,null,"自衛水防組織装備品リスト",null,null,null,null,null,null,null,null,null,null,null,null,null,null,null,null,null,null,null,null,null,null,null,null,null,null,null,null,null,null,null,null,null,null,null,null,null,null,null,null,null,null,null,null,null,null,null,null,null,null,null,null,null,null,null,null,null,null,null,null,null,null,null,null,null,"自衛水防組織装備品リスト"]
[]
[null,null,null,null,null,null,"　任務",null,null,null,null,null,null,null,null,null,null,null,null,null,null,null,null,null,"　装備品",null,null,null,null,null,null,null,null,null,null,null,null,null,null,null,null,null,null,null,null,null,null,null,null,null,null,null,null,null,null,null,null,null,null,null,null,null,null,null,null,null,null,null,null,null,null,null,"　任務",null,null,null,null,null,null,null,null,null,null,null,null,null,null,null,null,null,"　装備品"]
[]
[null,null,null,null,null,null," 総括・情報班",null,null,null,null,null,null,null,null,null,null,null,null,null,null,null,null,null,"　名簿（施設職員、患者等）",null,null,null,null,null,null,null,null,null,null,null,null,null,null,null,null,null,null,null,null,null,null,null,null,null,null,null,null,null,null,null,null,null,null,null,null,null,null,null,null,null,null,null,null,null,null,null," 総括・情報班",null,null,null,null,null,null,null,null,null,null,null,null,null,null,null,null,null,"　名簿（施設職員、患者等）",null,null,null,null,null,null,null,null,null,null,null,null,null,null,null,null,null,0]
[null,null,null,null,null,null," 避難誘導班",null,null,null,null,null,null,null,null,null,null,null,null,null,null,null,null,null,"　様式５避難確保資器材一覧に掲げるもの。",null,null,null,null,null,null,null,null,null,null,null,null,null,null,null,null,null,null,null,null,null,null,null,null,null,null,null,null,null,null,null,null,null,null,null,null,null,null,null,null,null,null,null,null,null,null,null," 避難誘導班",null,null,null,null,null,null,null,null,null,null,null,null,null,null,null,null,null,"　様式５避難確保資器材一覧に掲げるもの。",null,null,null,null,null,null,null,null,null,null,null,null,null,null,null,null,null,0]
[]
[]
[]
[]
[]
[]
[]
[]
[]
[]
[]
[]
[]
[]
[]
[]
[]
[]
[]
[]
[null,null,null,null,null,null,null,null,null,null,null,null,null,null,null,null,null,null,null,null,null,null,null,null,null,null,null,null,null,null,null,null,null,null,null,null,null,null,null,null,null,null,null,null,null,null,null,null,null,null,null,null,null,null,null,null,"別紙１",null,null,null,null,null,null,null,null,null,null,null,null,null,null,null,null,null,null,null,null,null,null,null,null,null,null,null,null,null,null,null,null,null,null,null,null,null,null,null,null,null,null,null,null,null,null,null,null,null,null,null,null,null,null,null,null,null,null,null,null,null,null,null,null,null,"記載例"]
[]
[]
[null,null,null,null,"【施設周辺の避難地図】",null,null,null,null,null,null,null,null,null,null,null,null,null,null,null,null,null,null,null,null,null,null,null,null,null,null,null,null,null,null,null,null,null,null,null,null,null,null,null,null,null,null,null,null,null,null,null,null,null,null,null,null,null,null,null,null,null,null,null,null,null,null,null,null,null,"【施設周辺の避難地図】"]
[null,null,null,null,"　洪水時の避難場所、避難経路は以下のものとする。",null,null,null,null,null,null,null,null,null,null,null,null,null,null,null,null,null,null,null,null,null,null,null,null,null,null,null,null,null,null,null,null,null,null,null,null,null,null,null,null,null,null,null,null,null,null,null,null,null,null,null,null,null,null,null,null,null,null,null,null,null,null,null,null,null,"　洪水時・内水時・高潮時・津波の発生時・土砂災害の発生時の避難場所、避難経路は以下のものとする。"]
[]
[]
[null,null,null,null,null,null,null,null,null,null,"立退き避難",null,null,null,null,null,null,null,null,null,null,null,null,null,null,null,null,null,null,null,null,null,null,null,null,null,null,null,null,null,null,null,null,null,null,null,"屋内安全確保",null,null,null,null,null,null,null,null,null,null,null,null,null,null,null,null,null,null,null,null,null,null,null,null,null,null,null,null,null,"立退き避難",null,null,null,null,null,null,null,null,null,null,null,null,null,null,null,null,null,null,null,null,null,null,null,null,null,null,null,null,null,null,null,null,null,null,null,"屋内安全確保"]
[null,null,null,null,null,null,null,null,null,null,"避難場所１",null,null,null,null,null,null,null,null,null,null,null,null,null,null,null,null,null,"避難場所２",null,null,null,null,null,null,null,null,null,null,null,null,null,null,null,null,null,null,null,null,null,null,null,null,null,null,null,null,null,null,null,null,null,null,null,null,null,null,null,null,null,null,null,null,null,null,null,"避難場所１",null,null,null,null,null,null,null,null,null,null,null,null,null,null,null,null,null,"避難場所２"]
[null,null,null,null,"洪水",null,null,null,null,null,{"$f":"IF(U621<>\"\",U621,\"\")","v":""},null,null,null,null,null,null,null,null,null,null,null,null,null,null,null,null,null,{"$f":"IF(U641<>\"\",U641,\"\")","v":""},null,null,null,null,null,null,null,null,null,null,null,null,null,null,null,null,null,{"$f":"IF(AND(U662<>\"\",U662<>\"指定無\"),U662&AK662&AS662,\"\")","v":"--階"},null,null,null,null,null,null,null,null,null,null,null,null,null,null,null,null,null,null,null,null,null,null,null,"洪水",null,null,null,null,null,"Ａ会（系列グループホーム）",null,null,null,null,null,null,null,null,null,null,null,null,null,null,null,null,null,"Ｃ高校（体育館）",null,null,null,null,null,null,null,null,null,null,null,null,null,null,null,null,null,"本施設2階"]
[null,null,null,null,"内水",null,null,null,null,null,{"$f":"IF(U624<>\"\",U624,\"\")","v":""},null,null,null,null,null,null,null,null,null,null,null,null,null,null,null,null,null,{"$f":"IF(U644<>\"\",U644,\"\")","v":""},null,null,null,null,null,null,null,null,null,null,null,null,null,null,null,null,null,{"$f":"IF(AND(U663<>\"\",U663<>\"指定無\"),U663&AK663&AS663,\"\")","v":""},null,null,null,null,null,null,null,null,null,null,null,null,null,null,null,null,null,null,null,null,null,null,null,"内水",null,null,null,null,null,"Ａ会（系列グループホーム）",null,null,null,null,null,null,null,null,null,null,null,null,null,null,null,null,null,"Ｃ高校（体育館）",null,null,null,null,null,null,null,null,null,null,null,null,null,null,null,null,null,"本施設2階"]
[null,null,null,null,"高潮",null,null,null,null,null,{"$f":"IF(U627<>\"\",U627,\"\")","v":""},null,null,null,null,null,null,null,null,null,null,null,null,null,null,null,null,null,{"$f":"IF(U647<>\"\",U647,\"\")","v":""},null,null,null,null,null,null,null,null,null,null,null,null,null,null,null,null,null,{"$f":"IF(AND(U664<>\"\",U664<>\"指定無\"),U664&AK664&AS664,\"\")","v":""},null,null,null,null,null,null,null,null,null,null,null,null,null,null,null,null,null,null,null,null,null,null,null,"高潮",null,null,null,null,null,"Ａ会（系列グループホーム）",null,null,null,null,null,null,null,null,null,null,null,null,null,null,null,null,null,"Ｃ高校（体育館）",null,null,null,null,null,null,null,null,null,null,null,null,null,null,null,null,null,"本施設2階"]
[null,null,null,null,"津波",null,null,null,null,null,{"$f":"IF(U630<>\"\",U630,\"\")","v":""},null,null,null,null,null,null,null,null,null,null,null,null,null,null,null,null,null,{"$f":"IF(U650<>\"\",U650,\"\")","v":""},null,null,null,null,null,null,null,null,null,null,null,null,null,null,null,null,null,{"$f":"IF(AND(U665<>\"\",U665<>\"指定無\"),U665&AK665&AS665,\"\")","v":""},null,null,null,null,null,null,null,null,null,null,null,null,null,null,null,null,null,null,null,null,null,null,null,"津波",null,null,null,null,null,"Ｂ神社",null,null,null,null,null,null,null,null,null,null,null,null,null,null,null,null,null,"Ｄ小学校（校舎2階以上）",null,null,null,null,null,null,null,null,null,null,null,null,null,null,null,null,null,"指定無"]
[null,null,null,null,"土砂",null,null,null,null,null,{"$f":"IF(U633<>\"\",U633,\"\")","v":""},null,null,null,null,null,null,null,null,null,null,null,null,null,null,null,null,null,{"$f":"IF(U653<>\"\",U653,\"\")","v":""},null,null,null,null,null,null,null,null,null,null,null,null,null,null,null,null,null,{"$f":"IF(AND(U666<>\"\",U666<>\"指定無\"),U666&AK666&AS666,\"\")","v":""},null,null,null,null,null,null,null,null,null,null,null,null,null,null,null,null,null,null,null,null,null,null,null,"土砂",null,null,null,null,null,"Ｃ高校（体育館）",null,null,null,null,null,null,null,null,null,null,null,null,null,null,null,null,null,"Ｃ高校（体育館）",null,null,null,null,null,null,null,null,null,null,null,null,null,null,null,null,null,"本施設（斜面の反対側）2階"]
[]
[]
[]
[]
[]
[]
[]
[]
[]
[]
[]
[]
[]
[]
[]
[]
[]
[]
[]
[]
[]
[]
[]
[]
[]
[]
[]
[]
[]
[null,null,null,null,"※施設の位置、避難場所の位置、避難経路、移動手段（徒歩、自動車等）を記載",null,null,null,null,null,null,null,null,null,null,null,null,null,null,null,null,null,null,null,null,null,null,null,null,null,null,null,null,null,null,null,null,null,null,null,null,null,null,null,null,null,null,null,null,null,null,null,null,null,null,null,null,null,null,null,null,null,null,null,null,null,null,null,null,null,"※施設の位置、避難場所の位置、避難経路、移動手段（徒歩、自動車等）を記載"]
[null,null,null,null,"避難場所については、避難訓練等により避難できることを確かめ、必要に応じ見直しするものとする。",null,null,null,null,null,null,null,null,null,null,null,null,null,null,null,null,null,null,null,null,null,null,null,null,null,null,null,null,null,null,null,null,null,null,null,null,null,null,null,null,null,null,null,null,null,null,null,null,null,null,null,null,null,null,null,null,null,null,null,null,null,null,null,null,null,"避難場所については、避難訓練等により避難できることを確かめ、必要に応じ見直しするものとする。"]